Workbook

Sheet Расчет
A1: =IF(SUM(Медикаменты[Код])=0,"",1) -> 1 | B1: =IFERROR(VLOOKUP(A1,Медикаменты[],2,),"") -> Перчатки (нестер, латекс.) | P1: =IF(Опер="Операции со складом",,IFERROR(INDEX(Договоры_tb[Поставщик],SMALL(IF(Договоры_tb[Наименование]=Наим,ROW(Договоры_tb[Наименование])-ROW(Договоры_tb[[#Headers],[Наименование]])),ROW())),)) -> ООО "Медресурс" (дог. №12345; ост.0) | R1: Расчет | T1: по расходованию медикаментов в дневном стационаре ОГАУЗ ИГДП №2 | U1: =--CONCATENATE(Отчет!A2," .",Отчет!A3) -> 2018-05-01 | AF1: Заказ | AN1: Отчет | AP1: по расходованию медикаментов в дневном стационаре ОГАУЗ ИГДП №2
A2: =IFERROR(IF(A1+1<=MAX(Медикаменты[Код]),A1+1,""),"") -> 2 | B2: =IFERROR(VLOOKUP(A2,Медикаменты[],2,),"") -> Перчатки (нестер, нитрил.) | P2: =IF(Опер="Операции со складом",,IFERROR(INDEX(Договоры_tb[Поставщик],SMALL(IF(Договоры_tb[Наименование]=Наим,ROW(Договоры_tb[Наименование])-ROW(Договоры_tb[[#Headers],[Наименование]])),ROW())),)) -> ООО "Медресурс" (дог. №ПР-123; ост.30) | T2: по расходованию спирта и ИМН в ОГАУЗ «ИГДП №2» | U2: =EOMONTH(U1,0) -> 2018-05-31 | AP2: по расходованию спирта и ИМН в ОГАУЗ «ИГДП №2»
A3: =IFERROR(IF(A2+1<=MAX(Медикаменты[Код]),A2+1,""),"") -> 3 | B3: =IFERROR(VLOOKUP(A3,Медикаменты[],2,),"") -> Перчатки (стер, латекс.) | P3: =IF(Опер="Операции со складом",,IFERROR(INDEX(Договоры_tb[Поставщик],SMALL(IF(Договоры_tb[Наименование]=Наим,ROW(Договоры_tb[Наименование])-ROW(Договоры_tb[[#Headers],[Наименование]])),ROW())),)) -> ООО "Восток" (дог. №Кн-999; ост.40) | AP3: 0
A4: =IFERROR(IF(A3+1<=MAX(Медикаменты[Код]),A3+1,""),"") ->  | B4: =IFERROR(VLOOKUP(A4,Медикаменты[],2,),"") ->  | P4: =IF(Опер="Операции со складом",,IFERROR(INDEX(Договоры_tb[Поставщик],SMALL(IF(Договоры_tb[Наименование]=Наим,ROW(Договоры_tb[Наименование])-ROW(Договоры_tb[[#Headers],[Наименование]])),ROW())),)) -> ООО "Сибмедком" (дог. №5996; ост.40)
A5: =IFERROR(IF(A4+1<=MAX(Медикаменты[Код]),A4+1,""),"") ->  | B5: =IFERROR(VLOOKUP(A5,Медикаменты[],2,),"") ->  | P5: =IF(Опер="Операции со складом",,IFERROR(INDEX(Договоры_tb[Поставщик],SMALL(IF(Договоры_tb[Наименование]=Наим,ROW(Договоры_tb[Наименование])-ROW(Договоры_tb[[#Headers],[Наименование]])),ROW())),)) -> 0
A6: =IFERROR(IF(A5+1<=MAX(Медикаменты[Код]),A5+1,""),"") ->  | B6: =IFERROR(VLOOKUP(A6,Медикаменты[],2,),"") ->  | P6: =IF(Опер="Операции со складом",,IFERROR(INDEX(Договоры_tb[Поставщик],SMALL(IF(Договоры_tb[Наименование]=Наим,ROW(Договоры_tb[Наименование])-ROW(Договоры_tb[[#Headers],[Наименование]])),ROW())),)) -> 0
A7: =IFERROR(IF(A6+1<=MAX(Медикаменты[Код]),A6+1,""),"") ->  | B7: =IFERROR(VLOOKUP(A7,Медикаменты[],2,),"") ->  | P7: =IF(Опер="Операции со складом",,IFERROR(INDEX(Договоры_tb[Поставщик],SMALL(IF(Договоры_tb[Наименование]=Наим,ROW(Договоры_tb[Наименование])-ROW(Договоры_tb[[#Headers],[Наименование]])),ROW())),)) -> 0
B8: перч | P8: =IF(Опер="Операции со складом",,IFERROR(INDEX(Договоры_tb[Поставщик],SMALL(IF(Договоры_tb[Наименование]=Наим,ROW(Договоры_tb[Наименование])-ROW(Договоры_tb[[#Headers],[Наименование]])),ROW())),)) -> 0
C9: Дата | D9: Наименование | E9: Операция | F9: Выбор поставщика | G9: Дата заказа | H9: Дата доставки | I9: Срок годности | J9: Наличие | K9: Приход | L9: Расход | M9: Остаток | N9: Кому выдано | P9: =IF(Опер="Операции со складом",,IFERROR(INDEX(Договоры_tb[Поставщик],SMALL(IF(Договоры_tb[Наименование]=Наим,ROW(Договоры_tb[Наименование])-ROW(Договоры_tb[[#Headers],[Наименование]])),ROW())),)) -> 0 | S9: Код | T9: Наименование | U9: Единицы | V9: Количество | W9: Дата остатка | X9: Остаток | Y9: Остаток на отч. период | Z9: Приход за период | AA9: Расход за период | AB9: Наличие за период | AC9: Приход общий | AD9: Расход общий | AE9: Наличие общее | AH9: Столбец1 | AI9: Столбец2 | AJ9: Столбец3 | AK9: Столбец4 | AL9: Столбец5 | AM9: Столбец6 | AO9: № | AP9: Отчет | AQ9: Наименование
C10: 2018-04-01 | D10: Адреналин гидрохлорид (р-р, 0,1%, 1 мл.) | E10: Операции со складом | F10: 0 | J10: =IFERROR(IFERROR(LOOKUP(,-1/(Вводные[[#This Row],[Наименование]]=$D$9:D9),$M$9:M9),VLOOKUP(Вводные[[#This Row],[Наименование]],Медикаменты[[Наименование]:[Наличие общее]],5,)),"") -> 100 | K10: 50 | L10: 100 | M10: =IFERROR(Вводные[Наличие]+Вводные[Приход]-Вводные[Расход],"") -> 50 | P10: =IF(Опер="Операции со складом",,IFERROR(INDEX(Договоры_tb[Поставщик],SMALL(IF(Договоры_tb[Наименование]=Наим,ROW(Договоры_tb[Наименование])-ROW(Договоры_tb[[#Headers],[Наименование]])),ROW())),)) -> 0 | S10: =IF(IFERROR(IF(SEARCH(Расчет!$B$8,T10),"!",""),"")="",0,MAX($S$9:S9)+1) -> 0 | T10: Адреналин гидрохлорид (р-р, 0,1%, 1 мл.) | U10: уп. | V10: 20 | W10: 2018-04-01 | X10: 100 | Y10: =IFERROR(LOOKUP(,-1/($T10=Вводные[Наименование])/(Вводные[Дата]<$U$1),Вводные[Остаток]),0)+IF(Медикаменты[[#This Row],[Дата остатка]]<$U$1,Медикаменты[[#This Row],[Остаток]],0) -> 200 | Z10: =IF(T10="","",SUMPRODUCT((Вводные[Дата]>=$U$1)*(Вводные[Дата]<=$U$2)*(Вводные[Наименование]=$T10),Вводные[Приход])) -> 100 | AA10: =IF(T10="","",SUMPRODUCT((Вводные[Дата]>=$U$1)*(Вводные[Дата]<=$U$2)*(Вводные[Наименование]=$T10),Вводные[Расход])) -> 150 | AB10: =IFERROR(Медикаменты[[#This Row],[Остаток]]+Медикаменты[[#This Row],[Приход за период]]-Медикаменты[[#This Row],[Расход за период]],"") -> 50 | AC10: =IFERROR(SUMIF(Вводные[Наименование],Медикаменты[[#This Row],[Наименование]],Вводные[Приход]),0) -> 1200 | AD10: =IFERROR(SUMIF(Вводные[Наименование],Медикаменты[[#This Row],[Наименование]],Вводные[Расход]),0) -> 1250 | AE10: =IFERROR(Медикаменты[[#This Row],[Остаток]]+Медикаменты[[#This Row],[Приход общий]]-Медикаменты[[#This Row],[Расход общий]],0) -> 50 | AH10: Столбец1 | AI10: Столбец2 | AJ10: Столбец3 | AK10: Столбец4 | AL10: Столбец5 | AM10: Столбец6 | AO10: =IF(IFERROR(IF(SEARCH($AM$3,AP10),"!",""),"")="",0,MAX($AL$9:AO9)+1) -> 1 | AP10: Дневной стационар | AQ10: Актовегин (р-р, 5 мл., №5)
C11: 2018-04-01 | D11: Адреналин гидрохлорид (р-р, 0,1%, 1 мл.) | E11: Получено от поставщика | J11: =IFERROR(IFERROR(LOOKUP(,-1/(Вводные[[#This Row],[Наименование]]=$D$9:D10),$M$9:M10),VLOOKUP(Вводные[[#This Row],[Наименование]],Медикаменты[[Наименование]:[Наличие общее]],5,)),"") -> 50 | K11: 50 | L11: 100 | M11: =IFERROR(Вводные[Наличие]+Вводные[Приход]-Вводные[Расход],"") -> 0 | P11: =IF(Опер="Операции со складом",,IFERROR(INDEX(Договоры_tb[Поставщик],SMALL(IF(Договоры_tb[Наименование]=Наим,ROW(Договоры_tb[Наименование])-ROW(Договоры_tb[[#Headers],[Наименование]])),ROW())),)) -> 0 | S11: =IF(IFERROR(IF(SEARCH(Расчет!$B$8,T11),"!",""),"")="",0,MAX($S$9:S10)+1) -> 0 | T11: Азитромицин (табл., 125 мг, №6) | U11: уп. | V11: 10 | Y11: =IFERROR(LOOKUP(,-1/($T11=Вводные[Наименование])/(Вводные[Дата]<$U$1),Вводные[Остаток]),0)+IF(Медикаменты[[#This Row],[Дата остатка]]<$U$1,Медикаменты[[#This Row],[Остаток]],0) -> 0 | Z11: =IF(T11="","",SUMPRODUCT((Вводные[Дата]>=$U$1)*(Вводные[Дата]<=$U$2)*(Вводные[Наименование]=$T11),Вводные[Приход])) -> 0 | AA11: =IF(T11="","",SUMPRODUCT((Вводные[Дата]>=$U$1)*(Вводные[Дата]<=$U$2)*(Вводные[Наименование]=$T11),Вводные[Расход])) -> 0 | AB11: =IFERROR(Медикаменты[[#This Row],[Остаток]]+Медикаменты[[#This Row],[Приход за период]]-Медикаменты[[#This Row],[Расход за период]],"") ->  | AC11: =IFERROR(SUMIF(Вводные[Наименование],Медикаменты[[#This Row],[Наименование]],Вводные[Приход]),0) -> 0 | AD11: =IFERROR(SUMIF(Вводные[Наименование],Медикаменты[[#This Row],[Наименование]],Вводные[Расход]),0) -> 0 | AE11: =IFERROR(Медикаменты[[#This Row],[Остаток]]+Медикаменты[[#This Row],[Приход общий]]-Медикаменты[[#This Row],[Расход общий]],0) -> 0 | AH11: Наименование | AI11: Единицы | AJ11: Поставщик | AK11: Закуплено | AL11: Получено | AM11: Остаток у поставщика | AO11: =IF(IFERROR(IF(SEARCH($AM$3,AP11),"!",""),"")="",0,MAX($AL$9:AO10)+1) -> 2 | AP11: Дневной стационар | AQ11: Валериана (20 мг., №50)
C12: 2018-04-01 | D12: Адреналин гидрохлорид (р-р, 0,1%, 1 мл.) | E12: Заказано у поставщика | F12: ООО "Медресурс" (дог. №ПР-123; ост.30) | J12: =IFERROR(IFERROR(LOOKUP(,-1/(Вводные[[#This Row],[Наименование]]=$D$9:D11),$M$9:M11),VLOOKUP(Вводные[[#This Row],[Наименование]],Медикаменты[[Наименование]:[Наличие общее]],5,)),"") -> 0 | K12: 1000 | M12: =IFERROR(Вводные[Наличие]+Вводные[Приход]-Вводные[Расход],"") -> 1000 | P12: =IF(Опер="Операции со складом",,IFERROR(INDEX(Договоры_tb[Поставщик],SMALL(IF(Договоры_tb[Наименование]=Наим,ROW(Договоры_tb[Наименование])-ROW(Договоры_tb[[#Headers],[Наименование]])),ROW())),)) -> 0 | S12: =IF(IFERROR(IF(SEARCH(Расчет!$B$8,T12),"!",""),"")="",0,MAX($S$9:S11)+1) -> 0 | T12: Азопирам | U12: комп. | V12: 10 | W12: 2018-06-07 | X12: 30 | Y12: =IFERROR(LOOKUP(,-1/($T12=Вводные[Наименование])/(Вводные[Дата]<$U$1),Вводные[Остаток]),0)+IF(Медикаменты[[#This Row],[Дата остатка]]<$U$1,Медикаменты[[#This Row],[Остаток]],0) -> 0 | Z12: =IF(T12="","",SUMPRODUCT((Вводные[Дата]>=$U$1)*(Вводные[Дата]<=$U$2)*(Вводные[Наименование]=$T12),Вводные[Приход])) -> 0 | AA12: =IF(T12="","",SUMPRODUCT((Вводные[Дата]>=$U$1)*(Вводные[Дата]<=$U$2)*(Вводные[Наименование]=$T12),Вводные[Расход])) -> 0 | AB12: =IFERROR(Медикаменты[[#This Row],[Остаток]]+Медикаменты[[#This Row],[Приход за период]]-Медикаменты[[#This Row],[Расход за период]],"") -> 30 | AC12: =IFERROR(SUMIF(Вводные[Наименование],Медикаменты[[#This Row],[Наименование]],Вводные[Приход]),0) -> 0 | AD12: =IFERROR(SUMIF(Вводные[Наименование],Медикаменты[[#This Row],[Наименование]],Вводные[Расход]),0) -> 0 | AE12: =IFERROR(Медикаменты[[#This Row],[Остаток]]+Медикаменты[[#This Row],[Приход общий]]-Медикаменты[[#This Row],[Расход общий]],0) -> 30 | AH12: Адреналин гидрохлорид (р-р, 0,1%, 1 мл.) | AI12: уп. | AO12: =IF(IFERROR(IF(SEARCH($AM$3,AP12),"!",""),"")="",0,MAX($AL$9:AO11)+1) -> 3 | AP12: Дневной стационар | AQ12: Винпоцетин (табл., 5 мг., №10)
C13: 2018-04-01 | D13: Адреналин гидрохлорид (р-р, 0,1%, 1 мл.) | E13: Получено от поставщика | F13: ООО "Медресурс" (дог. №12345; ост.0) | J13: =IFERROR(IFERROR(LOOKUP(,-1/(Вводные[[#This Row],[Наименование]]=$D$9:D12),$M$9:M12),VLOOKUP(Вводные[[#This Row],[Наименование]],Медикаменты[[Наименование]:[Наличие общее]],5,)),"") -> 1000 | L13: 900 | M13: =IFERROR(Вводные[Наличие]+Вводные[Приход]-Вводные[Расход],"") -> 100 | P13: =IF(Опер="Операции со складом",,IFERROR(INDEX(Договоры_tb[Поставщик],SMALL(IF(Договоры_tb[Наименование]=Наим,ROW(Договоры_tb[Наименование])-ROW(Договоры_tb[[#Headers],[Наименование]])),ROW())),)) -> 0 | S13: =IF(IFERROR(IF(SEARCH(Расчет!$B$8,T13),"!",""),"")="",0,MAX($S$9:S12)+1) -> 0 | T13: Актовегин (р-р, 5 мл., №5) | U13: уп. | V13: 2 | Y13: =IFERROR(LOOKUP(,-1/($T13=Вводные[Наименование])/(Вводные[Дата]<$U$1),Вводные[Остаток]),0)+IF(Медикаменты[[#This Row],[Дата остатка]]<$U$1,Медикаменты[[#This Row],[Остаток]],0) -> 0 | Z13: =IF(T13="","",SUMPRODUCT((Вводные[Дата]>=$U$1)*(Вводные[Дата]<=$U$2)*(Вводные[Наименование]=$T13),Вводные[Приход])) -> 0 | AA13: =IF(T13="","",SUMPRODUCT((Вводные[Дата]>=$U$1)*(Вводные[Дата]<=$U$2)*(Вводные[Наименование]=$T13),Вводные[Расход])) -> 0 | AB13: =IFERROR(Медикаменты[[#This Row],[Остаток]]+Медикаменты[[#This Row],[Приход за период]]-Медикаменты[[#This Row],[Расход за период]],"") -> 0 | AC13: =IFERROR(SUMIF(Вводные[Наименование],Медикаменты[[#This Row],[Наименование]],Вводные[Приход]),0) -> 0 | AD13: =IFERROR(SUMIF(Вводные[Наименование],Медикаменты[[#This Row],[Наименование]],Вводные[Расход]),0) -> 0 | AE13: =IFERROR(Медикаменты[[#This Row],[Остаток]]+Медикаменты[[#This Row],[Приход общий]]-Медикаменты[[#This Row],[Расход общий]],0) -> 0 | AH13: Азитромицин (табл., 125 мг, №6) | AI13: уп. | AO13: =IF(IFERROR(IF(SEARCH($AM$3,AP13),"!",""),"")="",0,MAX($AL$9:AO12)+1) -> 4 | AP13: Дневной стационар | AQ13: Винпоцетин-АКОС (амп., 2 мл., №10)
C14: 2018-05-01 | D14: Адреналин гидрохлорид (р-р, 0,1%, 1 мл.) | E14: Заказано у поставщика | F14: ООО "Медресурс" (дог. №ПР-123; ост.30) | J14: =IFERROR(IFERROR(LOOKUP(,-1/(Вводные[[#This Row],[Наименование]]=$D$9:D13),$M$9:M13),VLOOKUP(Вводные[[#This Row],[Наименование]],Медикаменты[[Наименование]:[Наличие общее]],5,)),"") -> 100 | K14: 100 | L14: 150 | M14: =IFERROR(Вводные[Наличие]+Вводные[Приход]-Вводные[Расход],"") -> 50 | P14: =IF(Опер="Операции со складом",,IFERROR(INDEX(Договоры_tb[Поставщик],SMALL(IF(Договоры_tb[Наименование]=Наим,ROW(Договоры_tb[Наименование])-ROW(Договоры_tb[[#Headers],[Наименование]])),ROW())),)) -> 0 | S14: =IF(IFERROR(IF(SEARCH(Расчет!$B$8,T14),"!",""),"")="",0,MAX($S$9:S13)+1) -> 0 | T14: Аллерген из библиотечной пыли для диагностики | U14: комплект | V14: 2 | Y14: =IFERROR(LOOKUP(,-1/($T14=Вводные[Наименование])/(Вводные[Дата]<$U$1),Вводные[Остаток]),0)+IF(Медикаменты[[#This Row],[Дата остатка]]<$U$1,Медикаменты[[#This Row],[Остаток]],0) -> 0 | Z14: =IF(T14="","",SUMPRODUCT((Вводные[Дата]>=$U$1)*(Вводные[Дата]<=$U$2)*(Вводные[Наименование]=$T14),Вводные[Приход])) -> 0 | AA14: =IF(T14="","",SUMPRODUCT((Вводные[Дата]>=$U$1)*(Вводные[Дата]<=$U$2)*(Вводные[Наименование]=$T14),Вводные[Расход])) -> 0 | AB14: =IFERROR(Медикаменты[[#This Row],[Остаток]]+Медикаменты[[#This Row],[Приход за период]]-Медикаменты[[#This Row],[Расход за период]],"") ->  | AC14: =IFERROR(SUMIF(Вводные[Наименование],Медикаменты[[#This Row],[Наименование]],Вводные[Приход]),0) -> 0 | AD14: =IFERROR(SUMIF(Вводные[Наименование],Медикаменты[[#This Row],[Наименование]],Вводные[Расход]),0) -> 0 | AE14: =IFERROR(Медикаменты[[#This Row],[Остаток]]+Медикаменты[[#This Row],[Приход общий]]-Медикаменты[[#This Row],[Расход общий]],0) -> 0 | AH14: Азопирам | AI14: комп. | AO14: =IF(IFERROR(IF(SEARCH($AM$3,AP14),"!",""),"")="",0,MAX($AL$9:AO13)+1) -> 5 | AP14: Дневной стационар | AQ14: Гипотиазид (табл., 25 мг., №20)
P15: =IF(Опер="Операции со складом",,IFERROR(INDEX(Договоры_tb[Поставщик],SMALL(IF(Договоры_tb[Наименование]=Наим,ROW(Договоры_tb[Наименование])-ROW(Договоры_tb[[#Headers],[Наименование]])),ROW())),)) -> 0 | S15: =IF(IFERROR(IF(SEARCH(Расчет!$B$8,T15),"!",""),"")="",0,MAX($S$9:S14)+1) -> 0 | T15: Аллерген из дафнии для диагностики | U15: комплект | V15: 1 | Y15: =IFERROR(LOOKUP(,-1/($T15=Вводные[Наименование])/(Вводные[Дата]<$U$1),Вводные[Остаток]),0)+IF(Медикаменты[[#This Row],[Дата остатка]]<$U$1,Медикаменты[[#This Row],[Остаток]],0) -> 0 | Z15: =IF(T15="","",SUMPRODUCT((Вводные[Дата]>=$U$1)*(Вводные[Дата]<=$U$2)*(Вводные[Наименование]=$T15),Вводные[Приход])) -> 0 | AA15: =IF(T15="","",SUMPRODUCT((Вводные[Дата]>=$U$1)*(Вводные[Дата]<=$U$2)*(Вводные[Наименование]=$T15),Вводные[Расход])) -> 0 | AB15: =IFERROR(Медикаменты[[#This Row],[Остаток]]+Медикаменты[[#This Row],[Приход за период]]-Медикаменты[[#This Row],[Расход за период]],"") ->  | AC15: =IFERROR(SUMIF(Вводные[Наименование],Медикаменты[[#This Row],[Наименование]],Вводные[Приход]),0) -> 0 | AD15: =IFERROR(SUMIF(Вводные[Наименование],Медикаменты[[#This Row],[Наименование]],Вводные[Расход]),0) -> 0 | AE15: =IFERROR(Медикаменты[[#This Row],[Остаток]]+Медикаменты[[#This Row],[Приход общий]]-Медикаменты[[#This Row],[Расход общий]],0) -> 0 | AH15: Актовегин (р-р, 5 мл., №5) | AI15: уп. | AO15: =IF(IFERROR(IF(SEARCH($AM$3,AP15),"!",""),"")="",0,MAX($AL$9:AO14)+1) -> 6 | AP15: Дневной стационар | AQ15: Глицин (табл., 100 мг., №50)
P16: =IF(Опер="Операции со складом",,IFERROR(INDEX(Договоры_tb[Поставщик],SMALL(IF(Договоры_tb[Наименование]=Наим,ROW(Договоры_tb[Наименование])-ROW(Договоры_tb[[#Headers],[Наименование]])),ROW())),)) -> 0 | S16: =IF(IFERROR(IF(SEARCH(Расчет!$B$8,T16),"!",""),"")="",0,MAX($S$9:S15)+1) -> 0 | T16: Аллерген из домашней пыли для диагностики | U16: комплект | V16: 2 | Y16: =IFERROR(LOOKUP(,-1/($T16=Вводные[Наименование])/(Вводные[Дата]<$U$1),Вводные[Остаток]),0)+IF(Медикаменты[[#This Row],[Дата остатка]]<$U$1,Медикаменты[[#This Row],[Остаток]],0) -> 0 | Z16: =IF(T16="","",SUMPRODUCT((Вводные[Дата]>=$U$1)*(Вводные[Дата]<=$U$2)*(Вводные[Наименование]=$T16),Вводные[Приход])) -> 0 | AA16: =IF(T16="","",SUMPRODUCT((Вводные[Дата]>=$U$1)*(Вводные[Дата]<=$U$2)*(Вводные[Наименование]=$T16),Вводные[Расход])) -> 0 | AB16: =IFERROR(Медикаменты[[#This Row],[Остаток]]+Медикаменты[[#This Row],[Приход за период]]-Медикаменты[[#This Row],[Расход за период]],"") ->  | AC16: =IFERROR(SUMIF(Вводные[Наименование],Медикаменты[[#This Row],[Наименование]],Вводные[Приход]),0) -> 0 | AD16: =IFERROR(SUMIF(Вводные[Наименование],Медикаменты[[#This Row],[Наименование]],Вводные[Расход]),0) -> 0 | AE16: =IFERROR(Медикаменты[[#This Row],[Остаток]]+Медикаменты[[#This Row],[Приход общий]]-Медикаменты[[#This Row],[Расход общий]],0) -> 0 | AH16: Аллерген из библиотечной пыли для диагностики | AI16: комплект | AO16: =IF(IFERROR(IF(SEARCH($AM$3,AP16),"!",""),"")="",0,MAX($AL$9:AO15)+1) -> 7 | AP16: Дневной стационар | AQ16: Диклофенак (75 мг., №10)
P17: =IF(Опер="Операции со складом",,IFERROR(INDEX(Договоры_tb[Поставщик],SMALL(IF(Договоры_tb[Наименование]=Наим,ROW(Договоры_tb[Наименование])-ROW(Договоры_tb[[#Headers],[Наименование]])),ROW())),)) -> 0 | S17: =IF(IFERROR(IF(SEARCH(Расчет!$B$8,T17),"!",""),"")="",0,MAX($S$9:S16)+1) -> 0 | T17: Аллерген из клеща Dermatophagoides pteronissinus для диагностики и лечения | U17: комплект | V17: 2 | Y17: =IFERROR(LOOKUP(,-1/($T17=Вводные[Наименование])/(Вводные[Дата]<$U$1),Вводные[Остаток]),0)+IF(Медикаменты[[#This Row],[Дата остатка]]<$U$1,Медикаменты[[#This Row],[Остаток]],0) -> 0 | Z17: =IF(T17="","",SUMPRODUCT((Вводные[Дата]>=$U$1)*(Вводные[Дата]<=$U$2)*(Вводные[Наименование]=$T17),Вводные[Приход])) -> 0 | AA17: =IF(T17="","",SUMPRODUCT((Вводные[Дата]>=$U$1)*(Вводные[Дата]<=$U$2)*(Вводные[Наименование]=$T17),Вводные[Расход])) -> 0 | AB17: =IFERROR(Медикаменты[[#This Row],[Остаток]]+Медикаменты[[#This Row],[Приход за период]]-Медикаменты[[#This Row],[Расход за период]],"") ->  | AC17: =IFERROR(SUMIF(Вводные[Наименование],Медикаменты[[#This Row],[Наименование]],Вводные[Приход]),0) -> 0 | AD17: =IFERROR(SUMIF(Вводные[Наименование],Медикаменты[[#This Row],[Наименование]],Вводные[Расход]),0) -> 0 | AE17: =IFERROR(Медикаменты[[#This Row],[Остаток]]+Медикаменты[[#This Row],[Приход общий]]-Медикаменты[[#This Row],[Расход общий]],0) -> 0 | AH17: Аллерген из дафнии для диагностики | AI17: комплект | AO17: =IF(IFERROR(IF(SEARCH($AM$3,AP17),"!",""),"")="",0,MAX($AL$9:AO16)+1) -> 8 | AP17: Дневной стационар | AQ17: Дюфастон (табл., 10 мг., №20)
P18: =IF(Опер="Операции со складом",,IFERROR(INDEX(Договоры_tb[Поставщик],SMALL(IF(Договоры_tb[Наименование]=Наим,ROW(Договоры_tb[Наименование])-ROW(Договоры_tb[[#Headers],[Наименование]])),ROW())),)) -> 0 | S18: =IF(IFERROR(IF(SEARCH(Расчет!$B$8,T18),"!",""),"")="",0,MAX($S$9:S17)+1) -> 0 | T18: Аллерген из пера подушек для диагностики и лечения | U18: комплект | V18: 2 | Y18: =IFERROR(LOOKUP(,-1/($T18=Вводные[Наименование])/(Вводные[Дата]<$U$1),Вводные[Остаток]),0)+IF(Медикаменты[[#This Row],[Дата остатка]]<$U$1,Медикаменты[[#This Row],[Остаток]],0) -> 0 | Z18: =IF(T18="","",SUMPRODUCT((Вводные[Дата]>=$U$1)*(Вводные[Дата]<=$U$2)*(Вводные[Наименование]=$T18),Вводные[Приход])) -> 0 | AA18: =IF(T18="","",SUMPRODUCT((Вводные[Дата]>=$U$1)*(Вводные[Дата]<=$U$2)*(Вводные[Наименование]=$T18),Вводные[Расход])) -> 0 | AB18: =IFERROR(Медикаменты[[#This Row],[Остаток]]+Медикаменты[[#This Row],[Приход за период]]-Медикаменты[[#This Row],[Расход за период]],"") ->  | AC18: =IFERROR(SUMIF(Вводные[Наименование],Медикаменты[[#This Row],[Наименование]],Вводные[Приход]),0) -> 0 | AD18: =IFERROR(SUMIF(Вводные[Наименование],Медикаменты[[#This Row],[Наименование]],Вводные[Расход]),0) -> 0 | AE18: =IFERROR(Медикаменты[[#This Row],[Остаток]]+Медикаменты[[#This Row],[Приход общий]]-Медикаменты[[#This Row],[Расход общий]],0) -> 0 | AH18: Аллерген из домашней пыли для диагностики | AI18: комплект | AO18: =IF(IFERROR(IF(SEARCH($AM$3,AP18),"!",""),"")="",0,MAX($AL$9:AO17)+1) -> 9 | AP18: Дневной стационар | AQ18: Кавинтон (амп., 10 мг., 2,0, №10)
S19: =IF(IFERROR(IF(SEARCH(Расчет!$B$8,T19),"!",""),"")="",0,MAX($S$9:S18)+1) -> 0 | T19: Аллерген из перхоти лошади для диагностики | U19: комплект | V19: 2 | Y19: =IFERROR(LOOKUP(,-1/($T19=Вводные[Наименование])/(Вводные[Дата]<$U$1),Вводные[Остаток]),0)+IF(Медикаменты[[#This Row],[Дата остатка]]<$U$1,Медикаменты[[#This Row],[Остаток]],0) -> 0 | Z19: =IF(T19="","",SUMPRODUCT((Вводные[Дата]>=$U$1)*(Вводные[Дата]<=$U$2)*(Вводные[Наименование]=$T19),Вводные[Приход])) -> 0 | AA19: =IF(T19="","",SUMPRODUCT((Вводные[Дата]>=$U$1)*(Вводные[Дата]<=$U$2)*(Вводные[Наименование]=$T19),Вводные[Расход])) -> 0 | AB19: =IFERROR(Медикаменты[[#This Row],[Остаток]]+Медикаменты[[#This Row],[Приход за период]]-Медикаменты[[#This Row],[Расход за период]],"") ->  | AC19: =IFERROR(SUMIF(Вводные[Наименование],Медикаменты[[#This Row],[Наименование]],Вводные[Приход]),0) -> 0 | AD19: =IFERROR(SUMIF(Вводные[Наименование],Медикаменты[[#This Row],[Наименование]],Вводные[Расход]),0) -> 0 | AE19: =IFERROR(Медикаменты[[#This Row],[Остаток]]+Медикаменты[[#This Row],[Приход общий]]-Медикаменты[[#This Row],[Расход общий]],0) -> 0 | AH19: Аллерген из клеща Dermatophagoides pteronissinus для диагностики и лечения | AI19: комплект | AO19: =IF(IFERROR(IF(SEARCH($AM$3,AP19),"!",""),"")="",0,MAX($AL$9:AO18)+1) -> 10 | AP19: Дневной стационар | AQ19: Кавинтон (табл. 5 мг., №50)
S20: =IF(IFERROR(IF(SEARCH(Расчет!$B$8,T20),"!",""),"")="",0,MAX($S$9:S19)+1) -> 0 | T20: Аллерген из пыльцы березы висячей для диагностики и лечения | U20: комплект | V20: 2 | Y20: =IFERROR(LOOKUP(,-1/($T20=Вводные[Наименование])/(Вводные[Дата]<$U$1),Вводные[Остаток]),0)+IF(Медикаменты[[#This Row],[Дата остатка]]<$U$1,Медикаменты[[#This Row],[Остаток]],0) -> 0 | Z20: =IF(T20="","",SUMPRODUCT((Вводные[Дата]>=$U$1)*(Вводные[Дата]<=$U$2)*(Вводные[Наименование]=$T20),Вводные[Приход])) -> 0 | AA20: =IF(T20="","",SUMPRODUCT((Вводные[Дата]>=$U$1)*(Вводные[Дата]<=$U$2)*(Вводные[Наименование]=$T20),Вводные[Расход])) -> 0 | AB20: =IFERROR(Медикаменты[[#This Row],[Остаток]]+Медикаменты[[#This Row],[Приход за период]]-Медикаменты[[#This Row],[Расход за период]],"") ->  | AC20: =IFERROR(SUMIF(Вводные[Наименование],Медикаменты[[#This Row],[Наименование]],Вводные[Приход]),0) -> 0 | AD20: =IFERROR(SUMIF(Вводные[Наименование],Медикаменты[[#This Row],[Наименование]],Вводные[Расход]),0) -> 0 | AE20: =IFERROR(Медикаменты[[#This Row],[Остаток]]+Медикаменты[[#This Row],[Приход общий]]-Медикаменты[[#This Row],[Расход общий]],0) -> 0 | AH20: Аллерген из пера подушек для диагностики и лечения | AI20: комплект | AO20: =IF(IFERROR(IF(SEARCH($AM$3,AP20),"!",""),"")="",0,MAX($AL$9:AO19)+1) -> 11 | AP20: Дневной стационар | AQ20: Кальция хлорид (10%, 5,0 №10)
S21: =IF(IFERROR(IF(SEARCH(Расчет!$B$8,T21),"!",""),"")="",0,MAX($S$9:S20)+1) -> 0 | T21: Аллерген из пыльцы клена ясенелистного для диагностики и лечения | U21: комплект | V21: 1 | Y21: =IFERROR(LOOKUP(,-1/($T21=Вводные[Наименование])/(Вводные[Дата]<$U$1),Вводные[Остаток]),0)+IF(Медикаменты[[#This Row],[Дата остатка]]<$U$1,Медикаменты[[#This Row],[Остаток]],0) -> 0 | Z21: =IF(T21="","",SUMPRODUCT((Вводные[Дата]>=$U$1)*(Вводные[Дата]<=$U$2)*(Вводные[Наименование]=$T21),Вводные[Приход])) -> 0 | AA21: =IF(T21="","",SUMPRODUCT((Вводные[Дата]>=$U$1)*(Вводные[Дата]<=$U$2)*(Вводные[Наименование]=$T21),Вводные[Расход])) -> 0 | AB21: =IFERROR(Медикаменты[[#This Row],[Остаток]]+Медикаменты[[#This Row],[Приход за период]]-Медикаменты[[#This Row],[Расход за период]],"") ->  | AC21: =IFERROR(SUMIF(Вводные[Наименование],Медикаменты[[#This Row],[Наименование]],Вводные[Приход]),0) -> 0 | AD21: =IFERROR(SUMIF(Вводные[Наименование],Медикаменты[[#This Row],[Наименование]],Вводные[Расход]),0) -> 0 | AE21: =IFERROR(Медикаменты[[#This Row],[Остаток]]+Медикаменты[[#This Row],[Приход общий]]-Медикаменты[[#This Row],[Расход общий]],0) -> 0 | AH21: Аллерген из перхоти лошади для диагностики | AI21: комплект | AO21: =IF(IFERROR(IF(SEARCH($AM$3,AP21),"!",""),"")="",0,MAX($AL$9:AO20)+1) -> 12 | AP21: Дневной стационар | AQ21: Корвалол
S22: =IF(IFERROR(IF(SEARCH(Расчет!$B$8,T22),"!",""),"")="",0,MAX($S$9:S21)+1) -> 0 | T22: Аллерген из пыльцы лебеды татарской для диагностики и лечения | U22: комплект | V22: 2 | Y22: =IFERROR(LOOKUP(,-1/($T22=Вводные[Наименование])/(Вводные[Дата]<$U$1),Вводные[Остаток]),0)+IF(Медикаменты[[#This Row],[Дата остатка]]<$U$1,Медикаменты[[#This Row],[Остаток]],0) -> 0 | Z22: =IF(T22="","",SUMPRODUCT((Вводные[Дата]>=$U$1)*(Вводные[Дата]<=$U$2)*(Вводные[Наименование]=$T22),Вводные[Приход])) -> 0 | AA22: =IF(T22="","",SUMPRODUCT((Вводные[Дата]>=$U$1)*(Вводные[Дата]<=$U$2)*(Вводные[Наименование]=$T22),Вводные[Расход])) -> 0 | AB22: =IFERROR(Медикаменты[[#This Row],[Остаток]]+Медикаменты[[#This Row],[Приход за период]]-Медикаменты[[#This Row],[Расход за период]],"") ->  | AC22: =IFERROR(SUMIF(Вводные[Наименование],Медикаменты[[#This Row],[Наименование]],Вводные[Приход]),0) -> 0 | AD22: =IFERROR(SUMIF(Вводные[Наименование],Медикаменты[[#This Row],[Наименование]],Вводные[Расход]),0) -> 0 | AE22: =IFERROR(Медикаменты[[#This Row],[Остаток]]+Медикаменты[[#This Row],[Приход общий]]-Медикаменты[[#This Row],[Расход общий]],0) -> 0 | AH22: Аллерген из пыльцы березы висячей для диагностики и лечения | AI22: комплект | AO22: =IF(IFERROR(IF(SEARCH($AM$3,AP22),"!",""),"")="",0,MAX($AL$9:AO21)+1) -> 13 | AP22: Дневной стационар | AQ22: Мексидол (табл., 125 мг., №50)
S23: =IF(IFERROR(IF(SEARCH(Расчет!$B$8,T23),"!",""),"")="",0,MAX($S$9:S22)+1) -> 0 | T23: Аллерген из пыльцы луговых трав для диагностики и лечения | U23: комплект | V23: 2 | Y23: =IFERROR(LOOKUP(,-1/($T23=Вводные[Наименование])/(Вводные[Дата]<$U$1),Вводные[Остаток]),0)+IF(Медикаменты[[#This Row],[Дата остатка]]<$U$1,Медикаменты[[#This Row],[Остаток]],0) -> 0 | Z23: =IF(T23="","",SUMPRODUCT((Вводные[Дата]>=$U$1)*(Вводные[Дата]<=$U$2)*(Вводные[Наименование]=$T23),Вводные[Приход])) -> 0 | AA23: =IF(T23="","",SUMPRODUCT((Вводные[Дата]>=$U$1)*(Вводные[Дата]<=$U$2)*(Вводные[Наименование]=$T23),Вводные[Расход])) -> 0 | AB23: =IFERROR(Медикаменты[[#This Row],[Остаток]]+Медикаменты[[#This Row],[Приход за период]]-Медикаменты[[#This Row],[Расход за период]],"") ->  | AC23: =IFERROR(SUMIF(Вводные[Наименование],Медикаменты[[#This Row],[Наименование]],Вводные[Приход]),0) -> 0 | AD23: =IFERROR(SUMIF(Вводные[Наименование],Медикаменты[[#This Row],[Наименование]],Вводные[Расход]),0) -> 0 | AE23: =IFERROR(Медикаменты[[#This Row],[Остаток]]+Медикаменты[[#This Row],[Приход общий]]-Медикаменты[[#This Row],[Расход общий]],0) -> 0 | AH23: Аллерген из пыльцы клена ясенелистного для диагностики и лечения | AI23: комплект | AO23: =IF(IFERROR(IF(SEARCH($AM$3,AP23),"!",""),"")="",0,MAX($AL$9:AO22)+1) -> 14 | AP23: Дневной стационар | AQ23: Мексидол (амп., 50 мг.-2 мл., №10)
S24: =IF(IFERROR(IF(SEARCH(Расчет!$B$8,T24),"!",""),"")="",0,MAX($S$9:S23)+1) -> 0 | T24: Аллерген из пыльцы одуванчика лекарственного для диагностики и лечения | U24: комплект | V24: 1 | Y24: =IFERROR(LOOKUP(,-1/($T24=Вводные[Наименование])/(Вводные[Дата]<$U$1),Вводные[Остаток]),0)+IF(Медикаменты[[#This Row],[Дата остатка]]<$U$1,Медикаменты[[#This Row],[Остаток]],0) -> 0 | Z24: =IF(T24="","",SUMPRODUCT((Вводные[Дата]>=$U$1)*(Вводные[Дата]<=$U$2)*(Вводные[Наименование]=$T24),Вводные[Приход])) -> 0 | AA24: =IF(T24="","",SUMPRODUCT((Вводные[Дата]>=$U$1)*(Вводные[Дата]<=$U$2)*(Вводные[Наименование]=$T24),Вводные[Расход])) -> 0 | AB24: =IFERROR(Медикаменты[[#This Row],[Остаток]]+Медикаменты[[#This Row],[Приход за период]]-Медикаменты[[#This Row],[Расход за период]],"") ->  | AC24: =IFERROR(SUMIF(Вводные[Наименование],Медикаменты[[#This Row],[Наименование]],Вводные[Приход]),0) -> 0 | AD24: =IFERROR(SUMIF(Вводные[Наименование],Медикаменты[[#This Row],[Наименование]],Вводные[Расход]),0) -> 0 | AE24: =IFERROR(Медикаменты[[#This Row],[Остаток]]+Медикаменты[[#This Row],[Приход общий]]-Медикаменты[[#This Row],[Расход общий]],0) -> 0 | AH24: Аллерген из пыльцы лебеды татарской для диагностики и лечения | AI24: комплект | AO24: =IF(IFERROR(IF(SEARCH($AM$3,AP24),"!",""),"")="",0,MAX($AL$9:AO23)+1) -> 15 | AP24: Дневной стационар | AQ24: Метронидазол (табл., 0,2 мл., №10)
S25: =IF(IFERROR(IF(SEARCH(Расчет!$B$8,T25),"!",""),"")="",0,MAX($S$9:S24)+1) -> 0 | T25: Аллерген из пыльцы полыни горькой для диагностики и лечения | U25: комплект | V25: 2 | Y25: =IFERROR(LOOKUP(,-1/($T25=Вводные[Наименование])/(Вводные[Дата]<$U$1),Вводные[Остаток]),0)+IF(Медикаменты[[#This Row],[Дата остатка]]<$U$1,Медикаменты[[#This Row],[Остаток]],0) -> 0 | Z25: =IF(T25="","",SUMPRODUCT((Вводные[Дата]>=$U$1)*(Вводные[Дата]<=$U$2)*(Вводные[Наименование]=$T25),Вводные[Приход])) -> 0 | AA25: =IF(T25="","",SUMPRODUCT((Вводные[Дата]>=$U$1)*(Вводные[Дата]<=$U$2)*(Вводные[Наименование]=$T25),Вводные[Расход])) -> 0 | AB25: =IFERROR(Медикаменты[[#This Row],[Остаток]]+Медикаменты[[#This Row],[Приход за период]]-Медикаменты[[#This Row],[Расход за период]],"") ->  | AC25: =IFERROR(SUMIF(Вводные[Наименование],Медикаменты[[#This Row],[Наименование]],Вводные[Приход]),0) -> 0 | AD25: =IFERROR(SUMIF(Вводные[Наименование],Медикаменты[[#This Row],[Наименование]],Вводные[Расход]),0) -> 0 | AE25: =IFERROR(Медикаменты[[#This Row],[Остаток]]+Медикаменты[[#This Row],[Приход общий]]-Медикаменты[[#This Row],[Расход общий]],0) -> 0 | AH25: Аллерген из пыльцы луговых трав для диагностики и лечения | AI25: комплект | AO25: =IF(IFERROR(IF(SEARCH($AM$3,AP25),"!",""),"")="",0,MAX($AL$9:AO24)+1) -> 16 | AP25: Дневной стационар | AQ25: Натрия тиосульфат (30%, 10 мл., №10)
S26: =IF(IFERROR(IF(SEARCH(Расчет!$B$8,T26),"!",""),"")="",0,MAX($S$9:S25)+1) -> 0 | T26: Аллерген эпидермальный из шерсти кошки для диагностики | U26: комплект | V26: 2 | Y26: =IFERROR(LOOKUP(,-1/($T26=Вводные[Наименование])/(Вводные[Дата]<$U$1),Вводные[Остаток]),0)+IF(Медикаменты[[#This Row],[Дата остатка]]<$U$1,Медикаменты[[#This Row],[Остаток]],0) -> 0 | Z26: =IF(T26="","",SUMPRODUCT((Вводные[Дата]>=$U$1)*(Вводные[Дата]<=$U$2)*(Вводные[Наименование]=$T26),Вводные[Приход])) -> 0 | AA26: =IF(T26="","",SUMPRODUCT((Вводные[Дата]>=$U$1)*(Вводные[Дата]<=$U$2)*(Вводные[Наименование]=$T26),Вводные[Расход])) -> 0 | AB26: =IFERROR(Медикаменты[[#This Row],[Остаток]]+Медикаменты[[#This Row],[Приход за период]]-Медикаменты[[#This Row],[Расход за период]],"") ->  | AC26: =IFERROR(SUMIF(Вводные[Наименование],Медикаменты[[#This Row],[Наименование]],Вводные[Приход]),0) -> 0 | AD26: =IFERROR(SUMIF(Вводные[Наименование],Медикаменты[[#This Row],[Наименование]],Вводные[Расход]),0) -> 0 | AE26: =IFERROR(Медикаменты[[#This Row],[Остаток]]+Медикаменты[[#This Row],[Приход общий]]-Медикаменты[[#This Row],[Расход общий]],0) -> 0 | AH26: Аллерген из пыльцы одуванчика лекарственного для диагностики и лечения | AI26: комплект | AO26: =IF(IFERROR(IF(SEARCH($AM$3,AP26),"!",""),"")="",0,MAX($AL$9:AO25)+1) -> 17 | AP26: Дневной стационар | AQ26: Натрия хлорид (амп., 0,9%, 10 мл., №10)
S27: =IF(IFERROR(IF(SEARCH(Расчет!$B$8,T27),"!",""),"")="",0,MAX($S$9:S26)+1) -> 0 | T27: Аллерген эпидермальный из шерсти собаки для диагностики | U27: комплект | V27: 2 | Y27: =IFERROR(LOOKUP(,-1/($T27=Вводные[Наименование])/(Вводные[Дата]<$U$1),Вводные[Остаток]),0)+IF(Медикаменты[[#This Row],[Дата остатка]]<$U$1,Медикаменты[[#This Row],[Остаток]],0) -> 0 | Z27: =IF(T27="","",SUMPRODUCT((Вводные[Дата]>=$U$1)*(Вводные[Дата]<=$U$2)*(Вводные[Наименование]=$T27),Вводные[Приход])) -> 0 | AA27: =IF(T27="","",SUMPRODUCT((Вводные[Дата]>=$U$1)*(Вводные[Дата]<=$U$2)*(Вводные[Наименование]=$T27),Вводные[Расход])) -> 0 | AB27: =IFERROR(Медикаменты[[#This Row],[Остаток]]+Медикаменты[[#This Row],[Приход за период]]-Медикаменты[[#This Row],[Расход за период]],"") ->  | AC27: =IFERROR(SUMIF(Вводные[Наименование],Медикаменты[[#This Row],[Наименование]],Вводные[Приход]),0) -> 0 | AD27: =IFERROR(SUMIF(Вводные[Наименование],Медикаменты[[#This Row],[Наименование]],Вводные[Расход]),0) -> 0 | AE27: =IFERROR(Медикаменты[[#This Row],[Остаток]]+Медикаменты[[#This Row],[Приход общий]]-Медикаменты[[#This Row],[Расход общий]],0) -> 0 | AH27: Аллерген из пыльцы полыни горькой для диагностики и лечения | AI27: комплект | AO27: =IF(IFERROR(IF(SEARCH($AM$3,AP27),"!",""),"")="",0,MAX($AL$9:AO26)+1) -> 18 | AP27: Дневной стационар | AQ27: Натрия хлорид (амп., 0,9%, 10 мл., №10)
S28: =IF(IFERROR(IF(SEARCH(Расчет!$B$8,T28),"!",""),"")="",0,MAX($S$9:S27)+1) -> 0 | T28: Амброксол (амп., 100 мл.) | U28: уп. | V28: 10 | Y28: =IFERROR(LOOKUP(,-1/($T28=Вводные[Наименование])/(Вводные[Дата]<$U$1),Вводные[Остаток]),0)+IF(Медикаменты[[#This Row],[Дата остатка]]<$U$1,Медикаменты[[#This Row],[Остаток]],0) -> 0 | Z28: =IF(T28="","",SUMPRODUCT((Вводные[Дата]>=$U$1)*(Вводные[Дата]<=$U$2)*(Вводные[Наименование]=$T28),Вводные[Приход])) -> 0 | AA28: =IF(T28="","",SUMPRODUCT((Вводные[Дата]>=$U$1)*(Вводные[Дата]<=$U$2)*(Вводные[Наименование]=$T28),Вводные[Расход])) -> 0 | AB28: =IFERROR(Медикаменты[[#This Row],[Остаток]]+Медикаменты[[#This Row],[Приход за период]]-Медикаменты[[#This Row],[Расход за период]],"") ->  | AC28: =IFERROR(SUMIF(Вводные[Наименование],Медикаменты[[#This Row],[Наименование]],Вводные[Приход]),0) -> 0 | AD28: =IFERROR(SUMIF(Вводные[Наименование],Медикаменты[[#This Row],[Наименование]],Вводные[Расход]),0) -> 0 | AE28: =IFERROR(Медикаменты[[#This Row],[Остаток]]+Медикаменты[[#This Row],[Приход общий]]-Медикаменты[[#This Row],[Расход общий]],0) -> 0 | AH28: Аллерген эпидермальный из шерсти кошки для диагностики | AI28: комплект | AO28: =IF(IFERROR(IF(SEARCH($AM$3,AP28),"!",""),"")="",0,MAX($AL$9:AO27)+1) -> 19 | AP28: Дневной стационар | AQ28: Никотиновая кислота (амп., 1%, 1 мл., №10)
S29: =IF(IFERROR(IF(SEARCH(Расчет!$B$8,T29),"!",""),"")="",0,MAX($S$9:S28)+1) -> 0 | T29: Амброксол (р-р для приема внутрь и ингаляций, 7,5 мг./1 мл., 100 мл.) | U29: фл. | V29: 5 | Y29: =IFERROR(LOOKUP(,-1/($T29=Вводные[Наименование])/(Вводные[Дата]<$U$1),Вводные[Остаток]),0)+IF(Медикаменты[[#This Row],[Дата остатка]]<$U$1,Медикаменты[[#This Row],[Остаток]],0) -> 0 | Z29: =IF(T29="","",SUMPRODUCT((Вводные[Дата]>=$U$1)*(Вводные[Дата]<=$U$2)*(Вводные[Наименование]=$T29),Вводные[Приход])) -> 0 | AA29: =IF(T29="","",SUMPRODUCT((Вводные[Дата]>=$U$1)*(Вводные[Дата]<=$U$2)*(Вводные[Наименование]=$T29),Вводные[Расход])) -> 0 | AB29: =IFERROR(Медикаменты[[#This Row],[Остаток]]+Медикаменты[[#This Row],[Приход за период]]-Медикаменты[[#This Row],[Расход за период]],"") ->  | AC29: =IFERROR(SUMIF(Вводные[Наименование],Медикаменты[[#This Row],[Наименование]],Вводные[Приход]),0) -> 0 | AD29: =IFERROR(SUMIF(Вводные[Наименование],Медикаменты[[#This Row],[Наименование]],Вводные[Расход]),0) -> 0 | AE29: =IFERROR(Медикаменты[[#This Row],[Остаток]]+Медикаменты[[#This Row],[Приход общий]]-Медикаменты[[#This Row],[Расход общий]],0) -> 0 | AH29: Аллерген эпидермальный из шерсти собаки для диагностики | AI29: комплект | AO29: =IF(IFERROR(IF(SEARCH($AM$3,AP29),"!",""),"")="",0,MAX($AL$9:AO28)+1) -> 20 | AP29: Дневной стационар | AQ29: Омепразол (капс., 20 мг., №30)
S30: =IF(IFERROR(IF(SEARCH(Расчет!$B$8,T30),"!",""),"")="",0,MAX($S$9:S29)+1) -> 0 | T30: Аммиака раствор (амп., 10%, 40 мл.) | U30: фл. | V30: 50 | Y30: =IFERROR(LOOKUP(,-1/($T30=Вводные[Наименование])/(Вводные[Дата]<$U$1),Вводные[Остаток]),0)+IF(Медикаменты[[#This Row],[Дата остатка]]<$U$1,Медикаменты[[#This Row],[Остаток]],0) -> 0 | Z30: =IF(T30="","",SUMPRODUCT((Вводные[Дата]>=$U$1)*(Вводные[Дата]<=$U$2)*(Вводные[Наименование]=$T30),Вводные[Приход])) -> 0 | AA30: =IF(T30="","",SUMPRODUCT((Вводные[Дата]>=$U$1)*(Вводные[Дата]<=$U$2)*(Вводные[Наименование]=$T30),Вводные[Расход])) -> 0 | AB30: =IFERROR(Медикаменты[[#This Row],[Остаток]]+Медикаменты[[#This Row],[Приход за период]]-Медикаменты[[#This Row],[Расход за период]],"") ->  | AC30: =IFERROR(SUMIF(Вводные[Наименование],Медикаменты[[#This Row],[Наименование]],Вводные[Приход]),0) -> 0 | AD30: =IFERROR(SUMIF(Вводные[Наименование],Медикаменты[[#This Row],[Наименование]],Вводные[Расход]),0) -> 0 | AE30: =IFERROR(Медикаменты[[#This Row],[Остаток]]+Медикаменты[[#This Row],[Приход общий]]-Медикаменты[[#This Row],[Расход общий]],0) -> 0 | AH30: Амброксол (амп., 100 мл.) | AI30: уп. | AO30: =IF(IFERROR(IF(SEARCH($AM$3,AP30),"!",""),"")="",0,MAX($AL$9:AO29)+1) -> 21 | AP30: Дневной стационар | AQ30: Пантогам (таб., 250 мг., №50)
S31: =IF(IFERROR(IF(SEARCH(Расчет!$B$8,T31),"!",""),"")="",0,MAX($S$9:S30)+1) -> 0 | T31: Баллон Политцера с оливами | U31: набор | V31: 1 | Y31: =IFERROR(LOOKUP(,-1/($T31=Вводные[Наименование])/(Вводные[Дата]<$U$1),Вводные[Остаток]),0)+IF(Медикаменты[[#This Row],[Дата остатка]]<$U$1,Медикаменты[[#This Row],[Остаток]],0) -> 0 | Z31: =IF(T31="","",SUMPRODUCT((Вводные[Дата]>=$U$1)*(Вводные[Дата]<=$U$2)*(Вводные[Наименование]=$T31),Вводные[Приход])) -> 0 | AA31: =IF(T31="","",SUMPRODUCT((Вводные[Дата]>=$U$1)*(Вводные[Дата]<=$U$2)*(Вводные[Наименование]=$T31),Вводные[Расход])) -> 0 | AB31: =IFERROR(Медикаменты[[#This Row],[Остаток]]+Медикаменты[[#This Row],[Приход за период]]-Медикаменты[[#This Row],[Расход за период]],"") ->  | AC31: =IFERROR(SUMIF(Вводные[Наименование],Медикаменты[[#This Row],[Наименование]],Вводные[Приход]),0) -> 0 | AD31: =IFERROR(SUMIF(Вводные[Наименование],Медикаменты[[#This Row],[Наименование]],Вводные[Расход]),0) -> 0 | AE31: =IFERROR(Медикаменты[[#This Row],[Остаток]]+Медикаменты[[#This Row],[Приход общий]]-Медикаменты[[#This Row],[Расход общий]],0) -> 0 | AH31: Амброксол (р-р для приема внутрь и ингаляций, 7,5 мг./1 мл., 100 мл.) | AI31: фл. | AO31: =IF(IFERROR(IF(SEARCH($AM$3,AP31),"!",""),"")="",0,MAX($AL$9:AO30)+1) -> 22 | AP31: Дневной стационар | AQ31: Пирацетам (амп., 20%, 5 мл., №10)
S32: =IF(IFERROR(IF(SEARCH(Расчет!$B$8,T32),"!",""),"")="",0,MAX($S$9:S31)+1) -> 0 | T32: Берет медицинский (однораз.) | U32: шт. | V32: 1000 | W32: 2018-06-07 | X32: 1100 | Y32: =IFERROR(LOOKUP(,-1/($T32=Вводные[Наименование])/(Вводные[Дата]<$U$1),Вводные[Остаток]),0)+IF(Медикаменты[[#This Row],[Дата остатка]]<$U$1,Медикаменты[[#This Row],[Остаток]],0) -> 0 | Z32: =IF(T32="","",SUMPRODUCT((Вводные[Дата]>=$U$1)*(Вводные[Дата]<=$U$2)*(Вводные[Наименование]=$T32),Вводные[Приход])) -> 0 | AA32: =IF(T32="","",SUMPRODUCT((Вводные[Дата]>=$U$1)*(Вводные[Дата]<=$U$2)*(Вводные[Наименование]=$T32),Вводные[Расход])) -> 0 | AB32: =IFERROR(Медикаменты[[#This Row],[Остаток]]+Медикаменты[[#This Row],[Приход за период]]-Медикаменты[[#This Row],[Расход за период]],"") -> 1100 | AC32: =IFERROR(SUMIF(Вводные[Наименование],Медикаменты[[#This Row],[Наименование]],Вводные[Приход]),0) -> 0 | AD32: =IFERROR(SUMIF(Вводные[Наименование],Медикаменты[[#This Row],[Наименование]],Вводные[Расход]),0) -> 0 | AE32: =IFERROR(Медикаменты[[#This Row],[Остаток]]+Медикаменты[[#This Row],[Приход общий]]-Медикаменты[[#This Row],[Расход общий]],0) -> 1100 | AH32: Аммиака раствор (амп., 10%, 40 мл.) | AI32: фл. | AO32: =IF(IFERROR(IF(SEARCH($AM$3,AP32),"!",""),"")="",0,MAX($AL$9:AO31)+1) -> 23 | AP32: Дневной стационар | AQ32: Пирацетам (табл., 400 мг., №60)
S33: =IF(IFERROR(IF(SEARCH(Расчет!$B$8,T33),"!",""),"")="",0,MAX($S$9:S32)+1) -> 0 | T33: Беродуал (20 мл.) | U33: уп. | V33: 10 | Y33: =IFERROR(LOOKUP(,-1/($T33=Вводные[Наименование])/(Вводные[Дата]<$U$1),Вводные[Остаток]),0)+IF(Медикаменты[[#This Row],[Дата остатка]]<$U$1,Медикаменты[[#This Row],[Остаток]],0) -> 0 | Z33: =IF(T33="","",SUMPRODUCT((Вводные[Дата]>=$U$1)*(Вводные[Дата]<=$U$2)*(Вводные[Наименование]=$T33),Вводные[Приход])) -> 0 | AA33: =IF(T33="","",SUMPRODUCT((Вводные[Дата]>=$U$1)*(Вводные[Дата]<=$U$2)*(Вводные[Наименование]=$T33),Вводные[Расход])) -> 0 | AB33: =IFERROR(Медикаменты[[#This Row],[Остаток]]+Медикаменты[[#This Row],[Приход за период]]-Медикаменты[[#This Row],[Расход за период]],"") ->  | AC33: =IFERROR(SUMIF(Вводные[Наименование],Медикаменты[[#This Row],[Наименование]],Вводные[Приход]),0) -> 0 | AD33: =IFERROR(SUMIF(Вводные[Наименование],Медикаменты[[#This Row],[Наименование]],Вводные[Расход]),0) -> 0 | AE33: =IFERROR(Медикаменты[[#This Row],[Остаток]]+Медикаменты[[#This Row],[Приход общий]]-Медикаменты[[#This Row],[Расход общий]],0) -> 0 | AH33: Баллон Политцера с оливами | AI33: набор | AO33: =IF(IFERROR(IF(SEARCH($AM$3,AP33),"!",""),"")="",0,MAX($AL$9:AO32)+1) -> 24 | AP33: Дневной стационар | AQ33: Пиридоксина гидрохлорид (амп., 5%, 1 мл., №10)
S34: =IF(IFERROR(IF(SEARCH(Расчет!$B$8,T34),"!",""),"")="",0,MAX($S$9:S33)+1) -> 0 | T34: Беродуал (р-р для ингаляций флакон/кап. по 20 мл.) | U34: фл. | V34: 5 | Y34: =IFERROR(LOOKUP(,-1/($T34=Вводные[Наименование])/(Вводные[Дата]<$U$1),Вводные[Остаток]),0)+IF(Медикаменты[[#This Row],[Дата остатка]]<$U$1,Медикаменты[[#This Row],[Остаток]],0) -> 0 | Z34: =IF(T34="","",SUMPRODUCT((Вводные[Дата]>=$U$1)*(Вводные[Дата]<=$U$2)*(Вводные[Наименование]=$T34),Вводные[Приход])) -> 0 | AA34: =IF(T34="","",SUMPRODUCT((Вводные[Дата]>=$U$1)*(Вводные[Дата]<=$U$2)*(Вводные[Наименование]=$T34),Вводные[Расход])) -> 0 | AB34: =IFERROR(Медикаменты[[#This Row],[Остаток]]+Медикаменты[[#This Row],[Приход за период]]-Медикаменты[[#This Row],[Расход за период]],"") ->  | AC34: =IFERROR(SUMIF(Вводные[Наименование],Медикаменты[[#This Row],[Наименование]],Вводные[Приход]),0) -> 0 | AD34: =IFERROR(SUMIF(Вводные[Наименование],Медикаменты[[#This Row],[Наименование]],Вводные[Расход]),0) -> 0 | AE34: =IFERROR(Медикаменты[[#This Row],[Остаток]]+Медикаменты[[#This Row],[Приход общий]]-Медикаменты[[#This Row],[Расход общий]],0) -> 0 | AH34: Берет медицинский (однораз.) | AI34: шт. | AO34: =IF(IFERROR(IF(SEARCH($AM$3,AP34),"!",""),"")="",0,MAX($AL$9:AO33)+1) -> 25 | AP34: Дневной стационар | AQ34: Рибоксин (таб., 200 мг., №50)
S35: =IF(IFERROR(IF(SEARCH(Расчет!$B$8,T35),"!",""),"")="",0,MAX($S$9:S34)+1) -> 0 | T35: Бинт (нест., 10 м.х15 см.) | U35: шт. | V35: 200 | Y35: =IFERROR(LOOKUP(,-1/($T35=Вводные[Наименование])/(Вводные[Дата]<$U$1),Вводные[Остаток]),0)+IF(Медикаменты[[#This Row],[Дата остатка]]<$U$1,Медикаменты[[#This Row],[Остаток]],0) -> 0 | Z35: =IF(T35="","",SUMPRODUCT((Вводные[Дата]>=$U$1)*(Вводные[Дата]<=$U$2)*(Вводные[Наименование]=$T35),Вводные[Приход])) -> 0 | AA35: =IF(T35="","",SUMPRODUCT((Вводные[Дата]>=$U$1)*(Вводные[Дата]<=$U$2)*(Вводные[Наименование]=$T35),Вводные[Расход])) -> 0 | AB35: =IFERROR(Медикаменты[[#This Row],[Остаток]]+Медикаменты[[#This Row],[Приход за период]]-Медикаменты[[#This Row],[Расход за период]],"") ->  | AC35: =IFERROR(SUMIF(Вводные[Наименование],Медикаменты[[#This Row],[Наименование]],Вводные[Приход]),0) -> 0 | AD35: =IFERROR(SUMIF(Вводные[Наименование],Медикаменты[[#This Row],[Наименование]],Вводные[Расход]),0) -> 0 | AE35: =IFERROR(Медикаменты[[#This Row],[Остаток]]+Медикаменты[[#This Row],[Приход общий]]-Медикаменты[[#This Row],[Расход общий]],0) -> 0 | AH35: Беродуал (20 мл.) | AI35: уп. | AO35: =IF(IFERROR(IF(SEARCH($AM$3,AP35),"!",""),"")="",0,MAX($AL$9:AO34)+1) -> 26 | AP35: Дневной стационар | AQ35: Сбор успокоительный (50,0 г.)
S36: =IF(IFERROR(IF(SEARCH(Расчет!$B$8,T36),"!",""),"")="",0,MAX($S$9:S35)+1) -> 0 | T36: Бинт (нест., 5 м.х10 см.) | U36: шт. | V36: 700 | Y36: =IFERROR(LOOKUP(,-1/($T36=Вводные[Наименование])/(Вводные[Дата]<$U$1),Вводные[Остаток]),0)+IF(Медикаменты[[#This Row],[Дата остатка]]<$U$1,Медикаменты[[#This Row],[Остаток]],0) -> 0 | Z36: =IF(T36="","",SUMPRODUCT((Вводные[Дата]>=$U$1)*(Вводные[Дата]<=$U$2)*(Вводные[Наименование]=$T36),Вводные[Приход])) -> 0 | AA36: =IF(T36="","",SUMPRODUCT((Вводные[Дата]>=$U$1)*(Вводные[Дата]<=$U$2)*(Вводные[Наименование]=$T36),Вводные[Расход])) -> 0 | AB36: =IFERROR(Медикаменты[[#This Row],[Остаток]]+Медикаменты[[#This Row],[Приход за период]]-Медикаменты[[#This Row],[Расход за период]],"") ->  | AC36: =IFERROR(SUMIF(Вводные[Наименование],Медикаменты[[#This Row],[Наименование]],Вводные[Приход]),0) -> 0 | AD36: =IFERROR(SUMIF(Вводные[Наименование],Медикаменты[[#This Row],[Наименование]],Вводные[Расход]),0) -> 0 | AE36: =IFERROR(Медикаменты[[#This Row],[Остаток]]+Медикаменты[[#This Row],[Приход общий]]-Медикаменты[[#This Row],[Расход общий]],0) -> 0 | AH36: Беродуал (р-р для ингаляций флакон/кап. по 20 мл.) | AI36: фл. | AO36: =IF(IFERROR(IF(SEARCH($AM$3,AP36),"!",""),"")="",0,MAX($AL$9:AO35)+1) -> 27 | AP36: Дневной стационар | AQ36: Сорбифер-Дурулес (таб., 320 мг., №30)
S37: =IF(IFERROR(IF(SEARCH(Расчет!$B$8,T37),"!",""),"")="",0,MAX($S$9:S36)+1) -> 0 | T37: Бинт (стер. 10 м.х15 см.) | U37: шт. | V37: 80 | W37: 2018-03-30 | X37: 55 | Y37: =IFERROR(LOOKUP(,-1/($T37=Вводные[Наименование])/(Вводные[Дата]<$U$1),Вводные[Остаток]),0)+IF(Медикаменты[[#This Row],[Дата остатка]]<$U$1,Медикаменты[[#This Row],[Остаток]],0) -> 55 | Z37: =IF(T37="","",SUMPRODUCT((Вводные[Дата]>=$U$1)*(Вводные[Дата]<=$U$2)*(Вводные[Наименование]=$T37),Вводные[Приход])) -> 0 | AA37: =IF(T37="","",SUMPRODUCT((Вводные[Дата]>=$U$1)*(Вводные[Дата]<=$U$2)*(Вводные[Наименование]=$T37),Вводные[Расход])) -> 0 | AB37: =IFERROR(Медикаменты[[#This Row],[Остаток]]+Медикаменты[[#This Row],[Приход за период]]-Медикаменты[[#This Row],[Расход за период]],"") -> 55 | AC37: =IFERROR(SUMIF(Вводные[Наименование],Медикаменты[[#This Row],[Наименование]],Вводные[Приход]),0) -> 0 | AD37: =IFERROR(SUMIF(Вводные[Наименование],Медикаменты[[#This Row],[Наименование]],Вводные[Расход]),0) -> 0 | AE37: =IFERROR(Медикаменты[[#This Row],[Остаток]]+Медикаменты[[#This Row],[Приход общий]]-Медикаменты[[#This Row],[Расход общий]],0) -> 55 | AH37: Бинт (нест., 10 м.х15 см.) | AI37: шт. | AO37: =IF(IFERROR(IF(SEARCH($AM$3,AP37),"!",""),"")="",0,MAX($AL$9:AO36)+1) -> 28 | AP37: Дневной стационар | AQ37: Супрастин (амп., 2%, 1,0 мл.)
S38: =IF(IFERROR(IF(SEARCH(Расчет!$B$8,T38),"!",""),"")="",0,MAX($S$9:S37)+1) -> 0 | T38: Бинт (стер. 5 м.х10 см.) | U38: шт. | V38: 600 | Y38: =IFERROR(LOOKUP(,-1/($T38=Вводные[Наименование])/(Вводные[Дата]<$U$1),Вводные[Остаток]),0)+IF(Медикаменты[[#This Row],[Дата остатка]]<$U$1,Медикаменты[[#This Row],[Остаток]],0) -> 0 | Z38: =IF(T38="","",SUMPRODUCT((Вводные[Дата]>=$U$1)*(Вводные[Дата]<=$U$2)*(Вводные[Наименование]=$T38),Вводные[Приход])) -> 0 | AA38: =IF(T38="","",SUMPRODUCT((Вводные[Дата]>=$U$1)*(Вводные[Дата]<=$U$2)*(Вводные[Наименование]=$T38),Вводные[Расход])) -> 0 | AB38: =IFERROR(Медикаменты[[#This Row],[Остаток]]+Медикаменты[[#This Row],[Приход за период]]-Медикаменты[[#This Row],[Расход за период]],"") ->  | AC38: =IFERROR(SUMIF(Вводные[Наименование],Медикаменты[[#This Row],[Наименование]],Вводные[Приход]),0) -> 0 | AD38: =IFERROR(SUMIF(Вводные[Наименование],Медикаменты[[#This Row],[Наименование]],Вводные[Расход]),0) -> 0 | AE38: =IFERROR(Медикаменты[[#This Row],[Остаток]]+Медикаменты[[#This Row],[Приход общий]]-Медикаменты[[#This Row],[Расход общий]],0) -> 0 | AH38: Бинт (нест., 5 м.х10 см.) | AI38: шт. | AO38: =IF(IFERROR(IF(SEARCH($AM$3,AP38),"!",""),"")="",0,MAX($AL$9:AO37)+1) -> 29 | AP38: Дневной стационар | AQ38: Супрастин (табл., 25 мг., №20)
S39: =IF(IFERROR(IF(SEARCH(Расчет!$B$8,T39),"!",""),"")="",0,MAX($S$9:S38)+1) -> 0 | T39: Бонадерм, крем для рук восстанавливающий (100 мл.) | U39: шт. | V39: 84 | Y39: =IFERROR(LOOKUP(,-1/($T39=Вводные[Наименование])/(Вводные[Дата]<$U$1),Вводные[Остаток]),0)+IF(Медикаменты[[#This Row],[Дата остатка]]<$U$1,Медикаменты[[#This Row],[Остаток]],0) -> 0 | Z39: =IF(T39="","",SUMPRODUCT((Вводные[Дата]>=$U$1)*(Вводные[Дата]<=$U$2)*(Вводные[Наименование]=$T39),Вводные[Приход])) -> 0 | AA39: =IF(T39="","",SUMPRODUCT((Вводные[Дата]>=$U$1)*(Вводные[Дата]<=$U$2)*(Вводные[Наименование]=$T39),Вводные[Расход])) -> 0 | AB39: =IFERROR(Медикаменты[[#This Row],[Остаток]]+Медикаменты[[#This Row],[Приход за период]]-Медикаменты[[#This Row],[Расход за период]],"") ->  | AC39: =IFERROR(SUMIF(Вводные[Наименование],Медикаменты[[#This Row],[Наименование]],Вводные[Приход]),0) -> 0 | AD39: =IFERROR(SUMIF(Вводные[Наименование],Медикаменты[[#This Row],[Наименование]],Вводные[Расход]),0) -> 0 | AE39: =IFERROR(Медикаменты[[#This Row],[Остаток]]+Медикаменты[[#This Row],[Приход общий]]-Медикаменты[[#This Row],[Расход общий]],0) -> 0 | AH39: Бинт (стер. 10 м.х15 см.) | AI39: шт. | AO39: =IF(IFERROR(IF(SEARCH($AM$3,AP39),"!",""),"")="",0,MAX($AL$9:AO38)+1) -> 30 | AP39: Дневной стационар | AQ39: Тиамин-хлорид 5%-1,0 №10 амп.
S40: =IF(IFERROR(IF(SEARCH(Расчет!$B$8,T40),"!",""),"")="",0,MAX($S$9:S39)+1) -> 0 | T40: Бонадерм-гель (100 мл.) | U40: шт. | V40: 402 | W40: 2018-06-07 | X40: 184 | Y40: =IFERROR(LOOKUP(,-1/($T40=Вводные[Наименование])/(Вводные[Дата]<$U$1),Вводные[Остаток]),0)+IF(Медикаменты[[#This Row],[Дата остатка]]<$U$1,Медикаменты[[#This Row],[Остаток]],0) -> 0 | Z40: =IF(T40="","",SUMPRODUCT((Вводные[Дата]>=$U$1)*(Вводные[Дата]<=$U$2)*(Вводные[Наименование]=$T40),Вводные[Приход])) -> 0 | AA40: =IF(T40="","",SUMPRODUCT((Вводные[Дата]>=$U$1)*(Вводные[Дата]<=$U$2)*(Вводные[Наименование]=$T40),Вводные[Расход])) -> 0 | AB40: =IFERROR(Медикаменты[[#This Row],[Остаток]]+Медикаменты[[#This Row],[Приход за период]]-Медикаменты[[#This Row],[Расход за период]],"") -> 184 | AC40: =IFERROR(SUMIF(Вводные[Наименование],Медикаменты[[#This Row],[Наименование]],Вводные[Приход]),0) -> 0 | AD40: =IFERROR(SUMIF(Вводные[Наименование],Медикаменты[[#This Row],[Наименование]],Вводные[Расход]),0) -> 0 | AE40: =IFERROR(Медикаменты[[#This Row],[Остаток]]+Медикаменты[[#This Row],[Приход общий]]-Медикаменты[[#This Row],[Расход общий]],0) -> 184 | AH40: Бинт (стер. 5 м.х10 см.) | AI40: шт. | AO40: =IF(IFERROR(IF(SEARCH($AM$3,AP40),"!",""),"")="",0,MAX($AL$9:AO39)+1) -> 31 | AP40: Дневной стационар | AQ40: Токоферола ацетат (50% 100 мг., №10)
S41: =IF(IFERROR(IF(SEARCH(Расчет!$B$8,T41),"!",""),"")="",0,MAX($S$9:S40)+1) -> 0 | T41: Бонадерм-ИП салфетки (100 шт.) | U41: уп. | V41: 150 | W41: 2018-06-07 | X41: 80 | Y41: =IFERROR(LOOKUP(,-1/($T41=Вводные[Наименование])/(Вводные[Дата]<$U$1),Вводные[Остаток]),0)+IF(Медикаменты[[#This Row],[Дата остатка]]<$U$1,Медикаменты[[#This Row],[Остаток]],0) -> 0 | Z41: =IF(T41="","",SUMPRODUCT((Вводные[Дата]>=$U$1)*(Вводные[Дата]<=$U$2)*(Вводные[Наименование]=$T41),Вводные[Приход])) -> 0 | AA41: =IF(T41="","",SUMPRODUCT((Вводные[Дата]>=$U$1)*(Вводные[Дата]<=$U$2)*(Вводные[Наименование]=$T41),Вводные[Расход])) -> 0 | AB41: =IFERROR(Медикаменты[[#This Row],[Остаток]]+Медикаменты[[#This Row],[Приход за период]]-Медикаменты[[#This Row],[Расход за период]],"") -> 80 | AC41: =IFERROR(SUMIF(Вводные[Наименование],Медикаменты[[#This Row],[Наименование]],Вводные[Приход]),0) -> 0 | AD41: =IFERROR(SUMIF(Вводные[Наименование],Медикаменты[[#This Row],[Наименование]],Вводные[Расход]),0) -> 0 | AE41: =IFERROR(Медикаменты[[#This Row],[Остаток]]+Медикаменты[[#This Row],[Приход общий]]-Медикаменты[[#This Row],[Расход общий]],0) -> 80 | AH41: Бонадерм, крем для рук восстанавливающий (100 мл.) | AI41: шт. | AO41: =IF(IFERROR(IF(SEARCH($AM$3,AP41),"!",""),"")="",0,MAX($AL$9:AO40)+1) -> 32 | AP41: Дневной стационар | AQ41: Фенибут (табл., 250 мг., №20)
S42: =IF(IFERROR(IF(SEARCH(Расчет!$B$8,T42),"!",""),"")="",0,MAX($S$9:S41)+1) -> 0 | T42: Бонадерм-Ультра (100 мл., с распыляющей насадкой) | U42: шт. | V42: 500 | Y42: =IFERROR(LOOKUP(,-1/($T42=Вводные[Наименование])/(Вводные[Дата]<$U$1),Вводные[Остаток]),0)+IF(Медикаменты[[#This Row],[Дата остатка]]<$U$1,Медикаменты[[#This Row],[Остаток]],0) -> 0 | Z42: =IF(T42="","",SUMPRODUCT((Вводные[Дата]>=$U$1)*(Вводные[Дата]<=$U$2)*(Вводные[Наименование]=$T42),Вводные[Приход])) -> 0 | AA42: =IF(T42="","",SUMPRODUCT((Вводные[Дата]>=$U$1)*(Вводные[Дата]<=$U$2)*(Вводные[Наименование]=$T42),Вводные[Расход])) -> 0 | AB42: =IFERROR(Медикаменты[[#This Row],[Остаток]]+Медикаменты[[#This Row],[Приход за период]]-Медикаменты[[#This Row],[Расход за период]],"") ->  | AC42: =IFERROR(SUMIF(Вводные[Наименование],Медикаменты[[#This Row],[Наименование]],Вводные[Приход]),0) -> 0 | AD42: =IFERROR(SUMIF(Вводные[Наименование],Медикаменты[[#This Row],[Наименование]],Вводные[Расход]),0) -> 0 | AE42: =IFERROR(Медикаменты[[#This Row],[Остаток]]+Медикаменты[[#This Row],[Приход общий]]-Медикаменты[[#This Row],[Расход общий]],0) -> 0 | AH42: Бонадерм-гель (100 мл.) | AI42: шт. | AO42: =IF(IFERROR(IF(SEARCH($AM$3,AP42),"!",""),"")="",0,MAX($AL$9:AO41)+1) -> 33 | AP42: Дневной стационар | AQ42: Хлоргексидин (амп., 0,05%, 100 мл.)
S43: =IF(IFERROR(IF(SEARCH(Расчет!$B$8,T43),"!",""),"")="",0,MAX($S$9:S42)+1) -> 0 | T43: Бонадерм-Ультра (50 мл., с распыляющей насадкой) | U43: шт. | V43: 300 | Y43: =IFERROR(LOOKUP(,-1/($T43=Вводные[Наименование])/(Вводные[Дата]<$U$1),Вводные[Остаток]),0)+IF(Медикаменты[[#This Row],[Дата остатка]]<$U$1,Медикаменты[[#This Row],[Остаток]],0) -> 0 | Z43: =IF(T43="","",SUMPRODUCT((Вводные[Дата]>=$U$1)*(Вводные[Дата]<=$U$2)*(Вводные[Наименование]=$T43),Вводные[Приход])) -> 0 | AA43: =IF(T43="","",SUMPRODUCT((Вводные[Дата]>=$U$1)*(Вводные[Дата]<=$U$2)*(Вводные[Наименование]=$T43),Вводные[Расход])) -> 0 | AB43: =IFERROR(Медикаменты[[#This Row],[Остаток]]+Медикаменты[[#This Row],[Приход за период]]-Медикаменты[[#This Row],[Расход за период]],"") ->  | AC43: =IFERROR(SUMIF(Вводные[Наименование],Медикаменты[[#This Row],[Наименование]],Вводные[Приход]),0) -> 0 | AD43: =IFERROR(SUMIF(Вводные[Наименование],Медикаменты[[#This Row],[Наименование]],Вводные[Расход]),0) -> 0 | AE43: =IFERROR(Медикаменты[[#This Row],[Остаток]]+Медикаменты[[#This Row],[Приход общий]]-Медикаменты[[#This Row],[Расход общий]],0) -> 0 | AH43: Бонадерм-ИП салфетки (100 шт.) | AI43: уп. | AO43: =IF(IFERROR(IF(SEARCH($AM$3,AP43),"!",""),"")="",0,MAX($AL$9:AO42)+1) -> 34 | AP43: Дневной стационар | AQ43: Церебролизин (амп., 5 мл, №5)
S44: =IF(IFERROR(IF(SEARCH(Расчет!$B$8,T44),"!",""),"")="",0,MAX($S$9:S43)+1) -> 0 | T44: Бриллиантовый зеленый (амп., 1%, 10 мл.) | U44: шт. | V44: 140 | Y44: =IFERROR(LOOKUP(,-1/($T44=Вводные[Наименование])/(Вводные[Дата]<$U$1),Вводные[Остаток]),0)+IF(Медикаменты[[#This Row],[Дата остатка]]<$U$1,Медикаменты[[#This Row],[Остаток]],0) -> 0 | Z44: =IF(T44="","",SUMPRODUCT((Вводные[Дата]>=$U$1)*(Вводные[Дата]<=$U$2)*(Вводные[Наименование]=$T44),Вводные[Приход])) -> 0 | AA44: =IF(T44="","",SUMPRODUCT((Вводные[Дата]>=$U$1)*(Вводные[Дата]<=$U$2)*(Вводные[Наименование]=$T44),Вводные[Расход])) -> 0 | AB44: =IFERROR(Медикаменты[[#This Row],[Остаток]]+Медикаменты[[#This Row],[Приход за период]]-Медикаменты[[#This Row],[Расход за период]],"") ->  | AC44: =IFERROR(SUMIF(Вводные[Наименование],Медикаменты[[#This Row],[Наименование]],Вводные[Приход]),0) -> 0 | AD44: =IFERROR(SUMIF(Вводные[Наименование],Медикаменты[[#This Row],[Наименование]],Вводные[Расход]),0) -> 0 | AE44: =IFERROR(Медикаменты[[#This Row],[Остаток]]+Медикаменты[[#This Row],[Приход общий]]-Медикаменты[[#This Row],[Расход общий]],0) -> 0 | AH44: Бонадерм-Ультра (100 мл., с распыляющей насадкой) | AI44: шт. | AO44: =IF(IFERROR(IF(SEARCH($AM$3,AP44),"!",""),"")="",0,MAX($AL$9:AO43)+1) -> 35 | AP44: Дневной стационар | AQ44: Цианокобаламин (амп., 1 мл., №10)
S45: =IF(IFERROR(IF(SEARCH(Расчет!$B$8,T45),"!",""),"")="",0,MAX($S$9:S44)+1) -> 0 | T45: Бромгексин (табл., 4 мг., № 50) | U45: уп. | V45: 50 | Y45: =IFERROR(LOOKUP(,-1/($T45=Вводные[Наименование])/(Вводные[Дата]<$U$1),Вводные[Остаток]),0)+IF(Медикаменты[[#This Row],[Дата остатка]]<$U$1,Медикаменты[[#This Row],[Остаток]],0) -> 0 | Z45: =IF(T45="","",SUMPRODUCT((Вводные[Дата]>=$U$1)*(Вводные[Дата]<=$U$2)*(Вводные[Наименование]=$T45),Вводные[Приход])) -> 0 | AA45: =IF(T45="","",SUMPRODUCT((Вводные[Дата]>=$U$1)*(Вводные[Дата]<=$U$2)*(Вводные[Наименование]=$T45),Вводные[Расход])) -> 0 | AB45: =IFERROR(Медикаменты[[#This Row],[Остаток]]+Медикаменты[[#This Row],[Приход за период]]-Медикаменты[[#This Row],[Расход за период]],"") ->  | AC45: =IFERROR(SUMIF(Вводные[Наименование],Медикаменты[[#This Row],[Наименование]],Вводные[Приход]),0) -> 0 | AD45: =IFERROR(SUMIF(Вводные[Наименование],Медикаменты[[#This Row],[Наименование]],Вводные[Расход]),0) -> 0 | AE45: =IFERROR(Медикаменты[[#This Row],[Остаток]]+Медикаменты[[#This Row],[Приход общий]]-Медикаменты[[#This Row],[Расход общий]],0) -> 0 | AH45: Бонадерм-Ультра (50 мл., с распыляющей насадкой) | AI45: шт. | AO45: =IF(IFERROR(IF(SEARCH($AM$3,AP45),"!",""),"")="",0,MAX($AL$9:AO44)+1) -> 36 | AP45: Дневной стационар | AQ45: Циннаризин (табл. 25 мг., №50)
S46: =IF(IFERROR(IF(SEARCH(Расчет!$B$8,T46),"!",""),"")="",0,MAX($S$9:S45)+1) -> 0 | T46: Бромгексин (табл., 8 мг., № 20) | U46: уп. | V46: 20 | Y46: =IFERROR(LOOKUP(,-1/($T46=Вводные[Наименование])/(Вводные[Дата]<$U$1),Вводные[Остаток]),0)+IF(Медикаменты[[#This Row],[Дата остатка]]<$U$1,Медикаменты[[#This Row],[Остаток]],0) -> 0 | Z46: =IF(T46="","",SUMPRODUCT((Вводные[Дата]>=$U$1)*(Вводные[Дата]<=$U$2)*(Вводные[Наименование]=$T46),Вводные[Приход])) -> 0 | AA46: =IF(T46="","",SUMPRODUCT((Вводные[Дата]>=$U$1)*(Вводные[Дата]<=$U$2)*(Вводные[Наименование]=$T46),Вводные[Расход])) -> 0 | AB46: =IFERROR(Медикаменты[[#This Row],[Остаток]]+Медикаменты[[#This Row],[Приход за период]]-Медикаменты[[#This Row],[Расход за период]],"") ->  | AC46: =IFERROR(SUMIF(Вводные[Наименование],Медикаменты[[#This Row],[Наименование]],Вводные[Приход]),0) -> 0 | AD46: =IFERROR(SUMIF(Вводные[Наименование],Медикаменты[[#This Row],[Наименование]],Вводные[Расход]),0) -> 0 | AE46: =IFERROR(Медикаменты[[#This Row],[Остаток]]+Медикаменты[[#This Row],[Приход общий]]-Медикаменты[[#This Row],[Расход общий]],0) -> 0 | AH46: Бриллиантовый зеленый (амп., 1%, 10 мл.) | AI46: шт. | AO46: =IF(IFERROR(IF(SEARCH($AM$3,AP46),"!",""),"")="",0,MAX($AL$9:AO45)+1) -> 37 | AP46: Дневной стационар | AQ46: Энап (таб., 10 мг., №20)
S47: =IF(IFERROR(IF(SEARCH(Расчет!$B$8,T47),"!",""),"")="",0,MAX($S$9:S46)+1) -> 0 | T47: Бумага для спирографа Микролаб viasys (110*12*12) | U47: уп | V47: 5 | W47: 2018-06-07 | X47: 5 | Y47: =IFERROR(LOOKUP(,-1/($T47=Вводные[Наименование])/(Вводные[Дата]<$U$1),Вводные[Остаток]),0)+IF(Медикаменты[[#This Row],[Дата остатка]]<$U$1,Медикаменты[[#This Row],[Остаток]],0) -> 0 | Z47: =IF(T47="","",SUMPRODUCT((Вводные[Дата]>=$U$1)*(Вводные[Дата]<=$U$2)*(Вводные[Наименование]=$T47),Вводные[Приход])) -> 0 | AA47: =IF(T47="","",SUMPRODUCT((Вводные[Дата]>=$U$1)*(Вводные[Дата]<=$U$2)*(Вводные[Наименование]=$T47),Вводные[Расход])) -> 0 | AB47: =IFERROR(Медикаменты[[#This Row],[Остаток]]+Медикаменты[[#This Row],[Приход за период]]-Медикаменты[[#This Row],[Расход за период]],"") -> 5 | AC47: =IFERROR(SUMIF(Вводные[Наименование],Медикаменты[[#This Row],[Наименование]],Вводные[Приход]),0) -> 0 | AD47: =IFERROR(SUMIF(Вводные[Наименование],Медикаменты[[#This Row],[Наименование]],Вводные[Расход]),0) -> 0 | AE47: =IFERROR(Медикаменты[[#This Row],[Остаток]]+Медикаменты[[#This Row],[Приход общий]]-Медикаменты[[#This Row],[Расход общий]],0) -> 5 | AH47: Бромгексин (табл., 4 мг., № 50) | AI47: уп. | AO47: =IF(IFERROR(IF(SEARCH($AM$3,AP47),"!",""),"")="",0,MAX($AL$9:AO46)+1) -> 38 | AP47: Дневной стационар | AQ47: Фамотидин (табл. 20 мг., №20)
S48: =IF(IFERROR(IF(SEARCH(Расчет!$B$8,T48),"!",""),"")="",0,MAX($S$9:S47)+1) -> 0 | T48: Бумага УЗИ сканер (20 м.) | U48: рул. | V48: 2 | W48: 2018-06-07 | X48: 10 | Y48: =IFERROR(LOOKUP(,-1/($T48=Вводные[Наименование])/(Вводные[Дата]<$U$1),Вводные[Остаток]),0)+IF(Медикаменты[[#This Row],[Дата остатка]]<$U$1,Медикаменты[[#This Row],[Остаток]],0) -> 0 | Z48: =IF(T48="","",SUMPRODUCT((Вводные[Дата]>=$U$1)*(Вводные[Дата]<=$U$2)*(Вводные[Наименование]=$T48),Вводные[Приход])) -> 0 | AA48: =IF(T48="","",SUMPRODUCT((Вводные[Дата]>=$U$1)*(Вводные[Дата]<=$U$2)*(Вводные[Наименование]=$T48),Вводные[Расход])) -> 0 | AB48: =IFERROR(Медикаменты[[#This Row],[Остаток]]+Медикаменты[[#This Row],[Приход за период]]-Медикаменты[[#This Row],[Расход за период]],"") -> 10 | AC48: =IFERROR(SUMIF(Вводные[Наименование],Медикаменты[[#This Row],[Наименование]],Вводные[Приход]),0) -> 0 | AD48: =IFERROR(SUMIF(Вводные[Наименование],Медикаменты[[#This Row],[Наименование]],Вводные[Расход]),0) -> 0 | AE48: =IFERROR(Медикаменты[[#This Row],[Остаток]]+Медикаменты[[#This Row],[Приход общий]]-Медикаменты[[#This Row],[Расход общий]],0) -> 10 | AH48: Бромгексин (табл., 8 мг., № 20) | AI48: уп. | AO48: =IF(IFERROR(IF(SEARCH($AM$3,AP48),"!",""),"")="",0,MAX($AL$9:AO47)+1) -> 39 | AP48: Спирт и ИМН | AQ48: Спирт этиловый (70%, 100 мл.)
S49: =IF(IFERROR(IF(SEARCH(Расчет!$B$8,T49),"!",""),"")="",0,MAX($S$9:S48)+1) -> 0 | T49: Бумага ЭКГ (110 мм. х 30 мм.) | U49: рул | V49: 60 | W49: 2018-06-07 | X49: 40 | Y49: =IFERROR(LOOKUP(,-1/($T49=Вводные[Наименование])/(Вводные[Дата]<$U$1),Вводные[Остаток]),0)+IF(Медикаменты[[#This Row],[Дата остатка]]<$U$1,Медикаменты[[#This Row],[Остаток]],0) -> 0 | Z49: =IF(T49="","",SUMPRODUCT((Вводные[Дата]>=$U$1)*(Вводные[Дата]<=$U$2)*(Вводные[Наименование]=$T49),Вводные[Приход])) -> 0 | AA49: =IF(T49="","",SUMPRODUCT((Вводные[Дата]>=$U$1)*(Вводные[Дата]<=$U$2)*(Вводные[Наименование]=$T49),Вводные[Расход])) -> 0 | AB49: =IFERROR(Медикаменты[[#This Row],[Остаток]]+Медикаменты[[#This Row],[Приход за период]]-Медикаменты[[#This Row],[Расход за период]],"") -> 40 | AC49: =IFERROR(SUMIF(Вводные[Наименование],Медикаменты[[#This Row],[Наименование]],Вводные[Приход]),0) -> 0 | AD49: =IFERROR(SUMIF(Вводные[Наименование],Медикаменты[[#This Row],[Наименование]],Вводные[Расход]),0) -> 0 | AE49: =IFERROR(Медикаменты[[#This Row],[Остаток]]+Медикаменты[[#This Row],[Приход общий]]-Медикаменты[[#This Row],[Расход общий]],0) -> 40 | AH49: Бумага для спирографа Микролаб viasys (110*12*12) | AI49: уп | AO49: =IF(IFERROR(IF(SEARCH($AM$3,AP49),"!",""),"")="",0,MAX($AL$9:AO48)+1) -> 40 | AP49: Спирт и ИМН | AQ49: Спирт этиловый (95%, 100 мл.)
S50: =IF(IFERROR(IF(SEARCH(Расчет!$B$8,T50),"!",""),"")="",0,MAX($S$9:S49)+1) -> 0 | T50: Бумага ЭКГ (80 мм. х 70 мм., 300 л.) | U50: пач. | V50: 50 | W50: 00:00:00 | X50: 0 | Y50: =IFERROR(LOOKUP(,-1/($T50=Вводные[Наименование])/(Вводные[Дата]<$U$1),Вводные[Остаток]),0)+IF(Медикаменты[[#This Row],[Дата остатка]]<$U$1,Медикаменты[[#This Row],[Остаток]],0) -> 0 | Z50: =IF(T50="","",SUMPRODUCT((Вводные[Дата]>=$U$1)*(Вводные[Дата]<=$U$2)*(Вводные[Наименование]=$T50),Вводные[Приход])) -> 0 | AA50: =IF(T50="","",SUMPRODUCT((Вводные[Дата]>=$U$1)*(Вводные[Дата]<=$U$2)*(Вводные[Наименование]=$T50),Вводные[Расход])) -> 0 | AB50: =IFERROR(Медикаменты[[#This Row],[Остаток]]+Медикаменты[[#This Row],[Приход за период]]-Медикаменты[[#This Row],[Расход за период]],"") -> 0 | AC50: =IFERROR(SUMIF(Вводные[Наименование],Медикаменты[[#This Row],[Наименование]],Вводные[Приход]),0) -> 0 | AD50: =IFERROR(SUMIF(Вводные[Наименование],Медикаменты[[#This Row],[Наименование]],Вводные[Расход]),0) -> 0 | AE50: =IFERROR(Медикаменты[[#This Row],[Остаток]]+Медикаменты[[#This Row],[Приход общий]]-Медикаменты[[#This Row],[Расход общий]],0) -> 0 | AH50: Бумага УЗИ сканер (20 м.) | AI50: рул. | AO50: =IF(IFERROR(IF(SEARCH($AM$3,AP50),"!",""),"")="",0,MAX($AL$9:AO49)+1) -> 41 | AP50: Спирт и ИМН | AQ50: Бинт н/с
S51: =IF(IFERROR(IF(SEARCH(Расчет!$B$8,T51),"!",""),"")="",0,MAX($S$9:S50)+1) -> 0 | T51: Вазелиновое масло (100 мл.) | U51: шт. | V51: 150 | Y51: =IFERROR(LOOKUP(,-1/($T51=Вводные[Наименование])/(Вводные[Дата]<$U$1),Вводные[Остаток]),0)+IF(Медикаменты[[#This Row],[Дата остатка]]<$U$1,Медикаменты[[#This Row],[Остаток]],0) -> 0 | Z51: =IF(T51="","",SUMPRODUCT((Вводные[Дата]>=$U$1)*(Вводные[Дата]<=$U$2)*(Вводные[Наименование]=$T51),Вводные[Приход])) -> 0 | AA51: =IF(T51="","",SUMPRODUCT((Вводные[Дата]>=$U$1)*(Вводные[Дата]<=$U$2)*(Вводные[Наименование]=$T51),Вводные[Расход])) -> 0 | AB51: =IFERROR(Медикаменты[[#This Row],[Остаток]]+Медикаменты[[#This Row],[Приход за период]]-Медикаменты[[#This Row],[Расход за период]],"") ->  | AC51: =IFERROR(SUMIF(Вводные[Наименование],Медикаменты[[#This Row],[Наименование]],Вводные[Приход]),0) -> 0 | AD51: =IFERROR(SUMIF(Вводные[Наименование],Медикаменты[[#This Row],[Наименование]],Вводные[Расход]),0) -> 0 | AE51: =IFERROR(Медикаменты[[#This Row],[Остаток]]+Медикаменты[[#This Row],[Приход общий]]-Медикаменты[[#This Row],[Расход общий]],0) -> 0 | AH51: Бумага ЭКГ (110 мм. х 30 мм.) | AI51: рул | AO51: =IF(IFERROR(IF(SEARCH($AM$3,AP51),"!",""),"")="",0,MAX($AL$9:AO50)+1) -> 42 | AP51: Спирт и ИМН | AQ51: Бинт стерильный
S52: =IF(IFERROR(IF(SEARCH(Расчет!$B$8,T52),"!",""),"")="",0,MAX($S$9:S51)+1) -> 0 | T52: Валериана (20 мг., №50) | U52: 0 | V52: 0 | W52: 00:00:00 | X52: 0 | Y52: =IFERROR(LOOKUP(,-1/($T52=Вводные[Наименование])/(Вводные[Дата]<$U$1),Вводные[Остаток]),0)+IF(Медикаменты[[#This Row],[Дата остатка]]<$U$1,Медикаменты[[#This Row],[Остаток]],0) -> 0 | Z52: =IF(T52="","",SUMPRODUCT((Вводные[Дата]>=$U$1)*(Вводные[Дата]<=$U$2)*(Вводные[Наименование]=$T52),Вводные[Приход])) -> 0 | AA52: =IF(T52="","",SUMPRODUCT((Вводные[Дата]>=$U$1)*(Вводные[Дата]<=$U$2)*(Вводные[Наименование]=$T52),Вводные[Расход])) -> 0 | AB52: =IFERROR(Медикаменты[[#This Row],[Остаток]]+Медикаменты[[#This Row],[Приход за период]]-Медикаменты[[#This Row],[Расход за период]],"") -> 0 | AC52: =IFERROR(SUMIF(Вводные[Наименование],Медикаменты[[#This Row],[Наименование]],Вводные[Приход]),0) -> 0 | AD52: =IFERROR(SUMIF(Вводные[Наименование],Медикаменты[[#This Row],[Наименование]],Вводные[Расход]),0) -> 0 | AE52: =IFERROR(Медикаменты[[#This Row],[Остаток]]+Медикаменты[[#This Row],[Приход общий]]-Медикаменты[[#This Row],[Расход общий]],0) -> 0 | AH52: Бумага ЭКГ (80 мм. х 70 мм., 300 л.) | AI52: пач. | AO52: =IF(IFERROR(IF(SEARCH($AM$3,AP52),"!",""),"")="",0,MAX($AL$9:AO51)+1) -> 43 | AP52: Спирт и ИМН | AQ52: Вата
S53: =IF(IFERROR(IF(SEARCH(Расчет!$B$8,T53),"!",""),"")="",0,MAX($S$9:S52)+1) -> 0 | T53: Вата (нест. 100 г.) | U53: уп. | V53: 70 | Y53: =IFERROR(LOOKUP(,-1/($T53=Вводные[Наименование])/(Вводные[Дата]<$U$1),Вводные[Остаток]),0)+IF(Медикаменты[[#This Row],[Дата остатка]]<$U$1,Медикаменты[[#This Row],[Остаток]],0) -> 0 | Z53: =IF(T53="","",SUMPRODUCT((Вводные[Дата]>=$U$1)*(Вводные[Дата]<=$U$2)*(Вводные[Наименование]=$T53),Вводные[Приход])) -> 0 | AA53: =IF(T53="","",SUMPRODUCT((Вводные[Дата]>=$U$1)*(Вводные[Дата]<=$U$2)*(Вводные[Наименование]=$T53),Вводные[Расход])) -> 0 | AB53: =IFERROR(Медикаменты[[#This Row],[Остаток]]+Медикаменты[[#This Row],[Приход за период]]-Медикаменты[[#This Row],[Расход за период]],"") ->  | AC53: =IFERROR(SUMIF(Вводные[Наименование],Медикаменты[[#This Row],[Наименование]],Вводные[Приход]),0) -> 0 | AD53: =IFERROR(SUMIF(Вводные[Наименование],Медикаменты[[#This Row],[Наименование]],Вводные[Расход]),0) -> 0 | AE53: =IFERROR(Медикаменты[[#This Row],[Остаток]]+Медикаменты[[#This Row],[Приход общий]]-Медикаменты[[#This Row],[Расход общий]],0) -> 0 | AH53: Вазелиновое масло (100 мл.) | AI53: шт. | AO53: =IF(IFERROR(IF(SEARCH($AM$3,AP53),"!",""),"")="",0,MAX($AL$9:AO52)+1) -> 44 | AP53: Спирт и ИМН | AQ53: Лейкопластырь (катушка, 2х500 см.)
S54: =IF(IFERROR(IF(SEARCH(Расчет!$B$8,T54),"!",""),"")="",0,MAX($S$9:S53)+1) -> 0 | T54: Вата (нест. 250 г.) | U54: уп. | V54: 60 | Y54: =IFERROR(LOOKUP(,-1/($T54=Вводные[Наименование])/(Вводные[Дата]<$U$1),Вводные[Остаток]),0)+IF(Медикаменты[[#This Row],[Дата остатка]]<$U$1,Медикаменты[[#This Row],[Остаток]],0) -> 0 | Z54: =IF(T54="","",SUMPRODUCT((Вводные[Дата]>=$U$1)*(Вводные[Дата]<=$U$2)*(Вводные[Наименование]=$T54),Вводные[Приход])) -> 0 | AA54: =IF(T54="","",SUMPRODUCT((Вводные[Дата]>=$U$1)*(Вводные[Дата]<=$U$2)*(Вводные[Наименование]=$T54),Вводные[Расход])) -> 0 | AB54: =IFERROR(Медикаменты[[#This Row],[Остаток]]+Медикаменты[[#This Row],[Приход за период]]-Медикаменты[[#This Row],[Расход за период]],"") ->  | AC54: =IFERROR(SUMIF(Вводные[Наименование],Медикаменты[[#This Row],[Наименование]],Вводные[Приход]),0) -> 0 | AD54: =IFERROR(SUMIF(Вводные[Наименование],Медикаменты[[#This Row],[Наименование]],Вводные[Расход]),0) -> 0 | AE54: =IFERROR(Медикаменты[[#This Row],[Остаток]]+Медикаменты[[#This Row],[Приход общий]]-Медикаменты[[#This Row],[Расход общий]],0) -> 0 | AH54: Валериана (20 мг., №50) | AO54: =IF(IFERROR(IF(SEARCH($AM$3,AP54),"!",""),"")="",0,MAX($AL$9:AO53)+1) -> 45 | AP54: Спирт и ИМН | AQ54: Марля
S55: =IF(IFERROR(IF(SEARCH(Расчет!$B$8,T55),"!",""),"")="",0,MAX($S$9:S54)+1) -> 0 | T55: Вата (стер. 100 г.) | U55: уп. | V55: 5 | Y55: =IFERROR(LOOKUP(,-1/($T55=Вводные[Наименование])/(Вводные[Дата]<$U$1),Вводные[Остаток]),0)+IF(Медикаменты[[#This Row],[Дата остатка]]<$U$1,Медикаменты[[#This Row],[Остаток]],0) -> 0 | Z55: =IF(T55="","",SUMPRODUCT((Вводные[Дата]>=$U$1)*(Вводные[Дата]<=$U$2)*(Вводные[Наименование]=$T55),Вводные[Приход])) -> 0 | AA55: =IF(T55="","",SUMPRODUCT((Вводные[Дата]>=$U$1)*(Вводные[Дата]<=$U$2)*(Вводные[Наименование]=$T55),Вводные[Расход])) -> 0 | AB55: =IFERROR(Медикаменты[[#This Row],[Остаток]]+Медикаменты[[#This Row],[Приход за период]]-Медикаменты[[#This Row],[Расход за период]],"") ->  | AC55: =IFERROR(SUMIF(Вводные[Наименование],Медикаменты[[#This Row],[Наименование]],Вводные[Приход]),0) -> 0 | AD55: =IFERROR(SUMIF(Вводные[Наименование],Медикаменты[[#This Row],[Наименование]],Вводные[Расход]),0) -> 0 | AE55: =IFERROR(Медикаменты[[#This Row],[Остаток]]+Медикаменты[[#This Row],[Приход общий]]-Медикаменты[[#This Row],[Расход общий]],0) -> 0 | AH55: Вата (нест. 100 г.) | AI55: уп. | AO55: =IF(IFERROR(IF(SEARCH($AM$3,AP55),"!",""),"")="",0,MAX($AL$9:AO54)+1) -> 46 | AP55: Спирт и ИМН | AQ55: Перчатки нестерил
S56: =IF(IFERROR(IF(SEARCH(Расчет!$B$8,T56),"!",""),"")="",0,MAX($S$9:S55)+1) -> 0 | T56: Ватные палочки, ушные (100 шт.) | U56: шт. | V56: 5000 | Y56: =IFERROR(LOOKUP(,-1/($T56=Вводные[Наименование])/(Вводные[Дата]<$U$1),Вводные[Остаток]),0)+IF(Медикаменты[[#This Row],[Дата остатка]]<$U$1,Медикаменты[[#This Row],[Остаток]],0) -> 0 | Z56: =IF(T56="","",SUMPRODUCT((Вводные[Дата]>=$U$1)*(Вводные[Дата]<=$U$2)*(Вводные[Наименование]=$T56),Вводные[Приход])) -> 0 | AA56: =IF(T56="","",SUMPRODUCT((Вводные[Дата]>=$U$1)*(Вводные[Дата]<=$U$2)*(Вводные[Наименование]=$T56),Вводные[Расход])) -> 0 | AB56: =IFERROR(Медикаменты[[#This Row],[Остаток]]+Медикаменты[[#This Row],[Приход за период]]-Медикаменты[[#This Row],[Расход за период]],"") ->  | AC56: =IFERROR(SUMIF(Вводные[Наименование],Медикаменты[[#This Row],[Наименование]],Вводные[Приход]),0) -> 0 | AD56: =IFERROR(SUMIF(Вводные[Наименование],Медикаменты[[#This Row],[Наименование]],Вводные[Расход]),0) -> 0 | AE56: =IFERROR(Медикаменты[[#This Row],[Остаток]]+Медикаменты[[#This Row],[Приход общий]]-Медикаменты[[#This Row],[Расход общий]],0) -> 0 | AH56: Вата (нест. 250 г.) | AI56: уп. | AO56: =IF(IFERROR(IF(SEARCH($AM$3,AP56),"!",""),"")="",0,MAX($AL$9:AO55)+1) -> 47 | AP56: Спирт и ИМН | AQ56: Перчатки стерильные
S57: =IF(IFERROR(IF(SEARCH(Расчет!$B$8,T57),"!",""),"")="",0,MAX($S$9:S56)+1) -> 0 | T57: Ватные шарики (стер.) | U57: 0 | V57: 0 | W57: 2018-06-07 | X57: 120 | Y57: =IFERROR(LOOKUP(,-1/($T57=Вводные[Наименование])/(Вводные[Дата]<$U$1),Вводные[Остаток]),0)+IF(Медикаменты[[#This Row],[Дата остатка]]<$U$1,Медикаменты[[#This Row],[Остаток]],0) -> 0 | Z57: =IF(T57="","",SUMPRODUCT((Вводные[Дата]>=$U$1)*(Вводные[Дата]<=$U$2)*(Вводные[Наименование]=$T57),Вводные[Приход])) -> 0 | AA57: =IF(T57="","",SUMPRODUCT((Вводные[Дата]>=$U$1)*(Вводные[Дата]<=$U$2)*(Вводные[Наименование]=$T57),Вводные[Расход])) -> 0 | AB57: =IFERROR(Медикаменты[[#This Row],[Остаток]]+Медикаменты[[#This Row],[Приход за период]]-Медикаменты[[#This Row],[Расход за период]],"") -> 120 | AC57: =IFERROR(SUMIF(Вводные[Наименование],Медикаменты[[#This Row],[Наименование]],Вводные[Приход]),0) -> 0 | AD57: =IFERROR(SUMIF(Вводные[Наименование],Медикаменты[[#This Row],[Наименование]],Вводные[Расход]),0) -> 0 | AE57: =IFERROR(Медикаменты[[#This Row],[Остаток]]+Медикаменты[[#This Row],[Приход общий]]-Медикаменты[[#This Row],[Расход общий]],0) -> 120 | AH57: Вата (стер. 100 г.) | AI57: уп. | AO57: =IF(IFERROR(IF(SEARCH($AM$3,AP57),"!",""),"")="",0,MAX($AL$9:AO56)+1) -> 48 | AP57: Спирт и ИМН | AQ57: Салфетка стер спирт.
S58: =IF(IFERROR(IF(SEARCH(Расчет!$B$8,T58),"!",""),"")="",0,MAX($S$9:S57)+1) -> 0 | T58: Вентолин Небулы (амп., для ингаляций 1 мг/мл., 2,5 мл. № 20) | U58: уп. | V58: 3 | Y58: =IFERROR(LOOKUP(,-1/($T58=Вводные[Наименование])/(Вводные[Дата]<$U$1),Вводные[Остаток]),0)+IF(Медикаменты[[#This Row],[Дата остатка]]<$U$1,Медикаменты[[#This Row],[Остаток]],0) -> 0 | Z58: =IF(T58="","",SUMPRODUCT((Вводные[Дата]>=$U$1)*(Вводные[Дата]<=$U$2)*(Вводные[Наименование]=$T58),Вводные[Приход])) -> 0 | AA58: =IF(T58="","",SUMPRODUCT((Вводные[Дата]>=$U$1)*(Вводные[Дата]<=$U$2)*(Вводные[Наименование]=$T58),Вводные[Расход])) -> 0 | AB58: =IFERROR(Медикаменты[[#This Row],[Остаток]]+Медикаменты[[#This Row],[Приход за период]]-Медикаменты[[#This Row],[Расход за период]],"") ->  | AC58: =IFERROR(SUMIF(Вводные[Наименование],Медикаменты[[#This Row],[Наименование]],Вводные[Приход]),0) -> 0 | AD58: =IFERROR(SUMIF(Вводные[Наименование],Медикаменты[[#This Row],[Наименование]],Вводные[Расход]),0) -> 0 | AE58: =IFERROR(Медикаменты[[#This Row],[Остаток]]+Медикаменты[[#This Row],[Приход общий]]-Медикаменты[[#This Row],[Расход общий]],0) -> 0 | AH58: Ватные палочки, ушные (100 шт.) | AI58: шт. | AO58: =IF(IFERROR(IF(SEARCH($AM$3,AP58),"!",""),"")="",0,MAX($AL$9:AO57)+1) -> 49 | AP58: Спирт и ИМН | AQ58: Шпатель (стер., 100 шт.)
S59: =IF(IFERROR(IF(SEARCH(Расчет!$B$8,T59),"!",""),"")="",0,MAX($S$9:S58)+1) -> 0 | T59: Винпоцетин (таб., 5 мг., №10) | U59: уп. | V59: 70 | Y59: =IFERROR(LOOKUP(,-1/($T59=Вводные[Наименование])/(Вводные[Дата]<$U$1),Вводные[Остаток]),0)+IF(Медикаменты[[#This Row],[Дата остатка]]<$U$1,Медикаменты[[#This Row],[Остаток]],0) -> 0 | Z59: =IF(T59="","",SUMPRODUCT((Вводные[Дата]>=$U$1)*(Вводные[Дата]<=$U$2)*(Вводные[Наименование]=$T59),Вводные[Приход])) -> 0 | AA59: =IF(T59="","",SUMPRODUCT((Вводные[Дата]>=$U$1)*(Вводные[Дата]<=$U$2)*(Вводные[Наименование]=$T59),Вводные[Расход])) -> 0 | AB59: =IFERROR(Медикаменты[[#This Row],[Остаток]]+Медикаменты[[#This Row],[Приход за период]]-Медикаменты[[#This Row],[Расход за период]],"") ->  | AC59: =IFERROR(SUMIF(Вводные[Наименование],Медикаменты[[#This Row],[Наименование]],Вводные[Приход]),0) -> 0 | AD59: =IFERROR(SUMIF(Вводные[Наименование],Медикаменты[[#This Row],[Наименование]],Вводные[Расход]),0) -> 0 | AE59: =IFERROR(Медикаменты[[#This Row],[Остаток]]+Медикаменты[[#This Row],[Приход общий]]-Медикаменты[[#This Row],[Расход общий]],0) -> 0 | AH59: Ватные шарики (стер.) | AO59: =IF(IFERROR(IF(SEARCH($AM$3,AP59),"!",""),"")="",0,MAX($AL$9:AO58)+1) -> 50 | AP59: Спирт и ИМН | AQ59: Шприц однораз.
S60: =IF(IFERROR(IF(SEARCH(Расчет!$B$8,T60),"!",""),"")="",0,MAX($S$9:S59)+1) -> 0 | T60: Винпоцетин-АКОС (амп., 2 мл., №10) | U60: уп. | V60: 20 | Y60: =IFERROR(LOOKUP(,-1/($T60=Вводные[Наименование])/(Вводные[Дата]<$U$1),Вводные[Остаток]),0)+IF(Медикаменты[[#This Row],[Дата остатка]]<$U$1,Медикаменты[[#This Row],[Остаток]],0) -> 0 | Z60: =IF(T60="","",SUMPRODUCT((Вводные[Дата]>=$U$1)*(Вводные[Дата]<=$U$2)*(Вводные[Наименование]=$T60),Вводные[Приход])) -> 0 | AA60: =IF(T60="","",SUMPRODUCT((Вводные[Дата]>=$U$1)*(Вводные[Дата]<=$U$2)*(Вводные[Наименование]=$T60),Вводные[Расход])) -> 0 | AB60: =IFERROR(Медикаменты[[#This Row],[Остаток]]+Медикаменты[[#This Row],[Приход за период]]-Медикаменты[[#This Row],[Расход за период]],"") ->  | AC60: =IFERROR(SUMIF(Вводные[Наименование],Медикаменты[[#This Row],[Наименование]],Вводные[Приход]),0) -> 0 | AD60: =IFERROR(SUMIF(Вводные[Наименование],Медикаменты[[#This Row],[Наименование]],Вводные[Расход]),0) -> 0 | AE60: =IFERROR(Медикаменты[[#This Row],[Остаток]]+Медикаменты[[#This Row],[Приход общий]]-Медикаменты[[#This Row],[Расход общий]],0) -> 0 | AH60: Вентолин Небулы (амп., для ингаляций 1 мг/мл., 2,5 мл. № 20) | AI60: уп. | AO60: =IF(IFERROR(IF(SEARCH($AM$3,AP60),"!",""),"")="",0,MAX($AL$9:AO59)+1) -> 51 | AP60: Спирт и ИМН | AQ60: Маска однораз.
S61: =IF(IFERROR(IF(SEARCH(Расчет!$B$8,T61),"!",""),"")="",0,MAX($S$9:S60)+1) -> 0 | T61: Вода дистиллированная (амп., 50 мл., №10) | U61: уп. | V61: 60 | Y61: =IFERROR(LOOKUP(,-1/($T61=Вводные[Наименование])/(Вводные[Дата]<$U$1),Вводные[Остаток]),0)+IF(Медикаменты[[#This Row],[Дата остатка]]<$U$1,Медикаменты[[#This Row],[Остаток]],0) -> 0 | Z61: =IF(T61="","",SUMPRODUCT((Вводные[Дата]>=$U$1)*(Вводные[Дата]<=$U$2)*(Вводные[Наименование]=$T61),Вводные[Приход])) -> 0 | AA61: =IF(T61="","",SUMPRODUCT((Вводные[Дата]>=$U$1)*(Вводные[Дата]<=$U$2)*(Вводные[Наименование]=$T61),Вводные[Расход])) -> 0 | AB61: =IFERROR(Медикаменты[[#This Row],[Остаток]]+Медикаменты[[#This Row],[Приход за период]]-Медикаменты[[#This Row],[Расход за период]],"") ->  | AC61: =IFERROR(SUMIF(Вводные[Наименование],Медикаменты[[#This Row],[Наименование]],Вводные[Приход]),0) -> 0 | AD61: =IFERROR(SUMIF(Вводные[Наименование],Медикаменты[[#This Row],[Наименование]],Вводные[Расход]),0) -> 0 | AE61: =IFERROR(Медикаменты[[#This Row],[Остаток]]+Медикаменты[[#This Row],[Приход общий]]-Медикаменты[[#This Row],[Расход общий]],0) -> 0 | AH61: Винпоцетин (таб., 5 мг., №10) | AI61: уп. | AO61: =IF(IFERROR(IF(SEARCH($AM$3,AP61),"!",""),"")="",0,MAX($AL$9:AO60)+1) -> 52 | AP61: Спирт и ИМН | AQ61: Салфетка (спанлейс, 30х40, 100 шт.)
S62: =IF(IFERROR(IF(SEARCH(Расчет!$B$8,T62),"!",""),"")="",0,MAX($S$9:S61)+1) -> 0 | T62: Воронка ушная (1-4 мм.) | U62: шт | V62: 30 | Y62: =IFERROR(LOOKUP(,-1/($T62=Вводные[Наименование])/(Вводные[Дата]<$U$1),Вводные[Остаток]),0)+IF(Медикаменты[[#This Row],[Дата остатка]]<$U$1,Медикаменты[[#This Row],[Остаток]],0) -> 0 | Z62: =IF(T62="","",SUMPRODUCT((Вводные[Дата]>=$U$1)*(Вводные[Дата]<=$U$2)*(Вводные[Наименование]=$T62),Вводные[Приход])) -> 0 | AA62: =IF(T62="","",SUMPRODUCT((Вводные[Дата]>=$U$1)*(Вводные[Дата]<=$U$2)*(Вводные[Наименование]=$T62),Вводные[Расход])) -> 0 | AB62: =IFERROR(Медикаменты[[#This Row],[Остаток]]+Медикаменты[[#This Row],[Приход за период]]-Медикаменты[[#This Row],[Расход за период]],"") ->  | AC62: =IFERROR(SUMIF(Вводные[Наименование],Медикаменты[[#This Row],[Наименование]],Вводные[Приход]),0) -> 0 | AD62: =IFERROR(SUMIF(Вводные[Наименование],Медикаменты[[#This Row],[Наименование]],Вводные[Расход]),0) -> 0 | AE62: =IFERROR(Медикаменты[[#This Row],[Остаток]]+Медикаменты[[#This Row],[Приход общий]]-Медикаменты[[#This Row],[Расход общий]],0) -> 0 | AH62: Винпоцетин-АКОС (амп., 2 мл., №10) | AI62: уп. | AO62: =IF(IFERROR(IF(SEARCH($AM$3,AP62),"!",""),"")="",0,MAX($AL$9:AO61)+1) -> 53 | AP62: Спирт и ИМН | AQ62: Полотенце бумажное (200 шт.)
S63: =IF(IFERROR(IF(SEARCH(Расчет!$B$8,T63),"!",""),"")="",0,MAX($S$9:S62)+1) -> 0 | T63: Воронка ушная (2-5 мм.) | U63: шт | V63: 30 | Y63: =IFERROR(LOOKUP(,-1/($T63=Вводные[Наименование])/(Вводные[Дата]<$U$1),Вводные[Остаток]),0)+IF(Медикаменты[[#This Row],[Дата остатка]]<$U$1,Медикаменты[[#This Row],[Остаток]],0) -> 0 | Z63: =IF(T63="","",SUMPRODUCT((Вводные[Дата]>=$U$1)*(Вводные[Дата]<=$U$2)*(Вводные[Наименование]=$T63),Вводные[Приход])) -> 0 | AA63: =IF(T63="","",SUMPRODUCT((Вводные[Дата]>=$U$1)*(Вводные[Дата]<=$U$2)*(Вводные[Наименование]=$T63),Вводные[Расход])) -> 0 | AB63: =IFERROR(Медикаменты[[#This Row],[Остаток]]+Медикаменты[[#This Row],[Приход за период]]-Медикаменты[[#This Row],[Расход за период]],"") ->  | AC63: =IFERROR(SUMIF(Вводные[Наименование],Медикаменты[[#This Row],[Наименование]],Вводные[Приход]),0) -> 0 | AD63: =IFERROR(SUMIF(Вводные[Наименование],Медикаменты[[#This Row],[Наименование]],Вводные[Расход]),0) -> 0 | AE63: =IFERROR(Медикаменты[[#This Row],[Остаток]]+Медикаменты[[#This Row],[Приход общий]]-Медикаменты[[#This Row],[Расход общий]],0) -> 0 | AH63: Вода дистиллированная (амп., 50 мл., №10) | AI63: уп.
S64: =IF(IFERROR(IF(SEARCH(Расчет!$B$8,T64),"!",""),"")="",0,MAX($S$9:S63)+1) -> 0 | T64: Гель для УЗИ (1л.) | U64: фл. | V64: 10 | Y64: =IFERROR(LOOKUP(,-1/($T64=Вводные[Наименование])/(Вводные[Дата]<$U$1),Вводные[Остаток]),0)+IF(Медикаменты[[#This Row],[Дата остатка]]<$U$1,Медикаменты[[#This Row],[Остаток]],0) -> 0 | Z64: =IF(T64="","",SUMPRODUCT((Вводные[Дата]>=$U$1)*(Вводные[Дата]<=$U$2)*(Вводные[Наименование]=$T64),Вводные[Приход])) -> 0 | AA64: =IF(T64="","",SUMPRODUCT((Вводные[Дата]>=$U$1)*(Вводные[Дата]<=$U$2)*(Вводные[Наименование]=$T64),Вводные[Расход])) -> 0 | AB64: =IFERROR(Медикаменты[[#This Row],[Остаток]]+Медикаменты[[#This Row],[Приход за период]]-Медикаменты[[#This Row],[Расход за период]],"") ->  | AC64: =IFERROR(SUMIF(Вводные[Наименование],Медикаменты[[#This Row],[Наименование]],Вводные[Приход]),0) -> 0 | AD64: =IFERROR(SUMIF(Вводные[Наименование],Медикаменты[[#This Row],[Наименование]],Вводные[Расход]),0) -> 0 | AE64: =IFERROR(Медикаменты[[#This Row],[Остаток]]+Медикаменты[[#This Row],[Приход общий]]-Медикаменты[[#This Row],[Расход общий]],0) -> 0 | AH64: Воронка ушная (1-4 мм.) | AI64: шт
S65: =IF(IFERROR(IF(SEARCH(Расчет!$B$8,T65),"!",""),"")="",0,MAX($S$9:S64)+1) -> 0 | T65: Гель для УЗИ (5 л.) | U65: кан. | V65: 1 | W65: 2018-06-07 | X65: 2 | Y65: =IFERROR(LOOKUP(,-1/($T65=Вводные[Наименование])/(Вводные[Дата]<$U$1),Вводные[Остаток]),0)+IF(Медикаменты[[#This Row],[Дата остатка]]<$U$1,Медикаменты[[#This Row],[Остаток]],0) -> 0 | Z65: =IF(T65="","",SUMPRODUCT((Вводные[Дата]>=$U$1)*(Вводные[Дата]<=$U$2)*(Вводные[Наименование]=$T65),Вводные[Приход])) -> 0 | AA65: =IF(T65="","",SUMPRODUCT((Вводные[Дата]>=$U$1)*(Вводные[Дата]<=$U$2)*(Вводные[Наименование]=$T65),Вводные[Расход])) -> 0 | AB65: =IFERROR(Медикаменты[[#This Row],[Остаток]]+Медикаменты[[#This Row],[Приход за период]]-Медикаменты[[#This Row],[Расход за период]],"") -> 2 | AC65: =IFERROR(SUMIF(Вводные[Наименование],Медикаменты[[#This Row],[Наименование]],Вводные[Приход]),0) -> 0 | AD65: =IFERROR(SUMIF(Вводные[Наименование],Медикаменты[[#This Row],[Наименование]],Вводные[Расход]),0) -> 0 | AE65: =IFERROR(Медикаменты[[#This Row],[Остаток]]+Медикаменты[[#This Row],[Приход общий]]-Медикаменты[[#This Row],[Расход общий]],0) -> 2 | AH65: Воронка ушная (2-5 мм.) | AI65: шт
S66: =IF(IFERROR(IF(SEARCH(Расчет!$B$8,T66),"!",""),"")="",0,MAX($S$9:S65)+1) -> 0 | T66: Гипотиазид (таб., 25 мг., №20) | U66: шт. | V66: 0 | Y66: =IFERROR(LOOKUP(,-1/($T66=Вводные[Наименование])/(Вводные[Дата]<$U$1),Вводные[Остаток]),0)+IF(Медикаменты[[#This Row],[Дата остатка]]<$U$1,Медикаменты[[#This Row],[Остаток]],0) -> 0 | Z66: =IF(T66="","",SUMPRODUCT((Вводные[Дата]>=$U$1)*(Вводные[Дата]<=$U$2)*(Вводные[Наименование]=$T66),Вводные[Приход])) -> 0 | AA66: =IF(T66="","",SUMPRODUCT((Вводные[Дата]>=$U$1)*(Вводные[Дата]<=$U$2)*(Вводные[Наименование]=$T66),Вводные[Расход])) -> 0 | AB66: =IFERROR(Медикаменты[[#This Row],[Остаток]]+Медикаменты[[#This Row],[Приход за период]]-Медикаменты[[#This Row],[Расход за период]],"") ->  | AC66: =IFERROR(SUMIF(Вводные[Наименование],Медикаменты[[#This Row],[Наименование]],Вводные[Приход]),0) -> 0 | AD66: =IFERROR(SUMIF(Вводные[Наименование],Медикаменты[[#This Row],[Наименование]],Вводные[Расход]),0) -> 0 | AE66: =IFERROR(Медикаменты[[#This Row],[Остаток]]+Медикаменты[[#This Row],[Приход общий]]-Медикаменты[[#This Row],[Расход общий]],0) -> 0 | AH66: Гель для УЗИ (1л.) | AI66: фл.
S67: =IF(IFERROR(IF(SEARCH(Расчет!$B$8,T67),"!",""),"")="",0,MAX($S$9:S66)+1) -> 0 | T67: Глицин (таб., 100 мг., №50) | U67: уп. | V67: 75 | Y67: =IFERROR(LOOKUP(,-1/($T67=Вводные[Наименование])/(Вводные[Дата]<$U$1),Вводные[Остаток]),0)+IF(Медикаменты[[#This Row],[Дата остатка]]<$U$1,Медикаменты[[#This Row],[Остаток]],0) -> 0 | Z67: =IF(T67="","",SUMPRODUCT((Вводные[Дата]>=$U$1)*(Вводные[Дата]<=$U$2)*(Вводные[Наименование]=$T67),Вводные[Приход])) -> 0 | AA67: =IF(T67="","",SUMPRODUCT((Вводные[Дата]>=$U$1)*(Вводные[Дата]<=$U$2)*(Вводные[Наименование]=$T67),Вводные[Расход])) -> 0 | AB67: =IFERROR(Медикаменты[[#This Row],[Остаток]]+Медикаменты[[#This Row],[Приход за период]]-Медикаменты[[#This Row],[Расход за период]],"") ->  | AC67: =IFERROR(SUMIF(Вводные[Наименование],Медикаменты[[#This Row],[Наименование]],Вводные[Приход]),0) -> 0 | AD67: =IFERROR(SUMIF(Вводные[Наименование],Медикаменты[[#This Row],[Наименование]],Вводные[Расход]),0) -> 0 | AE67: =IFERROR(Медикаменты[[#This Row],[Остаток]]+Медикаменты[[#This Row],[Приход общий]]-Медикаменты[[#This Row],[Расход общий]],0) -> 0 | AH67: Гель для УЗИ (5 л.) | AI67: кан.
S68: =IF(IFERROR(IF(SEARCH(Расчет!$B$8,T68),"!",""),"")="",0,MAX($S$9:S67)+1) -> 0 | T68: Губка гемостатическая коллагеновая (90х90 мм., №1) | U68: уп. | V68: 150 | Y68: =IFERROR(LOOKUP(,-1/($T68=Вводные[Наименование])/(Вводные[Дата]<$U$1),Вводные[Остаток]),0)+IF(Медикаменты[[#This Row],[Дата остатка]]<$U$1,Медикаменты[[#This Row],[Остаток]],0) -> 0 | Z68: =IF(T68="","",SUMPRODUCT((Вводные[Дата]>=$U$1)*(Вводные[Дата]<=$U$2)*(Вводные[Наименование]=$T68),Вводные[Приход])) -> 0 | AA68: =IF(T68="","",SUMPRODUCT((Вводные[Дата]>=$U$1)*(Вводные[Дата]<=$U$2)*(Вводные[Наименование]=$T68),Вводные[Расход])) -> 0 | AB68: =IFERROR(Медикаменты[[#This Row],[Остаток]]+Медикаменты[[#This Row],[Приход за период]]-Медикаменты[[#This Row],[Расход за период]],"") ->  | AC68: =IFERROR(SUMIF(Вводные[Наименование],Медикаменты[[#This Row],[Наименование]],Вводные[Приход]),0) -> 0 | AD68: =IFERROR(SUMIF(Вводные[Наименование],Медикаменты[[#This Row],[Наименование]],Вводные[Расход]),0) -> 0 | AE68: =IFERROR(Медикаменты[[#This Row],[Остаток]]+Медикаменты[[#This Row],[Приход общий]]-Медикаменты[[#This Row],[Расход общий]],0) -> 0 | AH68: Гипотиазид (таб., 25 мг., №20) | AI68: шт.
S69: =IF(IFERROR(IF(SEARCH(Расчет!$B$8,T69),"!",""),"")="",0,MAX($S$9:S68)+1) -> 0 | T69: Дексаметазон (сусп., 5 мл., №1) | U69: уп. | V69: 3 | Y69: =IFERROR(LOOKUP(,-1/($T69=Вводные[Наименование])/(Вводные[Дата]<$U$1),Вводные[Остаток]),0)+IF(Медикаменты[[#This Row],[Дата остатка]]<$U$1,Медикаменты[[#This Row],[Остаток]],0) -> 0 | Z69: =IF(T69="","",SUMPRODUCT((Вводные[Дата]>=$U$1)*(Вводные[Дата]<=$U$2)*(Вводные[Наименование]=$T69),Вводные[Приход])) -> 0 | AA69: =IF(T69="","",SUMPRODUCT((Вводные[Дата]>=$U$1)*(Вводные[Дата]<=$U$2)*(Вводные[Наименование]=$T69),Вводные[Расход])) -> 0 | AB69: =IFERROR(Медикаменты[[#This Row],[Остаток]]+Медикаменты[[#This Row],[Приход за период]]-Медикаменты[[#This Row],[Расход за период]],"") ->  | AC69: =IFERROR(SUMIF(Вводные[Наименование],Медикаменты[[#This Row],[Наименование]],Вводные[Приход]),0) -> 0 | AD69: =IFERROR(SUMIF(Вводные[Наименование],Медикаменты[[#This Row],[Наименование]],Вводные[Расход]),0) -> 0 | AE69: =IFERROR(Медикаменты[[#This Row],[Остаток]]+Медикаменты[[#This Row],[Приход общий]]-Медикаменты[[#This Row],[Расход общий]],0) -> 0 | AH69: Глицин (таб., 100 мг., №50) | AI69: уп.
S70: =IF(IFERROR(IF(SEARCH(Расчет!$B$8,T70),"!",""),"")="",0,MAX($S$9:S69)+1) -> 0 | T70: Диклофенак (75 мг., №10) | U70: 0 | V70: 0 | W70: 00:00:00 | X70: 0 | Y70: =IFERROR(LOOKUP(,-1/($T70=Вводные[Наименование])/(Вводные[Дата]<$U$1),Вводные[Остаток]),0)+IF(Медикаменты[[#This Row],[Дата остатка]]<$U$1,Медикаменты[[#This Row],[Остаток]],0) -> 0 | Z70: =IF(T70="","",SUMPRODUCT((Вводные[Дата]>=$U$1)*(Вводные[Дата]<=$U$2)*(Вводные[Наименование]=$T70),Вводные[Приход])) -> 0 | AA70: =IF(T70="","",SUMPRODUCT((Вводные[Дата]>=$U$1)*(Вводные[Дата]<=$U$2)*(Вводные[Наименование]=$T70),Вводные[Расход])) -> 0 | AB70: =IFERROR(Медикаменты[[#This Row],[Остаток]]+Медикаменты[[#This Row],[Приход за период]]-Медикаменты[[#This Row],[Расход за период]],"") -> 0 | AC70: =IFERROR(SUMIF(Вводные[Наименование],Медикаменты[[#This Row],[Наименование]],Вводные[Приход]),0) -> 0 | AD70: =IFERROR(SUMIF(Вводные[Наименование],Медикаменты[[#This Row],[Наименование]],Вводные[Расход]),0) -> 0 | AE70: =IFERROR(Медикаменты[[#This Row],[Остаток]]+Медикаменты[[#This Row],[Приход общий]]-Медикаменты[[#This Row],[Расход общий]],0) -> 0 | AH70: Губка гемостатическая коллагеновая (90х90 мм., №1) | AI70: уп.
S71: =IF(IFERROR(IF(SEARCH(Расчет!$B$8,T71),"!",""),"")="",0,MAX($S$9:S70)+1) -> 0 | T71: Димексид (100 мл.) | U71: уп. | V71: 4 | Y71: =IFERROR(LOOKUP(,-1/($T71=Вводные[Наименование])/(Вводные[Дата]<$U$1),Вводные[Остаток]),0)+IF(Медикаменты[[#This Row],[Дата остатка]]<$U$1,Медикаменты[[#This Row],[Остаток]],0) -> 0 | Z71: =IF(T71="","",SUMPRODUCT((Вводные[Дата]>=$U$1)*(Вводные[Дата]<=$U$2)*(Вводные[Наименование]=$T71),Вводные[Приход])) -> 0 | AA71: =IF(T71="","",SUMPRODUCT((Вводные[Дата]>=$U$1)*(Вводные[Дата]<=$U$2)*(Вводные[Наименование]=$T71),Вводные[Расход])) -> 0 | AB71: =IFERROR(Медикаменты[[#This Row],[Остаток]]+Медикаменты[[#This Row],[Приход за период]]-Медикаменты[[#This Row],[Расход за период]],"") ->  | AC71: =IFERROR(SUMIF(Вводные[Наименование],Медикаменты[[#This Row],[Наименование]],Вводные[Приход]),0) -> 0 | AD71: =IFERROR(SUMIF(Вводные[Наименование],Медикаменты[[#This Row],[Наименование]],Вводные[Расход]),0) -> 0 | AE71: =IFERROR(Медикаменты[[#This Row],[Остаток]]+Медикаменты[[#This Row],[Приход общий]]-Медикаменты[[#This Row],[Расход общий]],0) -> 0 | AH71: Дексаметазон (сусп., 5 мл., №1) | AI71: уп.
S72: =IF(IFERROR(IF(SEARCH(Расчет!$B$8,T72),"!",""),"")="",0,MAX($S$9:S71)+1) -> 0 | T72: Дюфастон (таб., 10 мг., №20) | U72: 0 | V72: 0 | Y72: =IFERROR(LOOKUP(,-1/($T72=Вводные[Наименование])/(Вводные[Дата]<$U$1),Вводные[Остаток]),0)+IF(Медикаменты[[#This Row],[Дата остатка]]<$U$1,Медикаменты[[#This Row],[Остаток]],0) -> 0 | Z72: =IF(T72="","",SUMPRODUCT((Вводные[Дата]>=$U$1)*(Вводные[Дата]<=$U$2)*(Вводные[Наименование]=$T72),Вводные[Приход])) -> 0 | AA72: =IF(T72="","",SUMPRODUCT((Вводные[Дата]>=$U$1)*(Вводные[Дата]<=$U$2)*(Вводные[Наименование]=$T72),Вводные[Расход])) -> 0 | AB72: =IFERROR(Медикаменты[[#This Row],[Остаток]]+Медикаменты[[#This Row],[Приход за период]]-Медикаменты[[#This Row],[Расход за период]],"") ->  | AC72: =IFERROR(SUMIF(Вводные[Наименование],Медикаменты[[#This Row],[Наименование]],Вводные[Приход]),0) -> 0 | AD72: =IFERROR(SUMIF(Вводные[Наименование],Медикаменты[[#This Row],[Наименование]],Вводные[Расход]),0) -> 0 | AE72: =IFERROR(Медикаменты[[#This Row],[Остаток]]+Медикаменты[[#This Row],[Приход общий]]-Медикаменты[[#This Row],[Расход общий]],0) -> 0 | AH72: Диклофенак (75 мг., №10)
S73: =IF(IFERROR(IF(SEARCH(Расчет!$B$8,T73),"!",""),"")="",0,MAX($S$9:S72)+1) -> 0 | T73: Ёмкость для сбора использованного медицинского материала класса Б | U73: шт. | V73: 1000 | Y73: =IFERROR(LOOKUP(,-1/($T73=Вводные[Наименование])/(Вводные[Дата]<$U$1),Вводные[Остаток]),0)+IF(Медикаменты[[#This Row],[Дата остатка]]<$U$1,Медикаменты[[#This Row],[Остаток]],0) -> 0 | Z73: =IF(T73="","",SUMPRODUCT((Вводные[Дата]>=$U$1)*(Вводные[Дата]<=$U$2)*(Вводные[Наименование]=$T73),Вводные[Приход])) -> 0 | AA73: =IF(T73="","",SUMPRODUCT((Вводные[Дата]>=$U$1)*(Вводные[Дата]<=$U$2)*(Вводные[Наименование]=$T73),Вводные[Расход])) -> 0 | AB73: =IFERROR(Медикаменты[[#This Row],[Остаток]]+Медикаменты[[#This Row],[Приход за период]]-Медикаменты[[#This Row],[Расход за период]],"") ->  | AC73: =IFERROR(SUMIF(Вводные[Наименование],Медикаменты[[#This Row],[Наименование]],Вводные[Приход]),0) -> 0 | AD73: =IFERROR(SUMIF(Вводные[Наименование],Медикаменты[[#This Row],[Наименование]],Вводные[Расход]),0) -> 0 | AE73: =IFERROR(Медикаменты[[#This Row],[Остаток]]+Медикаменты[[#This Row],[Приход общий]]-Медикаменты[[#This Row],[Расход общий]],0) -> 0 | AH73: Димексид (100 мл.) | AI73: уп.
S74: =IF(IFERROR(IF(SEARCH(Расчет!$B$8,T74),"!",""),"")="",0,MAX($S$9:S73)+1) -> 0 | T74: Жгут резиновый кровостанавливающий (1,5 м.) | U74: шт | V74: 1 | Y74: =IFERROR(LOOKUP(,-1/($T74=Вводные[Наименование])/(Вводные[Дата]<$U$1),Вводные[Остаток]),0)+IF(Медикаменты[[#This Row],[Дата остатка]]<$U$1,Медикаменты[[#This Row],[Остаток]],0) -> 0 | Z74: =IF(T74="","",SUMPRODUCT((Вводные[Дата]>=$U$1)*(Вводные[Дата]<=$U$2)*(Вводные[Наименование]=$T74),Вводные[Приход])) -> 0 | AA74: =IF(T74="","",SUMPRODUCT((Вводные[Дата]>=$U$1)*(Вводные[Дата]<=$U$2)*(Вводные[Наименование]=$T74),Вводные[Расход])) -> 0 | AB74: =IFERROR(Медикаменты[[#This Row],[Остаток]]+Медикаменты[[#This Row],[Приход за период]]-Медикаменты[[#This Row],[Расход за период]],"") ->  | AC74: =IFERROR(SUMIF(Вводные[Наименование],Медикаменты[[#This Row],[Наименование]],Вводные[Приход]),0) -> 0 | AD74: =IFERROR(SUMIF(Вводные[Наименование],Медикаменты[[#This Row],[Наименование]],Вводные[Расход]),0) -> 0 | AE74: =IFERROR(Медикаменты[[#This Row],[Остаток]]+Медикаменты[[#This Row],[Приход общий]]-Медикаменты[[#This Row],[Расход общий]],0) -> 0 | AH74: Дюфастон (таб., 10 мг., №20)
S75: =IF(IFERROR(IF(SEARCH(Расчет!$B$8,T75),"!",""),"")="",0,MAX($S$9:S74)+1) -> 0 | T75: Зажим типа Москит изогнутый (140 мм.) | U75: шт | V75: 1 | Y75: =IFERROR(LOOKUP(,-1/($T75=Вводные[Наименование])/(Вводные[Дата]<$U$1),Вводные[Остаток]),0)+IF(Медикаменты[[#This Row],[Дата остатка]]<$U$1,Медикаменты[[#This Row],[Остаток]],0) -> 0 | Z75: =IF(T75="","",SUMPRODUCT((Вводные[Дата]>=$U$1)*(Вводные[Дата]<=$U$2)*(Вводные[Наименование]=$T75),Вводные[Приход])) -> 0 | AA75: =IF(T75="","",SUMPRODUCT((Вводные[Дата]>=$U$1)*(Вводные[Дата]<=$U$2)*(Вводные[Наименование]=$T75),Вводные[Расход])) -> 0 | AB75: =IFERROR(Медикаменты[[#This Row],[Остаток]]+Медикаменты[[#This Row],[Приход за период]]-Медикаменты[[#This Row],[Расход за период]],"") ->  | AC75: =IFERROR(SUMIF(Вводные[Наименование],Медикаменты[[#This Row],[Наименование]],Вводные[Приход]),0) -> 0 | AD75: =IFERROR(SUMIF(Вводные[Наименование],Медикаменты[[#This Row],[Наименование]],Вводные[Расход]),0) -> 0 | AE75: =IFERROR(Медикаменты[[#This Row],[Остаток]]+Медикаменты[[#This Row],[Приход общий]]-Медикаменты[[#This Row],[Расход общий]],0) -> 0 | AH75: Ёмкость для сбора использованного медицинского материала класса Б | AI75: шт.
S76: =IF(IFERROR(IF(SEARCH(Расчет!$B$8,T76),"!",""),"")="",0,MAX($S$9:S75)+1) -> 0 | T76: Зажим типа Москит прямой (150 мм.) | U76: шт | V76: 1 | Y76: =IFERROR(LOOKUP(,-1/($T76=Вводные[Наименование])/(Вводные[Дата]<$U$1),Вводные[Остаток]),0)+IF(Медикаменты[[#This Row],[Дата остатка]]<$U$1,Медикаменты[[#This Row],[Остаток]],0) -> 0 | Z76: =IF(T76="","",SUMPRODUCT((Вводные[Дата]>=$U$1)*(Вводные[Дата]<=$U$2)*(Вводные[Наименование]=$T76),Вводные[Приход])) -> 0 | AA76: =IF(T76="","",SUMPRODUCT((Вводные[Дата]>=$U$1)*(Вводные[Дата]<=$U$2)*(Вводные[Наименование]=$T76),Вводные[Расход])) -> 0 | AB76: =IFERROR(Медикаменты[[#This Row],[Остаток]]+Медикаменты[[#This Row],[Приход за период]]-Медикаменты[[#This Row],[Расход за период]],"") ->  | AC76: =IFERROR(SUMIF(Вводные[Наименование],Медикаменты[[#This Row],[Наименование]],Вводные[Приход]),0) -> 0 | AD76: =IFERROR(SUMIF(Вводные[Наименование],Медикаменты[[#This Row],[Наименование]],Вводные[Расход]),0) -> 0 | AE76: =IFERROR(Медикаменты[[#This Row],[Остаток]]+Медикаменты[[#This Row],[Приход общий]]-Медикаменты[[#This Row],[Расход общий]],0) -> 0 | AH76: Жгут резиновый кровостанавливающий (1,5 м.) | AI76: шт
S77: =IF(IFERROR(IF(SEARCH(Расчет!$B$8,T77),"!",""),"")="",0,MAX($S$9:S76)+1) -> 0 | T77: Зеркало гинекологическое "Куско" | U77: 0 | V77: 0 | W77: 2018-06-07 | X77: 100 | Y77: =IFERROR(LOOKUP(,-1/($T77=Вводные[Наименование])/(Вводные[Дата]<$U$1),Вводные[Остаток]),0)+IF(Медикаменты[[#This Row],[Дата остатка]]<$U$1,Медикаменты[[#This Row],[Остаток]],0) -> 0 | Z77: =IF(T77="","",SUMPRODUCT((Вводные[Дата]>=$U$1)*(Вводные[Дата]<=$U$2)*(Вводные[Наименование]=$T77),Вводные[Приход])) -> 0 | AA77: =IF(T77="","",SUMPRODUCT((Вводные[Дата]>=$U$1)*(Вводные[Дата]<=$U$2)*(Вводные[Наименование]=$T77),Вводные[Расход])) -> 0 | AB77: =IFERROR(Медикаменты[[#This Row],[Остаток]]+Медикаменты[[#This Row],[Приход за период]]-Медикаменты[[#This Row],[Расход за период]],"") -> 100 | AC77: =IFERROR(SUMIF(Вводные[Наименование],Медикаменты[[#This Row],[Наименование]],Вводные[Приход]),0) -> 0 | AD77: =IFERROR(SUMIF(Вводные[Наименование],Медикаменты[[#This Row],[Наименование]],Вводные[Расход]),0) -> 0 | AE77: =IFERROR(Медикаменты[[#This Row],[Остаток]]+Медикаменты[[#This Row],[Приход общий]]-Медикаменты[[#This Row],[Расход общий]],0) -> 100 | AH77: Зажим типа Москит изогнутый (140 мм.) | AI77: шт
S78: =IF(IFERROR(IF(SEARCH(Расчет!$B$8,T78),"!",""),"")="",0,MAX($S$9:S77)+1) -> 0 | T78: Зеркало носовое (№30) | U78: шт | V78: 20 | Y78: =IFERROR(LOOKUP(,-1/($T78=Вводные[Наименование])/(Вводные[Дата]<$U$1),Вводные[Остаток]),0)+IF(Медикаменты[[#This Row],[Дата остатка]]<$U$1,Медикаменты[[#This Row],[Остаток]],0) -> 0 | Z78: =IF(T78="","",SUMPRODUCT((Вводные[Дата]>=$U$1)*(Вводные[Дата]<=$U$2)*(Вводные[Наименование]=$T78),Вводные[Приход])) -> 0 | AA78: =IF(T78="","",SUMPRODUCT((Вводные[Дата]>=$U$1)*(Вводные[Дата]<=$U$2)*(Вводные[Наименование]=$T78),Вводные[Расход])) -> 0 | AB78: =IFERROR(Медикаменты[[#This Row],[Остаток]]+Медикаменты[[#This Row],[Приход за период]]-Медикаменты[[#This Row],[Расход за период]],"") ->  | AC78: =IFERROR(SUMIF(Вводные[Наименование],Медикаменты[[#This Row],[Наименование]],Вводные[Приход]),0) -> 0 | AD78: =IFERROR(SUMIF(Вводные[Наименование],Медикаменты[[#This Row],[Наименование]],Вводные[Расход]),0) -> 0 | AE78: =IFERROR(Медикаменты[[#This Row],[Остаток]]+Медикаменты[[#This Row],[Приход общий]]-Медикаменты[[#This Row],[Расход общий]],0) -> 0 | AH78: Зажим типа Москит прямой (150 мм.) | AI78: шт
S79: =IF(IFERROR(IF(SEARCH(Расчет!$B$8,T79),"!",""),"")="",0,MAX($S$9:S78)+1) -> 0 | T79: Зеркало носовое (№35) | U79: шт | V79: 20 | Y79: =IFERROR(LOOKUP(,-1/($T79=Вводные[Наименование])/(Вводные[Дата]<$U$1),Вводные[Остаток]),0)+IF(Медикаменты[[#This Row],[Дата остатка]]<$U$1,Медикаменты[[#This Row],[Остаток]],0) -> 0 | Z79: =IF(T79="","",SUMPRODUCT((Вводные[Дата]>=$U$1)*(Вводные[Дата]<=$U$2)*(Вводные[Наименование]=$T79),Вводные[Приход])) -> 0 | AA79: =IF(T79="","",SUMPRODUCT((Вводные[Дата]>=$U$1)*(Вводные[Дата]<=$U$2)*(Вводные[Наименование]=$T79),Вводные[Расход])) -> 0 | AB79: =IFERROR(Медикаменты[[#This Row],[Остаток]]+Медикаменты[[#This Row],[Приход за период]]-Медикаменты[[#This Row],[Расход за период]],"") ->  | AC79: =IFERROR(SUMIF(Вводные[Наименование],Медикаменты[[#This Row],[Наименование]],Вводные[Приход]),0) -> 0 | AD79: =IFERROR(SUMIF(Вводные[Наименование],Медикаменты[[#This Row],[Наименование]],Вводные[Расход]),0) -> 0 | AE79: =IFERROR(Медикаменты[[#This Row],[Остаток]]+Медикаменты[[#This Row],[Приход общий]]-Медикаменты[[#This Row],[Расход общий]],0) -> 0 | AH79: Зеркало гинекологическое "Куско"
S80: =IF(IFERROR(IF(SEARCH(Расчет!$B$8,T80),"!",""),"")="",0,MAX($S$9:S79)+1) -> 0 | T80: Зеркало носовое (№40) | U80: шт | V80: 20 | Y80: =IFERROR(LOOKUP(,-1/($T80=Вводные[Наименование])/(Вводные[Дата]<$U$1),Вводные[Остаток]),0)+IF(Медикаменты[[#This Row],[Дата остатка]]<$U$1,Медикаменты[[#This Row],[Остаток]],0) -> 0 | Z80: =IF(T80="","",SUMPRODUCT((Вводные[Дата]>=$U$1)*(Вводные[Дата]<=$U$2)*(Вводные[Наименование]=$T80),Вводные[Приход])) -> 0 | AA80: =IF(T80="","",SUMPRODUCT((Вводные[Дата]>=$U$1)*(Вводные[Дата]<=$U$2)*(Вводные[Наименование]=$T80),Вводные[Расход])) -> 0 | AB80: =IFERROR(Медикаменты[[#This Row],[Остаток]]+Медикаменты[[#This Row],[Приход за период]]-Медикаменты[[#This Row],[Расход за период]],"") ->  | AC80: =IFERROR(SUMIF(Вводные[Наименование],Медикаменты[[#This Row],[Наименование]],Вводные[Приход]),0) -> 0 | AD80: =IFERROR(SUMIF(Вводные[Наименование],Медикаменты[[#This Row],[Наименование]],Вводные[Расход]),0) -> 0 | AE80: =IFERROR(Медикаменты[[#This Row],[Остаток]]+Медикаменты[[#This Row],[Приход общий]]-Медикаменты[[#This Row],[Расход общий]],0) -> 0 | AH80: Зеркало носовое (№30) | AI80: шт
S81: =IF(IFERROR(IF(SEARCH(Расчет!$B$8,T81),"!",""),"")="",0,MAX($S$9:S80)+1) -> 0 | T81: Зонд аттиковый (140 мм.) | U81: шт | V81: 1 | Y81: =IFERROR(LOOKUP(,-1/($T81=Вводные[Наименование])/(Вводные[Дата]<$U$1),Вводные[Остаток]),0)+IF(Медикаменты[[#This Row],[Дата остатка]]<$U$1,Медикаменты[[#This Row],[Остаток]],0) -> 0 | Z81: =IF(T81="","",SUMPRODUCT((Вводные[Дата]>=$U$1)*(Вводные[Дата]<=$U$2)*(Вводные[Наименование]=$T81),Вводные[Приход])) -> 0 | AA81: =IF(T81="","",SUMPRODUCT((Вводные[Дата]>=$U$1)*(Вводные[Дата]<=$U$2)*(Вводные[Наименование]=$T81),Вводные[Расход])) -> 0 | AB81: =IFERROR(Медикаменты[[#This Row],[Остаток]]+Медикаменты[[#This Row],[Приход за период]]-Медикаменты[[#This Row],[Расход за период]],"") ->  | AC81: =IFERROR(SUMIF(Вводные[Наименование],Медикаменты[[#This Row],[Наименование]],Вводные[Приход]),0) -> 0 | AD81: =IFERROR(SUMIF(Вводные[Наименование],Медикаменты[[#This Row],[Наименование]],Вводные[Расход]),0) -> 0 | AE81: =IFERROR(Медикаменты[[#This Row],[Остаток]]+Медикаменты[[#This Row],[Приход общий]]-Медикаменты[[#This Row],[Расход общий]],0) -> 0 | AH81: Зеркало носовое (№35) | AI81: шт
S82: =IF(IFERROR(IF(SEARCH(Расчет!$B$8,T82),"!",""),"")="",0,MAX($S$9:S81)+1) -> 0 | T82: Зонд урогенитальный (стер., однораз.) | U82: шт. | V82: 100 | Y82: =IFERROR(LOOKUP(,-1/($T82=Вводные[Наименование])/(Вводные[Дата]<$U$1),Вводные[Остаток]),0)+IF(Медикаменты[[#This Row],[Дата остатка]]<$U$1,Медикаменты[[#This Row],[Остаток]],0) -> 0 | Z82: =IF(T82="","",SUMPRODUCT((Вводные[Дата]>=$U$1)*(Вводные[Дата]<=$U$2)*(Вводные[Наименование]=$T82),Вводные[Приход])) -> 0 | AA82: =IF(T82="","",SUMPRODUCT((Вводные[Дата]>=$U$1)*(Вводные[Дата]<=$U$2)*(Вводные[Наименование]=$T82),Вводные[Расход])) -> 0 | AB82: =IFERROR(Медикаменты[[#This Row],[Остаток]]+Медикаменты[[#This Row],[Приход за период]]-Медикаменты[[#This Row],[Расход за период]],"") ->  | AC82: =IFERROR(SUMIF(Вводные[Наименование],Медикаменты[[#This Row],[Наименование]],Вводные[Приход]),0) -> 0 | AD82: =IFERROR(SUMIF(Вводные[Наименование],Медикаменты[[#This Row],[Наименование]],Вводные[Расход]),0) -> 0 | AE82: =IFERROR(Медикаменты[[#This Row],[Остаток]]+Медикаменты[[#This Row],[Приход общий]]-Медикаменты[[#This Row],[Расход общий]],0) -> 0 | AH82: Зеркало носовое (№40) | AI82: шт
S83: =IF(IFERROR(IF(SEARCH(Расчет!$B$8,T83),"!",""),"")="",0,MAX($S$9:S82)+1) -> 0 | T83: Игла зеленая для пробирок Vacuette (100 шт.) | U83: шт | V83: 2000 | Y83: =IFERROR(LOOKUP(,-1/($T83=Вводные[Наименование])/(Вводные[Дата]<$U$1),Вводные[Остаток]),0)+IF(Медикаменты[[#This Row],[Дата остатка]]<$U$1,Медикаменты[[#This Row],[Остаток]],0) -> 0 | Z83: =IF(T83="","",SUMPRODUCT((Вводные[Дата]>=$U$1)*(Вводные[Дата]<=$U$2)*(Вводные[Наименование]=$T83),Вводные[Приход])) -> 0 | AA83: =IF(T83="","",SUMPRODUCT((Вводные[Дата]>=$U$1)*(Вводные[Дата]<=$U$2)*(Вводные[Наименование]=$T83),Вводные[Расход])) -> 0 | AB83: =IFERROR(Медикаменты[[#This Row],[Остаток]]+Медикаменты[[#This Row],[Приход за период]]-Медикаменты[[#This Row],[Расход за период]],"") ->  | AC83: =IFERROR(SUMIF(Вводные[Наименование],Медикаменты[[#This Row],[Наименование]],Вводные[Приход]),0) -> 0 | AD83: =IFERROR(SUMIF(Вводные[Наименование],Медикаменты[[#This Row],[Наименование]],Вводные[Расход]),0) -> 0 | AE83: =IFERROR(Медикаменты[[#This Row],[Остаток]]+Медикаменты[[#This Row],[Приход общий]]-Медикаменты[[#This Row],[Расход общий]],0) -> 0 | AH83: Зонд аттиковый (140 мм.) | AI83: шт
S84: =IF(IFERROR(IF(SEARCH(Расчет!$B$8,T84),"!",""),"")="",0,MAX($S$9:S83)+1) -> 0 | T84: Иглодержатель | U84: шт | V84: 2 | Y84: =IFERROR(LOOKUP(,-1/($T84=Вводные[Наименование])/(Вводные[Дата]<$U$1),Вводные[Остаток]),0)+IF(Медикаменты[[#This Row],[Дата остатка]]<$U$1,Медикаменты[[#This Row],[Остаток]],0) -> 0 | Z84: =IF(T84="","",SUMPRODUCT((Вводные[Дата]>=$U$1)*(Вводные[Дата]<=$U$2)*(Вводные[Наименование]=$T84),Вводные[Приход])) -> 0 | AA84: =IF(T84="","",SUMPRODUCT((Вводные[Дата]>=$U$1)*(Вводные[Дата]<=$U$2)*(Вводные[Наименование]=$T84),Вводные[Расход])) -> 0 | AB84: =IFERROR(Медикаменты[[#This Row],[Остаток]]+Медикаменты[[#This Row],[Приход за период]]-Медикаменты[[#This Row],[Расход за период]],"") ->  | AC84: =IFERROR(SUMIF(Вводные[Наименование],Медикаменты[[#This Row],[Наименование]],Вводные[Приход]),0) -> 0 | AD84: =IFERROR(SUMIF(Вводные[Наименование],Медикаменты[[#This Row],[Наименование]],Вводные[Расход]),0) -> 0 | AE84: =IFERROR(Медикаменты[[#This Row],[Остаток]]+Медикаменты[[#This Row],[Приход общий]]-Медикаменты[[#This Row],[Расход общий]],0) -> 0 | AH84: Зонд урогенитальный (стер., однораз.) | AI84: шт.
S85: =IF(IFERROR(IF(SEARCH(Расчет!$B$8,T85),"!",""),"")="",0,MAX($S$9:S84)+1) -> 0 | T85: Кавинтон (амп., 10 мг., 2,0, №10) | U85: 0 | V85: 0 | W85: 2018-03-30 | X85: 20 | Y85: =IFERROR(LOOKUP(,-1/($T85=Вводные[Наименование])/(Вводные[Дата]<$U$1),Вводные[Остаток]),0)+IF(Медикаменты[[#This Row],[Дата остатка]]<$U$1,Медикаменты[[#This Row],[Остаток]],0) -> 20 | Z85: =IF(T85="","",SUMPRODUCT((Вводные[Дата]>=$U$1)*(Вводные[Дата]<=$U$2)*(Вводные[Наименование]=$T85),Вводные[Приход])) -> 0 | AA85: =IF(T85="","",SUMPRODUCT((Вводные[Дата]>=$U$1)*(Вводные[Дата]<=$U$2)*(Вводные[Наименование]=$T85),Вводные[Расход])) -> 0 | AB85: =IFERROR(Медикаменты[[#This Row],[Остаток]]+Медикаменты[[#This Row],[Приход за период]]-Медикаменты[[#This Row],[Расход за период]],"") -> 20 | AC85: =IFERROR(SUMIF(Вводные[Наименование],Медикаменты[[#This Row],[Наименование]],Вводные[Приход]),0) -> 0 | AD85: =IFERROR(SUMIF(Вводные[Наименование],Медикаменты[[#This Row],[Наименование]],Вводные[Расход]),0) -> 0 | AE85: =IFERROR(Медикаменты[[#This Row],[Остаток]]+Медикаменты[[#This Row],[Приход общий]]-Медикаменты[[#This Row],[Расход общий]],0) -> 20 | AH85: Игла зеленая для пробирок Vacuette (100 шт.) | AI85: шт
S86: =IF(IFERROR(IF(SEARCH(Расчет!$B$8,T86),"!",""),"")="",0,MAX($S$9:S85)+1) -> 0 | T86: Кавинтон (таб. 5 мг., №50) | U86: 0 | V86: 0 | Y86: =IFERROR(LOOKUP(,-1/($T86=Вводные[Наименование])/(Вводные[Дата]<$U$1),Вводные[Остаток]),0)+IF(Медикаменты[[#This Row],[Дата остатка]]<$U$1,Медикаменты[[#This Row],[Остаток]],0) -> 0 | Z86: =IF(T86="","",SUMPRODUCT((Вводные[Дата]>=$U$1)*(Вводные[Дата]<=$U$2)*(Вводные[Наименование]=$T86),Вводные[Приход])) -> 0 | AA86: =IF(T86="","",SUMPRODUCT((Вводные[Дата]>=$U$1)*(Вводные[Дата]<=$U$2)*(Вводные[Наименование]=$T86),Вводные[Расход])) -> 0 | AB86: =IFERROR(Медикаменты[[#This Row],[Остаток]]+Медикаменты[[#This Row],[Приход за период]]-Медикаменты[[#This Row],[Расход за период]],"") ->  | AC86: =IFERROR(SUMIF(Вводные[Наименование],Медикаменты[[#This Row],[Наименование]],Вводные[Приход]),0) -> 0 | AD86: =IFERROR(SUMIF(Вводные[Наименование],Медикаменты[[#This Row],[Наименование]],Вводные[Расход]),0) -> 0 | AE86: =IFERROR(Медикаменты[[#This Row],[Остаток]]+Медикаменты[[#This Row],[Приход общий]]-Медикаменты[[#This Row],[Расход общий]],0) -> 0 | AH86: Иглодержатель | AI86: шт
S87: =IF(IFERROR(IF(SEARCH(Расчет!$B$8,T87),"!",""),"")="",0,MAX($S$9:S86)+1) -> 0 | T87: Кальция хлорид (10%, 5,0 №10) | U87: 0 | V87: 0 | W87: 2018-03-30 | X87: 30 | Y87: =IFERROR(LOOKUP(,-1/($T87=Вводные[Наименование])/(Вводные[Дата]<$U$1),Вводные[Остаток]),0)+IF(Медикаменты[[#This Row],[Дата остатка]]<$U$1,Медикаменты[[#This Row],[Остаток]],0) -> 30 | Z87: =IF(T87="","",SUMPRODUCT((Вводные[Дата]>=$U$1)*(Вводные[Дата]<=$U$2)*(Вводные[Наименование]=$T87),Вводные[Приход])) -> 0 | AA87: =IF(T87="","",SUMPRODUCT((Вводные[Дата]>=$U$1)*(Вводные[Дата]<=$U$2)*(Вводные[Наименование]=$T87),Вводные[Расход])) -> 0 | AB87: =IFERROR(Медикаменты[[#This Row],[Остаток]]+Медикаменты[[#This Row],[Приход за период]]-Медикаменты[[#This Row],[Расход за период]],"") -> 30 | AC87: =IFERROR(SUMIF(Вводные[Наименование],Медикаменты[[#This Row],[Наименование]],Вводные[Приход]),0) -> 0 | AD87: =IFERROR(SUMIF(Вводные[Наименование],Медикаменты[[#This Row],[Наименование]],Вводные[Расход]),0) -> 0 | AE87: =IFERROR(Медикаменты[[#This Row],[Остаток]]+Медикаменты[[#This Row],[Приход общий]]-Медикаменты[[#This Row],[Расход общий]],0) -> 30 | AH87: Кавинтон (амп., 10 мг., 2,0, №10)
S88: =IF(IFERROR(IF(SEARCH(Расчет!$B$8,T88),"!",""),"")="",0,MAX($S$9:S87)+1) -> 0 | T88: Канюля для промывания аттика | U88: шт | V88: 5 | Y88: =IFERROR(LOOKUP(,-1/($T88=Вводные[Наименование])/(Вводные[Дата]<$U$1),Вводные[Остаток]),0)+IF(Медикаменты[[#This Row],[Дата остатка]]<$U$1,Медикаменты[[#This Row],[Остаток]],0) -> 0 | Z88: =IF(T88="","",SUMPRODUCT((Вводные[Дата]>=$U$1)*(Вводные[Дата]<=$U$2)*(Вводные[Наименование]=$T88),Вводные[Приход])) -> 0 | AA88: =IF(T88="","",SUMPRODUCT((Вводные[Дата]>=$U$1)*(Вводные[Дата]<=$U$2)*(Вводные[Наименование]=$T88),Вводные[Расход])) -> 0 | AB88: =IFERROR(Медикаменты[[#This Row],[Остаток]]+Медикаменты[[#This Row],[Приход за период]]-Медикаменты[[#This Row],[Расход за период]],"") ->  | AC88: =IFERROR(SUMIF(Вводные[Наименование],Медикаменты[[#This Row],[Наименование]],Вводные[Приход]),0) -> 0 | AD88: =IFERROR(SUMIF(Вводные[Наименование],Медикаменты[[#This Row],[Наименование]],Вводные[Расход]),0) -> 0 | AE88: =IFERROR(Медикаменты[[#This Row],[Остаток]]+Медикаменты[[#This Row],[Приход общий]]-Медикаменты[[#This Row],[Расход общий]],0) -> 0 | AH88: Кавинтон (таб. 5 мг., №50)
S89: =IF(IFERROR(IF(SEARCH(Расчет!$B$8,T89),"!",""),"")="",0,MAX($S$9:S88)+1) -> 0 | T89: Катетер урологический (женский, стер.) | U89: шт | V89: 5 | Y89: =IFERROR(LOOKUP(,-1/($T89=Вводные[Наименование])/(Вводные[Дата]<$U$1),Вводные[Остаток]),0)+IF(Медикаменты[[#This Row],[Дата остатка]]<$U$1,Медикаменты[[#This Row],[Остаток]],0) -> 0 | Z89: =IF(T89="","",SUMPRODUCT((Вводные[Дата]>=$U$1)*(Вводные[Дата]<=$U$2)*(Вводные[Наименование]=$T89),Вводные[Приход])) -> 0 | AA89: =IF(T89="","",SUMPRODUCT((Вводные[Дата]>=$U$1)*(Вводные[Дата]<=$U$2)*(Вводные[Наименование]=$T89),Вводные[Расход])) -> 0 | AB89: =IFERROR(Медикаменты[[#This Row],[Остаток]]+Медикаменты[[#This Row],[Приход за период]]-Медикаменты[[#This Row],[Расход за период]],"") ->  | AC89: =IFERROR(SUMIF(Вводные[Наименование],Медикаменты[[#This Row],[Наименование]],Вводные[Приход]),0) -> 0 | AD89: =IFERROR(SUMIF(Вводные[Наименование],Медикаменты[[#This Row],[Наименование]],Вводные[Расход]),0) -> 0 | AE89: =IFERROR(Медикаменты[[#This Row],[Остаток]]+Медикаменты[[#This Row],[Приход общий]]-Медикаменты[[#This Row],[Расход общий]],0) -> 0 | AH89: Кальция хлорид (10%, 5,0 №10)
S90: =IF(IFERROR(IF(SEARCH(Расчет!$B$8,T90),"!",""),"")="",0,MAX($S$9:S89)+1) -> 0 | T90: Кислородная подушка (25 л.) | U90: шт | V90: 2 | Y90: =IFERROR(LOOKUP(,-1/($T90=Вводные[Наименование])/(Вводные[Дата]<$U$1),Вводные[Остаток]),0)+IF(Медикаменты[[#This Row],[Дата остатка]]<$U$1,Медикаменты[[#This Row],[Остаток]],0) -> 0 | Z90: =IF(T90="","",SUMPRODUCT((Вводные[Дата]>=$U$1)*(Вводные[Дата]<=$U$2)*(Вводные[Наименование]=$T90),Вводные[Приход])) -> 0 | AA90: =IF(T90="","",SUMPRODUCT((Вводные[Дата]>=$U$1)*(Вводные[Дата]<=$U$2)*(Вводные[Наименование]=$T90),Вводные[Расход])) -> 0 | AB90: =IFERROR(Медикаменты[[#This Row],[Остаток]]+Медикаменты[[#This Row],[Приход за период]]-Медикаменты[[#This Row],[Расход за период]],"") ->  | AC90: =IFERROR(SUMIF(Вводные[Наименование],Медикаменты[[#This Row],[Наименование]],Вводные[Приход]),0) -> 0 | AD90: =IFERROR(SUMIF(Вводные[Наименование],Медикаменты[[#This Row],[Наименование]],Вводные[Расход]),0) -> 0 | AE90: =IFERROR(Медикаменты[[#This Row],[Остаток]]+Медикаменты[[#This Row],[Приход общий]]-Медикаменты[[#This Row],[Расход общий]],0) -> 0 | AH90: Канюля для промывания аттика | AI90: шт
S91: =IF(IFERROR(IF(SEARCH(Расчет!$B$8,T91),"!",""),"")="",0,MAX($S$9:S90)+1) -> 0 | T91: Комплект противоэпидемический | U91: комп. | V91: 3 | Y91: =IFERROR(LOOKUP(,-1/($T91=Вводные[Наименование])/(Вводные[Дата]<$U$1),Вводные[Остаток]),0)+IF(Медикаменты[[#This Row],[Дата остатка]]<$U$1,Медикаменты[[#This Row],[Остаток]],0) -> 0 | Z91: =IF(T91="","",SUMPRODUCT((Вводные[Дата]>=$U$1)*(Вводные[Дата]<=$U$2)*(Вводные[Наименование]=$T91),Вводные[Приход])) -> 0 | AA91: =IF(T91="","",SUMPRODUCT((Вводные[Дата]>=$U$1)*(Вводные[Дата]<=$U$2)*(Вводные[Наименование]=$T91),Вводные[Расход])) -> 0 | AB91: =IFERROR(Медикаменты[[#This Row],[Остаток]]+Медикаменты[[#This Row],[Приход за период]]-Медикаменты[[#This Row],[Расход за период]],"") ->  | AC91: =IFERROR(SUMIF(Вводные[Наименование],Медикаменты[[#This Row],[Наименование]],Вводные[Приход]),0) -> 0 | AD91: =IFERROR(SUMIF(Вводные[Наименование],Медикаменты[[#This Row],[Наименование]],Вводные[Расход]),0) -> 0 | AE91: =IFERROR(Медикаменты[[#This Row],[Остаток]]+Медикаменты[[#This Row],[Приход общий]]-Медикаменты[[#This Row],[Расход общий]],0) -> 0 | AH91: Катетер урологический (женский, стер.) | AI91: шт
S92: =IF(IFERROR(IF(SEARCH(Расчет!$B$8,T92),"!",""),"")="",0,MAX($S$9:S91)+1) -> 0 | T92: Контейнер для сбора кала (стер., 40 мл.) | U92: шт | V92: 20 | Y92: =IFERROR(LOOKUP(,-1/($T92=Вводные[Наименование])/(Вводные[Дата]<$U$1),Вводные[Остаток]),0)+IF(Медикаменты[[#This Row],[Дата остатка]]<$U$1,Медикаменты[[#This Row],[Остаток]],0) -> 0 | Z92: =IF(T92="","",SUMPRODUCT((Вводные[Дата]>=$U$1)*(Вводные[Дата]<=$U$2)*(Вводные[Наименование]=$T92),Вводные[Приход])) -> 0 | AA92: =IF(T92="","",SUMPRODUCT((Вводные[Дата]>=$U$1)*(Вводные[Дата]<=$U$2)*(Вводные[Наименование]=$T92),Вводные[Расход])) -> 0 | AB92: =IFERROR(Медикаменты[[#This Row],[Остаток]]+Медикаменты[[#This Row],[Приход за период]]-Медикаменты[[#This Row],[Расход за период]],"") ->  | AC92: =IFERROR(SUMIF(Вводные[Наименование],Медикаменты[[#This Row],[Наименование]],Вводные[Приход]),0) -> 0 | AD92: =IFERROR(SUMIF(Вводные[Наименование],Медикаменты[[#This Row],[Наименование]],Вводные[Расход]),0) -> 0 | AE92: =IFERROR(Медикаменты[[#This Row],[Остаток]]+Медикаменты[[#This Row],[Приход общий]]-Медикаменты[[#This Row],[Расход общий]],0) -> 0 | AH92: Кислородная подушка (25 л.) | AI92: шт
S93: =IF(IFERROR(IF(SEARCH(Расчет!$B$8,T93),"!",""),"")="",0,MAX($S$9:S92)+1) -> 0 | T93: Контейнер для сбора мочи (стер., 100 мл.) | U93: шт | V93: 120 | Y93: =IFERROR(LOOKUP(,-1/($T93=Вводные[Наименование])/(Вводные[Дата]<$U$1),Вводные[Остаток]),0)+IF(Медикаменты[[#This Row],[Дата остатка]]<$U$1,Медикаменты[[#This Row],[Остаток]],0) -> 0 | Z93: =IF(T93="","",SUMPRODUCT((Вводные[Дата]>=$U$1)*(Вводные[Дата]<=$U$2)*(Вводные[Наименование]=$T93),Вводные[Приход])) -> 0 | AA93: =IF(T93="","",SUMPRODUCT((Вводные[Дата]>=$U$1)*(Вводные[Дата]<=$U$2)*(Вводные[Наименование]=$T93),Вводные[Расход])) -> 0 | AB93: =IFERROR(Медикаменты[[#This Row],[Остаток]]+Медикаменты[[#This Row],[Приход за период]]-Медикаменты[[#This Row],[Расход за период]],"") ->  | AC93: =IFERROR(SUMIF(Вводные[Наименование],Медикаменты[[#This Row],[Наименование]],Вводные[Приход]),0) -> 0 | AD93: =IFERROR(SUMIF(Вводные[Наименование],Медикаменты[[#This Row],[Наименование]],Вводные[Расход]),0) -> 0 | AE93: =IFERROR(Медикаменты[[#This Row],[Остаток]]+Медикаменты[[#This Row],[Приход общий]]-Медикаменты[[#This Row],[Расход общий]],0) -> 0 | AH93: Комплект противоэпидемический | AI93: комп.
S94: =IF(IFERROR(IF(SEARCH(Расчет!$B$8,T94),"!",""),"")="",0,MAX($S$9:S93)+1) -> 0 | T94: Контейнер для утилизации отходов МК-01 (однораз., желтый, 0,25 л.) | U94: шт | V94: 100 | Y94: =IFERROR(LOOKUP(,-1/($T94=Вводные[Наименование])/(Вводные[Дата]<$U$1),Вводные[Остаток]),0)+IF(Медикаменты[[#This Row],[Дата остатка]]<$U$1,Медикаменты[[#This Row],[Остаток]],0) -> 0 | Z94: =IF(T94="","",SUMPRODUCT((Вводные[Дата]>=$U$1)*(Вводные[Дата]<=$U$2)*(Вводные[Наименование]=$T94),Вводные[Приход])) -> 0 | AA94: =IF(T94="","",SUMPRODUCT((Вводные[Дата]>=$U$1)*(Вводные[Дата]<=$U$2)*(Вводные[Наименование]=$T94),Вводные[Расход])) -> 0 | AB94: =IFERROR(Медикаменты[[#This Row],[Остаток]]+Медикаменты[[#This Row],[Приход за период]]-Медикаменты[[#This Row],[Расход за период]],"") ->  | AC94: =IFERROR(SUMIF(Вводные[Наименование],Медикаменты[[#This Row],[Наименование]],Вводные[Приход]),0) -> 0 | AD94: =IFERROR(SUMIF(Вводные[Наименование],Медикаменты[[#This Row],[Наименование]],Вводные[Расход]),0) -> 0 | AE94: =IFERROR(Медикаменты[[#This Row],[Остаток]]+Медикаменты[[#This Row],[Приход общий]]-Медикаменты[[#This Row],[Расход общий]],0) -> 0 | AH94: Контейнер для сбора кала (стер., 40 мл.) | AI94: шт
S95: =IF(IFERROR(IF(SEARCH(Расчет!$B$8,T95),"!",""),"")="",0,MAX($S$9:S94)+1) -> 0 | T95: Контейнер для утилизации отходов МК-01 (однораз., желтый, 3 л.) | U95: шт | V95: 100 | Y95: =IFERROR(LOOKUP(,-1/($T95=Вводные[Наименование])/(Вводные[Дата]<$U$1),Вводные[Остаток]),0)+IF(Медикаменты[[#This Row],[Дата остатка]]<$U$1,Медикаменты[[#This Row],[Остаток]],0) -> 0 | Z95: =IF(T95="","",SUMPRODUCT((Вводные[Дата]>=$U$1)*(Вводные[Дата]<=$U$2)*(Вводные[Наименование]=$T95),Вводные[Приход])) -> 0 | AA95: =IF(T95="","",SUMPRODUCT((Вводные[Дата]>=$U$1)*(Вводные[Дата]<=$U$2)*(Вводные[Наименование]=$T95),Вводные[Расход])) -> 0 | AB95: =IFERROR(Медикаменты[[#This Row],[Остаток]]+Медикаменты[[#This Row],[Приход за период]]-Медикаменты[[#This Row],[Расход за период]],"") ->  | AC95: =IFERROR(SUMIF(Вводные[Наименование],Медикаменты[[#This Row],[Наименование]],Вводные[Приход]),0) -> 0 | AD95: =IFERROR(SUMIF(Вводные[Наименование],Медикаменты[[#This Row],[Наименование]],Вводные[Расход]),0) -> 0 | AE95: =IFERROR(Медикаменты[[#This Row],[Остаток]]+Медикаменты[[#This Row],[Приход общий]]-Медикаменты[[#This Row],[Расход общий]],0) -> 0 | AH95: Контейнер для сбора мочи (стер., 100 мл.) | AI95: шт
S96: =IF(IFERROR(IF(SEARCH(Расчет!$B$8,T96),"!",""),"")="",0,MAX($S$9:S95)+1) -> 0 | T96: Контейнер для утилизации отходов МК-04 (многораз., бирюзовый, 7,5 л.). | U96: шт | V96: 7 | Y96: =IFERROR(LOOKUP(,-1/($T96=Вводные[Наименование])/(Вводные[Дата]<$U$1),Вводные[Остаток]),0)+IF(Медикаменты[[#This Row],[Дата остатка]]<$U$1,Медикаменты[[#This Row],[Остаток]],0) -> 0 | Z96: =IF(T96="","",SUMPRODUCT((Вводные[Дата]>=$U$1)*(Вводные[Дата]<=$U$2)*(Вводные[Наименование]=$T96),Вводные[Приход])) -> 0 | AA96: =IF(T96="","",SUMPRODUCT((Вводные[Дата]>=$U$1)*(Вводные[Дата]<=$U$2)*(Вводные[Наименование]=$T96),Вводные[Расход])) -> 0 | AB96: =IFERROR(Медикаменты[[#This Row],[Остаток]]+Медикаменты[[#This Row],[Приход за период]]-Медикаменты[[#This Row],[Расход за период]],"") ->  | AC96: =IFERROR(SUMIF(Вводные[Наименование],Медикаменты[[#This Row],[Наименование]],Вводные[Приход]),0) -> 0 | AD96: =IFERROR(SUMIF(Вводные[Наименование],Медикаменты[[#This Row],[Наименование]],Вводные[Расход]),0) -> 0 | AE96: =IFERROR(Медикаменты[[#This Row],[Остаток]]+Медикаменты[[#This Row],[Приход общий]]-Медикаменты[[#This Row],[Расход общий]],0) -> 0 | AH96: Контейнер для утилизации отходов МК-01 (однораз., желтый, 0,25 л.) | AI96: шт
S97: =IF(IFERROR(IF(SEARCH(Расчет!$B$8,T97),"!",""),"")="",0,MAX($S$9:S96)+1) -> 0 | T97: Контейнер для утилизации отходов МК-05 (многораз., желтый 50 л.) | U97: шт | V97: 5 | Y97: =IFERROR(LOOKUP(,-1/($T97=Вводные[Наименование])/(Вводные[Дата]<$U$1),Вводные[Остаток]),0)+IF(Медикаменты[[#This Row],[Дата остатка]]<$U$1,Медикаменты[[#This Row],[Остаток]],0) -> 0 | Z97: =IF(T97="","",SUMPRODUCT((Вводные[Дата]>=$U$1)*(Вводные[Дата]<=$U$2)*(Вводные[Наименование]=$T97),Вводные[Приход])) -> 0 | AA97: =IF(T97="","",SUMPRODUCT((Вводные[Дата]>=$U$1)*(Вводные[Дата]<=$U$2)*(Вводные[Наименование]=$T97),Вводные[Расход])) -> 0 | AB97: =IFERROR(Медикаменты[[#This Row],[Остаток]]+Медикаменты[[#This Row],[Приход за период]]-Медикаменты[[#This Row],[Расход за период]],"") ->  | AC97: =IFERROR(SUMIF(Вводные[Наименование],Медикаменты[[#This Row],[Наименование]],Вводные[Приход]),0) -> 0 | AD97: =IFERROR(SUMIF(Вводные[Наименование],Медикаменты[[#This Row],[Наименование]],Вводные[Расход]),0) -> 0 | AE97: =IFERROR(Медикаменты[[#This Row],[Остаток]]+Медикаменты[[#This Row],[Приход общий]]-Медикаменты[[#This Row],[Расход общий]],0) -> 0 | AH97: Контейнер для утилизации отходов МК-01 (однораз., желтый, 3 л.) | AI97: шт
S98: =IF(IFERROR(IF(SEARCH(Расчет!$B$8,T98),"!",""),"")="",0,MAX($S$9:S97)+1) -> 0 | T98: Корвалол | U98: 0 | V98: 0 | W98: 00:00:00 | X98: 0 | Y98: =IFERROR(LOOKUP(,-1/($T98=Вводные[Наименование])/(Вводные[Дата]<$U$1),Вводные[Остаток]),0)+IF(Медикаменты[[#This Row],[Дата остатка]]<$U$1,Медикаменты[[#This Row],[Остаток]],0) -> 0 | Z98: =IF(T98="","",SUMPRODUCT((Вводные[Дата]>=$U$1)*(Вводные[Дата]<=$U$2)*(Вводные[Наименование]=$T98),Вводные[Приход])) -> 0 | AA98: =IF(T98="","",SUMPRODUCT((Вводные[Дата]>=$U$1)*(Вводные[Дата]<=$U$2)*(Вводные[Наименование]=$T98),Вводные[Расход])) -> 0 | AB98: =IFERROR(Медикаменты[[#This Row],[Остаток]]+Медикаменты[[#This Row],[Приход за период]]-Медикаменты[[#This Row],[Расход за период]],"") -> 0 | AC98: =IFERROR(SUMIF(Вводные[Наименование],Медикаменты[[#This Row],[Наименование]],Вводные[Приход]),0) -> 0 | AD98: =IFERROR(SUMIF(Вводные[Наименование],Медикаменты[[#This Row],[Наименование]],Вводные[Расход]),0) -> 0 | AE98: =IFERROR(Медикаменты[[#This Row],[Остаток]]+Медикаменты[[#This Row],[Приход общий]]-Медикаменты[[#This Row],[Расход общий]],0) -> 0 | AH98: Контейнер для утилизации отходов МК-04 (многораз., бирюзовый, 7,5 л.). | AI98: шт
S99: =IF(IFERROR(IF(SEARCH(Расчет!$B$8,T99),"!",""),"")="",0,MAX($S$9:S98)+1) -> 0 | T99: Крафт-пакет (100 шт.) | U99: уп. | V99: 2 | W99: 2018-06-07 | X99: 600 | Y99: =IFERROR(LOOKUP(,-1/($T99=Вводные[Наименование])/(Вводные[Дата]<$U$1),Вводные[Остаток]),0)+IF(Медикаменты[[#This Row],[Дата остатка]]<$U$1,Медикаменты[[#This Row],[Остаток]],0) -> 0 | Z99: =IF(T99="","",SUMPRODUCT((Вводные[Дата]>=$U$1)*(Вводные[Дата]<=$U$2)*(Вводные[Наименование]=$T99),Вводные[Приход])) -> 0 | AA99: =IF(T99="","",SUMPRODUCT((Вводные[Дата]>=$U$1)*(Вводные[Дата]<=$U$2)*(Вводные[Наименование]=$T99),Вводные[Расход])) -> 0 | AB99: =IFERROR(Медикаменты[[#This Row],[Остаток]]+Медикаменты[[#This Row],[Приход за период]]-Медикаменты[[#This Row],[Расход за период]],"") -> 600 | AC99: =IFERROR(SUMIF(Вводные[Наименование],Медикаменты[[#This Row],[Наименование]],Вводные[Приход]),0) -> 0 | AD99: =IFERROR(SUMIF(Вводные[Наименование],Медикаменты[[#This Row],[Наименование]],Вводные[Расход]),0) -> 0 | AE99: =IFERROR(Медикаменты[[#This Row],[Остаток]]+Медикаменты[[#This Row],[Приход общий]]-Медикаменты[[#This Row],[Расход общий]],0) -> 600 | AH99: Контейнер для утилизации отходов МК-05 (многораз., желтый 50 л.) | AI99: шт
S100: =IF(IFERROR(IF(SEARCH(Расчет!$B$8,T100),"!",""),"")="",0,MAX($S$9:S99)+1) -> 0 | T100: Крючок Воячека | U100: шт | V100: 3 | Y100: =IFERROR(LOOKUP(,-1/($T100=Вводные[Наименование])/(Вводные[Дата]<$U$1),Вводные[Остаток]),0)+IF(Медикаменты[[#This Row],[Дата остатка]]<$U$1,Медикаменты[[#This Row],[Остаток]],0) -> 0 | Z100: =IF(T100="","",SUMPRODUCT((Вводные[Дата]>=$U$1)*(Вводные[Дата]<=$U$2)*(Вводные[Наименование]=$T100),Вводные[Приход])) -> 0 | AA100: =IF(T100="","",SUMPRODUCT((Вводные[Дата]>=$U$1)*(Вводные[Дата]<=$U$2)*(Вводные[Наименование]=$T100),Вводные[Расход])) -> 0 | AB100: =IFERROR(Медикаменты[[#This Row],[Остаток]]+Медикаменты[[#This Row],[Приход за период]]-Медикаменты[[#This Row],[Расход за период]],"") ->  | AC100: =IFERROR(SUMIF(Вводные[Наименование],Медикаменты[[#This Row],[Наименование]],Вводные[Приход]),0) -> 0 | AD100: =IFERROR(SUMIF(Вводные[Наименование],Медикаменты[[#This Row],[Наименование]],Вводные[Расход]),0) -> 0 | AE100: =IFERROR(Медикаменты[[#This Row],[Остаток]]+Медикаменты[[#This Row],[Приход общий]]-Медикаменты[[#This Row],[Расход общий]],0) -> 0 | AH100: Корвалол
S101: =IF(IFERROR(IF(SEARCH(Расчет!$B$8,T101),"!",""),"")="",0,MAX($S$9:S100)+1) -> 0 | T101: Ланцет одноразовый автоматический (200 шт.) | U101: уп. | V101: 20 | Y101: =IFERROR(LOOKUP(,-1/($T101=Вводные[Наименование])/(Вводные[Дата]<$U$1),Вводные[Остаток]),0)+IF(Медикаменты[[#This Row],[Дата остатка]]<$U$1,Медикаменты[[#This Row],[Остаток]],0) -> 0 | Z101: =IF(T101="","",SUMPRODUCT((Вводные[Дата]>=$U$1)*(Вводные[Дата]<=$U$2)*(Вводные[Наименование]=$T101),Вводные[Приход])) -> 0 | AA101: =IF(T101="","",SUMPRODUCT((Вводные[Дата]>=$U$1)*(Вводные[Дата]<=$U$2)*(Вводные[Наименование]=$T101),Вводные[Расход])) -> 0 | AB101: =IFERROR(Медикаменты[[#This Row],[Остаток]]+Медикаменты[[#This Row],[Приход за период]]-Медикаменты[[#This Row],[Расход за период]],"") ->  | AC101: =IFERROR(SUMIF(Вводные[Наименование],Медикаменты[[#This Row],[Наименование]],Вводные[Приход]),0) -> 0 | AD101: =IFERROR(SUMIF(Вводные[Наименование],Медикаменты[[#This Row],[Наименование]],Вводные[Расход]),0) -> 0 | AE101: =IFERROR(Медикаменты[[#This Row],[Остаток]]+Медикаменты[[#This Row],[Приход общий]]-Медикаменты[[#This Row],[Расход общий]],0) -> 0 | AH101: Крафт-пакет (100 шт.) | AI101: уп.
S102: =IF(IFERROR(IF(SEARCH(Расчет!$B$8,T102),"!",""),"")="",0,MAX($S$9:S101)+1) -> 0 | T102: Лейкопластырь (бактер. 2х6 см.) | U102: шт. | V102: 800 | Y102: =IFERROR(LOOKUP(,-1/($T102=Вводные[Наименование])/(Вводные[Дата]<$U$1),Вводные[Остаток]),0)+IF(Медикаменты[[#This Row],[Дата остатка]]<$U$1,Медикаменты[[#This Row],[Остаток]],0) -> 0 | Z102: =IF(T102="","",SUMPRODUCT((Вводные[Дата]>=$U$1)*(Вводные[Дата]<=$U$2)*(Вводные[Наименование]=$T102),Вводные[Приход])) -> 0 | AA102: =IF(T102="","",SUMPRODUCT((Вводные[Дата]>=$U$1)*(Вводные[Дата]<=$U$2)*(Вводные[Наименование]=$T102),Вводные[Расход])) -> 0 | AB102: =IFERROR(Медикаменты[[#This Row],[Остаток]]+Медикаменты[[#This Row],[Приход за период]]-Медикаменты[[#This Row],[Расход за период]],"") ->  | AC102: =IFERROR(SUMIF(Вводные[Наименование],Медикаменты[[#This Row],[Наименование]],Вводные[Приход]),0) -> 0 | AD102: =IFERROR(SUMIF(Вводные[Наименование],Медикаменты[[#This Row],[Наименование]],Вводные[Расход]),0) -> 0 | AE102: =IFERROR(Медикаменты[[#This Row],[Остаток]]+Медикаменты[[#This Row],[Приход общий]]-Медикаменты[[#This Row],[Расход общий]],0) -> 0 | AH102: Крючок Воячека | AI102: шт
S103: =IF(IFERROR(IF(SEARCH(Расчет!$B$8,T103),"!",""),"")="",0,MAX($S$9:S102)+1) -> 0 | T103: Лейкопластырь (катушка, 2х500 см.) | U103: шт. | V103: 60 | Y103: =IFERROR(LOOKUP(,-1/($T103=Вводные[Наименование])/(Вводные[Дата]<$U$1),Вводные[Остаток]),0)+IF(Медикаменты[[#This Row],[Дата остатка]]<$U$1,Медикаменты[[#This Row],[Остаток]],0) -> 0 | Z103: =IF(T103="","",SUMPRODUCT((Вводные[Дата]>=$U$1)*(Вводные[Дата]<=$U$2)*(Вводные[Наименование]=$T103),Вводные[Приход])) -> 0 | AA103: =IF(T103="","",SUMPRODUCT((Вводные[Дата]>=$U$1)*(Вводные[Дата]<=$U$2)*(Вводные[Наименование]=$T103),Вводные[Расход])) -> 0 | AB103: =IFERROR(Медикаменты[[#This Row],[Остаток]]+Медикаменты[[#This Row],[Приход за период]]-Медикаменты[[#This Row],[Расход за период]],"") ->  | AC103: =IFERROR(SUMIF(Вводные[Наименование],Медикаменты[[#This Row],[Наименование]],Вводные[Приход]),0) -> 0 | AD103: =IFERROR(SUMIF(Вводные[Наименование],Медикаменты[[#This Row],[Наименование]],Вводные[Расход]),0) -> 0 | AE103: =IFERROR(Медикаменты[[#This Row],[Остаток]]+Медикаменты[[#This Row],[Приход общий]]-Медикаменты[[#This Row],[Расход общий]],0) -> 0 | AH103: Ланцет одноразовый автоматический (200 шт.) | AI103: уп.
S104: =IF(IFERROR(IF(SEARCH(Расчет!$B$8,T104),"!",""),"")="",0,MAX($S$9:S103)+1) -> 0 | T104: Лейкопластырь (фикс. 6 рул.) | U104: уп. | V104: 1 | Y104: =IFERROR(LOOKUP(,-1/($T104=Вводные[Наименование])/(Вводные[Дата]<$U$1),Вводные[Остаток]),0)+IF(Медикаменты[[#This Row],[Дата остатка]]<$U$1,Медикаменты[[#This Row],[Остаток]],0) -> 0 | Z104: =IF(T104="","",SUMPRODUCT((Вводные[Дата]>=$U$1)*(Вводные[Дата]<=$U$2)*(Вводные[Наименование]=$T104),Вводные[Приход])) -> 0 | AA104: =IF(T104="","",SUMPRODUCT((Вводные[Дата]>=$U$1)*(Вводные[Дата]<=$U$2)*(Вводные[Наименование]=$T104),Вводные[Расход])) -> 0 | AB104: =IFERROR(Медикаменты[[#This Row],[Остаток]]+Медикаменты[[#This Row],[Приход за период]]-Медикаменты[[#This Row],[Расход за период]],"") ->  | AC104: =IFERROR(SUMIF(Вводные[Наименование],Медикаменты[[#This Row],[Наименование]],Вводные[Приход]),0) -> 0 | AD104: =IFERROR(SUMIF(Вводные[Наименование],Медикаменты[[#This Row],[Наименование]],Вводные[Расход]),0) -> 0 | AE104: =IFERROR(Медикаменты[[#This Row],[Остаток]]+Медикаменты[[#This Row],[Приход общий]]-Медикаменты[[#This Row],[Расход общий]],0) -> 0 | AH104: Лейкопластырь (бактер. 2х6 см.) | AI104: шт.
S105: =IF(IFERROR(IF(SEARCH(Расчет!$B$8,T105),"!",""),"")="",0,MAX($S$9:S104)+1) -> 0 | T105: Лидокаин (амп., 2%, №10) | U105: уп. | V105: 5 | Y105: =IFERROR(LOOKUP(,-1/($T105=Вводные[Наименование])/(Вводные[Дата]<$U$1),Вводные[Остаток]),0)+IF(Медикаменты[[#This Row],[Дата остатка]]<$U$1,Медикаменты[[#This Row],[Остаток]],0) -> 0 | Z105: =IF(T105="","",SUMPRODUCT((Вводные[Дата]>=$U$1)*(Вводные[Дата]<=$U$2)*(Вводные[Наименование]=$T105),Вводные[Приход])) -> 0 | AA105: =IF(T105="","",SUMPRODUCT((Вводные[Дата]>=$U$1)*(Вводные[Дата]<=$U$2)*(Вводные[Наименование]=$T105),Вводные[Расход])) -> 0 | AB105: =IFERROR(Медикаменты[[#This Row],[Остаток]]+Медикаменты[[#This Row],[Приход за период]]-Медикаменты[[#This Row],[Расход за период]],"") ->  | AC105: =IFERROR(SUMIF(Вводные[Наименование],Медикаменты[[#This Row],[Наименование]],Вводные[Приход]),0) -> 0 | AD105: =IFERROR(SUMIF(Вводные[Наименование],Медикаменты[[#This Row],[Наименование]],Вводные[Расход]),0) -> 0 | AE105: =IFERROR(Медикаменты[[#This Row],[Остаток]]+Медикаменты[[#This Row],[Приход общий]]-Медикаменты[[#This Row],[Расход общий]],0) -> 0 | AH105: Лейкопластырь (катушка, 2х500 см.) | AI105: шт.
S106: =IF(IFERROR(IF(SEARCH(Расчет!$B$8,T106),"!",""),"")="",0,MAX($S$9:S105)+1) -> 0 | T106: Лидокаин (спрей, 10%, 38 г.) | U106: уп. | V106: 3 | Y106: =IFERROR(LOOKUP(,-1/($T106=Вводные[Наименование])/(Вводные[Дата]<$U$1),Вводные[Остаток]),0)+IF(Медикаменты[[#This Row],[Дата остатка]]<$U$1,Медикаменты[[#This Row],[Остаток]],0) -> 0 | Z106: =IF(T106="","",SUMPRODUCT((Вводные[Дата]>=$U$1)*(Вводные[Дата]<=$U$2)*(Вводные[Наименование]=$T106),Вводные[Приход])) -> 0 | AA106: =IF(T106="","",SUMPRODUCT((Вводные[Дата]>=$U$1)*(Вводные[Дата]<=$U$2)*(Вводные[Наименование]=$T106),Вводные[Расход])) -> 0 | AB106: =IFERROR(Медикаменты[[#This Row],[Остаток]]+Медикаменты[[#This Row],[Приход за период]]-Медикаменты[[#This Row],[Расход за период]],"") ->  | AC106: =IFERROR(SUMIF(Вводные[Наименование],Медикаменты[[#This Row],[Наименование]],Вводные[Приход]),0) -> 0 | AD106: =IFERROR(SUMIF(Вводные[Наименование],Медикаменты[[#This Row],[Наименование]],Вводные[Расход]),0) -> 0 | AE106: =IFERROR(Медикаменты[[#This Row],[Остаток]]+Медикаменты[[#This Row],[Приход общий]]-Медикаменты[[#This Row],[Расход общий]],0) -> 0 | AH106: Лейкопластырь (фикс. 6 рул.) | AI106: уп.
S107: =IF(IFERROR(IF(SEARCH(Расчет!$B$8,T107),"!",""),"")="",0,MAX($S$9:S106)+1) -> 0 | T107: Линкомицин (амп., 1 мл., №10) | U107: уп. | V107: 4 | Y107: =IFERROR(LOOKUP(,-1/($T107=Вводные[Наименование])/(Вводные[Дата]<$U$1),Вводные[Остаток]),0)+IF(Медикаменты[[#This Row],[Дата остатка]]<$U$1,Медикаменты[[#This Row],[Остаток]],0) -> 0 | Z107: =IF(T107="","",SUMPRODUCT((Вводные[Дата]>=$U$1)*(Вводные[Дата]<=$U$2)*(Вводные[Наименование]=$T107),Вводные[Приход])) -> 0 | AA107: =IF(T107="","",SUMPRODUCT((Вводные[Дата]>=$U$1)*(Вводные[Дата]<=$U$2)*(Вводные[Наименование]=$T107),Вводные[Расход])) -> 0 | AB107: =IFERROR(Медикаменты[[#This Row],[Остаток]]+Медикаменты[[#This Row],[Приход за период]]-Медикаменты[[#This Row],[Расход за период]],"") ->  | AC107: =IFERROR(SUMIF(Вводные[Наименование],Медикаменты[[#This Row],[Наименование]],Вводные[Приход]),0) -> 0 | AD107: =IFERROR(SUMIF(Вводные[Наименование],Медикаменты[[#This Row],[Наименование]],Вводные[Расход]),0) -> 0 | AE107: =IFERROR(Медикаменты[[#This Row],[Остаток]]+Медикаменты[[#This Row],[Приход общий]]-Медикаменты[[#This Row],[Расход общий]],0) -> 0 | AH107: Лидокаин (амп., 2%, №10) | AI107: уп.
S108: =IF(IFERROR(IF(SEARCH(Расчет!$B$8,T108),"!",""),"")="",0,MAX($S$9:S107)+1) -> 0 | T108: Ложка Фолькмана | U108: шт. | V108: 500 | W108: 2018-06-07 | X108: 100 | Y108: =IFERROR(LOOKUP(,-1/($T108=Вводные[Наименование])/(Вводные[Дата]<$U$1),Вводные[Остаток]),0)+IF(Медикаменты[[#This Row],[Дата остатка]]<$U$1,Медикаменты[[#This Row],[Остаток]],0) -> 0 | Z108: =IF(T108="","",SUMPRODUCT((Вводные[Дата]>=$U$1)*(Вводные[Дата]<=$U$2)*(Вводные[Наименование]=$T108),Вводные[Приход])) -> 0 | AA108: =IF(T108="","",SUMPRODUCT((Вводные[Дата]>=$U$1)*(Вводные[Дата]<=$U$2)*(Вводные[Наименование]=$T108),Вводные[Расход])) -> 0 | AB108: =IFERROR(Медикаменты[[#This Row],[Остаток]]+Медикаменты[[#This Row],[Приход за период]]-Медикаменты[[#This Row],[Расход за период]],"") -> 100 | AC108: =IFERROR(SUMIF(Вводные[Наименование],Медикаменты[[#This Row],[Наименование]],Вводные[Приход]),0) -> 0 | AD108: =IFERROR(SUMIF(Вводные[Наименование],Медикаменты[[#This Row],[Наименование]],Вводные[Расход]),0) -> 0 | AE108: =IFERROR(Медикаменты[[#This Row],[Остаток]]+Медикаменты[[#This Row],[Приход общий]]-Медикаменты[[#This Row],[Расход общий]],0) -> 100 | AH108: Лидокаин (спрей, 10%, 38 г.) | AI108: уп.
S109: =IF(IFERROR(IF(SEARCH(Расчет!$B$8,T109),"!",""),"")="",0,MAX($S$9:S108)+1) -> 0 | T109: Мазь гидрокортизоновая (0,5%, 5 мл.) | U109: уп. | V109: 4 | Y109: =IFERROR(LOOKUP(,-1/($T109=Вводные[Наименование])/(Вводные[Дата]<$U$1),Вводные[Остаток]),0)+IF(Медикаменты[[#This Row],[Дата остатка]]<$U$1,Медикаменты[[#This Row],[Остаток]],0) -> 0 | Z109: =IF(T109="","",SUMPRODUCT((Вводные[Дата]>=$U$1)*(Вводные[Дата]<=$U$2)*(Вводные[Наименование]=$T109),Вводные[Приход])) -> 0 | AA109: =IF(T109="","",SUMPRODUCT((Вводные[Дата]>=$U$1)*(Вводные[Дата]<=$U$2)*(Вводные[Наименование]=$T109),Вводные[Расход])) -> 0 | AB109: =IFERROR(Медикаменты[[#This Row],[Остаток]]+Медикаменты[[#This Row],[Приход за период]]-Медикаменты[[#This Row],[Расход за период]],"") ->  | AC109: =IFERROR(SUMIF(Вводные[Наименование],Медикаменты[[#This Row],[Наименование]],Вводные[Приход]),0) -> 0 | AD109: =IFERROR(SUMIF(Вводные[Наименование],Медикаменты[[#This Row],[Наименование]],Вводные[Расход]),0) -> 0 | AE109: =IFERROR(Медикаменты[[#This Row],[Остаток]]+Медикаменты[[#This Row],[Приход общий]]-Медикаменты[[#This Row],[Расход общий]],0) -> 0 | AH109: Линкомицин (амп., 1 мл., №10) | AI109: уп.
S110: =IF(IFERROR(IF(SEARCH(Расчет!$B$8,T110),"!",""),"")="",0,MAX($S$9:S109)+1) -> 0 | T110: Мазь левомеколь (40 г.) | U110: уп. | V110: 7 | Y110: =IFERROR(LOOKUP(,-1/($T110=Вводные[Наименование])/(Вводные[Дата]<$U$1),Вводные[Остаток]),0)+IF(Медикаменты[[#This Row],[Дата остатка]]<$U$1,Медикаменты[[#This Row],[Остаток]],0) -> 0 | Z110: =IF(T110="","",SUMPRODUCT((Вводные[Дата]>=$U$1)*(Вводные[Дата]<=$U$2)*(Вводные[Наименование]=$T110),Вводные[Приход])) -> 0 | AA110: =IF(T110="","",SUMPRODUCT((Вводные[Дата]>=$U$1)*(Вводные[Дата]<=$U$2)*(Вводные[Наименование]=$T110),Вводные[Расход])) -> 0 | AB110: =IFERROR(Медикаменты[[#This Row],[Остаток]]+Медикаменты[[#This Row],[Приход за период]]-Медикаменты[[#This Row],[Расход за период]],"") ->  | AC110: =IFERROR(SUMIF(Вводные[Наименование],Медикаменты[[#This Row],[Наименование]],Вводные[Приход]),0) -> 0 | AD110: =IFERROR(SUMIF(Вводные[Наименование],Медикаменты[[#This Row],[Наименование]],Вводные[Расход]),0) -> 0 | AE110: =IFERROR(Медикаменты[[#This Row],[Остаток]]+Медикаменты[[#This Row],[Приход общий]]-Медикаменты[[#This Row],[Расход общий]],0) -> 0 | AH110: Ложка Фолькмана | AI110: шт.
S111: =IF(IFERROR(IF(SEARCH(Расчет!$B$8,T111),"!",""),"")="",0,MAX($S$9:S110)+1) -> 0 | T111: Мазь тетрациклиновая (1%, 5 г.) | U111: уп. | V111: 2 | Y111: =IFERROR(LOOKUP(,-1/($T111=Вводные[Наименование])/(Вводные[Дата]<$U$1),Вводные[Остаток]),0)+IF(Медикаменты[[#This Row],[Дата остатка]]<$U$1,Медикаменты[[#This Row],[Остаток]],0) -> 0 | Z111: =IF(T111="","",SUMPRODUCT((Вводные[Дата]>=$U$1)*(Вводные[Дата]<=$U$2)*(Вводные[Наименование]=$T111),Вводные[Приход])) -> 0 | AA111: =IF(T111="","",SUMPRODUCT((Вводные[Дата]>=$U$1)*(Вводные[Дата]<=$U$2)*(Вводные[Наименование]=$T111),Вводные[Расход])) -> 0 | AB111: =IFERROR(Медикаменты[[#This Row],[Остаток]]+Медикаменты[[#This Row],[Приход за период]]-Медикаменты[[#This Row],[Расход за период]],"") ->  | AC111: =IFERROR(SUMIF(Вводные[Наименование],Медикаменты[[#This Row],[Наименование]],Вводные[Приход]),0) -> 0 | AD111: =IFERROR(SUMIF(Вводные[Наименование],Медикаменты[[#This Row],[Наименование]],Вводные[Расход]),0) -> 0 | AE111: =IFERROR(Медикаменты[[#This Row],[Остаток]]+Медикаменты[[#This Row],[Приход общий]]-Медикаменты[[#This Row],[Расход общий]],0) -> 0 | AH111: Мазь гидрокортизоновая (0,5%, 5 мл.) | AI111: уп.
S112: =IF(IFERROR(IF(SEARCH(Расчет!$B$8,T112),"!",""),"")="",0,MAX($S$9:S111)+1) -> 0 | T112: Марля (нестр.) | U112: м | V112: 150 | Y112: =IFERROR(LOOKUP(,-1/($T112=Вводные[Наименование])/(Вводные[Дата]<$U$1),Вводные[Остаток]),0)+IF(Медикаменты[[#This Row],[Дата остатка]]<$U$1,Медикаменты[[#This Row],[Остаток]],0) -> 0 | Z112: =IF(T112="","",SUMPRODUCT((Вводные[Дата]>=$U$1)*(Вводные[Дата]<=$U$2)*(Вводные[Наименование]=$T112),Вводные[Приход])) -> 0 | AA112: =IF(T112="","",SUMPRODUCT((Вводные[Дата]>=$U$1)*(Вводные[Дата]<=$U$2)*(Вводные[Наименование]=$T112),Вводные[Расход])) -> 0 | AB112: =IFERROR(Медикаменты[[#This Row],[Остаток]]+Медикаменты[[#This Row],[Приход за период]]-Медикаменты[[#This Row],[Расход за период]],"") ->  | AC112: =IFERROR(SUMIF(Вводные[Наименование],Медикаменты[[#This Row],[Наименование]],Вводные[Приход]),0) -> 0 | AD112: =IFERROR(SUMIF(Вводные[Наименование],Медикаменты[[#This Row],[Наименование]],Вводные[Расход]),0) -> 0 | AE112: =IFERROR(Медикаменты[[#This Row],[Остаток]]+Медикаменты[[#This Row],[Приход общий]]-Медикаменты[[#This Row],[Расход общий]],0) -> 0 | AH112: Мазь левомеколь (40 г.) | AI112: уп.
S113: =IF(IFERROR(IF(SEARCH(Расчет!$B$8,T113),"!",""),"")="",0,MAX($S$9:S112)+1) -> 0 | T113: Маска Лепесток 200 | U113: шт | V113: 50 | Y113: =IFERROR(LOOKUP(,-1/($T113=Вводные[Наименование])/(Вводные[Дата]<$U$1),Вводные[Остаток]),0)+IF(Медикаменты[[#This Row],[Дата остатка]]<$U$1,Медикаменты[[#This Row],[Остаток]],0) -> 0 | Z113: =IF(T113="","",SUMPRODUCT((Вводные[Дата]>=$U$1)*(Вводные[Дата]<=$U$2)*(Вводные[Наименование]=$T113),Вводные[Приход])) -> 0 | AA113: =IF(T113="","",SUMPRODUCT((Вводные[Дата]>=$U$1)*(Вводные[Дата]<=$U$2)*(Вводные[Наименование]=$T113),Вводные[Расход])) -> 0 | AB113: =IFERROR(Медикаменты[[#This Row],[Остаток]]+Медикаменты[[#This Row],[Приход за период]]-Медикаменты[[#This Row],[Расход за период]],"") ->  | AC113: =IFERROR(SUMIF(Вводные[Наименование],Медикаменты[[#This Row],[Наименование]],Вводные[Приход]),0) -> 0 | AD113: =IFERROR(SUMIF(Вводные[Наименование],Медикаменты[[#This Row],[Наименование]],Вводные[Расход]),0) -> 0 | AE113: =IFERROR(Медикаменты[[#This Row],[Остаток]]+Медикаменты[[#This Row],[Приход общий]]-Медикаменты[[#This Row],[Расход общий]],0) -> 0 | AH113: Мазь тетрациклиновая (1%, 5 г.) | AI113: уп.
S114: =IF(IFERROR(IF(SEARCH(Расчет!$B$8,T114),"!",""),"")="",0,MAX($S$9:S113)+1) -> 0 | T114: Маска медицинская трёхслойная, одноразовая (нестер., 50 шт.) | U114: шт. | V114: 5000 | Y114: =IFERROR(LOOKUP(,-1/($T114=Вводные[Наименование])/(Вводные[Дата]<$U$1),Вводные[Остаток]),0)+IF(Медикаменты[[#This Row],[Дата остатка]]<$U$1,Медикаменты[[#This Row],[Остаток]],0) -> 0 | Z114: =IF(T114="","",SUMPRODUCT((Вводные[Дата]>=$U$1)*(Вводные[Дата]<=$U$2)*(Вводные[Наименование]=$T114),Вводные[Приход])) -> 0 | AA114: =IF(T114="","",SUMPRODUCT((Вводные[Дата]>=$U$1)*(Вводные[Дата]<=$U$2)*(Вводные[Наименование]=$T114),Вводные[Расход])) -> 0 | AB114: =IFERROR(Медикаменты[[#This Row],[Остаток]]+Медикаменты[[#This Row],[Приход за период]]-Медикаменты[[#This Row],[Расход за период]],"") ->  | AC114: =IFERROR(SUMIF(Вводные[Наименование],Медикаменты[[#This Row],[Наименование]],Вводные[Приход]),0) -> 0 | AD114: =IFERROR(SUMIF(Вводные[Наименование],Медикаменты[[#This Row],[Наименование]],Вводные[Расход]),0) -> 0 | AE114: =IFERROR(Медикаменты[[#This Row],[Остаток]]+Медикаменты[[#This Row],[Приход общий]]-Медикаменты[[#This Row],[Расход общий]],0) -> 0 | AH114: Марля (нестр.) | AI114: м
S115: =IF(IFERROR(IF(SEARCH(Расчет!$B$8,T115),"!",""),"")="",0,MAX($S$9:S114)+1) -> 0 | T115: МДГР (5 л.) | U115: шт. | V115: 18 | W115: 2018-06-07 | X115: 32 | Y115: =IFERROR(LOOKUP(,-1/($T115=Вводные[Наименование])/(Вводные[Дата]<$U$1),Вводные[Остаток]),0)+IF(Медикаменты[[#This Row],[Дата остатка]]<$U$1,Медикаменты[[#This Row],[Остаток]],0) -> 0 | Z115: =IF(T115="","",SUMPRODUCT((Вводные[Дата]>=$U$1)*(Вводные[Дата]<=$U$2)*(Вводные[Наименование]=$T115),Вводные[Приход])) -> 0 | AA115: =IF(T115="","",SUMPRODUCT((Вводные[Дата]>=$U$1)*(Вводные[Дата]<=$U$2)*(Вводные[Наименование]=$T115),Вводные[Расход])) -> 0 | AB115: =IFERROR(Медикаменты[[#This Row],[Остаток]]+Медикаменты[[#This Row],[Приход за период]]-Медикаменты[[#This Row],[Расход за период]],"") -> 32 | AC115: =IFERROR(SUMIF(Вводные[Наименование],Медикаменты[[#This Row],[Наименование]],Вводные[Приход]),0) -> 0 | AD115: =IFERROR(SUMIF(Вводные[Наименование],Медикаменты[[#This Row],[Наименование]],Вводные[Расход]),0) -> 0 | AE115: =IFERROR(Медикаменты[[#This Row],[Остаток]]+Медикаменты[[#This Row],[Приход общий]]-Медикаменты[[#This Row],[Расход общий]],0) -> 32 | AH115: Маска Лепесток 200 | AI115: шт
S116: =IF(IFERROR(IF(SEARCH(Расчет!$B$8,T116),"!",""),"")="",0,MAX($S$9:S115)+1) -> 0 | T116: Мексидол (амп., 5%, 50 мг.- 2 мл., №10) | U116: уп. | V116: 50 | Y116: =IFERROR(LOOKUP(,-1/($T116=Вводные[Наименование])/(Вводные[Дата]<$U$1),Вводные[Остаток]),0)+IF(Медикаменты[[#This Row],[Дата остатка]]<$U$1,Медикаменты[[#This Row],[Остаток]],0) -> 0 | Z116: =IF(T116="","",SUMPRODUCT((Вводные[Дата]>=$U$1)*(Вводные[Дата]<=$U$2)*(Вводные[Наименование]=$T116),Вводные[Приход])) -> 0 | AA116: =IF(T116="","",SUMPRODUCT((Вводные[Дата]>=$U$1)*(Вводные[Дата]<=$U$2)*(Вводные[Наименование]=$T116),Вводные[Расход])) -> 0 | AB116: =IFERROR(Медикаменты[[#This Row],[Остаток]]+Медикаменты[[#This Row],[Приход за период]]-Медикаменты[[#This Row],[Расход за период]],"") ->  | AC116: =IFERROR(SUMIF(Вводные[Наименование],Медикаменты[[#This Row],[Наименование]],Вводные[Приход]),0) -> 0 | AD116: =IFERROR(SUMIF(Вводные[Наименование],Медикаменты[[#This Row],[Наименование]],Вводные[Расход]),0) -> 0 | AE116: =IFERROR(Медикаменты[[#This Row],[Остаток]]+Медикаменты[[#This Row],[Приход общий]]-Медикаменты[[#This Row],[Расход общий]],0) -> 0 | AH116: Маска медицинская трёхслойная, одноразовая (нестер., 50 шт.) | AI116: шт.
S117: =IF(IFERROR(IF(SEARCH(Расчет!$B$8,T117),"!",""),"")="",0,MAX($S$9:S116)+1) -> 0 | T117: Мексидол (р-р для инъекций по 2 мл., №10) | U117: уп. | V117: 20 | Y117: =IFERROR(LOOKUP(,-1/($T117=Вводные[Наименование])/(Вводные[Дата]<$U$1),Вводные[Остаток]),0)+IF(Медикаменты[[#This Row],[Дата остатка]]<$U$1,Медикаменты[[#This Row],[Остаток]],0) -> 0 | Z117: =IF(T117="","",SUMPRODUCT((Вводные[Дата]>=$U$1)*(Вводные[Дата]<=$U$2)*(Вводные[Наименование]=$T117),Вводные[Приход])) -> 0 | AA117: =IF(T117="","",SUMPRODUCT((Вводные[Дата]>=$U$1)*(Вводные[Дата]<=$U$2)*(Вводные[Наименование]=$T117),Вводные[Расход])) -> 0 | AB117: =IFERROR(Медикаменты[[#This Row],[Остаток]]+Медикаменты[[#This Row],[Приход за период]]-Медикаменты[[#This Row],[Расход за период]],"") ->  | AC117: =IFERROR(SUMIF(Вводные[Наименование],Медикаменты[[#This Row],[Наименование]],Вводные[Приход]),0) -> 0 | AD117: =IFERROR(SUMIF(Вводные[Наименование],Медикаменты[[#This Row],[Наименование]],Вводные[Расход]),0) -> 0 | AE117: =IFERROR(Медикаменты[[#This Row],[Остаток]]+Медикаменты[[#This Row],[Приход общий]]-Медикаменты[[#This Row],[Расход общий]],0) -> 0 | AH117: МДГР (5 л.) | AI117: шт.
S118: =IF(IFERROR(IF(SEARCH(Расчет!$B$8,T118),"!",""),"")="",0,MAX($S$9:S117)+1) -> 0 | T118: Мексидол (таб., 125 мг., №50) | U118: уп. | V118: 20 | Y118: =IFERROR(LOOKUP(,-1/($T118=Вводные[Наименование])/(Вводные[Дата]<$U$1),Вводные[Остаток]),0)+IF(Медикаменты[[#This Row],[Дата остатка]]<$U$1,Медикаменты[[#This Row],[Остаток]],0) -> 0 | Z118: =IF(T118="","",SUMPRODUCT((Вводные[Дата]>=$U$1)*(Вводные[Дата]<=$U$2)*(Вводные[Наименование]=$T118),Вводные[Приход])) -> 0 | AA118: =IF(T118="","",SUMPRODUCT((Вводные[Дата]>=$U$1)*(Вводные[Дата]<=$U$2)*(Вводные[Наименование]=$T118),Вводные[Расход])) -> 0 | AB118: =IFERROR(Медикаменты[[#This Row],[Остаток]]+Медикаменты[[#This Row],[Приход за период]]-Медикаменты[[#This Row],[Расход за период]],"") ->  | AC118: =IFERROR(SUMIF(Вводные[Наименование],Медикаменты[[#This Row],[Наименование]],Вводные[Приход]),0) -> 0 | AD118: =IFERROR(SUMIF(Вводные[Наименование],Медикаменты[[#This Row],[Наименование]],Вводные[Расход]),0) -> 0 | AE118: =IFERROR(Медикаменты[[#This Row],[Остаток]]+Медикаменты[[#This Row],[Приход общий]]-Медикаменты[[#This Row],[Расход общий]],0) -> 0 | AH118: Мексидол (амп., 5%, 50 мг.- 2 мл., №10) | AI118: уп.
S119: =IF(IFERROR(IF(SEARCH(Расчет!$B$8,T119),"!",""),"")="",0,MAX($S$9:S118)+1) -> 0 | T119: Метронидазол (таб., 0,2 мл., №10) | U119: 0 | V119: 0 | Y119: =IFERROR(LOOKUP(,-1/($T119=Вводные[Наименование])/(Вводные[Дата]<$U$1),Вводные[Остаток]),0)+IF(Медикаменты[[#This Row],[Дата остатка]]<$U$1,Медикаменты[[#This Row],[Остаток]],0) -> 0 | Z119: =IF(T119="","",SUMPRODUCT((Вводные[Дата]>=$U$1)*(Вводные[Дата]<=$U$2)*(Вводные[Наименование]=$T119),Вводные[Приход])) -> 0 | AA119: =IF(T119="","",SUMPRODUCT((Вводные[Дата]>=$U$1)*(Вводные[Дата]<=$U$2)*(Вводные[Наименование]=$T119),Вводные[Расход])) -> 0 | AB119: =IFERROR(Медикаменты[[#This Row],[Остаток]]+Медикаменты[[#This Row],[Приход за период]]-Медикаменты[[#This Row],[Расход за период]],"") ->  | AC119: =IFERROR(SUMIF(Вводные[Наименование],Медикаменты[[#This Row],[Наименование]],Вводные[Приход]),0) -> 0 | AD119: =IFERROR(SUMIF(Вводные[Наименование],Медикаменты[[#This Row],[Наименование]],Вводные[Расход]),0) -> 0 | AE119: =IFERROR(Медикаменты[[#This Row],[Остаток]]+Медикаменты[[#This Row],[Приход общий]]-Медикаменты[[#This Row],[Расход общий]],0) -> 0 | AH119: Мексидол (р-р для инъекций по 2 мл., №10) | AI119: уп.
S120: =IF(IFERROR(IF(SEARCH(Расчет!$B$8,T120),"!",""),"")="",0,MAX($S$9:S119)+1) -> 0 | T120: Мешок АМБУ детский | U120: шт | V120: 7 | Y120: =IFERROR(LOOKUP(,-1/($T120=Вводные[Наименование])/(Вводные[Дата]<$U$1),Вводные[Остаток]),0)+IF(Медикаменты[[#This Row],[Дата остатка]]<$U$1,Медикаменты[[#This Row],[Остаток]],0) -> 0 | Z120: =IF(T120="","",SUMPRODUCT((Вводные[Дата]>=$U$1)*(Вводные[Дата]<=$U$2)*(Вводные[Наименование]=$T120),Вводные[Приход])) -> 0 | AA120: =IF(T120="","",SUMPRODUCT((Вводные[Дата]>=$U$1)*(Вводные[Дата]<=$U$2)*(Вводные[Наименование]=$T120),Вводные[Расход])) -> 0 | AB120: =IFERROR(Медикаменты[[#This Row],[Остаток]]+Медикаменты[[#This Row],[Приход за период]]-Медикаменты[[#This Row],[Расход за период]],"") ->  | AC120: =IFERROR(SUMIF(Вводные[Наименование],Медикаменты[[#This Row],[Наименование]],Вводные[Приход]),0) -> 0 | AD120: =IFERROR(SUMIF(Вводные[Наименование],Медикаменты[[#This Row],[Наименование]],Вводные[Расход]),0) -> 0 | AE120: =IFERROR(Медикаменты[[#This Row],[Остаток]]+Медикаменты[[#This Row],[Приход общий]]-Медикаменты[[#This Row],[Расход общий]],0) -> 0 | AH120: Мексидол (таб., 125 мг., №50) | AI120: уп.
S121: =IF(IFERROR(IF(SEARCH(Расчет!$B$8,T121),"!",""),"")="",0,MAX($S$9:S120)+1) -> 0 | T121: Мундштук картонный одноразовый | U121: шт | V121: 1400 | Y121: =IFERROR(LOOKUP(,-1/($T121=Вводные[Наименование])/(Вводные[Дата]<$U$1),Вводные[Остаток]),0)+IF(Медикаменты[[#This Row],[Дата остатка]]<$U$1,Медикаменты[[#This Row],[Остаток]],0) -> 0 | Z121: =IF(T121="","",SUMPRODUCT((Вводные[Дата]>=$U$1)*(Вводные[Дата]<=$U$2)*(Вводные[Наименование]=$T121),Вводные[Приход])) -> 0 | AA121: =IF(T121="","",SUMPRODUCT((Вводные[Дата]>=$U$1)*(Вводные[Дата]<=$U$2)*(Вводные[Наименование]=$T121),Вводные[Расход])) -> 0 | AB121: =IFERROR(Медикаменты[[#This Row],[Остаток]]+Медикаменты[[#This Row],[Приход за период]]-Медикаменты[[#This Row],[Расход за период]],"") ->  | AC121: =IFERROR(SUMIF(Вводные[Наименование],Медикаменты[[#This Row],[Наименование]],Вводные[Приход]),0) -> 0 | AD121: =IFERROR(SUMIF(Вводные[Наименование],Медикаменты[[#This Row],[Наименование]],Вводные[Расход]),0) -> 0 | AE121: =IFERROR(Медикаменты[[#This Row],[Остаток]]+Медикаменты[[#This Row],[Приход общий]]-Медикаменты[[#This Row],[Расход общий]],0) -> 0 | AH121: Метронидазол (таб., 0,2 мл., №10)
S122: =IF(IFERROR(IF(SEARCH(Расчет!$B$8,T122),"!",""),"")="",0,MAX($S$9:S121)+1) -> 0 | T122: Напальчник | U122: шт. | V122: 135 | Y122: =IFERROR(LOOKUP(,-1/($T122=Вводные[Наименование])/(Вводные[Дата]<$U$1),Вводные[Остаток]),0)+IF(Медикаменты[[#This Row],[Дата остатка]]<$U$1,Медикаменты[[#This Row],[Остаток]],0) -> 0 | Z122: =IF(T122="","",SUMPRODUCT((Вводные[Дата]>=$U$1)*(Вводные[Дата]<=$U$2)*(Вводные[Наименование]=$T122),Вводные[Приход])) -> 0 | AA122: =IF(T122="","",SUMPRODUCT((Вводные[Дата]>=$U$1)*(Вводные[Дата]<=$U$2)*(Вводные[Наименование]=$T122),Вводные[Расход])) -> 0 | AB122: =IFERROR(Медикаменты[[#This Row],[Остаток]]+Медикаменты[[#This Row],[Приход за период]]-Медикаменты[[#This Row],[Расход за период]],"") ->  | AC122: =IFERROR(SUMIF(Вводные[Наименование],Медикаменты[[#This Row],[Наименование]],Вводные[Приход]),0) -> 0 | AD122: =IFERROR(SUMIF(Вводные[Наименование],Медикаменты[[#This Row],[Наименование]],Вводные[Расход]),0) -> 0 | AE122: =IFERROR(Медикаменты[[#This Row],[Остаток]]+Медикаменты[[#This Row],[Приход общий]]-Медикаменты[[#This Row],[Расход общий]],0) -> 0 | AH122: Мешок АМБУ детский | AI122: шт
S123: =IF(IFERROR(IF(SEARCH(Расчет!$B$8,T123),"!",""),"")="",0,MAX($S$9:S122)+1) -> 0 | T123: Настойка йода (амп., 5%, 10 мл.) | U123: уп. | V123: 140 | Y123: =IFERROR(LOOKUP(,-1/($T123=Вводные[Наименование])/(Вводные[Дата]<$U$1),Вводные[Остаток]),0)+IF(Медикаменты[[#This Row],[Дата остатка]]<$U$1,Медикаменты[[#This Row],[Остаток]],0) -> 0 | Z123: =IF(T123="","",SUMPRODUCT((Вводные[Дата]>=$U$1)*(Вводные[Дата]<=$U$2)*(Вводные[Наименование]=$T123),Вводные[Приход])) -> 0 | AA123: =IF(T123="","",SUMPRODUCT((Вводные[Дата]>=$U$1)*(Вводные[Дата]<=$U$2)*(Вводные[Наименование]=$T123),Вводные[Расход])) -> 0 | AB123: =IFERROR(Медикаменты[[#This Row],[Остаток]]+Медикаменты[[#This Row],[Приход за период]]-Медикаменты[[#This Row],[Расход за период]],"") ->  | AC123: =IFERROR(SUMIF(Вводные[Наименование],Медикаменты[[#This Row],[Наименование]],Вводные[Приход]),0) -> 0 | AD123: =IFERROR(SUMIF(Вводные[Наименование],Медикаменты[[#This Row],[Наименование]],Вводные[Расход]),0) -> 0 | AE123: =IFERROR(Медикаменты[[#This Row],[Остаток]]+Медикаменты[[#This Row],[Приход общий]]-Медикаменты[[#This Row],[Расход общий]],0) -> 0 | AH123: Мундштук картонный одноразовый | AI123: шт
S124: =IF(IFERROR(IF(SEARCH(Расчет!$B$8,T124),"!",""),"")="",0,MAX($S$9:S123)+1) -> 0 | T124: Натрия тиосульфат (30%, 10 мл., №10) | U124: 0 | V124: 0 | W124: 00:00:00 | X124: 0 | Y124: =IFERROR(LOOKUP(,-1/($T124=Вводные[Наименование])/(Вводные[Дата]<$U$1),Вводные[Остаток]),0)+IF(Медикаменты[[#This Row],[Дата остатка]]<$U$1,Медикаменты[[#This Row],[Остаток]],0) -> 0 | Z124: =IF(T124="","",SUMPRODUCT((Вводные[Дата]>=$U$1)*(Вводные[Дата]<=$U$2)*(Вводные[Наименование]=$T124),Вводные[Приход])) -> 0 | AA124: =IF(T124="","",SUMPRODUCT((Вводные[Дата]>=$U$1)*(Вводные[Дата]<=$U$2)*(Вводные[Наименование]=$T124),Вводные[Расход])) -> 0 | AB124: =IFERROR(Медикаменты[[#This Row],[Остаток]]+Медикаменты[[#This Row],[Приход за период]]-Медикаменты[[#This Row],[Расход за период]],"") -> 0 | AC124: =IFERROR(SUMIF(Вводные[Наименование],Медикаменты[[#This Row],[Наименование]],Вводные[Приход]),0) -> 0 | AD124: =IFERROR(SUMIF(Вводные[Наименование],Медикаменты[[#This Row],[Наименование]],Вводные[Расход]),0) -> 0 | AE124: =IFERROR(Медикаменты[[#This Row],[Остаток]]+Медикаменты[[#This Row],[Приход общий]]-Медикаменты[[#This Row],[Расход общий]],0) -> 0 | AH124: Напальчник | AI124: шт.
S125: =IF(IFERROR(IF(SEARCH(Расчет!$B$8,T125),"!",""),"")="",0,MAX($S$9:S124)+1) -> 0 | T125: Натрия хлорид (амп., 0,9%, 10 мл., №10) | U125: уп. | V125: 40 | Y125: =IFERROR(LOOKUP(,-1/($T125=Вводные[Наименование])/(Вводные[Дата]<$U$1),Вводные[Остаток]),0)+IF(Медикаменты[[#This Row],[Дата остатка]]<$U$1,Медикаменты[[#This Row],[Остаток]],0) -> 0 | Z125: =IF(T125="","",SUMPRODUCT((Вводные[Дата]>=$U$1)*(Вводные[Дата]<=$U$2)*(Вводные[Наименование]=$T125),Вводные[Приход])) -> 0 | AA125: =IF(T125="","",SUMPRODUCT((Вводные[Дата]>=$U$1)*(Вводные[Дата]<=$U$2)*(Вводные[Наименование]=$T125),Вводные[Расход])) -> 0 | AB125: =IFERROR(Медикаменты[[#This Row],[Остаток]]+Медикаменты[[#This Row],[Приход за период]]-Медикаменты[[#This Row],[Расход за период]],"") ->  | AC125: =IFERROR(SUMIF(Вводные[Наименование],Медикаменты[[#This Row],[Наименование]],Вводные[Приход]),0) -> 0 | AD125: =IFERROR(SUMIF(Вводные[Наименование],Медикаменты[[#This Row],[Наименование]],Вводные[Расход]),0) -> 0 | AE125: =IFERROR(Медикаменты[[#This Row],[Остаток]]+Медикаменты[[#This Row],[Приход общий]]-Медикаменты[[#This Row],[Расход общий]],0) -> 0 | AH125: Настойка йода (амп., 5%, 10 мл.) | AI125: уп.
S126: =IF(IFERROR(IF(SEARCH(Расчет!$B$8,T126),"!",""),"")="",0,MAX($S$9:S125)+1) -> 0 | T126: Натрия хлорид (амп., 0,9%, 5 мл., №10) | U126: уп. | V126: 30 | Y126: =IFERROR(LOOKUP(,-1/($T126=Вводные[Наименование])/(Вводные[Дата]<$U$1),Вводные[Остаток]),0)+IF(Медикаменты[[#This Row],[Дата остатка]]<$U$1,Медикаменты[[#This Row],[Остаток]],0) -> 0 | Z126: =IF(T126="","",SUMPRODUCT((Вводные[Дата]>=$U$1)*(Вводные[Дата]<=$U$2)*(Вводные[Наименование]=$T126),Вводные[Приход])) -> 0 | AA126: =IF(T126="","",SUMPRODUCT((Вводные[Дата]>=$U$1)*(Вводные[Дата]<=$U$2)*(Вводные[Наименование]=$T126),Вводные[Расход])) -> 0 | AB126: =IFERROR(Медикаменты[[#This Row],[Остаток]]+Медикаменты[[#This Row],[Приход за период]]-Медикаменты[[#This Row],[Расход за период]],"") ->  | AC126: =IFERROR(SUMIF(Вводные[Наименование],Медикаменты[[#This Row],[Наименование]],Вводные[Приход]),0) -> 0 | AD126: =IFERROR(SUMIF(Вводные[Наименование],Медикаменты[[#This Row],[Наименование]],Вводные[Расход]),0) -> 0 | AE126: =IFERROR(Медикаменты[[#This Row],[Остаток]]+Медикаменты[[#This Row],[Приход общий]]-Медикаменты[[#This Row],[Расход общий]],0) -> 0 | AH126: Натрия тиосульфат (30%, 10 мл., №10)
S127: =IF(IFERROR(IF(SEARCH(Расчет!$B$8,T127),"!",""),"")="",0,MAX($S$9:S126)+1) -> 0 | T127: Натрия хлорид (стер., амп., 0,9%, 250 мл.) | U127: фл. | V127: 125 | Y127: =IFERROR(LOOKUP(,-1/($T127=Вводные[Наименование])/(Вводные[Дата]<$U$1),Вводные[Остаток]),0)+IF(Медикаменты[[#This Row],[Дата остатка]]<$U$1,Медикаменты[[#This Row],[Остаток]],0) -> 0 | Z127: =IF(T127="","",SUMPRODUCT((Вводные[Дата]>=$U$1)*(Вводные[Дата]<=$U$2)*(Вводные[Наименование]=$T127),Вводные[Приход])) -> 0 | AA127: =IF(T127="","",SUMPRODUCT((Вводные[Дата]>=$U$1)*(Вводные[Дата]<=$U$2)*(Вводные[Наименование]=$T127),Вводные[Расход])) -> 0 | AB127: =IFERROR(Медикаменты[[#This Row],[Остаток]]+Медикаменты[[#This Row],[Приход за период]]-Медикаменты[[#This Row],[Расход за период]],"") ->  | AC127: =IFERROR(SUMIF(Вводные[Наименование],Медикаменты[[#This Row],[Наименование]],Вводные[Приход]),0) -> 0 | AD127: =IFERROR(SUMIF(Вводные[Наименование],Медикаменты[[#This Row],[Наименование]],Вводные[Расход]),0) -> 0 | AE127: =IFERROR(Медикаменты[[#This Row],[Остаток]]+Медикаменты[[#This Row],[Приход общий]]-Медикаменты[[#This Row],[Расход общий]],0) -> 0 | AH127: Натрия хлорид (амп., 0,9%, 10 мл., №10) | AI127: уп.
S128: =IF(IFERROR(IF(SEARCH(Расчет!$B$8,T128),"!",""),"")="",0,MAX($S$9:S127)+1) -> 0 | T128: Никотиновая кислота (амп., 1%, 1 мл., №10) | U128: 0 | V128: 0 | W128: 00:00:00 | X128: 0 | Y128: =IFERROR(LOOKUP(,-1/($T128=Вводные[Наименование])/(Вводные[Дата]<$U$1),Вводные[Остаток]),0)+IF(Медикаменты[[#This Row],[Дата остатка]]<$U$1,Медикаменты[[#This Row],[Остаток]],0) -> 0 | Z128: =IF(T128="","",SUMPRODUCT((Вводные[Дата]>=$U$1)*(Вводные[Дата]<=$U$2)*(Вводные[Наименование]=$T128),Вводные[Приход])) -> 0 | AA128: =IF(T128="","",SUMPRODUCT((Вводные[Дата]>=$U$1)*(Вводные[Дата]<=$U$2)*(Вводные[Наименование]=$T128),Вводные[Расход])) -> 0 | AB128: =IFERROR(Медикаменты[[#This Row],[Остаток]]+Медикаменты[[#This Row],[Приход за период]]-Медикаменты[[#This Row],[Расход за период]],"") -> 0 | AC128: =IFERROR(SUMIF(Вводные[Наименование],Медикаменты[[#This Row],[Наименование]],Вводные[Приход]),0) -> 0 | AD128: =IFERROR(SUMIF(Вводные[Наименование],Медикаменты[[#This Row],[Наименование]],Вводные[Расход]),0) -> 0 | AE128: =IFERROR(Медикаменты[[#This Row],[Остаток]]+Медикаменты[[#This Row],[Приход общий]]-Медикаменты[[#This Row],[Расход общий]],0) -> 0 | AH128: Натрия хлорид (амп., 0,9%, 5 мл., №10) | AI128: уп.
S129: =IF(IFERROR(IF(SEARCH(Расчет!$B$8,T129),"!",""),"")="",0,MAX($S$9:S128)+1) -> 0 | T129: Новокаин (амп., 0,5%, 5 мл., №10) | U129: уп. | V129: 3 | Y129: =IFERROR(LOOKUP(,-1/($T129=Вводные[Наименование])/(Вводные[Дата]<$U$1),Вводные[Остаток]),0)+IF(Медикаменты[[#This Row],[Дата остатка]]<$U$1,Медикаменты[[#This Row],[Остаток]],0) -> 0 | Z129: =IF(T129="","",SUMPRODUCT((Вводные[Дата]>=$U$1)*(Вводные[Дата]<=$U$2)*(Вводные[Наименование]=$T129),Вводные[Приход])) -> 0 | AA129: =IF(T129="","",SUMPRODUCT((Вводные[Дата]>=$U$1)*(Вводные[Дата]<=$U$2)*(Вводные[Наименование]=$T129),Вводные[Расход])) -> 0 | AB129: =IFERROR(Медикаменты[[#This Row],[Остаток]]+Медикаменты[[#This Row],[Приход за период]]-Медикаменты[[#This Row],[Расход за период]],"") ->  | AC129: =IFERROR(SUMIF(Вводные[Наименование],Медикаменты[[#This Row],[Наименование]],Вводные[Приход]),0) -> 0 | AD129: =IFERROR(SUMIF(Вводные[Наименование],Медикаменты[[#This Row],[Наименование]],Вводные[Расход]),0) -> 0 | AE129: =IFERROR(Медикаменты[[#This Row],[Остаток]]+Медикаменты[[#This Row],[Приход общий]]-Медикаменты[[#This Row],[Расход общий]],0) -> 0 | AH129: Натрия хлорид (стер., амп., 0,9%, 250 мл.) | AI129: фл.
S130: =IF(IFERROR(IF(SEARCH(Расчет!$B$8,T130),"!",""),"")="",0,MAX($S$9:S129)+1) -> 0 | T130: Новокаин (амп., 2%, 2 мл., №10) | U130: уп. | V130: 4 | Y130: =IFERROR(LOOKUP(,-1/($T130=Вводные[Наименование])/(Вводные[Дата]<$U$1),Вводные[Остаток]),0)+IF(Медикаменты[[#This Row],[Дата остатка]]<$U$1,Медикаменты[[#This Row],[Остаток]],0) -> 0 | Z130: =IF(T130="","",SUMPRODUCT((Вводные[Дата]>=$U$1)*(Вводные[Дата]<=$U$2)*(Вводные[Наименование]=$T130),Вводные[Приход])) -> 0 | AA130: =IF(T130="","",SUMPRODUCT((Вводные[Дата]>=$U$1)*(Вводные[Дата]<=$U$2)*(Вводные[Наименование]=$T130),Вводные[Расход])) -> 0 | AB130: =IFERROR(Медикаменты[[#This Row],[Остаток]]+Медикаменты[[#This Row],[Приход за период]]-Медикаменты[[#This Row],[Расход за период]],"") ->  | AC130: =IFERROR(SUMIF(Вводные[Наименование],Медикаменты[[#This Row],[Наименование]],Вводные[Приход]),0) -> 0 | AD130: =IFERROR(SUMIF(Вводные[Наименование],Медикаменты[[#This Row],[Наименование]],Вводные[Расход]),0) -> 0 | AE130: =IFERROR(Медикаменты[[#This Row],[Остаток]]+Медикаменты[[#This Row],[Приход общий]]-Медикаменты[[#This Row],[Расход общий]],0) -> 0 | AH130: Никотиновая кислота (амп., 1%, 1 мл., №10)
S131: =IF(IFERROR(IF(SEARCH(Расчет!$B$8,T131),"!",""),"")="",0,MAX($S$9:S130)+1) -> 0 | T131: Омепразол (капс., 20 мг., №30) | U131: уп. | V131: 1 | Y131: =IFERROR(LOOKUP(,-1/($T131=Вводные[Наименование])/(Вводные[Дата]<$U$1),Вводные[Остаток]),0)+IF(Медикаменты[[#This Row],[Дата остатка]]<$U$1,Медикаменты[[#This Row],[Остаток]],0) -> 0 | Z131: =IF(T131="","",SUMPRODUCT((Вводные[Дата]>=$U$1)*(Вводные[Дата]<=$U$2)*(Вводные[Наименование]=$T131),Вводные[Приход])) -> 0 | AA131: =IF(T131="","",SUMPRODUCT((Вводные[Дата]>=$U$1)*(Вводные[Дата]<=$U$2)*(Вводные[Наименование]=$T131),Вводные[Расход])) -> 0 | AB131: =IFERROR(Медикаменты[[#This Row],[Остаток]]+Медикаменты[[#This Row],[Приход за период]]-Медикаменты[[#This Row],[Расход за период]],"") ->  | AC131: =IFERROR(SUMIF(Вводные[Наименование],Медикаменты[[#This Row],[Наименование]],Вводные[Приход]),0) -> 0 | AD131: =IFERROR(SUMIF(Вводные[Наименование],Медикаменты[[#This Row],[Наименование]],Вводные[Расход]),0) -> 0 | AE131: =IFERROR(Медикаменты[[#This Row],[Остаток]]+Медикаменты[[#This Row],[Приход общий]]-Медикаменты[[#This Row],[Расход общий]],0) -> 0 | AH131: Новокаин (амп., 0,5%, 5 мл., №10) | AI131: уп.
S132: =IF(IFERROR(IF(SEARCH(Расчет!$B$8,T132),"!",""),"")="",0,MAX($S$9:S131)+1) -> 0 | T132: Омепразол (капс., 20 мг., №50) | U132: 0 | V132: 0 | Y132: =IFERROR(LOOKUP(,-1/($T132=Вводные[Наименование])/(Вводные[Дата]<$U$1),Вводные[Остаток]),0)+IF(Медикаменты[[#This Row],[Дата остатка]]<$U$1,Медикаменты[[#This Row],[Остаток]],0) -> 0 | Z132: =IF(T132="","",SUMPRODUCT((Вводные[Дата]>=$U$1)*(Вводные[Дата]<=$U$2)*(Вводные[Наименование]=$T132),Вводные[Приход])) -> 0 | AA132: =IF(T132="","",SUMPRODUCT((Вводные[Дата]>=$U$1)*(Вводные[Дата]<=$U$2)*(Вводные[Наименование]=$T132),Вводные[Расход])) -> 0 | AB132: =IFERROR(Медикаменты[[#This Row],[Остаток]]+Медикаменты[[#This Row],[Приход за период]]-Медикаменты[[#This Row],[Расход за период]],"") ->  | AC132: =IFERROR(SUMIF(Вводные[Наименование],Медикаменты[[#This Row],[Наименование]],Вводные[Приход]),0) -> 0 | AD132: =IFERROR(SUMIF(Вводные[Наименование],Медикаменты[[#This Row],[Наименование]],Вводные[Расход]),0) -> 0 | AE132: =IFERROR(Медикаменты[[#This Row],[Остаток]]+Медикаменты[[#This Row],[Приход общий]]-Медикаменты[[#This Row],[Расход общий]],0) -> 0 | AH132: Новокаин (амп., 2%, 2 мл., №10) | AI132: уп.
S133: =IF(IFERROR(IF(SEARCH(Расчет!$B$8,T133),"!",""),"")="",0,MAX($S$9:S132)+1) -> 0 | T133: Пакет для сбора медицинских отходов класса Б (30 л., 100 шт.) | U133: шт. | V133: 3000 | Y133: =IFERROR(LOOKUP(,-1/($T133=Вводные[Наименование])/(Вводные[Дата]<$U$1),Вводные[Остаток]),0)+IF(Медикаменты[[#This Row],[Дата остатка]]<$U$1,Медикаменты[[#This Row],[Остаток]],0) -> 0 | Z133: =IF(T133="","",SUMPRODUCT((Вводные[Дата]>=$U$1)*(Вводные[Дата]<=$U$2)*(Вводные[Наименование]=$T133),Вводные[Приход])) -> 0 | AA133: =IF(T133="","",SUMPRODUCT((Вводные[Дата]>=$U$1)*(Вводные[Дата]<=$U$2)*(Вводные[Наименование]=$T133),Вводные[Расход])) -> 0 | AB133: =IFERROR(Медикаменты[[#This Row],[Остаток]]+Медикаменты[[#This Row],[Приход за период]]-Медикаменты[[#This Row],[Расход за период]],"") ->  | AC133: =IFERROR(SUMIF(Вводные[Наименование],Медикаменты[[#This Row],[Наименование]],Вводные[Приход]),0) -> 0 | AD133: =IFERROR(SUMIF(Вводные[Наименование],Медикаменты[[#This Row],[Наименование]],Вводные[Расход]),0) -> 0 | AE133: =IFERROR(Медикаменты[[#This Row],[Остаток]]+Медикаменты[[#This Row],[Приход общий]]-Медикаменты[[#This Row],[Расход общий]],0) -> 0 | AH133: Омепразол (капс., 20 мг., №30) | AI133: уп.
S134: =IF(IFERROR(IF(SEARCH(Расчет!$B$8,T134),"!",""),"")="",0,MAX($S$9:S133)+1) -> 0 | T134: Пакеты упаковочные для стерилизации СтериТ (100*200, 100 шт.) | U134: шт | V134: 200 | Y134: =IFERROR(LOOKUP(,-1/($T134=Вводные[Наименование])/(Вводные[Дата]<$U$1),Вводные[Остаток]),0)+IF(Медикаменты[[#This Row],[Дата остатка]]<$U$1,Медикаменты[[#This Row],[Остаток]],0) -> 0 | Z134: =IF(T134="","",SUMPRODUCT((Вводные[Дата]>=$U$1)*(Вводные[Дата]<=$U$2)*(Вводные[Наименование]=$T134),Вводные[Приход])) -> 0 | AA134: =IF(T134="","",SUMPRODUCT((Вводные[Дата]>=$U$1)*(Вводные[Дата]<=$U$2)*(Вводные[Наименование]=$T134),Вводные[Расход])) -> 0 | AB134: =IFERROR(Медикаменты[[#This Row],[Остаток]]+Медикаменты[[#This Row],[Приход за период]]-Медикаменты[[#This Row],[Расход за период]],"") ->  | AC134: =IFERROR(SUMIF(Вводные[Наименование],Медикаменты[[#This Row],[Наименование]],Вводные[Приход]),0) -> 0 | AD134: =IFERROR(SUMIF(Вводные[Наименование],Медикаменты[[#This Row],[Наименование]],Вводные[Расход]),0) -> 0 | AE134: =IFERROR(Медикаменты[[#This Row],[Остаток]]+Медикаменты[[#This Row],[Приход общий]]-Медикаменты[[#This Row],[Расход общий]],0) -> 0 | AH134: Омепразол (капс., 20 мг., №50)
S135: =IF(IFERROR(IF(SEARCH(Расчет!$B$8,T135),"!",""),"")="",0,MAX($S$9:S134)+1) -> 0 | T135: Пакеты упаковочные для стерилизации СтериТ (150*250, 100 шт.) | U135: шт | V135: 200 | Y135: =IFERROR(LOOKUP(,-1/($T135=Вводные[Наименование])/(Вводные[Дата]<$U$1),Вводные[Остаток]),0)+IF(Медикаменты[[#This Row],[Дата остатка]]<$U$1,Медикаменты[[#This Row],[Остаток]],0) -> 0 | Z135: =IF(T135="","",SUMPRODUCT((Вводные[Дата]>=$U$1)*(Вводные[Дата]<=$U$2)*(Вводные[Наименование]=$T135),Вводные[Приход])) -> 0 | AA135: =IF(T135="","",SUMPRODUCT((Вводные[Дата]>=$U$1)*(Вводные[Дата]<=$U$2)*(Вводные[Наименование]=$T135),Вводные[Расход])) -> 0 | AB135: =IFERROR(Медикаменты[[#This Row],[Остаток]]+Медикаменты[[#This Row],[Приход за период]]-Медикаменты[[#This Row],[Расход за период]],"") ->  | AC135: =IFERROR(SUMIF(Вводные[Наименование],Медикаменты[[#This Row],[Наименование]],Вводные[Приход]),0) -> 0 | AD135: =IFERROR(SUMIF(Вводные[Наименование],Медикаменты[[#This Row],[Наименование]],Вводные[Расход]),0) -> 0 | AE135: =IFERROR(Медикаменты[[#This Row],[Остаток]]+Медикаменты[[#This Row],[Приход общий]]-Медикаменты[[#This Row],[Расход общий]],0) -> 0 | AH135: Пакет для сбора медицинских отходов класса Б (30 л., 100 шт.) | AI135: шт.
S136: =IF(IFERROR(IF(SEARCH(Расчет!$B$8,T136),"!",""),"")="",0,MAX($S$9:S135)+1) -> 0 | T136: Пакеты упаковочные для стерилизации СтериТ (200*300, 100 шт.) | U136: шт | V136: 100 | Y136: =IFERROR(LOOKUP(,-1/($T136=Вводные[Наименование])/(Вводные[Дата]<$U$1),Вводные[Остаток]),0)+IF(Медикаменты[[#This Row],[Дата остатка]]<$U$1,Медикаменты[[#This Row],[Остаток]],0) -> 0 | Z136: =IF(T136="","",SUMPRODUCT((Вводные[Дата]>=$U$1)*(Вводные[Дата]<=$U$2)*(Вводные[Наименование]=$T136),Вводные[Приход])) -> 0 | AA136: =IF(T136="","",SUMPRODUCT((Вводные[Дата]>=$U$1)*(Вводные[Дата]<=$U$2)*(Вводные[Наименование]=$T136),Вводные[Расход])) -> 0 | AB136: =IFERROR(Медикаменты[[#This Row],[Остаток]]+Медикаменты[[#This Row],[Приход за период]]-Медикаменты[[#This Row],[Расход за период]],"") ->  | AC136: =IFERROR(SUMIF(Вводные[Наименование],Медикаменты[[#This Row],[Наименование]],Вводные[Приход]),0) -> 0 | AD136: =IFERROR(SUMIF(Вводные[Наименование],Медикаменты[[#This Row],[Наименование]],Вводные[Расход]),0) -> 0 | AE136: =IFERROR(Медикаменты[[#This Row],[Остаток]]+Медикаменты[[#This Row],[Приход общий]]-Медикаменты[[#This Row],[Расход общий]],0) -> 0 | AH136: Пакеты упаковочные для стерилизации СтериТ (100*200, 100 шт.) | AI136: шт
S137: =IF(IFERROR(IF(SEARCH(Расчет!$B$8,T137),"!",""),"")="",0,MAX($S$9:S136)+1) -> 0 | T137: Пакеты упаковочные для стерилизации СтериТ (200*330, 100 шт.) | U137: шт | V137: 200 | Y137: =IFERROR(LOOKUP(,-1/($T137=Вводные[Наименование])/(Вводные[Дата]<$U$1),Вводные[Остаток]),0)+IF(Медикаменты[[#This Row],[Дата остатка]]<$U$1,Медикаменты[[#This Row],[Остаток]],0) -> 0 | Z137: =IF(T137="","",SUMPRODUCT((Вводные[Дата]>=$U$1)*(Вводные[Дата]<=$U$2)*(Вводные[Наименование]=$T137),Вводные[Приход])) -> 0 | AA137: =IF(T137="","",SUMPRODUCT((Вводные[Дата]>=$U$1)*(Вводные[Дата]<=$U$2)*(Вводные[Наименование]=$T137),Вводные[Расход])) -> 0 | AB137: =IFERROR(Медикаменты[[#This Row],[Остаток]]+Медикаменты[[#This Row],[Приход за период]]-Медикаменты[[#This Row],[Расход за период]],"") ->  | AC137: =IFERROR(SUMIF(Вводные[Наименование],Медикаменты[[#This Row],[Наименование]],Вводные[Приход]),0) -> 0 | AD137: =IFERROR(SUMIF(Вводные[Наименование],Медикаменты[[#This Row],[Наименование]],Вводные[Расход]),0) -> 0 | AE137: =IFERROR(Медикаменты[[#This Row],[Остаток]]+Медикаменты[[#This Row],[Приход общий]]-Медикаменты[[#This Row],[Расход общий]],0) -> 0 | AH137: Пакеты упаковочные для стерилизации СтериТ (150*250, 100 шт.) | AI137: шт
S138: =IF(IFERROR(IF(SEARCH(Расчет!$B$8,T138),"!",""),"")="",0,MAX($S$9:S137)+1) -> 0 | T138: Пантогам (таб., 250 мг., №50) | U138: уп. | V138: 40 | W138: 00:00:00 | X138: 0 | Y138: =IFERROR(LOOKUP(,-1/($T138=Вводные[Наименование])/(Вводные[Дата]<$U$1),Вводные[Остаток]),0)+IF(Медикаменты[[#This Row],[Дата остатка]]<$U$1,Медикаменты[[#This Row],[Остаток]],0) -> 0 | Z138: =IF(T138="","",SUMPRODUCT((Вводные[Дата]>=$U$1)*(Вводные[Дата]<=$U$2)*(Вводные[Наименование]=$T138),Вводные[Приход])) -> 0 | AA138: =IF(T138="","",SUMPRODUCT((Вводные[Дата]>=$U$1)*(Вводные[Дата]<=$U$2)*(Вводные[Наименование]=$T138),Вводные[Расход])) -> 0 | AB138: =IFERROR(Медикаменты[[#This Row],[Остаток]]+Медикаменты[[#This Row],[Приход за период]]-Медикаменты[[#This Row],[Расход за период]],"") -> 0 | AC138: =IFERROR(SUMIF(Вводные[Наименование],Медикаменты[[#This Row],[Наименование]],Вводные[Приход]),0) -> 0 | AD138: =IFERROR(SUMIF(Вводные[Наименование],Медикаменты[[#This Row],[Наименование]],Вводные[Расход]),0) -> 0 | AE138: =IFERROR(Медикаменты[[#This Row],[Остаток]]+Медикаменты[[#This Row],[Приход общий]]-Медикаменты[[#This Row],[Расход общий]],0) -> 0 | AH138: Пакеты упаковочные для стерилизации СтериТ (200*300, 100 шт.) | AI138: шт
S139: =IF(IFERROR(IF(SEARCH(Расчет!$B$8,T139),"!",""),"")="",0,MAX($S$9:S138)+1) -> 0 | T139: Пантогам (табл., 250 мг., №50) | U139: уп. | V139: 20 | Y139: =IFERROR(LOOKUP(,-1/($T139=Вводные[Наименование])/(Вводные[Дата]<$U$1),Вводные[Остаток]),0)+IF(Медикаменты[[#This Row],[Дата остатка]]<$U$1,Медикаменты[[#This Row],[Остаток]],0) -> 0 | Z139: =IF(T139="","",SUMPRODUCT((Вводные[Дата]>=$U$1)*(Вводные[Дата]<=$U$2)*(Вводные[Наименование]=$T139),Вводные[Приход])) -> 0 | AA139: =IF(T139="","",SUMPRODUCT((Вводные[Дата]>=$U$1)*(Вводные[Дата]<=$U$2)*(Вводные[Наименование]=$T139),Вводные[Расход])) -> 0 | AB139: =IFERROR(Медикаменты[[#This Row],[Остаток]]+Медикаменты[[#This Row],[Приход за период]]-Медикаменты[[#This Row],[Расход за период]],"") ->  | AC139: =IFERROR(SUMIF(Вводные[Наименование],Медикаменты[[#This Row],[Наименование]],Вводные[Приход]),0) -> 0 | AD139: =IFERROR(SUMIF(Вводные[Наименование],Медикаменты[[#This Row],[Наименование]],Вводные[Расход]),0) -> 0 | AE139: =IFERROR(Медикаменты[[#This Row],[Остаток]]+Медикаменты[[#This Row],[Приход общий]]-Медикаменты[[#This Row],[Расход общий]],0) -> 0 | AH139: Пакеты упаковочные для стерилизации СтериТ (200*330, 100 шт.) | AI139: шт
S140: =IF(IFERROR(IF(SEARCH(Расчет!$B$8,T140),"!",""),"")="",0,MAX($S$9:S139)+1) -> 0 | T140: Папаверин (амп., 2%, 2мл №10) | U140: уп. | V140: 110 | Y140: =IFERROR(LOOKUP(,-1/($T140=Вводные[Наименование])/(Вводные[Дата]<$U$1),Вводные[Остаток]),0)+IF(Медикаменты[[#This Row],[Дата остатка]]<$U$1,Медикаменты[[#This Row],[Остаток]],0) -> 0 | Z140: =IF(T140="","",SUMPRODUCT((Вводные[Дата]>=$U$1)*(Вводные[Дата]<=$U$2)*(Вводные[Наименование]=$T140),Вводные[Приход])) -> 0 | AA140: =IF(T140="","",SUMPRODUCT((Вводные[Дата]>=$U$1)*(Вводные[Дата]<=$U$2)*(Вводные[Наименование]=$T140),Вводные[Расход])) -> 0 | AB140: =IFERROR(Медикаменты[[#This Row],[Остаток]]+Медикаменты[[#This Row],[Приход за период]]-Медикаменты[[#This Row],[Расход за период]],"") ->  | AC140: =IFERROR(SUMIF(Вводные[Наименование],Медикаменты[[#This Row],[Наименование]],Вводные[Приход]),0) -> 0 | AD140: =IFERROR(SUMIF(Вводные[Наименование],Медикаменты[[#This Row],[Наименование]],Вводные[Расход]),0) -> 0 | AE140: =IFERROR(Медикаменты[[#This Row],[Остаток]]+Медикаменты[[#This Row],[Приход общий]]-Медикаменты[[#This Row],[Расход общий]],0) -> 0 | AH140: Пантогам (таб., 250 мг., №50) | AI140: уп.
S141: =IF(IFERROR(IF(SEARCH(Расчет!$B$8,T141),"!",""),"")="",0,MAX($S$9:S140)+1) -> 0 | T141: Парацентезная игла | U141: шт | V141: 3 | Y141: =IFERROR(LOOKUP(,-1/($T141=Вводные[Наименование])/(Вводные[Дата]<$U$1),Вводные[Остаток]),0)+IF(Медикаменты[[#This Row],[Дата остатка]]<$U$1,Медикаменты[[#This Row],[Остаток]],0) -> 0 | Z141: =IF(T141="","",SUMPRODUCT((Вводные[Дата]>=$U$1)*(Вводные[Дата]<=$U$2)*(Вводные[Наименование]=$T141),Вводные[Приход])) -> 0 | AA141: =IF(T141="","",SUMPRODUCT((Вводные[Дата]>=$U$1)*(Вводные[Дата]<=$U$2)*(Вводные[Наименование]=$T141),Вводные[Расход])) -> 0 | AB141: =IFERROR(Медикаменты[[#This Row],[Остаток]]+Медикаменты[[#This Row],[Приход за период]]-Медикаменты[[#This Row],[Расход за период]],"") ->  | AC141: =IFERROR(SUMIF(Вводные[Наименование],Медикаменты[[#This Row],[Наименование]],Вводные[Приход]),0) -> 0 | AD141: =IFERROR(SUMIF(Вводные[Наименование],Медикаменты[[#This Row],[Наименование]],Вводные[Расход]),0) -> 0 | AE141: =IFERROR(Медикаменты[[#This Row],[Остаток]]+Медикаменты[[#This Row],[Приход общий]]-Медикаменты[[#This Row],[Расход общий]],0) -> 0 | AH141: Пантогам (табл., 250 мг., №50) | AI141: уп.
S142: =IF(IFERROR(IF(SEARCH(Расчет!$B$8,T142),"!",""),"")="",0,MAX($S$9:S141)+1) -> 0 | T142: Парацетамол (таб., 500 мг., №10) | U142: уп. | V142: 400 | Y142: =IFERROR(LOOKUP(,-1/($T142=Вводные[Наименование])/(Вводные[Дата]<$U$1),Вводные[Остаток]),0)+IF(Медикаменты[[#This Row],[Дата остатка]]<$U$1,Медикаменты[[#This Row],[Остаток]],0) -> 0 | Z142: =IF(T142="","",SUMPRODUCT((Вводные[Дата]>=$U$1)*(Вводные[Дата]<=$U$2)*(Вводные[Наименование]=$T142),Вводные[Приход])) -> 0 | AA142: =IF(T142="","",SUMPRODUCT((Вводные[Дата]>=$U$1)*(Вводные[Дата]<=$U$2)*(Вводные[Наименование]=$T142),Вводные[Расход])) -> 0 | AB142: =IFERROR(Медикаменты[[#This Row],[Остаток]]+Медикаменты[[#This Row],[Приход за период]]-Медикаменты[[#This Row],[Расход за период]],"") ->  | AC142: =IFERROR(SUMIF(Вводные[Наименование],Медикаменты[[#This Row],[Наименование]],Вводные[Приход]),0) -> 0 | AD142: =IFERROR(SUMIF(Вводные[Наименование],Медикаменты[[#This Row],[Наименование]],Вводные[Расход]),0) -> 0 | AE142: =IFERROR(Медикаменты[[#This Row],[Остаток]]+Медикаменты[[#This Row],[Приход общий]]-Медикаменты[[#This Row],[Расход общий]],0) -> 0 | AH142: Папаверин (амп., 2%, 2мл №10) | AI142: уп.
S143: =IF(IFERROR(IF(SEARCH(Расчет!$B$8,T143),"!",""),"")="",0,MAX($S$9:S142)+1) -> 0 | T143: Парацетамол детский (сусп., 100 г.) | U143: уп. | V143: 25 | Y143: =IFERROR(LOOKUP(,-1/($T143=Вводные[Наименование])/(Вводные[Дата]<$U$1),Вводные[Остаток]),0)+IF(Медикаменты[[#This Row],[Дата остатка]]<$U$1,Медикаменты[[#This Row],[Остаток]],0) -> 0 | Z143: =IF(T143="","",SUMPRODUCT((Вводные[Дата]>=$U$1)*(Вводные[Дата]<=$U$2)*(Вводные[Наименование]=$T143),Вводные[Приход])) -> 0 | AA143: =IF(T143="","",SUMPRODUCT((Вводные[Дата]>=$U$1)*(Вводные[Дата]<=$U$2)*(Вводные[Наименование]=$T143),Вводные[Расход])) -> 0 | AB143: =IFERROR(Медикаменты[[#This Row],[Остаток]]+Медикаменты[[#This Row],[Приход за период]]-Медикаменты[[#This Row],[Расход за период]],"") ->  | AC143: =IFERROR(SUMIF(Вводные[Наименование],Медикаменты[[#This Row],[Наименование]],Вводные[Приход]),0) -> 0 | AD143: =IFERROR(SUMIF(Вводные[Наименование],Медикаменты[[#This Row],[Наименование]],Вводные[Расход]),0) -> 0 | AE143: =IFERROR(Медикаменты[[#This Row],[Остаток]]+Медикаменты[[#This Row],[Приход общий]]-Медикаменты[[#This Row],[Расход общий]],0) -> 0 | AH143: Парацентезная игла | AI143: шт
S144: =IF(IFERROR(IF(SEARCH(Расчет!$B$8,T144),"!",""),"")="",0,MAX($S$9:S143)+1) -> 0 | T144: Перекись водорода (амп., 3%, 100 мл.) | U144: фл. | V144: 170 | Y144: =IFERROR(LOOKUP(,-1/($T144=Вводные[Наименование])/(Вводные[Дата]<$U$1),Вводные[Остаток]),0)+IF(Медикаменты[[#This Row],[Дата остатка]]<$U$1,Медикаменты[[#This Row],[Остаток]],0) -> 0 | Z144: =IF(T144="","",SUMPRODUCT((Вводные[Дата]>=$U$1)*(Вводные[Дата]<=$U$2)*(Вводные[Наименование]=$T144),Вводные[Приход])) -> 0 | AA144: =IF(T144="","",SUMPRODUCT((Вводные[Дата]>=$U$1)*(Вводные[Дата]<=$U$2)*(Вводные[Наименование]=$T144),Вводные[Расход])) -> 0 | AB144: =IFERROR(Медикаменты[[#This Row],[Остаток]]+Медикаменты[[#This Row],[Приход за период]]-Медикаменты[[#This Row],[Расход за период]],"") ->  | AC144: =IFERROR(SUMIF(Вводные[Наименование],Медикаменты[[#This Row],[Наименование]],Вводные[Приход]),0) -> 0 | AD144: =IFERROR(SUMIF(Вводные[Наименование],Медикаменты[[#This Row],[Наименование]],Вводные[Расход]),0) -> 0 | AE144: =IFERROR(Медикаменты[[#This Row],[Остаток]]+Медикаменты[[#This Row],[Приход общий]]-Медикаменты[[#This Row],[Расход общий]],0) -> 0 | AH144: Парацетамол (таб., 500 мг., №10) | AI144: уп.
S145: =IF(IFERROR(IF(SEARCH(Расчет!$B$8,T145),"!",""),"")="",0,MAX($S$9:S144)+1) -> 1 | T145: Перчатки (нестер, латекс.) | U145: пара | V145: 40000 | Y145: =IFERROR(LOOKUP(,-1/($T145=Вводные[Наименование])/(Вводные[Дата]<$U$1),Вводные[Остаток]),0)+IF(Медикаменты[[#This Row],[Дата остатка]]<$U$1,Медикаменты[[#This Row],[Остаток]],0) -> 0 | Z145: =IF(T145="","",SUMPRODUCT((Вводные[Дата]>=$U$1)*(Вводные[Дата]<=$U$2)*(Вводные[Наименование]=$T145),Вводные[Приход])) -> 0 | AA145: =IF(T145="","",SUMPRODUCT((Вводные[Дата]>=$U$1)*(Вводные[Дата]<=$U$2)*(Вводные[Наименование]=$T145),Вводные[Расход])) -> 0 | AB145: =IFERROR(Медикаменты[[#This Row],[Остаток]]+Медикаменты[[#This Row],[Приход за период]]-Медикаменты[[#This Row],[Расход за период]],"") ->  | AC145: =IFERROR(SUMIF(Вводные[Наименование],Медикаменты[[#This Row],[Наименование]],Вводные[Приход]),0) -> 0 | AD145: =IFERROR(SUMIF(Вводные[Наименование],Медикаменты[[#This Row],[Наименование]],Вводные[Расход]),0) -> 0 | AE145: =IFERROR(Медикаменты[[#This Row],[Остаток]]+Медикаменты[[#This Row],[Приход общий]]-Медикаменты[[#This Row],[Расход общий]],0) -> 0 | AH145: Парацетамол детский (сусп., 100 г.) | AI145: уп.
S146: =IF(IFERROR(IF(SEARCH(Расчет!$B$8,T146),"!",""),"")="",0,MAX($S$9:S145)+1) -> 2 | T146: Перчатки (нестер, нитрил.) | U146: пара | V146: 500 | Y146: =IFERROR(LOOKUP(,-1/($T146=Вводные[Наименование])/(Вводные[Дата]<$U$1),Вводные[Остаток]),0)+IF(Медикаменты[[#This Row],[Дата остатка]]<$U$1,Медикаменты[[#This Row],[Остаток]],0) -> 0 | Z146: =IF(T146="","",SUMPRODUCT((Вводные[Дата]>=$U$1)*(Вводные[Дата]<=$U$2)*(Вводные[Наименование]=$T146),Вводные[Приход])) -> 0 | AA146: =IF(T146="","",SUMPRODUCT((Вводные[Дата]>=$U$1)*(Вводные[Дата]<=$U$2)*(Вводные[Наименование]=$T146),Вводные[Расход])) -> 0 | AB146: =IFERROR(Медикаменты[[#This Row],[Остаток]]+Медикаменты[[#This Row],[Приход за период]]-Медикаменты[[#This Row],[Расход за период]],"") ->  | AC146: =IFERROR(SUMIF(Вводные[Наименование],Медикаменты[[#This Row],[Наименование]],Вводные[Приход]),0) -> 0 | AD146: =IFERROR(SUMIF(Вводные[Наименование],Медикаменты[[#This Row],[Наименование]],Вводные[Расход]),0) -> 0 | AE146: =IFERROR(Медикаменты[[#This Row],[Остаток]]+Медикаменты[[#This Row],[Приход общий]]-Медикаменты[[#This Row],[Расход общий]],0) -> 0 | AH146: Перекись водорода (амп., 3%, 100 мл.) | AI146: фл.
S147: =IF(IFERROR(IF(SEARCH(Расчет!$B$8,T147),"!",""),"")="",0,MAX($S$9:S146)+1) -> 3 | T147: Перчатки (стер, латекс.) | U147: пара | V147: 350 | Y147: =IFERROR(LOOKUP(,-1/($T147=Вводные[Наименование])/(Вводные[Дата]<$U$1),Вводные[Остаток]),0)+IF(Медикаменты[[#This Row],[Дата остатка]]<$U$1,Медикаменты[[#This Row],[Остаток]],0) -> 0 | Z147: =IF(T147="","",SUMPRODUCT((Вводные[Дата]>=$U$1)*(Вводные[Дата]<=$U$2)*(Вводные[Наименование]=$T147),Вводные[Приход])) -> 0 | AA147: =IF(T147="","",SUMPRODUCT((Вводные[Дата]>=$U$1)*(Вводные[Дата]<=$U$2)*(Вводные[Наименование]=$T147),Вводные[Расход])) -> 0 | AB147: =IFERROR(Медикаменты[[#This Row],[Остаток]]+Медикаменты[[#This Row],[Приход за период]]-Медикаменты[[#This Row],[Расход за период]],"") ->  | AC147: =IFERROR(SUMIF(Вводные[Наименование],Медикаменты[[#This Row],[Наименование]],Вводные[Приход]),0) -> 0 | AD147: =IFERROR(SUMIF(Вводные[Наименование],Медикаменты[[#This Row],[Наименование]],Вводные[Расход]),0) -> 0 | AE147: =IFERROR(Медикаменты[[#This Row],[Остаток]]+Медикаменты[[#This Row],[Приход общий]]-Медикаменты[[#This Row],[Расход общий]],0) -> 0 | AH147: Перчатки (нестер, латекс.) | AI147: пара
S148: =IF(IFERROR(IF(SEARCH(Расчет!$B$8,T148),"!",""),"")="",0,MAX($S$9:S147)+1) -> 0 | T148: Пинцет (многораз.) | U148: шт | V148: 10 | Y148: =IFERROR(LOOKUP(,-1/($T148=Вводные[Наименование])/(Вводные[Дата]<$U$1),Вводные[Остаток]),0)+IF(Медикаменты[[#This Row],[Дата остатка]]<$U$1,Медикаменты[[#This Row],[Остаток]],0) -> 0 | Z148: =IF(T148="","",SUMPRODUCT((Вводные[Дата]>=$U$1)*(Вводные[Дата]<=$U$2)*(Вводные[Наименование]=$T148),Вводные[Приход])) -> 0 | AA148: =IF(T148="","",SUMPRODUCT((Вводные[Дата]>=$U$1)*(Вводные[Дата]<=$U$2)*(Вводные[Наименование]=$T148),Вводные[Расход])) -> 0 | AB148: =IFERROR(Медикаменты[[#This Row],[Остаток]]+Медикаменты[[#This Row],[Приход за период]]-Медикаменты[[#This Row],[Расход за период]],"") ->  | AC148: =IFERROR(SUMIF(Вводные[Наименование],Медикаменты[[#This Row],[Наименование]],Вводные[Приход]),0) -> 0 | AD148: =IFERROR(SUMIF(Вводные[Наименование],Медикаменты[[#This Row],[Наименование]],Вводные[Расход]),0) -> 0 | AE148: =IFERROR(Медикаменты[[#This Row],[Остаток]]+Медикаменты[[#This Row],[Приход общий]]-Медикаменты[[#This Row],[Расход общий]],0) -> 0 | AH148: Перчатки (нестер, нитрил.) | AI148: пара
S149: =IF(IFERROR(IF(SEARCH(Расчет!$B$8,T149),"!",""),"")="",0,MAX($S$9:S148)+1) -> 0 | T149: Пинцет (однораз., стер.) | U149: шт | V149: 100 | Y149: =IFERROR(LOOKUP(,-1/($T149=Вводные[Наименование])/(Вводные[Дата]<$U$1),Вводные[Остаток]),0)+IF(Медикаменты[[#This Row],[Дата остатка]]<$U$1,Медикаменты[[#This Row],[Остаток]],0) -> 0 | Z149: =IF(T149="","",SUMPRODUCT((Вводные[Дата]>=$U$1)*(Вводные[Дата]<=$U$2)*(Вводные[Наименование]=$T149),Вводные[Приход])) -> 0 | AA149: =IF(T149="","",SUMPRODUCT((Вводные[Дата]>=$U$1)*(Вводные[Дата]<=$U$2)*(Вводные[Наименование]=$T149),Вводные[Расход])) -> 0 | AB149: =IFERROR(Медикаменты[[#This Row],[Остаток]]+Медикаменты[[#This Row],[Приход за период]]-Медикаменты[[#This Row],[Расход за период]],"") ->  | AC149: =IFERROR(SUMIF(Вводные[Наименование],Медикаменты[[#This Row],[Наименование]],Вводные[Приход]),0) -> 0 | AD149: =IFERROR(SUMIF(Вводные[Наименование],Медикаменты[[#This Row],[Наименование]],Вводные[Расход]),0) -> 0 | AE149: =IFERROR(Медикаменты[[#This Row],[Остаток]]+Медикаменты[[#This Row],[Приход общий]]-Медикаменты[[#This Row],[Расход общий]],0) -> 0 | AH149: Перчатки (стер, латекс.) | AI149: пара
S150: =IF(IFERROR(IF(SEARCH(Расчет!$B$8,T150),"!",""),"")="",0,MAX($S$9:S149)+1) -> 0 | T150: Пирацетам (амп., 20%, 5 мл., №10) | U150: уп. | V150: 65 | Y150: =IFERROR(LOOKUP(,-1/($T150=Вводные[Наименование])/(Вводные[Дата]<$U$1),Вводные[Остаток]),0)+IF(Медикаменты[[#This Row],[Дата остатка]]<$U$1,Медикаменты[[#This Row],[Остаток]],0) -> 0 | Z150: =IF(T150="","",SUMPRODUCT((Вводные[Дата]>=$U$1)*(Вводные[Дата]<=$U$2)*(Вводные[Наименование]=$T150),Вводные[Приход])) -> 0 | AA150: =IF(T150="","",SUMPRODUCT((Вводные[Дата]>=$U$1)*(Вводные[Дата]<=$U$2)*(Вводные[Наименование]=$T150),Вводные[Расход])) -> 0 | AB150: =IFERROR(Медикаменты[[#This Row],[Остаток]]+Медикаменты[[#This Row],[Приход за период]]-Медикаменты[[#This Row],[Расход за период]],"") ->  | AC150: =IFERROR(SUMIF(Вводные[Наименование],Медикаменты[[#This Row],[Наименование]],Вводные[Приход]),0) -> 0 | AD150: =IFERROR(SUMIF(Вводные[Наименование],Медикаменты[[#This Row],[Наименование]],Вводные[Расход]),0) -> 0 | AE150: =IFERROR(Медикаменты[[#This Row],[Остаток]]+Медикаменты[[#This Row],[Приход общий]]-Медикаменты[[#This Row],[Расход общий]],0) -> 0 | AH150: Пинцет (многораз.) | AI150: шт
S151: =IF(IFERROR(IF(SEARCH(Расчет!$B$8,T151),"!",""),"")="",0,MAX($S$9:S150)+1) -> 0 | T151: Пирацетам (таб., 400 мг., №60) | U151: уп. | V151: 34 | Y151: =IFERROR(LOOKUP(,-1/($T151=Вводные[Наименование])/(Вводные[Дата]<$U$1),Вводные[Остаток]),0)+IF(Медикаменты[[#This Row],[Дата остатка]]<$U$1,Медикаменты[[#This Row],[Остаток]],0) -> 0 | Z151: =IF(T151="","",SUMPRODUCT((Вводные[Дата]>=$U$1)*(Вводные[Дата]<=$U$2)*(Вводные[Наименование]=$T151),Вводные[Приход])) -> 0 | AA151: =IF(T151="","",SUMPRODUCT((Вводные[Дата]>=$U$1)*(Вводные[Дата]<=$U$2)*(Вводные[Наименование]=$T151),Вводные[Расход])) -> 0 | AB151: =IFERROR(Медикаменты[[#This Row],[Остаток]]+Медикаменты[[#This Row],[Приход за период]]-Медикаменты[[#This Row],[Расход за период]],"") ->  | AC151: =IFERROR(SUMIF(Вводные[Наименование],Медикаменты[[#This Row],[Наименование]],Вводные[Приход]),0) -> 0 | AD151: =IFERROR(SUMIF(Вводные[Наименование],Медикаменты[[#This Row],[Наименование]],Вводные[Расход]),0) -> 0 | AE151: =IFERROR(Медикаменты[[#This Row],[Остаток]]+Медикаменты[[#This Row],[Приход общий]]-Медикаменты[[#This Row],[Расход общий]],0) -> 0 | AH151: Пинцет (однораз., стер.) | AI151: шт
S152: =IF(IFERROR(IF(SEARCH(Расчет!$B$8,T152),"!",""),"")="",0,MAX($S$9:S151)+1) -> 0 | T152: Пиридоксин (р-р для инъекций по 50 мг/1 мл, амп. по 1 мл., № 10) | U152: уп. | V152: 100 | Y152: =IFERROR(LOOKUP(,-1/($T152=Вводные[Наименование])/(Вводные[Дата]<$U$1),Вводные[Остаток]),0)+IF(Медикаменты[[#This Row],[Дата остатка]]<$U$1,Медикаменты[[#This Row],[Остаток]],0) -> 0 | Z152: =IF(T152="","",SUMPRODUCT((Вводные[Дата]>=$U$1)*(Вводные[Дата]<=$U$2)*(Вводные[Наименование]=$T152),Вводные[Приход])) -> 0 | AA152: =IF(T152="","",SUMPRODUCT((Вводные[Дата]>=$U$1)*(Вводные[Дата]<=$U$2)*(Вводные[Наименование]=$T152),Вводные[Расход])) -> 0 | AB152: =IFERROR(Медикаменты[[#This Row],[Остаток]]+Медикаменты[[#This Row],[Приход за период]]-Медикаменты[[#This Row],[Расход за период]],"") ->  | AC152: =IFERROR(SUMIF(Вводные[Наименование],Медикаменты[[#This Row],[Наименование]],Вводные[Приход]),0) -> 0 | AD152: =IFERROR(SUMIF(Вводные[Наименование],Медикаменты[[#This Row],[Наименование]],Вводные[Расход]),0) -> 0 | AE152: =IFERROR(Медикаменты[[#This Row],[Остаток]]+Медикаменты[[#This Row],[Приход общий]]-Медикаменты[[#This Row],[Расход общий]],0) -> 0 | AH152: Пирацетам (амп., 20%, 5 мл., №10) | AI152: уп.
S153: =IF(IFERROR(IF(SEARCH(Расчет!$B$8,T153),"!",""),"")="",0,MAX($S$9:S152)+1) -> 0 | T153: Пиридоксина гидрохлорид (амп., 5%, 1 мл., №10) | U153: уп. | V153: 70 | Y153: =IFERROR(LOOKUP(,-1/($T153=Вводные[Наименование])/(Вводные[Дата]<$U$1),Вводные[Остаток]),0)+IF(Медикаменты[[#This Row],[Дата остатка]]<$U$1,Медикаменты[[#This Row],[Остаток]],0) -> 0 | Z153: =IF(T153="","",SUMPRODUCT((Вводные[Дата]>=$U$1)*(Вводные[Дата]<=$U$2)*(Вводные[Наименование]=$T153),Вводные[Приход])) -> 0 | AA153: =IF(T153="","",SUMPRODUCT((Вводные[Дата]>=$U$1)*(Вводные[Дата]<=$U$2)*(Вводные[Наименование]=$T153),Вводные[Расход])) -> 0 | AB153: =IFERROR(Медикаменты[[#This Row],[Остаток]]+Медикаменты[[#This Row],[Приход за период]]-Медикаменты[[#This Row],[Расход за период]],"") ->  | AC153: =IFERROR(SUMIF(Вводные[Наименование],Медикаменты[[#This Row],[Наименование]],Вводные[Приход]),0) -> 0 | AD153: =IFERROR(SUMIF(Вводные[Наименование],Медикаменты[[#This Row],[Наименование]],Вводные[Расход]),0) -> 0 | AE153: =IFERROR(Медикаменты[[#This Row],[Остаток]]+Медикаменты[[#This Row],[Приход общий]]-Медикаменты[[#This Row],[Расход общий]],0) -> 0 | AH153: Пирацетам (таб., 400 мг., №60) | AI153: уп.
S154: =IF(IFERROR(IF(SEARCH(Расчет!$B$8,T154),"!",""),"")="",0,MAX($S$9:S153)+1) -> 0 | T154: Повязка медицинская (стер., 10х20 см., 25 шт.) | U154: уп. | V154: 1 | Y154: =IFERROR(LOOKUP(,-1/($T154=Вводные[Наименование])/(Вводные[Дата]<$U$1),Вводные[Остаток]),0)+IF(Медикаменты[[#This Row],[Дата остатка]]<$U$1,Медикаменты[[#This Row],[Остаток]],0) -> 0 | Z154: =IF(T154="","",SUMPRODUCT((Вводные[Дата]>=$U$1)*(Вводные[Дата]<=$U$2)*(Вводные[Наименование]=$T154),Вводные[Приход])) -> 0 | AA154: =IF(T154="","",SUMPRODUCT((Вводные[Дата]>=$U$1)*(Вводные[Дата]<=$U$2)*(Вводные[Наименование]=$T154),Вводные[Расход])) -> 0 | AB154: =IFERROR(Медикаменты[[#This Row],[Остаток]]+Медикаменты[[#This Row],[Приход за период]]-Медикаменты[[#This Row],[Расход за период]],"") ->  | AC154: =IFERROR(SUMIF(Вводные[Наименование],Медикаменты[[#This Row],[Наименование]],Вводные[Приход]),0) -> 0 | AD154: =IFERROR(SUMIF(Вводные[Наименование],Медикаменты[[#This Row],[Наименование]],Вводные[Расход]),0) -> 0 | AE154: =IFERROR(Медикаменты[[#This Row],[Остаток]]+Медикаменты[[#This Row],[Приход общий]]-Медикаменты[[#This Row],[Расход общий]],0) -> 0 | AH154: Пиридоксин (р-р для инъекций по 50 мг/1 мл, амп. по 1 мл., № 10) | AI154: уп.
S155: =IF(IFERROR(IF(SEARCH(Расчет!$B$8,T155),"!",""),"")="",0,MAX($S$9:S154)+1) -> 0 | T155: Повязка медицинская (стер., 10х20 см., 50 шт.) | U155: уп. | V155: 1 | Y155: =IFERROR(LOOKUP(,-1/($T155=Вводные[Наименование])/(Вводные[Дата]<$U$1),Вводные[Остаток]),0)+IF(Медикаменты[[#This Row],[Дата остатка]]<$U$1,Медикаменты[[#This Row],[Остаток]],0) -> 0 | Z155: =IF(T155="","",SUMPRODUCT((Вводные[Дата]>=$U$1)*(Вводные[Дата]<=$U$2)*(Вводные[Наименование]=$T155),Вводные[Приход])) -> 0 | AA155: =IF(T155="","",SUMPRODUCT((Вводные[Дата]>=$U$1)*(Вводные[Дата]<=$U$2)*(Вводные[Наименование]=$T155),Вводные[Расход])) -> 0 | AB155: =IFERROR(Медикаменты[[#This Row],[Остаток]]+Медикаменты[[#This Row],[Приход за период]]-Медикаменты[[#This Row],[Расход за период]],"") ->  | AC155: =IFERROR(SUMIF(Вводные[Наименование],Медикаменты[[#This Row],[Наименование]],Вводные[Приход]),0) -> 0 | AD155: =IFERROR(SUMIF(Вводные[Наименование],Медикаменты[[#This Row],[Наименование]],Вводные[Расход]),0) -> 0 | AE155: =IFERROR(Медикаменты[[#This Row],[Остаток]]+Медикаменты[[#This Row],[Приход общий]]-Медикаменты[[#This Row],[Расход общий]],0) -> 0 | AH155: Пиридоксина гидрохлорид (амп., 5%, 1 мл., №10) | AI155: уп.
S156: =IF(IFERROR(IF(SEARCH(Расчет!$B$8,T156),"!",""),"")="",0,MAX($S$9:S155)+1) -> 0 | T156: Повязка медицинская (стер., 9х10 см., 30 шт.) | U156: уп. | V156: 1 | Y156: =IFERROR(LOOKUP(,-1/($T156=Вводные[Наименование])/(Вводные[Дата]<$U$1),Вводные[Остаток]),0)+IF(Медикаменты[[#This Row],[Дата остатка]]<$U$1,Медикаменты[[#This Row],[Остаток]],0) -> 0 | Z156: =IF(T156="","",SUMPRODUCT((Вводные[Дата]>=$U$1)*(Вводные[Дата]<=$U$2)*(Вводные[Наименование]=$T156),Вводные[Приход])) -> 0 | AA156: =IF(T156="","",SUMPRODUCT((Вводные[Дата]>=$U$1)*(Вводные[Дата]<=$U$2)*(Вводные[Наименование]=$T156),Вводные[Расход])) -> 0 | AB156: =IFERROR(Медикаменты[[#This Row],[Остаток]]+Медикаменты[[#This Row],[Приход за период]]-Медикаменты[[#This Row],[Расход за период]],"") ->  | AC156: =IFERROR(SUMIF(Вводные[Наименование],Медикаменты[[#This Row],[Наименование]],Вводные[Приход]),0) -> 0 | AD156: =IFERROR(SUMIF(Вводные[Наименование],Медикаменты[[#This Row],[Наименование]],Вводные[Расход]),0) -> 0 | AE156: =IFERROR(Медикаменты[[#This Row],[Остаток]]+Медикаменты[[#This Row],[Приход общий]]-Медикаменты[[#This Row],[Расход общий]],0) -> 0 | AH156: Повязка медицинская (стер., 10х20 см., 25 шт.) | AI156: уп.
S157: =IF(IFERROR(IF(SEARCH(Расчет!$B$8,T157),"!",""),"")="",0,MAX($S$9:S156)+1) -> 0 | T157: Повязка медицинская (стер., 9х10 см., 50 шт.) | U157: уп. | V157: 1 | Y157: =IFERROR(LOOKUP(,-1/($T157=Вводные[Наименование])/(Вводные[Дата]<$U$1),Вводные[Остаток]),0)+IF(Медикаменты[[#This Row],[Дата остатка]]<$U$1,Медикаменты[[#This Row],[Остаток]],0) -> 0 | Z157: =IF(T157="","",SUMPRODUCT((Вводные[Дата]>=$U$1)*(Вводные[Дата]<=$U$2)*(Вводные[Наименование]=$T157),Вводные[Приход])) -> 0 | AA157: =IF(T157="","",SUMPRODUCT((Вводные[Дата]>=$U$1)*(Вводные[Дата]<=$U$2)*(Вводные[Наименование]=$T157),Вводные[Расход])) -> 0 | AB157: =IFERROR(Медикаменты[[#This Row],[Остаток]]+Медикаменты[[#This Row],[Приход за период]]-Медикаменты[[#This Row],[Расход за период]],"") ->  | AC157: =IFERROR(SUMIF(Вводные[Наименование],Медикаменты[[#This Row],[Наименование]],Вводные[Приход]),0) -> 0 | AD157: =IFERROR(SUMIF(Вводные[Наименование],Медикаменты[[#This Row],[Наименование]],Вводные[Расход]),0) -> 0 | AE157: =IFERROR(Медикаменты[[#This Row],[Остаток]]+Медикаменты[[#This Row],[Приход общий]]-Медикаменты[[#This Row],[Расход общий]],0) -> 0 | AH157: Повязка медицинская (стер., 10х20 см., 50 шт.) | AI157: уп.
S158: =IF(IFERROR(IF(SEARCH(Расчет!$B$8,T158),"!",""),"")="",0,MAX($S$9:S157)+1) -> 0 | T158: Полотенце бумажное (200 шт.) | U158: пач. | V158: 200 | W158: 2018-03-30 | X158: 148 | Y158: =IFERROR(LOOKUP(,-1/($T158=Вводные[Наименование])/(Вводные[Дата]<$U$1),Вводные[Остаток]),0)+IF(Медикаменты[[#This Row],[Дата остатка]]<$U$1,Медикаменты[[#This Row],[Остаток]],0) -> 148 | Z158: =IF(T158="","",SUMPRODUCT((Вводные[Дата]>=$U$1)*(Вводные[Дата]<=$U$2)*(Вводные[Наименование]=$T158),Вводные[Приход])) -> 0 | AA158: =IF(T158="","",SUMPRODUCT((Вводные[Дата]>=$U$1)*(Вводные[Дата]<=$U$2)*(Вводные[Наименование]=$T158),Вводные[Расход])) -> 0 | AB158: =IFERROR(Медикаменты[[#This Row],[Остаток]]+Медикаменты[[#This Row],[Приход за период]]-Медикаменты[[#This Row],[Расход за период]],"") -> 148 | AC158: =IFERROR(SUMIF(Вводные[Наименование],Медикаменты[[#This Row],[Наименование]],Вводные[Приход]),0) -> 0 | AD158: =IFERROR(SUMIF(Вводные[Наименование],Медикаменты[[#This Row],[Наименование]],Вводные[Расход]),0) -> 0 | AE158: =IFERROR(Медикаменты[[#This Row],[Остаток]]+Медикаменты[[#This Row],[Приход общий]]-Медикаменты[[#This Row],[Расход общий]],0) -> 148 | AH158: Повязка медицинская (стер., 9х10 см., 30 шт.) | AI158: уп.
S159: =IF(IFERROR(IF(SEARCH(Расчет!$B$8,T159),"!",""),"")="",0,MAX($S$9:S158)+1) -> 0 | T159: Преднизол (амп., 30мг/мл, 1 мл., №3) | U159: уп. | V159: 58 | Y159: =IFERROR(LOOKUP(,-1/($T159=Вводные[Наименование])/(Вводные[Дата]<$U$1),Вводные[Остаток]),0)+IF(Медикаменты[[#This Row],[Дата остатка]]<$U$1,Медикаменты[[#This Row],[Остаток]],0) -> 0 | Z159: =IF(T159="","",SUMPRODUCT((Вводные[Дата]>=$U$1)*(Вводные[Дата]<=$U$2)*(Вводные[Наименование]=$T159),Вводные[Приход])) -> 0 | AA159: =IF(T159="","",SUMPRODUCT((Вводные[Дата]>=$U$1)*(Вводные[Дата]<=$U$2)*(Вводные[Наименование]=$T159),Вводные[Расход])) -> 0 | AB159: =IFERROR(Медикаменты[[#This Row],[Остаток]]+Медикаменты[[#This Row],[Приход за период]]-Медикаменты[[#This Row],[Расход за период]],"") ->  | AC159: =IFERROR(SUMIF(Вводные[Наименование],Медикаменты[[#This Row],[Наименование]],Вводные[Приход]),0) -> 0 | AD159: =IFERROR(SUMIF(Вводные[Наименование],Медикаменты[[#This Row],[Наименование]],Вводные[Расход]),0) -> 0 | AE159: =IFERROR(Медикаменты[[#This Row],[Остаток]]+Медикаменты[[#This Row],[Приход общий]]-Медикаменты[[#This Row],[Расход общий]],0) -> 0 | AH159: Повязка медицинская (стер., 9х10 см., 50 шт.) | AI159: уп.
S160: =IF(IFERROR(IF(SEARCH(Расчет!$B$8,T160),"!",""),"")="",0,MAX($S$9:S159)+1) -> 0 | T160: Пробирка Vacuette (4 мл., 50 шт.) | U160: шт. | V160: 5500 | W160: 2018-04-01 | X160: 100 | Y160: =IFERROR(LOOKUP(,-1/($T160=Вводные[Наименование])/(Вводные[Дата]<$U$1),Вводные[Остаток]),0)+IF(Медикаменты[[#This Row],[Дата остатка]]<$U$1,Медикаменты[[#This Row],[Остаток]],0) -> 100 | Z160: =IF(T160="","",SUMPRODUCT((Вводные[Дата]>=$U$1)*(Вводные[Дата]<=$U$2)*(Вводные[Наименование]=$T160),Вводные[Приход])) -> 0 | AA160: =IF(T160="","",SUMPRODUCT((Вводные[Дата]>=$U$1)*(Вводные[Дата]<=$U$2)*(Вводные[Наименование]=$T160),Вводные[Расход])) -> 0 | AB160: =IFERROR(Медикаменты[[#This Row],[Остаток]]+Медикаменты[[#This Row],[Приход за период]]-Медикаменты[[#This Row],[Расход за период]],"") -> 100 | AC160: =IFERROR(SUMIF(Вводные[Наименование],Медикаменты[[#This Row],[Наименование]],Вводные[Приход]),0) -> 0 | AD160: =IFERROR(SUMIF(Вводные[Наименование],Медикаменты[[#This Row],[Наименование]],Вводные[Расход]),0) -> 0 | AE160: =IFERROR(Медикаменты[[#This Row],[Остаток]]+Медикаменты[[#This Row],[Приход общий]]-Медикаменты[[#This Row],[Расход общий]],0) -> 100 | AH160: Полотенце бумажное (200 шт.) | AI160: пач.
S161: =IF(IFERROR(IF(SEARCH(Расчет!$B$8,T161),"!",""),"")="",0,MAX($S$9:S160)+1) -> 0 | T161: Пробирка Vacuette (8 мл., 50 шт.) | U161: шт. | V161: 1200 | Y161: =IFERROR(LOOKUP(,-1/($T161=Вводные[Наименование])/(Вводные[Дата]<$U$1),Вводные[Остаток]),0)+IF(Медикаменты[[#This Row],[Дата остатка]]<$U$1,Медикаменты[[#This Row],[Остаток]],0) -> 0 | Z161: =IF(T161="","",SUMPRODUCT((Вводные[Дата]>=$U$1)*(Вводные[Дата]<=$U$2)*(Вводные[Наименование]=$T161),Вводные[Приход])) -> 0 | AA161: =IF(T161="","",SUMPRODUCT((Вводные[Дата]>=$U$1)*(Вводные[Дата]<=$U$2)*(Вводные[Наименование]=$T161),Вводные[Расход])) -> 0 | AB161: =IFERROR(Медикаменты[[#This Row],[Остаток]]+Медикаменты[[#This Row],[Приход за период]]-Медикаменты[[#This Row],[Расход за период]],"") ->  | AC161: =IFERROR(SUMIF(Вводные[Наименование],Медикаменты[[#This Row],[Наименование]],Вводные[Приход]),0) -> 0 | AD161: =IFERROR(SUMIF(Вводные[Наименование],Медикаменты[[#This Row],[Наименование]],Вводные[Расход]),0) -> 0 | AE161: =IFERROR(Медикаменты[[#This Row],[Остаток]]+Медикаменты[[#This Row],[Приход общий]]-Медикаменты[[#This Row],[Расход общий]],0) -> 0 | AH161: Преднизол (амп., 30мг/мл, 1 мл., №3) | AI161: уп.
S162: =IF(IFERROR(IF(SEARCH(Расчет!$B$8,T162),"!",""),"")="",0,MAX($S$9:S161)+1) -> 0 | T162: Пробирка Vacuette (9 мл., 50 шт.) | U162: шт. | V162: 1000 | Y162: =IFERROR(LOOKUP(,-1/($T162=Вводные[Наименование])/(Вводные[Дата]<$U$1),Вводные[Остаток]),0)+IF(Медикаменты[[#This Row],[Дата остатка]]<$U$1,Медикаменты[[#This Row],[Остаток]],0) -> 0 | Z162: =IF(T162="","",SUMPRODUCT((Вводные[Дата]>=$U$1)*(Вводные[Дата]<=$U$2)*(Вводные[Наименование]=$T162),Вводные[Приход])) -> 0 | AA162: =IF(T162="","",SUMPRODUCT((Вводные[Дата]>=$U$1)*(Вводные[Дата]<=$U$2)*(Вводные[Наименование]=$T162),Вводные[Расход])) -> 0 | AB162: =IFERROR(Медикаменты[[#This Row],[Остаток]]+Медикаменты[[#This Row],[Приход за период]]-Медикаменты[[#This Row],[Расход за период]],"") ->  | AC162: =IFERROR(SUMIF(Вводные[Наименование],Медикаменты[[#This Row],[Наименование]],Вводные[Приход]),0) -> 0 | AD162: =IFERROR(SUMIF(Вводные[Наименование],Медикаменты[[#This Row],[Наименование]],Вводные[Расход]),0) -> 0 | AE162: =IFERROR(Медикаменты[[#This Row],[Остаток]]+Медикаменты[[#This Row],[Приход общий]]-Медикаменты[[#This Row],[Расход общий]],0) -> 0 | AH162: Пробирка Vacuette (4 мл., 50 шт.) | AI162: шт.
S163: =IF(IFERROR(IF(SEARCH(Расчет!$B$8,T163),"!",""),"")="",0,MAX($S$9:S162)+1) -> 0 | T163: Пробирка с ватным тампоном стерильная (без наполнителя) | U163: шт | V163: 100 | Y163: =IFERROR(LOOKUP(,-1/($T163=Вводные[Наименование])/(Вводные[Дата]<$U$1),Вводные[Остаток]),0)+IF(Медикаменты[[#This Row],[Дата остатка]]<$U$1,Медикаменты[[#This Row],[Остаток]],0) -> 0 | Z163: =IF(T163="","",SUMPRODUCT((Вводные[Дата]>=$U$1)*(Вводные[Дата]<=$U$2)*(Вводные[Наименование]=$T163),Вводные[Приход])) -> 0 | AA163: =IF(T163="","",SUMPRODUCT((Вводные[Дата]>=$U$1)*(Вводные[Дата]<=$U$2)*(Вводные[Наименование]=$T163),Вводные[Расход])) -> 0 | AB163: =IFERROR(Медикаменты[[#This Row],[Остаток]]+Медикаменты[[#This Row],[Приход за период]]-Медикаменты[[#This Row],[Расход за период]],"") ->  | AC163: =IFERROR(SUMIF(Вводные[Наименование],Медикаменты[[#This Row],[Наименование]],Вводные[Приход]),0) -> 0 | AD163: =IFERROR(SUMIF(Вводные[Наименование],Медикаменты[[#This Row],[Наименование]],Вводные[Расход]),0) -> 0 | AE163: =IFERROR(Медикаменты[[#This Row],[Остаток]]+Медикаменты[[#This Row],[Приход общий]]-Медикаменты[[#This Row],[Расход общий]],0) -> 0 | AH163: Пробирка Vacuette (8 мл., 50 шт.) | AI163: шт.
S164: =IF(IFERROR(IF(SEARCH(Расчет!$B$8,T164),"!",""),"")="",0,MAX($S$9:S163)+1) -> 0 | T164: Пробирки ВАКУТЫ | U164: 0 | V164: 0 | W164: 2018-06-07 | X164: 40 | Y164: =IFERROR(LOOKUP(,-1/($T164=Вводные[Наименование])/(Вводные[Дата]<$U$1),Вводные[Остаток]),0)+IF(Медикаменты[[#This Row],[Дата остатка]]<$U$1,Медикаменты[[#This Row],[Остаток]],0) -> 0 | Z164: =IF(T164="","",SUMPRODUCT((Вводные[Дата]>=$U$1)*(Вводные[Дата]<=$U$2)*(Вводные[Наименование]=$T164),Вводные[Приход])) -> 0 | AA164: =IF(T164="","",SUMPRODUCT((Вводные[Дата]>=$U$1)*(Вводные[Дата]<=$U$2)*(Вводные[Наименование]=$T164),Вводные[Расход])) -> 0 | AB164: =IFERROR(Медикаменты[[#This Row],[Остаток]]+Медикаменты[[#This Row],[Приход за период]]-Медикаменты[[#This Row],[Расход за период]],"") -> 40 | AC164: =IFERROR(SUMIF(Вводные[Наименование],Медикаменты[[#This Row],[Наименование]],Вводные[Приход]),0) -> 0 | AD164: =IFERROR(SUMIF(Вводные[Наименование],Медикаменты[[#This Row],[Наименование]],Вводные[Расход]),0) -> 0 | AE164: =IFERROR(Медикаменты[[#This Row],[Остаток]]+Медикаменты[[#This Row],[Приход общий]]-Медикаменты[[#This Row],[Расход общий]],0) -> 40 | AH164: Пробирка Vacuette (9 мл., 50 шт.) | AI164: шт.
S165: =IF(IFERROR(IF(SEARCH(Расчет!$B$8,T165),"!",""),"")="",0,MAX($S$9:S164)+1) -> 0 | T165: Проклин антисептик (1 л. с триггером) | U165: шт. | V165: 200 | Y165: =IFERROR(LOOKUP(,-1/($T165=Вводные[Наименование])/(Вводные[Дата]<$U$1),Вводные[Остаток]),0)+IF(Медикаменты[[#This Row],[Дата остатка]]<$U$1,Медикаменты[[#This Row],[Остаток]],0) -> 0 | Z165: =IF(T165="","",SUMPRODUCT((Вводные[Дата]>=$U$1)*(Вводные[Дата]<=$U$2)*(Вводные[Наименование]=$T165),Вводные[Приход])) -> 0 | AA165: =IF(T165="","",SUMPRODUCT((Вводные[Дата]>=$U$1)*(Вводные[Дата]<=$U$2)*(Вводные[Наименование]=$T165),Вводные[Расход])) -> 0 | AB165: =IFERROR(Медикаменты[[#This Row],[Остаток]]+Медикаменты[[#This Row],[Приход за период]]-Медикаменты[[#This Row],[Расход за период]],"") ->  | AC165: =IFERROR(SUMIF(Вводные[Наименование],Медикаменты[[#This Row],[Наименование]],Вводные[Приход]),0) -> 0 | AD165: =IFERROR(SUMIF(Вводные[Наименование],Медикаменты[[#This Row],[Наименование]],Вводные[Расход]),0) -> 0 | AE165: =IFERROR(Медикаменты[[#This Row],[Остаток]]+Медикаменты[[#This Row],[Приход общий]]-Медикаменты[[#This Row],[Расход общий]],0) -> 0 | AH165: Пробирка с ватным тампоном стерильная (без наполнителя) | AI165: шт
S166: =IF(IFERROR(IF(SEARCH(Расчет!$B$8,T166),"!",""),"")="",0,MAX($S$9:S165)+1) -> 0 | T166: Простыня (нест, 70х80 см., 200 шт.) | U166: рул. | V166: 45 | Y166: =IFERROR(LOOKUP(,-1/($T166=Вводные[Наименование])/(Вводные[Дата]<$U$1),Вводные[Остаток]),0)+IF(Медикаменты[[#This Row],[Дата остатка]]<$U$1,Медикаменты[[#This Row],[Остаток]],0) -> 0 | Z166: =IF(T166="","",SUMPRODUCT((Вводные[Дата]>=$U$1)*(Вводные[Дата]<=$U$2)*(Вводные[Наименование]=$T166),Вводные[Приход])) -> 0 | AA166: =IF(T166="","",SUMPRODUCT((Вводные[Дата]>=$U$1)*(Вводные[Дата]<=$U$2)*(Вводные[Наименование]=$T166),Вводные[Расход])) -> 0 | AB166: =IFERROR(Медикаменты[[#This Row],[Остаток]]+Медикаменты[[#This Row],[Приход за период]]-Медикаменты[[#This Row],[Расход за период]],"") ->  | AC166: =IFERROR(SUMIF(Вводные[Наименование],Медикаменты[[#This Row],[Наименование]],Вводные[Приход]),0) -> 0 | AD166: =IFERROR(SUMIF(Вводные[Наименование],Медикаменты[[#This Row],[Наименование]],Вводные[Расход]),0) -> 0 | AE166: =IFERROR(Медикаменты[[#This Row],[Остаток]]+Медикаменты[[#This Row],[Приход общий]]-Медикаменты[[#This Row],[Расход общий]],0) -> 0 | AH166: Пробирки ВАКУТЫ
S167: =IF(IFERROR(IF(SEARCH(Расчет!$B$8,T167),"!",""),"")="",0,MAX($S$9:S166)+1) -> 0 | T167: Пульмикорт (суспензия для ингаляций 0,5 мг/мл, 2 мл., №20) | U167: уп. | V167: 50 | Y167: =IFERROR(LOOKUP(,-1/($T167=Вводные[Наименование])/(Вводные[Дата]<$U$1),Вводные[Остаток]),0)+IF(Медикаменты[[#This Row],[Дата остатка]]<$U$1,Медикаменты[[#This Row],[Остаток]],0) -> 0 | Z167: =IF(T167="","",SUMPRODUCT((Вводные[Дата]>=$U$1)*(Вводные[Дата]<=$U$2)*(Вводные[Наименование]=$T167),Вводные[Приход])) -> 0 | AA167: =IF(T167="","",SUMPRODUCT((Вводные[Дата]>=$U$1)*(Вводные[Дата]<=$U$2)*(Вводные[Наименование]=$T167),Вводные[Расход])) -> 0 | AB167: =IFERROR(Медикаменты[[#This Row],[Остаток]]+Медикаменты[[#This Row],[Приход за период]]-Медикаменты[[#This Row],[Расход за период]],"") ->  | AC167: =IFERROR(SUMIF(Вводные[Наименование],Медикаменты[[#This Row],[Наименование]],Вводные[Приход]),0) -> 0 | AD167: =IFERROR(SUMIF(Вводные[Наименование],Медикаменты[[#This Row],[Наименование]],Вводные[Расход]),0) -> 0 | AE167: =IFERROR(Медикаменты[[#This Row],[Остаток]]+Медикаменты[[#This Row],[Приход общий]]-Медикаменты[[#This Row],[Расход общий]],0) -> 0 | AH167: Проклин антисептик (1 л. с триггером) | AI167: шт.
S168: =IF(IFERROR(IF(SEARCH(Расчет!$B$8,T168),"!",""),"")="",0,MAX($S$9:S167)+1) -> 0 | T168: Рентгеновская пленка Carestream Health Dry View 5700 Laser Imager (20х25 см., 125 л.) | U168: уп. | V168: 10 | Y168: =IFERROR(LOOKUP(,-1/($T168=Вводные[Наименование])/(Вводные[Дата]<$U$1),Вводные[Остаток]),0)+IF(Медикаменты[[#This Row],[Дата остатка]]<$U$1,Медикаменты[[#This Row],[Остаток]],0) -> 0 | Z168: =IF(T168="","",SUMPRODUCT((Вводные[Дата]>=$U$1)*(Вводные[Дата]<=$U$2)*(Вводные[Наименование]=$T168),Вводные[Приход])) -> 0 | AA168: =IF(T168="","",SUMPRODUCT((Вводные[Дата]>=$U$1)*(Вводные[Дата]<=$U$2)*(Вводные[Наименование]=$T168),Вводные[Расход])) -> 0 | AB168: =IFERROR(Медикаменты[[#This Row],[Остаток]]+Медикаменты[[#This Row],[Приход за период]]-Медикаменты[[#This Row],[Расход за период]],"") ->  | AC168: =IFERROR(SUMIF(Вводные[Наименование],Медикаменты[[#This Row],[Наименование]],Вводные[Приход]),0) -> 0 | AD168: =IFERROR(SUMIF(Вводные[Наименование],Медикаменты[[#This Row],[Наименование]],Вводные[Расход]),0) -> 0 | AE168: =IFERROR(Медикаменты[[#This Row],[Остаток]]+Медикаменты[[#This Row],[Приход общий]]-Медикаменты[[#This Row],[Расход общий]],0) -> 0 | AH168: Простыня (нест, 70х80 см., 200 шт.) | AI168: рул.
S169: =IF(IFERROR(IF(SEARCH(Расчет!$B$8,T169),"!",""),"")="",0,MAX($S$9:S168)+1) -> 0 | T169: Рентгеновская пленка Carestream Health Dry View 5700 Laser Imager (35х43 см., 125 л.) | U169: уп. | V169: 6 | Y169: =IFERROR(LOOKUP(,-1/($T169=Вводные[Наименование])/(Вводные[Дата]<$U$1),Вводные[Остаток]),0)+IF(Медикаменты[[#This Row],[Дата остатка]]<$U$1,Медикаменты[[#This Row],[Остаток]],0) -> 0 | Z169: =IF(T169="","",SUMPRODUCT((Вводные[Дата]>=$U$1)*(Вводные[Дата]<=$U$2)*(Вводные[Наименование]=$T169),Вводные[Приход])) -> 0 | AA169: =IF(T169="","",SUMPRODUCT((Вводные[Дата]>=$U$1)*(Вводные[Дата]<=$U$2)*(Вводные[Наименование]=$T169),Вводные[Расход])) -> 0 | AB169: =IFERROR(Медикаменты[[#This Row],[Остаток]]+Медикаменты[[#This Row],[Приход за период]]-Медикаменты[[#This Row],[Расход за период]],"") ->  | AC169: =IFERROR(SUMIF(Вводные[Наименование],Медикаменты[[#This Row],[Наименование]],Вводные[Приход]),0) -> 0 | AD169: =IFERROR(SUMIF(Вводные[Наименование],Медикаменты[[#This Row],[Наименование]],Вводные[Расход]),0) -> 0 | AE169: =IFERROR(Медикаменты[[#This Row],[Остаток]]+Медикаменты[[#This Row],[Приход общий]]-Медикаменты[[#This Row],[Расход общий]],0) -> 0 | AH169: Пульмикорт (суспензия для ингаляций 0,5 мг/мл, 2 мл., №20) | AI169: уп.
S170: =IF(IFERROR(IF(SEARCH(Расчет!$B$8,T170),"!",""),"")="",0,MAX($S$9:S169)+1) -> 0 | T170: Рибоксин (таб., 200 мг., №50) | U170: уп. | V170: 5 | W170: 2018-03-30 | X170: 300 | Y170: =IFERROR(LOOKUP(,-1/($T170=Вводные[Наименование])/(Вводные[Дата]<$U$1),Вводные[Остаток]),0)+IF(Медикаменты[[#This Row],[Дата остатка]]<$U$1,Медикаменты[[#This Row],[Остаток]],0) -> 300 | Z170: =IF(T170="","",SUMPRODUCT((Вводные[Дата]>=$U$1)*(Вводные[Дата]<=$U$2)*(Вводные[Наименование]=$T170),Вводные[Приход])) -> 0 | AA170: =IF(T170="","",SUMPRODUCT((Вводные[Дата]>=$U$1)*(Вводные[Дата]<=$U$2)*(Вводные[Наименование]=$T170),Вводные[Расход])) -> 0 | AB170: =IFERROR(Медикаменты[[#This Row],[Остаток]]+Медикаменты[[#This Row],[Приход за период]]-Медикаменты[[#This Row],[Расход за период]],"") -> 300 | AC170: =IFERROR(SUMIF(Вводные[Наименование],Медикаменты[[#This Row],[Наименование]],Вводные[Приход]),0) -> 0 | AD170: =IFERROR(SUMIF(Вводные[Наименование],Медикаменты[[#This Row],[Наименование]],Вводные[Расход]),0) -> 0 | AE170: =IFERROR(Медикаменты[[#This Row],[Остаток]]+Медикаменты[[#This Row],[Приход общий]]-Медикаменты[[#This Row],[Расход общий]],0) -> 300 | AH170: Рентгеновская пленка Carestream Health Dry View 5700 Laser Imager (20х25 см., 125 л.) | AI170: уп.
S171: =IF(IFERROR(IF(SEARCH(Расчет!$B$8,T171),"!",""),"")="",0,MAX($S$9:S170)+1) -> 0 | T171: Роторасширитель с фиксатором для детей | U171: шт | V171: 7 | Y171: =IFERROR(LOOKUP(,-1/($T171=Вводные[Наименование])/(Вводные[Дата]<$U$1),Вводные[Остаток]),0)+IF(Медикаменты[[#This Row],[Дата остатка]]<$U$1,Медикаменты[[#This Row],[Остаток]],0) -> 0 | Z171: =IF(T171="","",SUMPRODUCT((Вводные[Дата]>=$U$1)*(Вводные[Дата]<=$U$2)*(Вводные[Наименование]=$T171),Вводные[Приход])) -> 0 | AA171: =IF(T171="","",SUMPRODUCT((Вводные[Дата]>=$U$1)*(Вводные[Дата]<=$U$2)*(Вводные[Наименование]=$T171),Вводные[Расход])) -> 0 | AB171: =IFERROR(Медикаменты[[#This Row],[Остаток]]+Медикаменты[[#This Row],[Приход за период]]-Медикаменты[[#This Row],[Расход за период]],"") ->  | AC171: =IFERROR(SUMIF(Вводные[Наименование],Медикаменты[[#This Row],[Наименование]],Вводные[Приход]),0) -> 0 | AD171: =IFERROR(SUMIF(Вводные[Наименование],Медикаменты[[#This Row],[Наименование]],Вводные[Расход]),0) -> 0 | AE171: =IFERROR(Медикаменты[[#This Row],[Остаток]]+Медикаменты[[#This Row],[Приход общий]]-Медикаменты[[#This Row],[Расход общий]],0) -> 0 | AH171: Рентгеновская пленка Carestream Health Dry View 5700 Laser Imager (35х43 см., 125 л.) | AI171: уп.
S172: =IF(IFERROR(IF(SEARCH(Расчет!$B$8,T172),"!",""),"")="",0,MAX($S$9:S171)+1) -> 0 | T172: Салфетка (спанлейс, 30х40, 100 шт.) | U172: уп. | V172: 140 | W172: 2018-03-30 | X172: 22 | Y172: =IFERROR(LOOKUP(,-1/($T172=Вводные[Наименование])/(Вводные[Дата]<$U$1),Вводные[Остаток]),0)+IF(Медикаменты[[#This Row],[Дата остатка]]<$U$1,Медикаменты[[#This Row],[Остаток]],0) -> 22 | Z172: =IF(T172="","",SUMPRODUCT((Вводные[Дата]>=$U$1)*(Вводные[Дата]<=$U$2)*(Вводные[Наименование]=$T172),Вводные[Приход])) -> 0 | AA172: =IF(T172="","",SUMPRODUCT((Вводные[Дата]>=$U$1)*(Вводные[Дата]<=$U$2)*(Вводные[Наименование]=$T172),Вводные[Расход])) -> 0 | AB172: =IFERROR(Медикаменты[[#This Row],[Остаток]]+Медикаменты[[#This Row],[Приход за период]]-Медикаменты[[#This Row],[Расход за период]],"") -> 22 | AC172: =IFERROR(SUMIF(Вводные[Наименование],Медикаменты[[#This Row],[Наименование]],Вводные[Приход]),0) -> 0 | AD172: =IFERROR(SUMIF(Вводные[Наименование],Медикаменты[[#This Row],[Наименование]],Вводные[Расход]),0) -> 0 | AE172: =IFERROR(Медикаменты[[#This Row],[Остаток]]+Медикаменты[[#This Row],[Приход общий]]-Медикаменты[[#This Row],[Расход общий]],0) -> 22 | AH172: Рибоксин (таб., 200 мг., №50) | AI172: уп.
S173: =IF(IFERROR(IF(SEARCH(Расчет!$B$8,T173),"!",""),"")="",0,MAX($S$9:S172)+1) -> 0 | T173: Салфетка (стер., 110х85 мм., 70%) | U173: шт. | V173: 3000 | Y173: =IFERROR(LOOKUP(,-1/($T173=Вводные[Наименование])/(Вводные[Дата]<$U$1),Вводные[Остаток]),0)+IF(Медикаменты[[#This Row],[Дата остатка]]<$U$1,Медикаменты[[#This Row],[Остаток]],0) -> 0 | Z173: =IF(T173="","",SUMPRODUCT((Вводные[Дата]>=$U$1)*(Вводные[Дата]<=$U$2)*(Вводные[Наименование]=$T173),Вводные[Приход])) -> 0 | AA173: =IF(T173="","",SUMPRODUCT((Вводные[Дата]>=$U$1)*(Вводные[Дата]<=$U$2)*(Вводные[Наименование]=$T173),Вводные[Расход])) -> 0 | AB173: =IFERROR(Медикаменты[[#This Row],[Остаток]]+Медикаменты[[#This Row],[Приход за период]]-Медикаменты[[#This Row],[Расход за период]],"") ->  | AC173: =IFERROR(SUMIF(Вводные[Наименование],Медикаменты[[#This Row],[Наименование]],Вводные[Приход]),0) -> 0 | AD173: =IFERROR(SUMIF(Вводные[Наименование],Медикаменты[[#This Row],[Наименование]],Вводные[Расход]),0) -> 0 | AE173: =IFERROR(Медикаменты[[#This Row],[Остаток]]+Медикаменты[[#This Row],[Приход общий]]-Медикаменты[[#This Row],[Расход общий]],0) -> 0 | AH173: Роторасширитель с фиксатором для детей | AI173: шт
S174: =IF(IFERROR(IF(SEARCH(Расчет!$B$8,T174),"!",""),"")="",0,MAX($S$9:S173)+1) -> 0 | T174: Салфетка (стер., 14х16 см., №10) | U174: уп. | V174: 200 | W174: 00:00:00 | X174: 0 | Y174: =IFERROR(LOOKUP(,-1/($T174=Вводные[Наименование])/(Вводные[Дата]<$U$1),Вводные[Остаток]),0)+IF(Медикаменты[[#This Row],[Дата остатка]]<$U$1,Медикаменты[[#This Row],[Остаток]],0) -> 0 | Z174: =IF(T174="","",SUMPRODUCT((Вводные[Дата]>=$U$1)*(Вводные[Дата]<=$U$2)*(Вводные[Наименование]=$T174),Вводные[Приход])) -> 0 | AA174: =IF(T174="","",SUMPRODUCT((Вводные[Дата]>=$U$1)*(Вводные[Дата]<=$U$2)*(Вводные[Наименование]=$T174),Вводные[Расход])) -> 0 | AB174: =IFERROR(Медикаменты[[#This Row],[Остаток]]+Медикаменты[[#This Row],[Приход за период]]-Медикаменты[[#This Row],[Расход за период]],"") -> 0 | AC174: =IFERROR(SUMIF(Вводные[Наименование],Медикаменты[[#This Row],[Наименование]],Вводные[Приход]),0) -> 0 | AD174: =IFERROR(SUMIF(Вводные[Наименование],Медикаменты[[#This Row],[Наименование]],Вводные[Расход]),0) -> 0 | AE174: =IFERROR(Медикаменты[[#This Row],[Остаток]]+Медикаменты[[#This Row],[Приход общий]]-Медикаменты[[#This Row],[Расход общий]],0) -> 0 | AH174: Салфетка (спанлейс, 30х40, 100 шт.) | AI174: уп.
S175: =IF(IFERROR(IF(SEARCH(Расчет!$B$8,T175),"!",""),"")="",0,MAX($S$9:S174)+1) -> 0 | T175: Салфетка (стер., 5х5 см., №10) | U175: уп. | V175: 700 | W175: 2018-06-07 | X175: 73 | Y175: =IFERROR(LOOKUP(,-1/($T175=Вводные[Наименование])/(Вводные[Дата]<$U$1),Вводные[Остаток]),0)+IF(Медикаменты[[#This Row],[Дата остатка]]<$U$1,Медикаменты[[#This Row],[Остаток]],0) -> 0 | Z175: =IF(T175="","",SUMPRODUCT((Вводные[Дата]>=$U$1)*(Вводные[Дата]<=$U$2)*(Вводные[Наименование]=$T175),Вводные[Приход])) -> 0 | AA175: =IF(T175="","",SUMPRODUCT((Вводные[Дата]>=$U$1)*(Вводные[Дата]<=$U$2)*(Вводные[Наименование]=$T175),Вводные[Расход])) -> 0 | AB175: =IFERROR(Медикаменты[[#This Row],[Остаток]]+Медикаменты[[#This Row],[Приход за период]]-Медикаменты[[#This Row],[Расход за период]],"") -> 73 | AC175: =IFERROR(SUMIF(Вводные[Наименование],Медикаменты[[#This Row],[Наименование]],Вводные[Приход]),0) -> 0 | AD175: =IFERROR(SUMIF(Вводные[Наименование],Медикаменты[[#This Row],[Наименование]],Вводные[Расход]),0) -> 0 | AE175: =IFERROR(Медикаменты[[#This Row],[Остаток]]+Медикаменты[[#This Row],[Приход общий]]-Медикаменты[[#This Row],[Расход общий]],0) -> 73 | AH175: Салфетка (стер., 110х85 мм., 70%) | AI175: шт.
S176: =IF(IFERROR(IF(SEARCH(Расчет!$B$8,T176),"!",""),"")="",0,MAX($S$9:S175)+1) -> 0 | T176: Салфетка (стер., 60х100 мм., 70%) | U176: шт. | V176: 30000 | Y176: =IFERROR(LOOKUP(,-1/($T176=Вводные[Наименование])/(Вводные[Дата]<$U$1),Вводные[Остаток]),0)+IF(Медикаменты[[#This Row],[Дата остатка]]<$U$1,Медикаменты[[#This Row],[Остаток]],0) -> 0 | Z176: =IF(T176="","",SUMPRODUCT((Вводные[Дата]>=$U$1)*(Вводные[Дата]<=$U$2)*(Вводные[Наименование]=$T176),Вводные[Приход])) -> 0 | AA176: =IF(T176="","",SUMPRODUCT((Вводные[Дата]>=$U$1)*(Вводные[Дата]<=$U$2)*(Вводные[Наименование]=$T176),Вводные[Расход])) -> 0 | AB176: =IFERROR(Медикаменты[[#This Row],[Остаток]]+Медикаменты[[#This Row],[Приход за период]]-Медикаменты[[#This Row],[Расход за период]],"") ->  | AC176: =IFERROR(SUMIF(Вводные[Наименование],Медикаменты[[#This Row],[Наименование]],Вводные[Приход]),0) -> 0 | AD176: =IFERROR(SUMIF(Вводные[Наименование],Медикаменты[[#This Row],[Наименование]],Вводные[Расход]),0) -> 0 | AE176: =IFERROR(Медикаменты[[#This Row],[Остаток]]+Медикаменты[[#This Row],[Приход общий]]-Медикаменты[[#This Row],[Расход общий]],0) -> 0 | AH176: Салфетка (стер., 14х16 см., №10) | AI176: уп.
S177: =IF(IFERROR(IF(SEARCH(Расчет!$B$8,T177),"!",""),"")="",0,MAX($S$9:S176)+1) -> 0 | T177: Сальбутамол (12 мл.) | U177: уп. | V177: 123 | Y177: =IFERROR(LOOKUP(,-1/($T177=Вводные[Наименование])/(Вводные[Дата]<$U$1),Вводные[Остаток]),0)+IF(Медикаменты[[#This Row],[Дата остатка]]<$U$1,Медикаменты[[#This Row],[Остаток]],0) -> 0 | Z177: =IF(T177="","",SUMPRODUCT((Вводные[Дата]>=$U$1)*(Вводные[Дата]<=$U$2)*(Вводные[Наименование]=$T177),Вводные[Приход])) -> 0 | AA177: =IF(T177="","",SUMPRODUCT((Вводные[Дата]>=$U$1)*(Вводные[Дата]<=$U$2)*(Вводные[Наименование]=$T177),Вводные[Расход])) -> 0 | AB177: =IFERROR(Медикаменты[[#This Row],[Остаток]]+Медикаменты[[#This Row],[Приход за период]]-Медикаменты[[#This Row],[Расход за период]],"") ->  | AC177: =IFERROR(SUMIF(Вводные[Наименование],Медикаменты[[#This Row],[Наименование]],Вводные[Приход]),0) -> 0 | AD177: =IFERROR(SUMIF(Вводные[Наименование],Медикаменты[[#This Row],[Наименование]],Вводные[Расход]),0) -> 0 | AE177: =IFERROR(Медикаменты[[#This Row],[Остаток]]+Медикаменты[[#This Row],[Приход общий]]-Медикаменты[[#This Row],[Расход общий]],0) -> 0 | AH177: Салфетка (стер., 5х5 см., №10) | AI177: уп.
S178: =IF(IFERROR(IF(SEARCH(Расчет!$B$8,T178),"!",""),"")="",0,MAX($S$9:S177)+1) -> 0 | T178: Сбор успокоительный (50,0 г.) | U178: 0 | V178: 0 | Y178: =IFERROR(LOOKUP(,-1/($T178=Вводные[Наименование])/(Вводные[Дата]<$U$1),Вводные[Остаток]),0)+IF(Медикаменты[[#This Row],[Дата остатка]]<$U$1,Медикаменты[[#This Row],[Остаток]],0) -> 0 | Z178: =IF(T178="","",SUMPRODUCT((Вводные[Дата]>=$U$1)*(Вводные[Дата]<=$U$2)*(Вводные[Наименование]=$T178),Вводные[Приход])) -> 0 | AA178: =IF(T178="","",SUMPRODUCT((Вводные[Дата]>=$U$1)*(Вводные[Дата]<=$U$2)*(Вводные[Наименование]=$T178),Вводные[Расход])) -> 0 | AB178: =IFERROR(Медикаменты[[#This Row],[Остаток]]+Медикаменты[[#This Row],[Приход за период]]-Медикаменты[[#This Row],[Расход за период]],"") ->  | AC178: =IFERROR(SUMIF(Вводные[Наименование],Медикаменты[[#This Row],[Наименование]],Вводные[Приход]),0) -> 0 | AD178: =IFERROR(SUMIF(Вводные[Наименование],Медикаменты[[#This Row],[Наименование]],Вводные[Расход]),0) -> 0 | AE178: =IFERROR(Медикаменты[[#This Row],[Остаток]]+Медикаменты[[#This Row],[Приход общий]]-Медикаменты[[#This Row],[Расход общий]],0) -> 0 | AH178: Салфетка (стер., 60х100 мм., 70%) | AI178: шт.
S179: =IF(IFERROR(IF(SEARCH(Расчет!$B$8,T179),"!",""),"")="",0,MAX($S$9:S178)+1) -> 0 | T179: Септолит-Форте (1 л.) | U179: шт. | V179: 4 | W179: 2018-06-07 | X179: 1 | Y179: =IFERROR(LOOKUP(,-1/($T179=Вводные[Наименование])/(Вводные[Дата]<$U$1),Вводные[Остаток]),0)+IF(Медикаменты[[#This Row],[Дата остатка]]<$U$1,Медикаменты[[#This Row],[Остаток]],0) -> 0 | Z179: =IF(T179="","",SUMPRODUCT((Вводные[Дата]>=$U$1)*(Вводные[Дата]<=$U$2)*(Вводные[Наименование]=$T179),Вводные[Приход])) -> 0 | AA179: =IF(T179="","",SUMPRODUCT((Вводные[Дата]>=$U$1)*(Вводные[Дата]<=$U$2)*(Вводные[Наименование]=$T179),Вводные[Расход])) -> 0 | AB179: =IFERROR(Медикаменты[[#This Row],[Остаток]]+Медикаменты[[#This Row],[Приход за период]]-Медикаменты[[#This Row],[Расход за период]],"") -> 1 | AC179: =IFERROR(SUMIF(Вводные[Наименование],Медикаменты[[#This Row],[Наименование]],Вводные[Приход]),0) -> 0 | AD179: =IFERROR(SUMIF(Вводные[Наименование],Медикаменты[[#This Row],[Наименование]],Вводные[Расход]),0) -> 0 | AE179: =IFERROR(Медикаменты[[#This Row],[Остаток]]+Медикаменты[[#This Row],[Приход общий]]-Медикаменты[[#This Row],[Расход общий]],0) -> 1 | AH179: Сальбутамол (12 мл.) | AI179: уп.
S180: =IF(IFERROR(IF(SEARCH(Расчет!$B$8,T180),"!",""),"")="",0,MAX($S$9:S179)+1) -> 0 | T180: Скальпель (однораз., хир., стер.) | U180: шт. | V180: 100 | Y180: =IFERROR(LOOKUP(,-1/($T180=Вводные[Наименование])/(Вводные[Дата]<$U$1),Вводные[Остаток]),0)+IF(Медикаменты[[#This Row],[Дата остатка]]<$U$1,Медикаменты[[#This Row],[Остаток]],0) -> 0 | Z180: =IF(T180="","",SUMPRODUCT((Вводные[Дата]>=$U$1)*(Вводные[Дата]<=$U$2)*(Вводные[Наименование]=$T180),Вводные[Приход])) -> 0 | AA180: =IF(T180="","",SUMPRODUCT((Вводные[Дата]>=$U$1)*(Вводные[Дата]<=$U$2)*(Вводные[Наименование]=$T180),Вводные[Расход])) -> 0 | AB180: =IFERROR(Медикаменты[[#This Row],[Остаток]]+Медикаменты[[#This Row],[Приход за период]]-Медикаменты[[#This Row],[Расход за период]],"") ->  | AC180: =IFERROR(SUMIF(Вводные[Наименование],Медикаменты[[#This Row],[Наименование]],Вводные[Приход]),0) -> 0 | AD180: =IFERROR(SUMIF(Вводные[Наименование],Медикаменты[[#This Row],[Наименование]],Вводные[Расход]),0) -> 0 | AE180: =IFERROR(Медикаменты[[#This Row],[Остаток]]+Медикаменты[[#This Row],[Приход общий]]-Медикаменты[[#This Row],[Расход общий]],0) -> 0 | AH180: Сбор успокоительный (50,0 г.)
S181: =IF(IFERROR(IF(SEARCH(Расчет!$B$8,T181),"!",""),"")="",0,MAX($S$9:S180)+1) -> 0 | T181: Скарификатор (однора., метал.) | U181: шт. | V181: 1000 | Y181: =IFERROR(LOOKUP(,-1/($T181=Вводные[Наименование])/(Вводные[Дата]<$U$1),Вводные[Остаток]),0)+IF(Медикаменты[[#This Row],[Дата остатка]]<$U$1,Медикаменты[[#This Row],[Остаток]],0) -> 0 | Z181: =IF(T181="","",SUMPRODUCT((Вводные[Дата]>=$U$1)*(Вводные[Дата]<=$U$2)*(Вводные[Наименование]=$T181),Вводные[Приход])) -> 0 | AA181: =IF(T181="","",SUMPRODUCT((Вводные[Дата]>=$U$1)*(Вводные[Дата]<=$U$2)*(Вводные[Наименование]=$T181),Вводные[Расход])) -> 0 | AB181: =IFERROR(Медикаменты[[#This Row],[Остаток]]+Медикаменты[[#This Row],[Приход за период]]-Медикаменты[[#This Row],[Расход за период]],"") ->  | AC181: =IFERROR(SUMIF(Вводные[Наименование],Медикаменты[[#This Row],[Наименование]],Вводные[Приход]),0) -> 0 | AD181: =IFERROR(SUMIF(Вводные[Наименование],Медикаменты[[#This Row],[Наименование]],Вводные[Расход]),0) -> 0 | AE181: =IFERROR(Медикаменты[[#This Row],[Остаток]]+Медикаменты[[#This Row],[Приход общий]]-Медикаменты[[#This Row],[Расход общий]],0) -> 0 | AH181: Септолит-Форте (1 л.) | AI181: шт.
S182: =IF(IFERROR(IF(SEARCH(Расчет!$B$8,T182),"!",""),"")="",0,MAX($S$9:S181)+1) -> 0 | T182: Скарификатор (одноразовый металлический) | U182: 0 | V182: 0 | Y182: =IFERROR(LOOKUP(,-1/($T182=Вводные[Наименование])/(Вводные[Дата]<$U$1),Вводные[Остаток]),0)+IF(Медикаменты[[#This Row],[Дата остатка]]<$U$1,Медикаменты[[#This Row],[Остаток]],0) -> 0 | Z182: =IF(T182="","",SUMPRODUCT((Вводные[Дата]>=$U$1)*(Вводные[Дата]<=$U$2)*(Вводные[Наименование]=$T182),Вводные[Приход])) -> 0 | AA182: =IF(T182="","",SUMPRODUCT((Вводные[Дата]>=$U$1)*(Вводные[Дата]<=$U$2)*(Вводные[Наименование]=$T182),Вводные[Расход])) -> 0 | AB182: =IFERROR(Медикаменты[[#This Row],[Остаток]]+Медикаменты[[#This Row],[Приход за период]]-Медикаменты[[#This Row],[Расход за период]],"") ->  | AC182: =IFERROR(SUMIF(Вводные[Наименование],Медикаменты[[#This Row],[Наименование]],Вводные[Приход]),0) -> 0 | AD182: =IFERROR(SUMIF(Вводные[Наименование],Медикаменты[[#This Row],[Наименование]],Вводные[Расход]),0) -> 0 | AE182: =IFERROR(Медикаменты[[#This Row],[Остаток]]+Медикаменты[[#This Row],[Приход общий]]-Медикаменты[[#This Row],[Расход общий]],0) -> 0 | AH182: Скальпель (однораз., хир., стер.) | AI182: шт.
S183: =IF(IFERROR(IF(SEARCH(Расчет!$B$8,T183),"!",""),"")="",0,MAX($S$9:S182)+1) -> 0 | T183: Сорбифер-Дурулес (таб., 320 мг., №30) | U183: 0 | V183: 0 | W183: 00:00:00 | X183: 0 | Y183: =IFERROR(LOOKUP(,-1/($T183=Вводные[Наименование])/(Вводные[Дата]<$U$1),Вводные[Остаток]),0)+IF(Медикаменты[[#This Row],[Дата остатка]]<$U$1,Медикаменты[[#This Row],[Остаток]],0) -> 0 | Z183: =IF(T183="","",SUMPRODUCT((Вводные[Дата]>=$U$1)*(Вводные[Дата]<=$U$2)*(Вводные[Наименование]=$T183),Вводные[Приход])) -> 0 | AA183: =IF(T183="","",SUMPRODUCT((Вводные[Дата]>=$U$1)*(Вводные[Дата]<=$U$2)*(Вводные[Наименование]=$T183),Вводные[Расход])) -> 0 | AB183: =IFERROR(Медикаменты[[#This Row],[Остаток]]+Медикаменты[[#This Row],[Приход за период]]-Медикаменты[[#This Row],[Расход за период]],"") -> 0 | AC183: =IFERROR(SUMIF(Вводные[Наименование],Медикаменты[[#This Row],[Наименование]],Вводные[Приход]),0) -> 0 | AD183: =IFERROR(SUMIF(Вводные[Наименование],Медикаменты[[#This Row],[Наименование]],Вводные[Расход]),0) -> 0 | AE183: =IFERROR(Медикаменты[[#This Row],[Остаток]]+Медикаменты[[#This Row],[Приход общий]]-Медикаменты[[#This Row],[Расход общий]],0) -> 0 | AH183: Скарификатор (однора., метал.) | AI183: шт.
S184: =IF(IFERROR(IF(SEARCH(Расчет!$B$8,T184),"!",""),"")="",0,MAX($S$9:S183)+1) -> 0 | T184: Софрадекс (5 мл.) | U184: уп. | V184: 1 | Y184: =IFERROR(LOOKUP(,-1/($T184=Вводные[Наименование])/(Вводные[Дата]<$U$1),Вводные[Остаток]),0)+IF(Медикаменты[[#This Row],[Дата остатка]]<$U$1,Медикаменты[[#This Row],[Остаток]],0) -> 0 | Z184: =IF(T184="","",SUMPRODUCT((Вводные[Дата]>=$U$1)*(Вводные[Дата]<=$U$2)*(Вводные[Наименование]=$T184),Вводные[Приход])) -> 0 | AA184: =IF(T184="","",SUMPRODUCT((Вводные[Дата]>=$U$1)*(Вводные[Дата]<=$U$2)*(Вводные[Наименование]=$T184),Вводные[Расход])) -> 0 | AB184: =IFERROR(Медикаменты[[#This Row],[Остаток]]+Медикаменты[[#This Row],[Приход за период]]-Медикаменты[[#This Row],[Расход за период]],"") ->  | AC184: =IFERROR(SUMIF(Вводные[Наименование],Медикаменты[[#This Row],[Наименование]],Вводные[Приход]),0) -> 0 | AD184: =IFERROR(SUMIF(Вводные[Наименование],Медикаменты[[#This Row],[Наименование]],Вводные[Расход]),0) -> 0 | AE184: =IFERROR(Медикаменты[[#This Row],[Остаток]]+Медикаменты[[#This Row],[Приход общий]]-Медикаменты[[#This Row],[Расход общий]],0) -> 0 | AH184: Скарификатор (одноразовый металлический)
S185: =IF(IFERROR(IF(SEARCH(Расчет!$B$8,T185),"!",""),"")="",0,MAX($S$9:S184)+1) -> 0 | T185: Спирт этиловый (70%, 100 мл.) | U185: фл. | V185: 240 | W185: 2018-03-30 | X185: 4000 | Y185: =IFERROR(LOOKUP(,-1/($T185=Вводные[Наименование])/(Вводные[Дата]<$U$1),Вводные[Остаток]),0)+IF(Медикаменты[[#This Row],[Дата остатка]]<$U$1,Медикаменты[[#This Row],[Остаток]],0) -> 4000 | Z185: =IF(T185="","",SUMPRODUCT((Вводные[Дата]>=$U$1)*(Вводные[Дата]<=$U$2)*(Вводные[Наименование]=$T185),Вводные[Приход])) -> 0 | AA185: =IF(T185="","",SUMPRODUCT((Вводные[Дата]>=$U$1)*(Вводные[Дата]<=$U$2)*(Вводные[Наименование]=$T185),Вводные[Расход])) -> 0 | AB185: =IFERROR(Медикаменты[[#This Row],[Остаток]]+Медикаменты[[#This Row],[Приход за период]]-Медикаменты[[#This Row],[Расход за период]],"") -> 4000 | AC185: =IFERROR(SUMIF(Вводные[Наименование],Медикаменты[[#This Row],[Наименование]],Вводные[Приход]),0) -> 0 | AD185: =IFERROR(SUMIF(Вводные[Наименование],Медикаменты[[#This Row],[Наименование]],Вводные[Расход]),0) -> 0 | AE185: =IFERROR(Медикаменты[[#This Row],[Остаток]]+Медикаменты[[#This Row],[Приход общий]]-Медикаменты[[#This Row],[Расход общий]],0) -> 4000 | AH185: Сорбифер-Дурулес (таб., 320 мг., №30)
S186: =IF(IFERROR(IF(SEARCH(Расчет!$B$8,T186),"!",""),"")="",0,MAX($S$9:S185)+1) -> 0 | T186: Спирт этиловый (95%, 100 мл.) | U186: фл | V186: 50 | W186: 2018-03-30 | X186: 3600 | Y186: =IFERROR(LOOKUP(,-1/($T186=Вводные[Наименование])/(Вводные[Дата]<$U$1),Вводные[Остаток]),0)+IF(Медикаменты[[#This Row],[Дата остатка]]<$U$1,Медикаменты[[#This Row],[Остаток]],0) -> 3600 | Z186: =IF(T186="","",SUMPRODUCT((Вводные[Дата]>=$U$1)*(Вводные[Дата]<=$U$2)*(Вводные[Наименование]=$T186),Вводные[Приход])) -> 0 | AA186: =IF(T186="","",SUMPRODUCT((Вводные[Дата]>=$U$1)*(Вводные[Дата]<=$U$2)*(Вводные[Наименование]=$T186),Вводные[Расход])) -> 0 | AB186: =IFERROR(Медикаменты[[#This Row],[Остаток]]+Медикаменты[[#This Row],[Приход за период]]-Медикаменты[[#This Row],[Расход за период]],"") -> 3600 | AC186: =IFERROR(SUMIF(Вводные[Наименование],Медикаменты[[#This Row],[Наименование]],Вводные[Приход]),0) -> 0 | AD186: =IFERROR(SUMIF(Вводные[Наименование],Медикаменты[[#This Row],[Наименование]],Вводные[Расход]),0) -> 0 | AE186: =IFERROR(Медикаменты[[#This Row],[Остаток]]+Медикаменты[[#This Row],[Приход общий]]-Медикаменты[[#This Row],[Расход общий]],0) -> 3600 | AH186: Софрадекс (5 мл.) | AI186: уп.
S187: =IF(IFERROR(IF(SEARCH(Расчет!$B$8,T187),"!",""),"")="",0,MAX($S$9:S186)+1) -> 0 | T187: Средство Эвойлан-Универсал с антимикробным эффектом (5 л.) | U187: шт. | V187: 3 | Y187: =IFERROR(LOOKUP(,-1/($T187=Вводные[Наименование])/(Вводные[Дата]<$U$1),Вводные[Остаток]),0)+IF(Медикаменты[[#This Row],[Дата остатка]]<$U$1,Медикаменты[[#This Row],[Остаток]],0) -> 0 | Z187: =IF(T187="","",SUMPRODUCT((Вводные[Дата]>=$U$1)*(Вводные[Дата]<=$U$2)*(Вводные[Наименование]=$T187),Вводные[Приход])) -> 0 | AA187: =IF(T187="","",SUMPRODUCT((Вводные[Дата]>=$U$1)*(Вводные[Дата]<=$U$2)*(Вводные[Наименование]=$T187),Вводные[Расход])) -> 0 | AB187: =IFERROR(Медикаменты[[#This Row],[Остаток]]+Медикаменты[[#This Row],[Приход за период]]-Медикаменты[[#This Row],[Расход за период]],"") ->  | AC187: =IFERROR(SUMIF(Вводные[Наименование],Медикаменты[[#This Row],[Наименование]],Вводные[Приход]),0) -> 0 | AD187: =IFERROR(SUMIF(Вводные[Наименование],Медикаменты[[#This Row],[Наименование]],Вводные[Расход]),0) -> 0 | AE187: =IFERROR(Медикаменты[[#This Row],[Остаток]]+Медикаменты[[#This Row],[Приход общий]]-Медикаменты[[#This Row],[Расход общий]],0) -> 0 | AH187: Спирт этиловый (70%, 100 мл.) | AI187: фл.
S188: =IF(IFERROR(IF(SEARCH(Расчет!$B$8,T188),"!",""),"")="",0,MAX($S$9:S187)+1) -> 0 | T188: Сульфацил натрий (20%, 1,5 мл., №2) | U188: уп. | V188: 110 | Y188: =IFERROR(LOOKUP(,-1/($T188=Вводные[Наименование])/(Вводные[Дата]<$U$1),Вводные[Остаток]),0)+IF(Медикаменты[[#This Row],[Дата остатка]]<$U$1,Медикаменты[[#This Row],[Остаток]],0) -> 0 | Z188: =IF(T188="","",SUMPRODUCT((Вводные[Дата]>=$U$1)*(Вводные[Дата]<=$U$2)*(Вводные[Наименование]=$T188),Вводные[Приход])) -> 0 | AA188: =IF(T188="","",SUMPRODUCT((Вводные[Дата]>=$U$1)*(Вводные[Дата]<=$U$2)*(Вводные[Наименование]=$T188),Вводные[Расход])) -> 0 | AB188: =IFERROR(Медикаменты[[#This Row],[Остаток]]+Медикаменты[[#This Row],[Приход за период]]-Медикаменты[[#This Row],[Расход за период]],"") ->  | AC188: =IFERROR(SUMIF(Вводные[Наименование],Медикаменты[[#This Row],[Наименование]],Вводные[Приход]),0) -> 0 | AD188: =IFERROR(SUMIF(Вводные[Наименование],Медикаменты[[#This Row],[Наименование]],Вводные[Расход]),0) -> 0 | AE188: =IFERROR(Медикаменты[[#This Row],[Остаток]]+Медикаменты[[#This Row],[Приход общий]]-Медикаменты[[#This Row],[Расход общий]],0) -> 0 | AH188: Спирт этиловый (95%, 100 мл.) | AI188: фл
S189: =IF(IFERROR(IF(SEARCH(Расчет!$B$8,T189),"!",""),"")="",0,MAX($S$9:S188)+1) -> 0 | T189: Сумка холодильник с электронным термоиндикатором (25 л.) | U189: шт | V189: 9 | Y189: =IFERROR(LOOKUP(,-1/($T189=Вводные[Наименование])/(Вводные[Дата]<$U$1),Вводные[Остаток]),0)+IF(Медикаменты[[#This Row],[Дата остатка]]<$U$1,Медикаменты[[#This Row],[Остаток]],0) -> 0 | Z189: =IF(T189="","",SUMPRODUCT((Вводные[Дата]>=$U$1)*(Вводные[Дата]<=$U$2)*(Вводные[Наименование]=$T189),Вводные[Приход])) -> 0 | AA189: =IF(T189="","",SUMPRODUCT((Вводные[Дата]>=$U$1)*(Вводные[Дата]<=$U$2)*(Вводные[Наименование]=$T189),Вводные[Расход])) -> 0 | AB189: =IFERROR(Медикаменты[[#This Row],[Остаток]]+Медикаменты[[#This Row],[Приход за период]]-Медикаменты[[#This Row],[Расход за период]],"") ->  | AC189: =IFERROR(SUMIF(Вводные[Наименование],Медикаменты[[#This Row],[Наименование]],Вводные[Приход]),0) -> 0 | AD189: =IFERROR(SUMIF(Вводные[Наименование],Медикаменты[[#This Row],[Наименование]],Вводные[Расход]),0) -> 0 | AE189: =IFERROR(Медикаменты[[#This Row],[Остаток]]+Медикаменты[[#This Row],[Приход общий]]-Медикаменты[[#This Row],[Расход общий]],0) -> 0 | AH189: Средство Эвойлан-Универсал с антимикробным эффектом (5 л.) | AI189: шт.
S190: =IF(IFERROR(IF(SEARCH(Расчет!$B$8,T190),"!",""),"")="",0,MAX($S$9:S189)+1) -> 0 | T190: Супрастин (амп., 2%, 1,0 мл.) | U190: 0 | V190: 0 | W190: 2018-03-30 | X190: 5 | Y190: =IFERROR(LOOKUP(,-1/($T190=Вводные[Наименование])/(Вводные[Дата]<$U$1),Вводные[Остаток]),0)+IF(Медикаменты[[#This Row],[Дата остатка]]<$U$1,Медикаменты[[#This Row],[Остаток]],0) -> 5 | Z190: =IF(T190="","",SUMPRODUCT((Вводные[Дата]>=$U$1)*(Вводные[Дата]<=$U$2)*(Вводные[Наименование]=$T190),Вводные[Приход])) -> 0 | AA190: =IF(T190="","",SUMPRODUCT((Вводные[Дата]>=$U$1)*(Вводные[Дата]<=$U$2)*(Вводные[Наименование]=$T190),Вводные[Расход])) -> 0 | AB190: =IFERROR(Медикаменты[[#This Row],[Остаток]]+Медикаменты[[#This Row],[Приход за период]]-Медикаменты[[#This Row],[Расход за период]],"") -> 5 | AC190: =IFERROR(SUMIF(Вводные[Наименование],Медикаменты[[#This Row],[Наименование]],Вводные[Приход]),0) -> 0 | AD190: =IFERROR(SUMIF(Вводные[Наименование],Медикаменты[[#This Row],[Наименование]],Вводные[Расход]),0) -> 0 | AE190: =IFERROR(Медикаменты[[#This Row],[Остаток]]+Медикаменты[[#This Row],[Приход общий]]-Медикаменты[[#This Row],[Расход общий]],0) -> 5 | AH190: Сульфацил натрий (20%, 1,5 мл., №2) | AI190: уп.
S191: =IF(IFERROR(IF(SEARCH(Расчет!$B$8,T191),"!",""),"")="",0,MAX($S$9:S190)+1) -> 0 | T191: Супрастин (таб., 25 мг., №20) | U191: 0 | V191: 0 | Y191: =IFERROR(LOOKUP(,-1/($T191=Вводные[Наименование])/(Вводные[Дата]<$U$1),Вводные[Остаток]),0)+IF(Медикаменты[[#This Row],[Дата остатка]]<$U$1,Медикаменты[[#This Row],[Остаток]],0) -> 0 | Z191: =IF(T191="","",SUMPRODUCT((Вводные[Дата]>=$U$1)*(Вводные[Дата]<=$U$2)*(Вводные[Наименование]=$T191),Вводные[Приход])) -> 0 | AA191: =IF(T191="","",SUMPRODUCT((Вводные[Дата]>=$U$1)*(Вводные[Дата]<=$U$2)*(Вводные[Наименование]=$T191),Вводные[Расход])) -> 0 | AB191: =IFERROR(Медикаменты[[#This Row],[Остаток]]+Медикаменты[[#This Row],[Приход за период]]-Медикаменты[[#This Row],[Расход за период]],"") ->  | AC191: =IFERROR(SUMIF(Вводные[Наименование],Медикаменты[[#This Row],[Наименование]],Вводные[Приход]),0) -> 0 | AD191: =IFERROR(SUMIF(Вводные[Наименование],Медикаменты[[#This Row],[Наименование]],Вводные[Расход]),0) -> 0 | AE191: =IFERROR(Медикаменты[[#This Row],[Остаток]]+Медикаменты[[#This Row],[Приход общий]]-Медикаменты[[#This Row],[Расход общий]],0) -> 0 | AH191: Сумка холодильник с электронным термоиндикатором (25 л.) | AI191: шт
S192: =IF(IFERROR(IF(SEARCH(Расчет!$B$8,T192),"!",""),"")="",0,MAX($S$9:S191)+1) -> 0 | T192: Тампон-зонд (100 шт.) | U192: шт. | V192: 500 | Y192: =IFERROR(LOOKUP(,-1/($T192=Вводные[Наименование])/(Вводные[Дата]<$U$1),Вводные[Остаток]),0)+IF(Медикаменты[[#This Row],[Дата остатка]]<$U$1,Медикаменты[[#This Row],[Остаток]],0) -> 0 | Z192: =IF(T192="","",SUMPRODUCT((Вводные[Дата]>=$U$1)*(Вводные[Дата]<=$U$2)*(Вводные[Наименование]=$T192),Вводные[Приход])) -> 0 | AA192: =IF(T192="","",SUMPRODUCT((Вводные[Дата]>=$U$1)*(Вводные[Дата]<=$U$2)*(Вводные[Наименование]=$T192),Вводные[Расход])) -> 0 | AB192: =IFERROR(Медикаменты[[#This Row],[Остаток]]+Медикаменты[[#This Row],[Приход за период]]-Медикаменты[[#This Row],[Расход за период]],"") ->  | AC192: =IFERROR(SUMIF(Вводные[Наименование],Медикаменты[[#This Row],[Наименование]],Вводные[Приход]),0) -> 0 | AD192: =IFERROR(SUMIF(Вводные[Наименование],Медикаменты[[#This Row],[Наименование]],Вводные[Расход]),0) -> 0 | AE192: =IFERROR(Медикаменты[[#This Row],[Остаток]]+Медикаменты[[#This Row],[Приход общий]]-Медикаменты[[#This Row],[Расход общий]],0) -> 0 | AH192: Супрастин (амп., 2%, 1,0 мл.)
S193: =IF(IFERROR(IF(SEARCH(Расчет!$B$8,T193),"!",""),"")="",0,MAX($S$9:S192)+1) -> 0 | T193: Тиамин-хлорид 5%-1,0 №10 амп. | U193: 0 | V193: 0 | Y193: =IFERROR(LOOKUP(,-1/($T193=Вводные[Наименование])/(Вводные[Дата]<$U$1),Вводные[Остаток]),0)+IF(Медикаменты[[#This Row],[Дата остатка]]<$U$1,Медикаменты[[#This Row],[Остаток]],0) -> 0 | Z193: =IF(T193="","",SUMPRODUCT((Вводные[Дата]>=$U$1)*(Вводные[Дата]<=$U$2)*(Вводные[Наименование]=$T193),Вводные[Приход])) -> 0 | AA193: =IF(T193="","",SUMPRODUCT((Вводные[Дата]>=$U$1)*(Вводные[Дата]<=$U$2)*(Вводные[Наименование]=$T193),Вводные[Расход])) -> 0 | AB193: =IFERROR(Медикаменты[[#This Row],[Остаток]]+Медикаменты[[#This Row],[Приход за период]]-Медикаменты[[#This Row],[Расход за период]],"") ->  | AC193: =IFERROR(SUMIF(Вводные[Наименование],Медикаменты[[#This Row],[Наименование]],Вводные[Приход]),0) -> 0 | AD193: =IFERROR(SUMIF(Вводные[Наименование],Медикаменты[[#This Row],[Наименование]],Вводные[Расход]),0) -> 0 | AE193: =IFERROR(Медикаменты[[#This Row],[Остаток]]+Медикаменты[[#This Row],[Приход общий]]-Медикаменты[[#This Row],[Расход общий]],0) -> 0 | AH193: Супрастин (таб., 25 мг., №20)
S194: =IF(IFERROR(IF(SEARCH(Расчет!$B$8,T194),"!",""),"")="",0,MAX($S$9:S193)+1) -> 0 | T194: Токоферола ацетат (50% 100 мг., №10) | U194: 0 | V194: 0 | W194: 00:00:00 | X194: 0 | Y194: =IFERROR(LOOKUP(,-1/($T194=Вводные[Наименование])/(Вводные[Дата]<$U$1),Вводные[Остаток]),0)+IF(Медикаменты[[#This Row],[Дата остатка]]<$U$1,Медикаменты[[#This Row],[Остаток]],0) -> 0 | Z194: =IF(T194="","",SUMPRODUCT((Вводные[Дата]>=$U$1)*(Вводные[Дата]<=$U$2)*(Вводные[Наименование]=$T194),Вводные[Приход])) -> 0 | AA194: =IF(T194="","",SUMPRODUCT((Вводные[Дата]>=$U$1)*(Вводные[Дата]<=$U$2)*(Вводные[Наименование]=$T194),Вводные[Расход])) -> 0 | AB194: =IFERROR(Медикаменты[[#This Row],[Остаток]]+Медикаменты[[#This Row],[Приход за период]]-Медикаменты[[#This Row],[Расход за период]],"") -> 0 | AC194: =IFERROR(SUMIF(Вводные[Наименование],Медикаменты[[#This Row],[Наименование]],Вводные[Приход]),0) -> 0 | AD194: =IFERROR(SUMIF(Вводные[Наименование],Медикаменты[[#This Row],[Наименование]],Вводные[Расход]),0) -> 0 | AE194: =IFERROR(Медикаменты[[#This Row],[Остаток]]+Медикаменты[[#This Row],[Приход общий]]-Медикаменты[[#This Row],[Расход общий]],0) -> 0 | AH194: Тампон-зонд (100 шт.) | AI194: шт.
S195: =IF(IFERROR(IF(SEARCH(Расчет!$B$8,T195),"!",""),"")="",0,MAX($S$9:S194)+1) -> 0 | T195: Фамотидин (таб., 20 мг., №20) | U195: уп. | V195: 2 | Y195: =IFERROR(LOOKUP(,-1/($T195=Вводные[Наименование])/(Вводные[Дата]<$U$1),Вводные[Остаток]),0)+IF(Медикаменты[[#This Row],[Дата остатка]]<$U$1,Медикаменты[[#This Row],[Остаток]],0) -> 0 | Z195: =IF(T195="","",SUMPRODUCT((Вводные[Дата]>=$U$1)*(Вводные[Дата]<=$U$2)*(Вводные[Наименование]=$T195),Вводные[Приход])) -> 0 | AA195: =IF(T195="","",SUMPRODUCT((Вводные[Дата]>=$U$1)*(Вводные[Дата]<=$U$2)*(Вводные[Наименование]=$T195),Вводные[Расход])) -> 0 | AB195: =IFERROR(Медикаменты[[#This Row],[Остаток]]+Медикаменты[[#This Row],[Приход за период]]-Медикаменты[[#This Row],[Расход за период]],"") ->  | AC195: =IFERROR(SUMIF(Вводные[Наименование],Медикаменты[[#This Row],[Наименование]],Вводные[Приход]),0) -> 0 | AD195: =IFERROR(SUMIF(Вводные[Наименование],Медикаменты[[#This Row],[Наименование]],Вводные[Расход]),0) -> 0 | AE195: =IFERROR(Медикаменты[[#This Row],[Остаток]]+Медикаменты[[#This Row],[Приход общий]]-Медикаменты[[#This Row],[Расход общий]],0) -> 0 | AH195: Тиамин-хлорид 5%-1,0 №10 амп.
S196: =IF(IFERROR(IF(SEARCH(Расчет!$B$8,T196),"!",""),"")="",0,MAX($S$9:S195)+1) -> 0 | T196: Фартук медицинский одноразовый | U196: шт | V196: 100 | Y196: =IFERROR(LOOKUP(,-1/($T196=Вводные[Наименование])/(Вводные[Дата]<$U$1),Вводные[Остаток]),0)+IF(Медикаменты[[#This Row],[Дата остатка]]<$U$1,Медикаменты[[#This Row],[Остаток]],0) -> 0 | Z196: =IF(T196="","",SUMPRODUCT((Вводные[Дата]>=$U$1)*(Вводные[Дата]<=$U$2)*(Вводные[Наименование]=$T196),Вводные[Приход])) -> 0 | AA196: =IF(T196="","",SUMPRODUCT((Вводные[Дата]>=$U$1)*(Вводные[Дата]<=$U$2)*(Вводные[Наименование]=$T196),Вводные[Расход])) -> 0 | AB196: =IFERROR(Медикаменты[[#This Row],[Остаток]]+Медикаменты[[#This Row],[Приход за период]]-Медикаменты[[#This Row],[Расход за период]],"") ->  | AC196: =IFERROR(SUMIF(Вводные[Наименование],Медикаменты[[#This Row],[Наименование]],Вводные[Приход]),0) -> 0 | AD196: =IFERROR(SUMIF(Вводные[Наименование],Медикаменты[[#This Row],[Наименование]],Вводные[Расход]),0) -> 0 | AE196: =IFERROR(Медикаменты[[#This Row],[Остаток]]+Медикаменты[[#This Row],[Приход общий]]-Медикаменты[[#This Row],[Расход общий]],0) -> 0 | AH196: Токоферола ацетат (50% 100 мг., №10)
S197: =IF(IFERROR(IF(SEARCH(Расчет!$B$8,T197),"!",""),"")="",0,MAX($S$9:S196)+1) -> 0 | T197: Фенибут (таб., 250 мг., №20) | U197: уп. | V197: 3 | Y197: =IFERROR(LOOKUP(,-1/($T197=Вводные[Наименование])/(Вводные[Дата]<$U$1),Вводные[Остаток]),0)+IF(Медикаменты[[#This Row],[Дата остатка]]<$U$1,Медикаменты[[#This Row],[Остаток]],0) -> 0 | Z197: =IF(T197="","",SUMPRODUCT((Вводные[Дата]>=$U$1)*(Вводные[Дата]<=$U$2)*(Вводные[Наименование]=$T197),Вводные[Приход])) -> 0 | AA197: =IF(T197="","",SUMPRODUCT((Вводные[Дата]>=$U$1)*(Вводные[Дата]<=$U$2)*(Вводные[Наименование]=$T197),Вводные[Расход])) -> 0 | AB197: =IFERROR(Медикаменты[[#This Row],[Остаток]]+Медикаменты[[#This Row],[Приход за период]]-Медикаменты[[#This Row],[Расход за период]],"") ->  | AC197: =IFERROR(SUMIF(Вводные[Наименование],Медикаменты[[#This Row],[Наименование]],Вводные[Приход]),0) -> 0 | AD197: =IFERROR(SUMIF(Вводные[Наименование],Медикаменты[[#This Row],[Наименование]],Вводные[Расход]),0) -> 0 | AE197: =IFERROR(Медикаменты[[#This Row],[Остаток]]+Медикаменты[[#This Row],[Приход общий]]-Медикаменты[[#This Row],[Расход общий]],0) -> 0 | AH197: Фамотидин (таб., 20 мг., №20) | AI197: уп.
S198: =IF(IFERROR(IF(SEARCH(Расчет!$B$8,T198),"!",""),"")="",0,MAX($S$9:S197)+1) -> 0 | T198: Фенибут (табл., 250 мг., №20) | U198: уп. | V198: 5 | W198: 2018-03-30 | X198: 20 | Y198: =IFERROR(LOOKUP(,-1/($T198=Вводные[Наименование])/(Вводные[Дата]<$U$1),Вводные[Остаток]),0)+IF(Медикаменты[[#This Row],[Дата остатка]]<$U$1,Медикаменты[[#This Row],[Остаток]],0) -> 20 | Z198: =IF(T198="","",SUMPRODUCT((Вводные[Дата]>=$U$1)*(Вводные[Дата]<=$U$2)*(Вводные[Наименование]=$T198),Вводные[Приход])) -> 0 | AA198: =IF(T198="","",SUMPRODUCT((Вводные[Дата]>=$U$1)*(Вводные[Дата]<=$U$2)*(Вводные[Наименование]=$T198),Вводные[Расход])) -> 0 | AB198: =IFERROR(Медикаменты[[#This Row],[Остаток]]+Медикаменты[[#This Row],[Приход за период]]-Медикаменты[[#This Row],[Расход за период]],"") -> 20 | AC198: =IFERROR(SUMIF(Вводные[Наименование],Медикаменты[[#This Row],[Наименование]],Вводные[Приход]),0) -> 0 | AD198: =IFERROR(SUMIF(Вводные[Наименование],Медикаменты[[#This Row],[Наименование]],Вводные[Расход]),0) -> 0 | AE198: =IFERROR(Медикаменты[[#This Row],[Остаток]]+Медикаменты[[#This Row],[Приход общий]]-Медикаменты[[#This Row],[Расход общий]],0) -> 20 | AH198: Фартук медицинский одноразовый | AI198: шт
S199: =IF(IFERROR(IF(SEARCH(Расчет!$B$8,T199),"!",""),"")="",0,MAX($S$9:S198)+1) -> 0 | T199: Халат (хир., нест.) | U199: шт. | V199: 20 | Y199: =IFERROR(LOOKUP(,-1/($T199=Вводные[Наименование])/(Вводные[Дата]<$U$1),Вводные[Остаток]),0)+IF(Медикаменты[[#This Row],[Дата остатка]]<$U$1,Медикаменты[[#This Row],[Остаток]],0) -> 0 | Z199: =IF(T199="","",SUMPRODUCT((Вводные[Дата]>=$U$1)*(Вводные[Дата]<=$U$2)*(Вводные[Наименование]=$T199),Вводные[Приход])) -> 0 | AA199: =IF(T199="","",SUMPRODUCT((Вводные[Дата]>=$U$1)*(Вводные[Дата]<=$U$2)*(Вводные[Наименование]=$T199),Вводные[Расход])) -> 0 | AB199: =IFERROR(Медикаменты[[#This Row],[Остаток]]+Медикаменты[[#This Row],[Приход за период]]-Медикаменты[[#This Row],[Расход за период]],"") ->  | AC199: =IFERROR(SUMIF(Вводные[Наименование],Медикаменты[[#This Row],[Наименование]],Вводные[Приход]),0) -> 0 | AD199: =IFERROR(SUMIF(Вводные[Наименование],Медикаменты[[#This Row],[Наименование]],Вводные[Расход]),0) -> 0 | AE199: =IFERROR(Медикаменты[[#This Row],[Остаток]]+Медикаменты[[#This Row],[Приход общий]]-Медикаменты[[#This Row],[Расход общий]],0) -> 0 | AH199: Фенибут (таб., 250 мг., №20) | AI199: уп.
S200: =IF(IFERROR(IF(SEARCH(Расчет!$B$8,T200),"!",""),"")="",0,MAX($S$9:S199)+1) -> 0 | T200: Халат (хир., стер.) | U200: шт | V200: 50 | Y200: =IFERROR(LOOKUP(,-1/($T200=Вводные[Наименование])/(Вводные[Дата]<$U$1),Вводные[Остаток]),0)+IF(Медикаменты[[#This Row],[Дата остатка]]<$U$1,Медикаменты[[#This Row],[Остаток]],0) -> 0 | Z200: =IF(T200="","",SUMPRODUCT((Вводные[Дата]>=$U$1)*(Вводные[Дата]<=$U$2)*(Вводные[Наименование]=$T200),Вводные[Приход])) -> 0 | AA200: =IF(T200="","",SUMPRODUCT((Вводные[Дата]>=$U$1)*(Вводные[Дата]<=$U$2)*(Вводные[Наименование]=$T200),Вводные[Расход])) -> 0 | AB200: =IFERROR(Медикаменты[[#This Row],[Остаток]]+Медикаменты[[#This Row],[Приход за период]]-Медикаменты[[#This Row],[Расход за период]],"") ->  | AC200: =IFERROR(SUMIF(Вводные[Наименование],Медикаменты[[#This Row],[Наименование]],Вводные[Приход]),0) -> 0 | AD200: =IFERROR(SUMIF(Вводные[Наименование],Медикаменты[[#This Row],[Наименование]],Вводные[Расход]),0) -> 0 | AE200: =IFERROR(Медикаменты[[#This Row],[Остаток]]+Медикаменты[[#This Row],[Приход общий]]-Медикаменты[[#This Row],[Расход общий]],0) -> 0 | AH200: Фенибут (табл., 250 мг., №20) | AI200: уп.
... 24 more rows

Sheet Отчет
A1: Дневной стационар | B1: Отделение | M1: =K1 -> 0
A2: май | B2: Месяц отчета | M2: 0
A3: 2018 | B3: Год отчета | M3: 0
A4: 2017-09-16 | B4: Дата отчета
B5: 1 | L5: Утверждаю | M5: 0
L6: Главный врач __________Е.М. Гусенкова | M6: 0
L7: =IF(A4="","От «"&DAY(TODAY())&"»"&TEXT(TODAY(),"[$-FC19] ММММ")&" "&YEAR(TODAY())&" г.","От «"&DAY(A4)&"»"&TEXT(A4,"[$-FC19] ММММ")&" "&YEAR(A4)&" г.") -> От «16» сентября 2017 г. | M7: 0
M8: =L7 -> От «16» сентября 2017 г.
F9: ОТЧЕТ
F10: =IF(A1="Дневной стационар",Расчет!T1,Расчет!T2) -> по расходованию медикаментов в дневном стационаре ОГАУЗ ИГДП №2 | M10: 0
F11: ="За "&CONCATENATE(A2," ",A3," года") -> За май 2018 года | M11: 0
B12: № п/п | C12: Наименование | D12: Ед. | E12: Остаток на начало | G12: Приход | I12: Расход | K12: Остаток на конец | M12: Остаток на конец
D13: изм. | E13: кол-во | F13: сумма | G13: кол-во | H13: сумма | I13: кол-во | J13: сумма | K13: кол-во | L13: сумма | M13: кол-во
B14: 1 | M14: =K14 -> 
B15: 2 | M15: =K15 -> 
B16: 3
B17: 4
B18: 5
B19: 6
B20: 7
B21: 8
B22: 9
B23: 10
B24: 11
B25: 12
B26: 13
B27: 14
B28: 15
B29: 16
B30: 17
B31: 18
B32: 19
B33: 20
B34: 21
B35: 22
B36: 23
B37: 24
B38: 25
B39: 26
B40: 27
B41: 28
B42: 29
B43: 30
B44: 31
B45: 32
B46: 33
B47: 34
B48: 35
B49: 36
B50: 37
B51: 38
M79: =K79 -> 

Sheet Медикаменты
A1: Наименование новое | B1: Единицы | C1: Количество | D1: Цена за упаковку | E1: Единицы в упаковке | F1: Количество в упаковке | G1: Цена за единицу | K1: Поставщик | L1: Контактные данные | M1: Договор | P1: Наименование | Q1: Поставщик | R1: Поставщик22 | S1: Договор | T1: Столбец3 | U1: Единицы | V1: Обеъем закупки | W1: Остаток | AA1: Медикаменты
A2: ?водный раствор люголя | B2: ? | K2: ООО "Медресурс" | L2: Иванов, 11-22-99 | M2: 12345 | P2: Адреналин гидрохлорид (р-р, 0,1%, 1 мл.) | Q2: =CONCATENATE(Договоры_tb[[#This Row],[Поставщик22]]," (дог. №",Договоры_tb[[#This Row],[Договор]],"; ост.",Договоры_tb[[#This Row],[Остаток]],")") -> ООО "Медресурс" (дог. №12345; ост.0) | R2: ООО "Медресурс" | S2: 12345 | U2: уп. | V2: 100 | W2: 0 | AA2: Адреналин гидрохлорид (р-р, 0,1%, 1 мл.)
A3: ?Детский жирный крем | B3: ? | K3: ООО "Сибмедком" | L3: Петров, 895012345678 (9-00-18-00) | M3: 4569 | P3: Пробирка Vacuette (8 мл., 50 шт.) | Q3: =CONCATENATE(Договоры_tb[[#This Row],[Поставщик22]]," (дог. №",Договоры_tb[[#This Row],[Договор]],"; ост.",Договоры_tb[[#This Row],[Остаток]],")") -> ООО "Медресурс" (дог. №12345; ост.100) | R3: ООО "Медресурс" | S3: 12345 | U3: уп. | V3: 150 | W3: 100 | AA3: Бинт (нест., 10 м.х15 см.)
A4: ?Иголка | B4: ? | K4: ООО "Медресурс" | L4: Иванов, 11-22-99 | M4: ПР-123 | P4: Пробирка Vacuette (9 мл., 50 шт.) | Q4: =CONCATENATE(Договоры_tb[[#This Row],[Поставщик22]]," (дог. №",Договоры_tb[[#This Row],[Договор]],"; ост.",Договоры_tb[[#This Row],[Остаток]],")") -> ООО "Медресурс" (дог. №12345; ост.100) | R4: ООО "Медресурс" | S4: 12345 | U4: уп. | V4: 200 | W4: 100 | AA4: Бинт (нест., 5 м.х10 см.)
A5: ?Лекарственные стредства | B5: ? | K5: ООО "Восток" | L5: Маша, 952632588932 | M5: Кн-999 | P5: Пробирка вакуумная Cerebrum (4 мл., 50 шт.) | Q5: =CONCATENATE(Договоры_tb[[#This Row],[Поставщик22]]," (дог. №",Договоры_tb[[#This Row],[Договор]],"; ост.",Договоры_tb[[#This Row],[Остаток]],")") -> ООО "Медресурс" (дог. №12345; ост.10) | R5: ООО "Медресурс" | S5: 12345 | U5: уп. | V5: 20 | W5: 10 | AA5: Бинт (стер. 10 м.х15 см.)
A6: ?Пеленка одноразовая | B6: шт. | C6: 1 | D6: 370 | K6: ООО "Сибмедком" | L6: Петров, 895012345678 (9-00-18-00) | M6: 5996 | P6: Пробирка вакуумная Cerebrum (5 мл., 50 шт.) | Q6: =CONCATENATE(Договоры_tb[[#This Row],[Поставщик22]]," (дог. №",Договоры_tb[[#This Row],[Договор]],"; ост.",Договоры_tb[[#This Row],[Остаток]],")") -> ООО "Медресурс" (дог. №12345; ост.20) | R6: ООО "Медресурс" | S6: 12345 | U6: уп. | V6: 30 | W6: 20 | AA6: Бинт (стер. 5 м.х10 см.)
A7: ?Перевязочный метариал | B7: ? | P7: Пробирка вакуумная Cerebrum (8 мл., 50 шт.) | Q7: =CONCATENATE(Договоры_tb[[#This Row],[Поставщик22]]," (дог. №",Договоры_tb[[#This Row],[Договор]],"; ост.",Договоры_tb[[#This Row],[Остаток]],")") -> ООО "Медресурс" (дог. №12345; ост.10) | R7: ООО "Медресурс" | S7: 12345 | U7: уп. | V7: 40 | W7: 10 | AA7: Контейнер для сбора мочи (стер., 100 мл.)
A8: ?Пробирка (с активатором свертывания) | B8: шт. | C8: 1 | D8: 1200 | P8: Пробирка микровета с ЭДТА (0,2 мл., 100 шт.) | Q8: =CONCATENATE(Договоры_tb[[#This Row],[Поставщик22]]," (дог. №",Договоры_tb[[#This Row],[Договор]],"; ост.",Договоры_tb[[#This Row],[Остаток]],")") -> ООО "Медресурс" (дог. №12345; ост.30) | R8: ООО "Медресурс" | S8: 12345 | U8: уп. | V8: 80 | W8: 30 | AA8: Контейнер для утилизации отходов МК-01 (однораз., желтый, 3 л.)
A9: ?Салфетка для обработки датчиков | B9: шт. | C9: 1 | D9: 214.02 | K9: =CONCATENATE(K2," (дог. №",M2,")") -> ООО "Медресурс" (дог. №12345) | P9: Пробирка вакуумная Cerebrum (4 мл., 50 шт.) | Q9: =CONCATENATE(Договоры_tb[[#This Row],[Поставщик22]]," (дог. №",Договоры_tb[[#This Row],[Договор]],"; ост.",Договоры_tb[[#This Row],[Остаток]],")") -> ООО "Медресурс" (дог. №4569; ост.20) | R9: ООО "Медресурс" | S9: 4569 | U9: уп. | V9: 50 | W9: 20 | AA9: Контейнер для утилизации отходов МК-04 (многораз., бирюзовый, 7,5 л.).
A10: ?Салфетка одноразовая | B10: шт. | C10: 1 | D10: 214.02 | K10: =CONCATENATE(K3," (дог. №",M3,")") -> ООО "Сибмедком" (дог. №4569) | P10: Пакеты упаковочные для стерилизации СтериТ (150*250, 100 шт.) | Q10: =CONCATENATE(Договоры_tb[[#This Row],[Поставщик22]]," (дог. №",Договоры_tb[[#This Row],[Договор]],"; ост.",Договоры_tb[[#This Row],[Остаток]],")") -> ООО "Медресурс" (дог. №4569; ост.0) | R10: ООО "Медресурс" | S10: 4569 | U10: уп. | V10: 50 | W10: 0 | AA10: Контейнер для утилизации отходов МК-05 (многораз., желтый 50 л.)
A11: ?Спирт | B11: мл. | D11: 28 | K11: ООО "Медресурс" (дог. №ПР-123) | P11: Пакеты упаковочные для стерилизации СтериТ (200*300, 100 шт.) | Q11: =CONCATENATE(Договоры_tb[[#This Row],[Поставщик22]]," (дог. №",Договоры_tb[[#This Row],[Договор]],"; ост.",Договоры_tb[[#This Row],[Остаток]],")") -> ООО "Медресурс" (дог. №4569; ост.0) | R11: ООО "Медресурс" | S11: 4569 | U11: уп. | V11: 60 | W11: 0 | AA11: Контрольная сыворотка на РМП (отрицательный) (1 мл., 10 шт.)
A12: ?Спиртовая салфетка | B12: шт. | C12: 1 | D12: 1.35 | K12: ООО "Восток" (дог. №Кн-999) | P12: Пакеты упаковочные для стерилизации СтериТ (200*330, 100 шт.) | Q12: =CONCATENATE(Договоры_tb[[#This Row],[Поставщик22]]," (дог. №",Договоры_tb[[#This Row],[Договор]],"; ост.",Договоры_tb[[#This Row],[Остаток]],")") -> ООО "Медресурс" (дог. №4569; ост.10) | R12: ООО "Медресурс" | S12: 4569 | U12: уп. | V12: 180 | W12: 10 | AA12: Контрольная сыворотка на РМП (положительная) (1 мл., 10 шт.)
A13: ?Тампон для задней тампонады | B13: ? | K13: ООО "Сибмедком" (дог. №5996) | P13: Шприц (1 мл.) | Q13: =CONCATENATE(Договоры_tb[[#This Row],[Поставщик22]]," (дог. №",Договоры_tb[[#This Row],[Договор]],"; ост.",Договоры_tb[[#This Row],[Остаток]],")") -> ООО "Медресурс" (дог. №4569; ост.50) | R13: ООО "Медресурс" | S13: 4569 | U13: шт. | V13: 120 | W13: 50 | AA13: Контрольная сыворотка на РМП (слабоположительный) (1 мл., 10 шт.)
A14: ?Термобумага для эхограмм | B14: снимок | D14: 4.64 | P14: Шприц (10 мл.) | Q14: =CONCATENATE(Договоры_tb[[#This Row],[Поставщик22]]," (дог. №",Договоры_tb[[#This Row],[Договор]],"; ост.",Договоры_tb[[#This Row],[Остаток]],")") -> ООО "Сибмедком" (дог. №4569; ост.70) | R14: ООО "Сибмедком" | S14: 4569 | U14: шт. | V14: 180 | W14: 70 | AA14: Контрольный материал гематологических анализаторов (2х2,5 норм. ур., 1х2,5 ср. ур., 1х2,5 выс. ур.)
A15: ?Турудна | B15: ? | P15: Шприц (2 мл. 2 иглы) | Q15: =CONCATENATE(Договоры_tb[[#This Row],[Поставщик22]]," (дог. №",Договоры_tb[[#This Row],[Договор]],"; ост.",Договоры_tb[[#This Row],[Остаток]],")") -> ООО "Сибмедком" (дог. №4569; ост.20) | R15: ООО "Сибмедком" | S15: 4569 | U15: шт. | V15: 90 | W15: 20 | AA15: Пакеты упаковочные для стерилизации СтериТ (150*250, 100 шт.)
A16: ?Физраствор | B16: ? | P16: Шприц (2 мл.) | Q16: =CONCATENATE(Договоры_tb[[#This Row],[Поставщик22]]," (дог. №",Договоры_tb[[#This Row],[Договор]],"; ост.",Договоры_tb[[#This Row],[Остаток]],")") -> ООО "Сибмедком" (дог. №4569; ост.60) | R16: ООО "Сибмедком" | S16: 4569 | U16: шт. | V16: 110 | W16: 60 | AA16: Пакеты упаковочные для стерилизации СтериТ (200*300, 100 шт.)
A17: ?Шовный материал | B17: ? | P17: Шприц (20 мл.) | Q17: =CONCATENATE(Договоры_tb[[#This Row],[Поставщик22]]," (дог. №",Договоры_tb[[#This Row],[Договор]],"; ост.",Договоры_tb[[#This Row],[Остаток]],")") -> ООО "Сибмедком" (дог. №4569; ост.100) | R17: ООО "Сибмедком" | S17: 4569 | U17: шт. | V17: 150 | W17: 100 | AA17: Пакеты упаковочные для стерилизации СтериТ (200*330, 100 шт.)
A18: Адреналин гидрохлорид (р-р, 0,1%, 1 мл.) | B18: уп. | C18: 20 | D18: 74.51 | P18: Шприц (5 мл. 2 иглы) | Q18: =CONCATENATE(Договоры_tb[[#This Row],[Поставщик22]]," (дог. №",Договоры_tb[[#This Row],[Договор]],"; ост.",Договоры_tb[[#This Row],[Остаток]],")") -> ООО "Сибмедком" (дог. №4569; ост.70) | R18: ООО "Сибмедком" | S18: 4569 | U18: шт. | V18: 130 | W18: 70 | AA18: Пробирка Vacuette (8 мл., 50 шт.)
A19: Азитромицин (таб., 125 мг, №6) | B19: уп. | C19: 10 | D19: 206.67 | P19: Шприц (5 мл.) | Q19: =CONCATENATE(Договоры_tb[[#This Row],[Поставщик22]]," (дог. №",Договоры_tb[[#This Row],[Договор]],"; ост.",Договоры_tb[[#This Row],[Остаток]],")") -> ООО "Сибмедком" (дог. №4569; ост.50) | R19: ООО "Сибмедком" | S19: 4569 | U19: шт. | V19: 120 | W19: 50 | AA19: Пробирка Vacuette (9 мл., 50 шт.)
A20: Азопирам | B20: комп. | C20: 10 | D20: 364.44 | P20: Адреналин гидрохлорид (р-р, 0,1%, 1 мл.) | Q20: =CONCATENATE(Договоры_tb[[#This Row],[Поставщик22]]," (дог. №",Договоры_tb[[#This Row],[Договор]],"; ост.",Договоры_tb[[#This Row],[Остаток]],")") -> ООО "Медресурс" (дог. №ПР-123; ост.30) | R20: ООО "Медресурс" | S20: ПР-123 | U20: уп. | V20: 150 | W20: 30 | AA20: Пробирка вакуумная Cerebrum (4 мл., 50 шт.)
A21: Азур-эозин по Романовскому (р-р, 0,76%, окраска 6000, 1 л.) | B21: фл. | C21: 6 | D21: 261.6 | E21: мл. | F21: 1000 | G21: 0.2616 | P21: Бинт (нест., 10 м.х15 см.) | Q21: =CONCATENATE(Договоры_tb[[#This Row],[Поставщик22]]," (дог. №",Договоры_tb[[#This Row],[Договор]],"; ост.",Договоры_tb[[#This Row],[Остаток]],")") -> ООО "Медресурс" (дог. №ПР-123; ост.60) | R21: ООО "Медресурс" | S21: ПР-123 | U21: уп. | V21: 100 | W21: 60 | AA21: Пробирка вакуумная Cerebrum (5 мл., 50 шт.)
A22: Актовегин (р-р, 5 мл., №5) | B22: уп. | C22: 2 | D22: 675 | P22: Бинт (нест., 5 м.х10 см.) | Q22: =CONCATENATE(Договоры_tb[[#This Row],[Поставщик22]]," (дог. №",Договоры_tb[[#This Row],[Договор]],"; ост.",Договоры_tb[[#This Row],[Остаток]],")") -> ООО "Медресурс" (дог. №ПР-123; ост.60) | R22: ООО "Медресурс" | S22: ПР-123 | U22: уп. | V22: 120 | W22: 60 | AA22: Пробирка вакуумная Cerebrum (8 мл., 50 шт.)
A23: Аллерген из библиотечной пыли для диагностики | B23: комп. | C23: 2 | D23: 4216.63 | E23: комп. | F23: 1 | G23: 4216.63 | P23: Бинт (стер. 10 м.х15 см.) | Q23: =CONCATENATE(Договоры_tb[[#This Row],[Поставщик22]]," (дог. №",Договоры_tb[[#This Row],[Договор]],"; ост.",Договоры_tb[[#This Row],[Остаток]],")") -> ООО "Медресурс" (дог. №ПР-123; ост.50) | R23: ООО "Медресурс" | S23: ПР-123 | U23: уп. | V23: 90 | W23: 50 | AA23: Пробирка микровета с ЭДТА (0,2 мл., 100 шт.)
A24: Аллерген из дафнии для диагностики | B24: комп. | C24: 1 | D24: 4216.63 | E24: комп. | F24: 1 | G24: 4216.63 | P24: Бинт (стер. 5 м.х10 см.) | Q24: =CONCATENATE(Договоры_tb[[#This Row],[Поставщик22]]," (дог. №",Договоры_tb[[#This Row],[Договор]],"; ост.",Договоры_tb[[#This Row],[Остаток]],")") -> ООО "Медресурс" (дог. №ПР-123; ост.50) | R24: ООО "Медресурс" | S24: ПР-123 | U24: уп. | V24: 100 | W24: 50 | AA24: Шприц (1 мл.)
A25: Аллерген из домашней пыли для диагностики | B25: комп. | C25: 2 | D25: 6644.33 | E25: комп. | F25: 1 | G25: 6644.33 | P25: Контейнер для сбора мочи (стер., 100 мл.) | Q25: =CONCATENATE(Договоры_tb[[#This Row],[Поставщик22]]," (дог. №",Договоры_tb[[#This Row],[Договор]],"; ост.",Договоры_tb[[#This Row],[Остаток]],")") -> ООО "Восток" (дог. №Кн-999; ост.50) | R25: ООО "Восток" | S25: Кн-999 | U25: шт. | V25: 140 | W25: 50 | AA25: Шприц (10 мл.)
A26: Аллерген из клеща Dermatophagoides pteronissinus для диагностики и лечения | B26: комп. | C26: 2 | D26: 6644.33 | E26: комп. | F26: 1 | G26: 6644.33 | P26: Адреналин гидрохлорид (р-р, 0,1%, 1 мл.) | Q26: =CONCATENATE(Договоры_tb[[#This Row],[Поставщик22]]," (дог. №",Договоры_tb[[#This Row],[Договор]],"; ост.",Договоры_tb[[#This Row],[Остаток]],")") -> ООО "Восток" (дог. №Кн-999; ост.40) | R26: ООО "Восток" | S26: Кн-999 | U26: шт. | V26: 110 | W26: 40 | AA26: Шприц (2 мл. 2 иглы)
A27: Аллерген из пера подушек для диагностики и лечения | B27: комп. | C27: 2 | D27: 6644.33 | E27: комп. | F27: 1 | G27: 6644.33 | P27: Контейнер для утилизации отходов МК-01 (однораз., желтый, 3 л.) | Q27: =CONCATENATE(Договоры_tb[[#This Row],[Поставщик22]]," (дог. №",Договоры_tb[[#This Row],[Договор]],"; ост.",Договоры_tb[[#This Row],[Остаток]],")") -> ООО "Восток" (дог. №Кн-999; ост.30) | R27: ООО "Восток" | S27: Кн-999 | U27: шт. | V27: 200 | W27: 30 | AA27: Шприц (2 мл.)
A28: Аллерген из перхоти лошади для диагностики | B28: комп. | C28: 2 | D28: 4216.63 | E28: комп. | F28: 1 | G28: 4216.63 | P28: Контейнер для утилизации отходов МК-04 (многораз., бирюзовый, 7,5 л.). | Q28: =CONCATENATE(Договоры_tb[[#This Row],[Поставщик22]]," (дог. №",Договоры_tb[[#This Row],[Договор]],"; ост.",Договоры_tb[[#This Row],[Остаток]],")") -> ООО "Восток" (дог. №Кн-999; ост.20) | R28: ООО "Восток" | S28: Кн-999 | U28: шт. | V28: 60 | W28: 20 | AA28: Шприц (20 мл.)
A29: Аллерген из пыльцы березы висячей для диагностики и лечения | B29: комп. | C29: 2 | D29: 3932.61 | E29: комп. | F29: 1 | G29: 3932.61 | P29: Контейнер для утилизации отходов МК-05 (многораз., желтый 50 л.) | Q29: =CONCATENATE(Договоры_tb[[#This Row],[Поставщик22]]," (дог. №",Договоры_tb[[#This Row],[Договор]],"; ост.",Договоры_tb[[#This Row],[Остаток]],")") -> ООО "Восток" (дог. №Кн-999; ост.20) | R29: ООО "Восток" | S29: Кн-999 | U29: шт. | V29: 80 | W29: 20 | AA29: Шприц (5 мл. 2 иглы)
A30: Аллерген из пыльцы клена ясенелистного для диагностики и лечения | B30: комп. | C30: 1 | D30: 3932.61 | E30: комп. | F30: 1 | G30: 3932.61 | P30: Контрольная сыворотка на РМП (отрицательный) (1 мл., 10 шт.) | Q30: =CONCATENATE(Договоры_tb[[#This Row],[Поставщик22]]," (дог. №",Договоры_tb[[#This Row],[Договор]],"; ост.",Договоры_tb[[#This Row],[Остаток]],")") -> ООО "Восток" (дог. №Кн-999; ост.50) | R30: ООО "Восток" | S30: Кн-999 | U30: уп. | V30: 200 | W30: 50 | AA30: Шприц (5 мл.)
A31: Аллерген из пыльцы лебеды татарской для диагностики и лечения | B31: комп. | C31: 2 | D31: 3932.61 | E31: комп. | F31: 1 | G31: 3932.61 | P31: Контрольная сыворотка на РМП (положительная) (1 мл., 10 шт.) | Q31: =CONCATENATE(Договоры_tb[[#This Row],[Поставщик22]]," (дог. №",Договоры_tb[[#This Row],[Договор]],"; ост.",Договоры_tb[[#This Row],[Остаток]],")") -> ООО "Восток" (дог. №Кн-999; ост.0) | R31: ООО "Восток" | S31: Кн-999 | U31: уп. | V31: 60 | W31: 0
A32: Аллерген из пыльцы луговых трав для диагностики и лечения | B32: комп. | C32: 2 | D32: 4424.42 | E32: комп. | F32: 1 | G32: 4424.42 | P32: Контрольная сыворотка на РМП (слабоположительный) (1 мл., 10 шт.) | Q32: =CONCATENATE(Договоры_tb[[#This Row],[Поставщик22]]," (дог. №",Договоры_tb[[#This Row],[Договор]],"; ост.",Договоры_tb[[#This Row],[Остаток]],")") -> ООО "Восток" (дог. №Кн-999; ост.20) | R32: ООО "Восток" | S32: Кн-999 | U32: уп. | V32: 90 | W32: 20
A33: Аллерген из пыльцы одуванчика лекарственного для диагностики и лечения | B33: комп. | C33: 1 | D33: 3932.61 | E33: комп. | F33: 1 | G33: 3932.61 | P33: Адреналин гидрохлорид (р-р, 0,1%, 1 мл.) | Q33: =CONCATENATE(Договоры_tb[[#This Row],[Поставщик22]]," (дог. №",Договоры_tb[[#This Row],[Договор]],"; ост.",Договоры_tb[[#This Row],[Остаток]],")") -> ООО "Сибмедком" (дог. №5996; ост.40) | R33: ООО "Сибмедком" | S33: 5996 | U33: уп. | V33: 70 | W33: 40
A34: Аллерген из пыльцы полыни горькой для диагностики и лечения | B34: комп. | C34: 2 | D34: 3932.61 | E34: комп. | F34: 1 | G34: 3932.61 | P34: Пакеты упаковочные для стерилизации СтериТ (200*300, 100 шт.) | Q34: =CONCATENATE(Договоры_tb[[#This Row],[Поставщик22]]," (дог. №",Договоры_tb[[#This Row],[Договор]],"; ост.",Договоры_tb[[#This Row],[Остаток]],")") -> ООО "Сибмедком" (дог. №5996; ост.40) | R34: ООО "Сибмедком" | S34: 5996 | U34: уп. | V34: 100 | W34: 40
A35: Аллерген эпидермальный из шерсти кошки для диагностики | B35: комп. | C35: 2 | D35: 4216.63 | E35: комп. | F35: 1 | G35: 4216.63 | P35: Пакеты упаковочные для стерилизации СтериТ (200*330, 100 шт.) | Q35: =CONCATENATE(Договоры_tb[[#This Row],[Поставщик22]]," (дог. №",Договоры_tb[[#This Row],[Договор]],"; ост.",Договоры_tb[[#This Row],[Остаток]],")") -> ООО "Сибмедком" (дог. №5996; ост.110) | R35: ООО "Сибмедком" | S35: 5996 | U35: уп. | V35: 200 | W35: 110
A36: Аллерген эпидермальный из шерсти собаки для диагностики | B36: комп. | C36: 2 | D36: 4216.63 | E36: комп. | F36: 1 | G36: 4216.63
A37: Амброксол (р-р для приема внутрь и ингаляций, 7,5 мг./1 мл., 100 мл.) | B37: фл. | C37: 5 | D37: 171.13
A38: Аммиака раствор (амп., 10%, 40 мл.) | B38: фл. | C38: 50 | D38: 21
A39: Баллон Политцера с оливами | B39: набор | C39: 1 | D39: 3422.4
A40: Берет медицинский (однораз.) | B40: шт. | C40: 1 | D40: 11 | E40: шт. | F40: 1 | G40: 11
A41: Беродуал (р-р для ингаляций флакон/кап. по 20 мл.) | B41: фл. | C41: 5 | D41: 260.13
A42: Бинт (нест., 10 м.х15 см.) | B42: шт. | C42: 1 | D42: 21.36 | E42: шт. | F42: 1 | G42: 21.36
A43: Бинт (нест., 5 м.х10 см.) | B43: шт. | C43: 1 | D43: 6.13 | E43: шт. | F43: 1 | G43: 6.13
A44: Бинт (стер. 10 м.х15 см.) | B44: шт. | C44: 1 | D44: 23.68 | E44: шт. | F44: 1 | G44: 23.68
A45: Бинт (стер. 5 м.х10 см.) | B45: шт. | C45: 1 | D45: 7.44 | E45: шт. | F45: 1 | G45: 7.44
A46: Бонадерм - крем для рук восстанавливающий (100 мл.) | B46: шт. | C46: 1 | D46: 99.12 | E46: мл. | F46: 100 | G46: 0.9912
A47: Бонадерм-гель (100 мл.) | B47: шт. | C47: 1 | D47: 178.18 | E47: мл. | F47: 100 | G47: 1.7818
A48: Бонадерм-ИП салфетки (100 шт.) | B48: уп. | C48: 150 | D48: 324.5 | E48: шт. | F48: 100 | G48: 3.245
A49: Бонадерм-Ультра (100 мл., с распыляющей насадкой) | B49: шт. | C49: 1 | D49: 149.86 | E49: мл. | F49: 100 | G49: 1.4986
A50: Бонадерм-Ультра (50 мл., с распыляющей насадкой) | B50: шт. | C50: 1 | D50: 118 | E50: мл. | F50: 50 | G50: 2.36
A51: Бриллиантовый зеленый (амп., 1%, 10 мл.) | B51: шт. | C51: 1 | D51: 9.5 | E51: мл. | F51: 10 | G51: 0.95
A52: Бромгексин (таб., 4 мг., № 50) | B52: уп. | C52: 50 | D52: 70.77
A53: Бромгексин (таб., 8 мг., № 20) | B53: уп. | C53: 20 | D53: 9.28
A54: Бумага для спирографа Микролаб viasys (110*12*12) | B54: уп. | C54: 5 | D54: 72.34
A55: Бумага УЗИ сканер (20 м.) | B55: рул. | C55: 2 | D55: 1006.3 | E55: м. | F55: 20 | G55: 50.315
A56: Бумага ЭКГ (110 мм. х 30 мм.) | B56: рул. | C56: 60 | D56: 108
A57: Бумага ЭКГ (80 мм. х 70 мм., 300 л.) | B57: пач. | C57: 50 | D57: 74.61
A58: Буфер для окраски мазков (рН от 6,8 до 7,2, 10 мл.) | B58: фл. | C58: 6 | D58: 46.9
A59: Вазелиновое масло (100 мл.) | B59: шт. | C59: 1 | D59: 52.8 | E59: мл. | F59: 100 | G59: 0.528
A60: Валериана (20 мг., №50) | B60: уп.
A61: Вата (нест. 100 гр.) | B61: уп. | C61: 70 | D61: 21.1
A62: Вата (нест. 250 гр.) | B62: уп. | C62: 60 | D62: 46.92
A63: Вата (стер. 100 гр.) | B63: уп. | C63: 5 | D63: 28.54
A64: Ватные палочки, ушные (100 шт.) | B64: уп. | C64: 5000 | D64: 0.14 | E64: шт. | F64: 100 | G64: 0.0014
A65: Ватные шарики (стер.) | B65: уп.
A66: Вентолин Небулы (амп., для ингаляций 1 мг/мл., 2,5 мл. № 20) | B66: уп. | C66: 3 | D66: 265.13 | E66: шт. | F66: 20 | G66: 13.2565
A67: Винпоцетин (таб., 5 мг., №10) | B67: уп. | C67: 70 | D67: 54.6
A68: Винпоцетин-АКОС (амп., 2 мл., №10) | B68: уп. | C68: 20 | D68: 57.24
A69: Вода дистиллированная (амп., 50 мл., №10) | B69: уп. | C69: 60 | D69: 30.25
A70: Воронка ушная (1-4 мм.) | B70: шт. | C70: 1 | D70: 200 | E70: шт. | F70: 1 | G70: 200
A71: Воронка ушная (2-5 мм.) | B71: шт. | C71: 1 | D71: 200 | E71: шт. | F71: 1 | G71: 200
A72: Гель для УЗИ (1 л.) | B72: фл. | C72: 10 | D72: 169.58 | F72: 1000 | G72: 0.16958
A73: Гель для УЗИ (5 л.) | B73: кан. | C73: 1 | D73: 633.66
A74: Гипотиазид (таб., 25 мг., №20) | B74: уп.
A75: Гистамин дигидрохлорид 0,1% раствор (аллерген), шт | D75: 1100
A76: Глицин (таб., 100 мг., №50) | B76: уп. | C76: 75 | D76: 31
A77: Губка гемостатическая коллагеновая (90х90 мм., №1) | B77: уп. | C77: 150 | D77: 95
A78: Дез.средство "Литосептин", 1л, л | D78: 1206
A79: Дез.средство "Литосептин", 5л, л | D79: 1120.7
A80: Дез.средство "ОДС-14", 1л, л | D80: 936.86
A81: Дезинфицирующее средство "Бонацид", л | D81: 1237.82
A82: Дексаметазон (сусп., 5 мл., №1) | B82: уп. | C82: 3 | D82: 33.43
A83: Диаскинтест, доз. | D83: 53.69
A84: Диклофенак (75 мг., №10) | B84: уп.
A85: Димексид (100 мл.) | B85: уп. | C85: 4 | D85: 46.3
A86: Диспенсер для листовых полотенец | B86: шт. | C86: 1 | D86: 908.6 | E86: шт. | F86: 1 | G86: 908.6
A87: Дозатор автоматический BIOHIT (100-1000 мкл.) | B87: шт. | C87: 1 | D87: 6800 | E87: шт. | F87: 1 | G87: 6800
A88: Дозатор автоматический BIOHIT (500-5000 мкл.) | B88: шт. | C88: 1 | D88: 10744 | E88: шт. | F88: 1 | G88: 10744
A89: Дозатор жидк. дез. средств локтевой | B89: шт. | C89: 1 | D89: 1843.75 | E89: шт. | F89: 1 | G89: 1843.75
A90: Доксициклин | B90: уп. | D90: 15.78
A91: Дюфастон (таб., 10 мг., №20) | B91: уп.
A92: Ёмкость для сбора использованного медицинского материала класса Б | B92: шт. | C92: 1 | D92: 44.32 | E92: шт. | F92: 1 | G92: 44.32
A93: Жгут венозный детский | B93: шт. | C93: 1 | D93: 382 | E93: шт. | F93: 1 | G93: 382
A94: Жгут многоразовый автоматический Vacuette | B94: шт. | C94: 1 | D94: 617 | E94: шт. | F94: 1 | G94: 617
A95: Жгут резиновый кровостанавливающий (1,5 м.) | B95: шт. | C95: 1 | D95: 27 | E95: шт. | F95: 1 | G95: 27
A96: Зажим типа Москит изогнутый (140 мм.) | B96: шт. | C96: 1 | D96: 384 | E96: шт. | F96: 1 | G96: 384
A97: Зажим типа Москит прямой (150 мм.) | B97: шт. | C97: 1 | D97: 346 | E97: шт. | F97: 1 | G97: 346
A98: Зеркало гинекологическое "Куско" | B98: шт. | C98: 1 | E98: шт. | F98: 1 | G98: 0
A99: Зеркало носовое (№30) | B99: шт. | C99: 1 | D99: 603 | E99: шт. | F99: 1 | G99: 603
A100: Зеркало носовое (№35) | B100: шт. | C100: 1 | D100: 603 | E100: шт. | F100: 1 | G100: 603
A101: Зеркало носовое (№40) | B101: шт. | C101: 1 | D101: 603 | E101: шт. | F101: 1 | G101: 603
A102: Зонд аттиковый (140 мм.) | B102: шт. | C102: 1 | D102: 430 | E102: шт. | F102: 1 | G102: 430
A103: Зонд урогенитальный (стер., однораз.) | B103: шт. | C103: 1 | D103: 5.42 | E103: шт. | F103: 1 | G103: 5.42
A104: Игла двусторонняя Vacuette ( 0,8х38 мм (21Gх1 ½), 100 шт.) | B104: уп. | C104: 80 | D104: 965 | E104: шт. | F104: 100 | G104: 9.65
A105: Игла зеленая для пробирок Vacuette (100 шт.) | B105: уп. | C105: 80 | D105: 965 | E105: шт. | F105: 100 | G105: 9.65
A106: Иглодержатель | B106: шт. | C106: 1 | D106: 430 | E106: шт. | F106: 1 | G106: 430
A107: Инструмент универсальный сенсорный | B107: шт. | C107: 1 | D107: 1205 | E107: шт. | F107: 1 | G107: 1205
A108: Кавинтон (амп., 10 мг., 2,0, №10) | B108: уп.
A109: Кавинтон (таб. 5 мг., №50) | B109: уп.
A110: Калибратор (10 ммоль/л, 4 шт.) | B110: уп. | C110: 2 | D110: 450 | E110: шт. | F110: 4 | G110: 112.5
A111: Кальция хлорид (10%, 5,0 №10) | B111: уп.
A112: Камера Горяева | B112: шт. | C112: 1 | D112: 584.53 | E112: шт. | F112: 1 | G112: 584.53
A113: Канюля для промывания аттика | B113: шт. | C113: 1 | D113: 298 | E113: шт. | F113: 1 | G113: 298
A114: Капилляр Панченкова | B114: шт. | C114: 1 | D114: 9.3 | E114: шт. | F114: 1 | G114: 9.3
A115: Катетер урологический (женский, стер.) | B115: шт. | C115: 1 | D115: 6.88 | E115: шт. | F115: 1 | G115: 6.88
A116: Кислородная подушка (25 л.) | B116: шт. | C116: 1 | D116: 1123 | E116: шт. | F116: 1 | G116: 1123
A117: Кислота уксусная (р-р) | B117: уп. | D117: 54
A118: Колларгол (р-р) | B118: уп. | D118: 98
A119: Комплект противоэпидемический | B119: комп. | C119: 1 | D119: 1787.52
A120: Контейнер для сбора кала (стер., 40 мл.) | B120: шт. | C120: 1 | D120: 4.12 | E120: шт. | F120: 1 | G120: 4.12
A121: Контейнер для сбора мочи (стер., 100 мл.) | B121: шт. | C121: 1 | D121: 4.74 | E121: шт. | F121: 1 | G121: 4.74
A122: Контейнер для утилизации отходов МК-01 (однораз., желтый, 0,25 л.) | B122: шт. | C122: 1 | D122: 20 | E122: шт. | F122: 1 | G122: 20
A123: Контейнер для утилизации отходов МК-01 (однораз., желтый, 3 л.) | B123: шт. | C123: 1 | D123: 60 | E123: шт. | F123: 1 | G123: 60
A124: Контейнер для утилизации отходов МК-04 (многораз., бирюзовый, 7,5 л.). | B124: шт. | C124: 1 | D124: 400 | E124: шт. | F124: 1 | G124: 400
A125: Контейнер для утилизации отходов МК-05 (многораз., желтый 50 л.) | B125: шт. | C125: 1 | D125: 2500 | E125: шт. | F125: 1 | G125: 2500
A126: Контрольная сыворотка на РМП (отрицательный) (1 мл., 10 шт.) | B126: уп. | C126: 1 | D126: 3150 | E126: шт. | F126: 10 | G126: 315
A127: Контрольная сыворотка на РМП (положительная) (1 мл., 10 шт.) | B127: уп. | C127: 1 | D127: 3600 | E127: шт. | F127: 10 | G127: 360
A128: Контрольная сыворотка на РМП (слабоположительный) (1 мл., 10 шт.) | B128: уп. | C128: 1 | D128: 3000 | E128: шт. | F128: 10 | G128: 300
A129: Контрольный материал гематологических анализаторов (2х2,5 норм. ур., 1х2,5 ср. ур., 1х2,5 выс. ур.) | B129: набор | C129: 3 | D129: 7667.17
A130: Корвалол | B130: уп.
A131: Костюм хирургический медицинский | B131: шт. | C131: 1 | D131: 731.88 | E131: шт. | F131: 1 | G131: 731.88
A132: Краситель для окраски ретикулоцитов (1%, 50 мл., 2000 опред.) | B132: фл. | C132: 2 | D132: 31
A133: Крафт-пакет (100 шт.) | B133: уп. | C133: 2 | D133: 426.82
A134: Крючок Воячека | B134: шт. | C134: 1 | D134: 520 | E134: шт. | F134: 1 | G134: 520
A135: Ланцет (скарификатор) (однораз., автомат., 200 шт.) | B135: ? | C135: 20 | D135: 1680 | E135: шт. | F135: 200 | G135: 8.4
A136: Ланцет (скарификатор) (однораз., 100 шт.) | B136: ? | C136: 55 | D136: 2616 | E136: шт. | F136: 100 | G136: 26.16
A137: Лейкопластырь (бактер. 2х6 см.) | B137: шт. | C137: 1 | D137: 2.3 | E137: шт. | F137: 1 | G137: 2.3
A138: Лейкопластырь (катушка, 2х500 см.) | B138: шт. | C138: 1 | D138: 25.64 | E138: шт. | F138: 1 | G138: 25.64
A139: Лейкопластырь (фикс. 6 рул.) | B139: уп. | C139: 1 | D139: 552.66
A140: Лента диаграммная из термобумаги | B140: шт. | C140: 1 | D140: 39.2 | E140: шт. | F140: 1 | G140: 39.2
A141: Лидокаин (амп., 2%, №10) | B141: уп. | C141: 5 | D141: 19.61 | E141: шт. | F141: 10 | G141: 1.961
A142: Лидокаин (спрей, 10%, 38 гр.) | B142: уп. | C142: 3 | D142: 362
A143: Линкомицин (амп., 1 мл., №10) | B143: уп. | C143: 4 | D143: 73 | E143: шт. | F143: 10 | G143: 7.3
A144: Ложка Фолькмана | B144: шт. | C144: 1 | D144: 4.4 | E144: шт. | F144: 1 | G144: 4.4
A145: Лоток н/ж ЛМП 200 | B145: шт. | C145: 1 | D145: 125 | E145: шт. | F145: 1 | G145: 125
A146: Люгоря (р-р) | B146: уп. | D146: 80
A147: Мазь гидрокортизоновая (0,5%, 5 мл.) | B147: уп. | C147: 4 | D147: 46.58 | E147: мл. | F147: 5 | G147: 9.316
A148: Мазь левомеколь (40 гр.) | B148: уп. | C148: 7 | D148: 118.8 | E148: гр. | F148: 40 | G148: 2.97
A149: Мазь тетрациклиновая (1%, 5 гр.) | B149: уп. | C149: 2 | D149: 56.48 | E149: гр. | F149: 5 | G149: 11.296
A150: Марля (нестр.) | B150: м. | C150: 150 | D150: 11.03
A151: Маска Лепесток 200 | B151: шт. | C151: 1 | D151: 25.25 | E151: шт. | F151: 1 | G151: 25.25
A152: Маска медицинская трёхслойная, одноразовая (нестер., 50 шт.) | B152: уп. | C152: 100 | D152: 175 | E152: шт. | F152: 50 | G152: 3.5
A153: Масло иммерсионное (100 мл.) | B153: уп. | C153: 6 | D153: 109 | E153: мл. | F153: 100 | G153: 1.09
A154: МДГР (5 л.) | B154: шт. | C154: 1 | D154: 1510.4 | E154: мл. | F154: 5000 | G154: 0.30208
A155: Мексидол (амп., 5%, 50 мг.- 2 мл., №10) | B155: уп. | C155: 50 | D155: 397 | E155: шт. | F155: 10 | G155: 39.7
A156: Мексидол (таб., 125 мг., №50) | B156: уп. | C156: 20 | D156: 384
A157: Мембрана глюкозооксидазная (5 шт.) | B157: уп. | C157: 5 | D157: 3500 | E157: шт. | F157: 5 | G157: 700
A158: Метронидазол (таб., 0,2 мг., №10) | B158: уп.
A159: Мешок АМБУ детский | B159: шт. | C159: 1 | D159: 3944 | E159: шт. | F159: 1 | G159: 3944
A160: Микропробирка (200 мкл., антикоагул., 100 шт.) | B160: уп. | C160: 150 | D160: 1133.6 | E160: шт. | F160: 100 | G160: 11.336
A161: Микропробирки типа Эппендорф (1,5 мл., 500 шт.) | B161: уп. | C161: 6 | D161: 1300 | E161: шт. | F161: 500 | G161: 2.6
A162: Мультипакет для паровой стерилизации (1000 шт.) | B162: уп. | C162: 2 | D162: 1300 | E162: шт. | F162: 1000 | G162: 1.3
A163: Мундштук картонный одноразовый | B163: шт. | C163: 1 | D163: 0.8 | E163: шт. | F163: 1 | G163: 0.8
A164: Набор реагентов для исследования кала на гельминты, метод Като (500 опред., 500 шт.) | B164: набор | C164: 2 | D164: 970.1
A165: Набор реагентов для клинического анализа кала | B165: набор | C165: 2 | D165: 1896.6
A166: Набор реагентов для определения C-реактивного белка (100 опред.) | B166: набор | C166: 6 | D166: 700
A167: Набор реагентов для определения HDL холестерина (2х50 мл.) | B167: набор | C167: 3 | D167: 1000
A168: Набор реагентов для определения аланинаминотрансферазы (5х48 мл., 1х60 мл.) | B168: набор | C168: 6 | D168: 1000
A169: Набор реагентов для определения альбумина (1х250 мл., 1х5 мл.) | B169: набор | C169: 1 | D169: 750
A170: Набор реагентов для определения альфа-амилазы (120 мл.) | B170: набор | C170: 1 | D170: 3850
A171: Набор реагентов для определения аспартатаминотрансферазы (5х48 мл., 1х60 мл.) | B171: набор | C171: 6 | D171: 1000
A172: Набор реагентов для определения железа (2х100 мл, 1х5 мл.) | B172: набор | C172: 2 | D172: 4350
A173: Набор реагентов для определения калия (2х50 мл.) | B173: набор | C173: 2 | D173: 3100
A174: Набор реагентов для определения кальция (2х50 мл.) | B174: набор | C174: 2 | D174: 620
A175: Набор реагентов для определения креатинина (100 мл.) | B175: набор | C175: 2 | D175: 550
A176: Набор реагентов для определения магния (50 мл.) | B176: набор | C176: 2 | D176: 1200
A177: Набор реагентов для определения мочевины (50 мл.) | B177: набор | C177: 4 | D177: 620
A178: Набор реагентов для определения общего белка (1х1 л., 1х5 мл.) | B178: набор | C178: 1 | D178: 1600
A179: Набор реагентов для определения общего и прямого билирубина (508 мл.) | B179: набор | C179: 3 | D179: 800
A180: Набор реагентов для определения общего холестерина (2х100 мл.) | B180: набор | C180: 6 | D180: 1200
A181: Набор реагентов для определения содержания антистрептолизина О (12,5 мл., 100 опред.) | B181: набор | C181: 6 | D181: 700
A182: Набор реагентов для определения содержания ревматоидного фактора (100 опред.) | B182: набор | C182: 6 | D182: 550
A183: Набор реагентов для определения триглицеридов (2х50 мл.) | B183: набор | C183: 3 | D183: 1000
A184: Набор реагентов для определения фосфора (2х100 мл.) | B184: набор | C184: 1 | D184: 680
A185: Набор реагентов для определения хлоридов (2х100 мл.) | B185: набор | C185: 1 | D185: 630
A186: Набор реагентов для определения щелочной фосфатазы (250 мл.) | B186: набор | C186: 1 | D186: 1350
A187: Наконечники для дозаторов 100-1000 мкл (480 шт.) | B187: уп. | C187: 6 | D187: 750 | E187: шт. | F187: 480 | G187: 1.5625
A188: Наконечники для дозаторов 20-200 мкл (1000 шт.) | B188: набор | C188: 6 | D188: 1500
A189: Напальчник | B189: шт. | C189: 1 | D189: 0.66 | E189: шт. | F189: 1 | G189: 0.66
A190: Настойка йода (амп., 5%, 10 мл.) | B190: уп. | C190: 140 | D190: 13 | E190: мл. | F190: 10 | G190: 1.3
A191: Натрия тиосульфат (30%, 10 мл., №10) | B191: уп.
A192: Натрия хлорид (амп., 0,9%, 10 мл., №10) | B192: уп. | C192: 40 | D192: 38.73
A193: Натрия хлорид (амп., 0,9%, 5 мл., №10) | B193: уп. | C193: 30 | D193: 26.51
A194: Натрия хлорид (стер., 0,9%, 250 мл.) | B194: фл. | C194: 125 | D194: 25.05
A195: Натрия цитрат (р-р) | B195: уп. | D195: 98
A196: Никотиновая кислота (амп., 1%, 1 мл., №10) | B196: фл.
A197: Новокаин (амп., 0,5%, 5 мл., №10) | B197: уп. | C197: 3 | D197: 19.11
A198: Новокаин (амп., 2%, 2 мл., №10) | B198: уп. | C198: 4 | D198: 16.7
A199: Омепразол (капс., 20 мг., №30) | B199: уп. | C199: 1 | D199: 41.83
A200: Омепразол (капс., 20 мг., №50) | B200: уп.
... 122 more rows
